Workbook

Sheet LDC Info
AA3: Algoma Power Inc.
AA4: Atikokan Hydro Inc.
AA5: Attawapiskat Power Corporation
AA6: Bluewater Power Distribution Corporation
AA7: Brant County Power Inc.
AA8: Brantford Power Inc.
AA9: Burlington Hydro Inc.
AA10: Cambridge and North Dumfries Hydro Inc.
AA11: Canadian Niagara Power Inc.
AA12: Centre Wellington Hydro Ltd.
AA13: Chapleau Public Utilities Corporation
D14: Utility Name | E14: Entegrus Powerlines Inc. | AA14: COLLUS PowerStream Corp.
AA15: Cooperative Hydro Embrun Inc.
D16: Assigned EB Number | E16: EB-2015-0061 | AA16: E.L.K. Energy Inc.
AA17: Enersource Hydro Mississauga Inc.
D18: Name of Contact and Title | E18: Andrya Eagen, Senior Regulatory Specialist | AA18: Entegrus Powerlines Inc.
AA19: EnWin Utilities Ltd.
D20: Phone Number | E20: 519-352-6300 Ext 243 | AA20: Erie Thames Powerlines Corporation
AA21: Espanola Regional Hydro Distribution Corporation
D22: Email Address | E22: regulatory@entegrus.com | AA22: Essex Powerlines Corporation
AA23: Festival Hydro Inc.
D24: Test Year | E24: 2016 | AA24: Fort Albany Power Corporation
AA25: Fort Frances Power Corporation
D26: Bridge Year | E26: =IF(ISBLANK(E24), "", E24-1) -> 2015 | AA26: Greater Sudbury Hydro Inc.
AA27: Grimsby Power Inc.
D28: Last Rebasing Year | E28: 2010 | AA28: Guelph Hydro Electric Systems Inc.
AA29: Haldimand County Hydro Inc.
A30: Identify the accounting standard used for the test year | AA30: Halton Hills Hydro Inc.
E31: MIFRS | AA31: Hearst Power Distribution Company Limited
AA32: Horizon Utilities Corporation
A33: Did you update your depreciation and capitalization policies? | AA33: Hydro 2000 Inc.
E34: Yes | AA34: Hydro Hawkesbury Inc.
AA35: Hydro One Brampton Networks Inc.
A36: When did you update your depreciation and capitalization policies? | AA36: Hydro One Networks Inc.
E37: 2001-01-01 | F37: 2013 | AA37: Hydro One Remote Communities Inc.
AA38: Hydro Ottawa Limited
A39: Identify the year that the applicant has adopted or is expected to adopt IFRS for financial reporting purposes | AA39: Innpower Corporation
E40: 2013 | AA40: Kashechewan Power Corporation
AA41: Kenora Hydro Electric Corporation Ltd.
AA42: Kingston Hydro Corporation
A43: Are you applying for cost recovery for the test and/or future year(s) for Green Energy initiatives? | AA43: Kitchener-Wilmot Hydro Inc.
E44: No | AA44: Lakefront Utilities Inc.
AA45: Lakeland Power Distribution Ltd.
A46: ="Is " & E14 & " an embedded distributor?" -> Is Entegrus Powerlines Inc. an embedded distributor? | E46: Yes | AA46: London Hydro Inc.
AA47: Midland Power Utility Corporation
AA48: Milton Hydro Distribution Inc.
B49: Notes | AA49: Newmarket-Tay Power Distribution Ltd.
AA50: Niagara Peninsula Energy Inc.
C51: Pale green cells represent input cells. | AA51: Niagara-on-the-Lake Hydro Inc.
AA52: Norfolk Power Distribution Inc.
C53: Pale blue cells represent drop-down lists. The applicant should select the appropriate item from the drop-down list. | AA53: North Bay Hydro Distribution Limited
AA54: Northern Ontario Wires Inc.
C55: White cells contain fixed values, automatically generated values or formulae. | AA55: Oakville Hydro Electricity Distribution Inc.
AA56: Orangeville Hydro Limited
AA57: Orillia Power Distribution Corporation
AA58: Oshawa PUC Networks Inc.
AA59: Ottawa River Power Corporation
AA60: Peterborough Distribution Incorporated
AA61: PowerStream Inc.
AA62: PUC Distribution Inc.
AA63: Renfrew Hydro Inc.
AA64: Rideau St. Lawrence Distribution Inc.
AA65: Sioux Lookout Hydro Inc.
AA66: St. Thomas Energy Inc.
AA67: Thunder Bay Hydro Electricity Distribution Inc.
AA68: Tillsonburg Hydro Inc.
AA69: Toronto Hydro-Electric System Limited
AA70: Veridian Connections Inc.
AA71: Wasaga Distribution Inc.
AA72: Waterloo North Hydro Inc.
AA73: Welland Hydro-Electric System Corp.
AA74: Wellington North Power Inc.
AA75: West Coast Huron Energy Inc.
AA76: Westario Power Inc.
AA77: Whitby Hydro Electric Corporation
AA78: Woodstock Hydro Services Inc.

Sheet Index
A15: 1 | B15: LDC Information Sheet | E15: 28 | F15: App.2-G: Service Reliability Indicators
A16: 2 | B16: Index | E16: 29 | F16: App.2-H: Other Operating Revenue
A17: 3 | B17: Cost of Service Application Flowchart | E17: 30 | F17: App.2-I: Load Forecast CDM Adjustment Workform
A18: 4 | B18: List of Key References | E18: 31 | F18: App.2-IA: Actual and Forecast Load and Customer Data
A19: 5 | B19: App.2-AA: Capital Projects Table | E19: 32 | F19: App.2-JA: OM&A Summary Analysis
A20: 6 | B20: App.2-AB: Capital Expenditures | E20: 33 | F20: App.2-JB: Recoverable OM&A Cost Driver Table
A21: 7 | B21: App. 2-AC: Customer Engagement Worksheet | E21: 34 | F21: App.2-JC: OM&A Programs Table
A22: 8 | B22: App.2-B: General Accounting Instructions | E22: 35 | F22: App.2-K: Employee Costs
A23: 9 | B23: App.2-BA: Fixed Asset Continuity Schedule | E23: 36 | F23: App.2-L: Recoverable OM&A Cost per Customer and per FTE
A24: 10 | B24: Appendix 2-BB: Service Life Comparison | E24: 37 | F24: App.2-M: Regulatory Costs Schedule
A25: 11 | B25: App.2-CA: 2012 Depreciation and Amortization Expense (Old CGAAP) | E25: 38 | F25: App.2-N: Shared Servcies and Corporate Cost Allocation
A26: 12 | B26: App.2-CB: 2012 Depreciation and Amortization Expense (New CGAAP) | E26: 39 | F26: App.2-OA: Capital Structure and Cost of Capital
A27: 13 | B27: App.2-CC: 2013 Depreciation and Amortization Expense (New CGAAP) | E27: 40 | F27: App.2-OB: Debt Instruments
A28: 14 | B28: App.2-CD: 2014 Depreciation and Amortization Expense (MIFRS) | E28: 41 | F28: App.2-P: Cost Allocation
A29: 15 | B29: App.2-CE: 2015 Depreciation and Amortization Expense (MIFRS) | E29: 42 | F29: App.2-PA: New Rate Design Policy For Residential Customers
A30: 16 | B30: App.2-CF: 2015 Depreciation and Amortization Expense (MIFRS) | E30: 43 | F30: App.2-Q: Cost of Serving Embedded Distributor(s)
A31: 17 | B31: App.2-CG: 2013 Depreciation and Amortization Expense (Old CGAAP) | E31: 44 | F31: App.2-R: Loss Factors
A32: 18 | B32: App.2-CH: 2013 Depreciation and Amortization Expense (New CGAAP) | E32: 45 | F32: App.2-S: Stranded Meter Treatment
A33: 19 | B33: App.2-CI: 2014 Depreciation and Amortization Expense (MIFRS) | E33: 46 | F33: App.2-TA: Account 1592, PILs and Tax Variances
A34: 20 | B34: App.2-CJ: 2015 Depreciation and Amortization Expense (MIFRS) | E34: 47 | F34: App.2-TB: Account 1592, HST-OVAT Input Tax Credits
A35: 21 | B35: App.2-CK: 2016 Depreciation and Amortization Expense (MIFRS) | E35: 48 | F35: App.2-U: One-Time Incremental IFRS Transition Costs
A36: 22 | B36: App.2-D: Overhead Expenses | E36: 49 | F36: App.2-V: Revenue Reconciliation
A37: 23 | B37: App.2-EA: Account 1575 PP&E Deferral Account (2015 IFRS Adopters) | E37: 50 | F37: App.2-W: Bill Impacts
A38: 24 | B38: App.2-EB: Account 1576 - Accounting Changes Under CGAAP (2012 Changes) | E38: 51 | F38: App.2-Y: Transition to MIFRS Summary Impact
A39: 25 | B39: App.2-EC: Account 1576 - Accounting Changes Under CGAAP (2013 Changes) | E39: 52 | F39: App. 2-Z: Tariff Schedule
A40: 26 | B40: App.2-FA: Renewable Generation Connection Investment Summary
A41: 27 | B41: App.2-FB: Calculation of Renewable Generation Connection Direct Benefits/Provincial Amount: Renewable Enabling Improvement Investments
A42: 28 | B42: App.2-FC: Calculation of Renewable Generation Connection Direct Benefits/Provincial Amount: Renewable Expansion Investments

Sheet COS Flowchart
B4: Cost of Service Rate Application Schematic
B6: The Cost of Service Rate Application Schematic is a flowchart appended to Chapter 2 of the Filing Requirements as a guide for the components of an application and how demand and costs interrelate to derive the revenue requirement and then how the revenue requirement is allocated between classes and through fixed/variable splits to derive rates that will be compensatory for the annual revenue requirement, based on the the forecasted demand. There is no form to be filled out; therefore, this Schedule is not required to be filed.

Sheet List of Key References
B3: List of Key References
A5: A list of key references for understanding the Filing Requirements has been embedded in the document below. To access the list of references and associated hyperlinks double-click the icon below.

Sheet App.2-AA_Capital Projects
G1: File Number: | H1: =EBNUMBER -> EB-2015-0061
G2: Exhibit: | H2: 2
G3: Attachment: | H3: 2-F
G4: Page: | H4: 1 of 2
G7: Date: | H7: 2015-08-28
A9: Appendix 2-AA
A10: Capital Projects Table
A13: Projects | B13: =C13-1 -> 2011 | C13: =D13-1 -> 2012 | D13: =E13-1 -> 2013 | E13: =BridgeYear - 1 -> 2014 | F13: =BridgeYear & " Bridge Year" -> 2015 Bridge Year | G13: =TestYear & " Test Year" -> 2016 Test Year
A14: Reporting Basis | B14: CGAAP | C14: CGAAP | D14: RCGAAP | E14: MIFRS | F14: MIFRS | G14: MIFRS
A15: System Access
A16: Account Cancellation | B16: 25233.13 | C16: 7613.79 | D16: 11159.72 | E16: 17609.47 | F16: 16000 | G16: 16160
A17: Capital Expansion Requests | B17: 190121.89 | C17: 116479.9 | D17: 41948.92 | E17: 4376.55 | F17: 125566.7293 | G17: 126758.4798
A18: Commercial Industrial New | B18: 383984.12 | C18: 333655.29 | D18: 278783.74 | E18: 167368.51 | F18: 126767.8687 | G18: 128035.5474
A19: Commercial Industrial Rebuild | B19: 252471.73 | C19: 340275.21 | D19: 529963 | E19: 256175.82 | F19: 261000 | G19: 263610
A20: Contributed Capital | B20: -507424.13 | C20: -564961.4 | D20: -777719.12 | E20: -462144.55 | F20: -375000 | G20: -375000
A21: FIT Cost | B21: 14288.96 | C21: 34397.48 | D21: 63319.33 | E21: 293294.36 | F21: 161110.275 | G21: 162721.3777
A22: IFRS | B22: 0 | C22: 0 | D22: -109025.1773 | E22: 0 | F22: 0 | G22: 0
A23: Load Transfers | B23: 0 | C23: 7701.6 | D23: 1658.2 | E23: 280.33 | F23: 100800 | G23: 50000
A24: Residential Detached | B24: 304036.13 | C24: 309524.83 | D24: 476944.65 | E24: 246138.06 | F24: 175082.95 | G24: 176833.7795
A25: Residential New | B25: 139807 | C25: 148923.75 | D25: 220174.67 | E25: 123197.1 | F25: 136511.275 | G25: 137876.3877
A26: Residential Rebuilds | B26: 133797.88 | C26: 118787.74 | D26: 132059.75 | E26: 110239.47 | F26: 125000 | G26: 126250
A27: Subtotal System Access | B27: =SUM(B16:B26) -> 936316.71 | C27: =SUM(C16:C26) -> 852398.19 | D27: 869267.6827 | E27: 756535.12 | F27: 852839.098 | G27: 813245.5722
A28: System Renewal
A29: Conversions - CK Substation 3 | B29: 0 | C29: 0 | D29: 182151.54 | E29: 512.92 | F29: 200000 | G29: 200000
A30: Conversions - CK Substation 4 | B30: 0 | C30: 0 | D30: 9038.99 | E30: 67836.31 | F30: 150000 | G30: 0
A31: Conversions - CK Substation 6 | B31: 0 | C31: 475390.72 | D31: 323574.64 | E31: 168537.24 | F31: 300000 | G31: 300000
A32: Conversions - Downtown Chatham | B32: 54816.72 | C32: 109105.94 | D32: 167304.9 | E32: 670838.18 | F32: 300000 | G32: 0
A33: Conversions - Dresden | B33: 462451.99 | C33: 418679.51 | D33: 422567.21 | E33: 67795.6 | F33: 0 | G33: 0
A34: Conversions - Feeder 5 Parkhill | B34: 0 | C34: 0 | D34: 35502.81 | E34: 27976.16 | F34: 0 | G34: 0
A35: Conversions - Misc. | B35: 0 | C35: 10361.62 | D35: 0 | E35: 0 | F35: 0 | G35: 0
A36: Conversions - Mount Brydges | B36: 0 | C36: 0 | D36: 0 | E36: 0 | F36: 250000 | G36: 0
A37: Conversions - MP Substation 1 | B37: 0 | C37: 0 | D37: 0 | E37: 0 | F37: 250000 | G37: 250000
A38: Conversions - MP Substation 3 | B38: 0 | C38: 0 | D38: 0 | E38: 0 | F38: 200000 | G38: 200000
A39: Conversions - MP Substation 4 | B39: 238187.97 | C39: 358156.54 | D39: 222358.23 | E39: 300202.42 | F39: 250000 | G39: 250000
A40: Conversions - Queen Street | B40: 0 | C40: 175126.02 | D40: 0 | E40: 0 | F40: 0 | G40: 0
A41: Conversions - Ridgetown | B41: 0 | C41: 0 | D41: 0 | E41: 0 | F41: 0 | G41: 50000
A42: Conversions - Riverview Drive Strathroy | B42: 0 | C42: 11481.58 | D42: 207907.89 | E42: 3772.08 | F42: 0 | G42: 0
A43: Conversions - Substation 7 and 9 | B43: 175327.29 | C43: 94.61 | D43: 0 | E43: 0 | F43: 0 | G43: 0
A44: Conversions - Wheatley | B44: 0 | C44: 0 | D44: 0 | E44: 0 | F44: 50000 | G44: 240000
A45: Emergencies - Failures | B45: 90048.3 | C45: 70578.39 | D45: 42181.26 | E45: 38387.55 | F45: 0 | G45: 0
A46: Emergencies - Misc. | B46: 25587.32 | C46: 50390.61 | D46: 59009.86 | E46: 69795.68 | F46: 220000 | G46: 230000
A47: Emergencies - Storms | B47: 26663.51 | C47: 65317.61 | D47: 188109.4 | E47: 252087.44 | F47: 0 | G47: 0
A48: Engineering Support | B48: 462955.32 | C48: 523795.86 | D48: 557104.97 | E48: 509583.44 | F48: 559561.426 | G48: 599954.8474
A49: IFRS | B49: 0 | C49: 0 | D49: -385811.7712 | E49: 0 | F49: 0 | G49: 0
A50: Low Voltage - Ridgetown | B50: 0 | C50: 0 | D50: 0 | E50: 0 | F50: 0 | G50: 0
A51: M5/M21 Feeder Tie | B51: 0 | C51: 0 | D51: 88187.67 | E51: 150262.82 | F51: 0 | G51: 0
A52: Misc. | B52: 20599.04 | C52: 996.41 | D52: 0 | E52: 0 | F52: 0 | G52: 0
A53: Operations Support | B53: 679889.65 | C53: 513527.69 | D53: 723749.63 | E53: 444450.61 | F53: 571011.0537 | G53: 672576.2196
A54: Replacements - Insulator | B54: 47382.41 | C54: 48740.47 | D54: 12337.42 | E54: 55454.96 | F54: 50000 | G54: 30000
A55: Replacements - LIS | B55: 62706.77 | C55: 82934.56 | D55: 52727.11 | E55: 45346.19 | F55: 60000 | G55: 65000
A56: Replacements - Poles | B56: 129923.2 | C56: 315767.05 | D56: 256797.07 | E56: 355739.91 | F56: 280000 | G56: 135000
A57: Replacements - Primary Cable | B57: 371576.84 | C57: 253139.68 | D57: 136719.27 | E57: 170354.97 | F57: 365000 | G57: 350000
A58: Replacements - Reduction of Step Down Transformers | B58: 82118.76 | C58: 133669.75 | D58: 173191.58 | E58: 401140.68 | F58: 200000 | G58: 100000
A59: Replacements - Retail Meters | B59: -1355350.86 | C59: 2922388.12 | D59: 496716.64 | E59: 280652.75 | F59: 261165.6187 | G59: 420249.3609
A60: Replacements - Submarine Cable | B60: 417494.62 | C60: 2453.04 | D60: 0 | E60: 0 | F60: 0 | G60: 0
A61: Replacements - Switchgear | B61: 0 | C61: 0 | D61: 0 | E61: 0 | F61: 15000 | G61: 0
A62: Replacements - Transformers | B62: 117361.88 | C62: 160972.92 | D62: 386951.08 | E62: 279050.64 | F62: 218407.7 | G62: 221683.8155
A63: Replacements - Wholesale Meters | B63: 49123.58 | C63: 12128.15 | D63: 305666.8 | E63: -4.97379915e-14 | F63: 0 | G63: 0
A64: Thamesville DS Rebuild | B64: 26327.54 | C64: 62630.73 | D64: 0 | E64: 0 | F64: 0 | G64: 0
A65: Subtotal System Renewal | B65: =SUM(B29:B64) -> 2185191.85 | C65: =SUM(C29:C64) -> 6777827.58 | D65: 4664044.199 | E65: 4359778.55 | F65: 4750145.799 | G65: 4314464.243
G66: File Number: | H66: =EBNUMBER -> EB-2015-0061
G67: Exhibit: | H67: 2
G68: Attachment: | H68: 2-F
G69: Page: | H69: 2 of 2
G72: Date: | H72: 2015-08-28
A74: Appendix 2-AA
A75: Capital Projects Table
A78: Projects | B78: =C78-1 -> 2011 | C78: =D78-1 -> 2012 | D78: =E78-1 -> 2013 | E78: =BridgeYear - 1 -> 2014 | F78: =BridgeYear & " Bridge Year" -> 2015 Bridge Year | G78: =TestYear & " Test Year" -> 2016 Test Year
A79: Reporting Basis | B79: CGAAP | C79: CGAAP | D79: RCGAAP | E79: MIFRS | F79: MIFRS | G79: MIFRS
A80: System Service
A81: Asset Management | B81: 0 | C81: 0 | D81: 132980.81 | E81: 537953.91 | F81: 100000 | G81: 50000
A82: Control Room Support | B82: 134314.2 | C82: 124818.21 | D82: 105752.46 | E82: 106294.41 | F82: 99771.938 | G82: 100669.8854
A83: Enhanced System Monitoring & Sensing | B83: 0 | C83: 0 | D83: 968998.34 | E83: 276974.72 | F83: 110000 | G83: 250000
A84: GIS | B84: 127661.3 | C84: 154235.66 | D84: 502152.81 | E84: 197157.35 | F84: 200000 | G84: 260000
A85: IFRS | B85: 0 | C85: 0 | D85: -13719.44154 | E85: 0 | F85: 0 | G85: 0
A86: SCADA | B86: -36943.72 | C86: 14702.22 | D86: 230576.28 | E86: -35877.55 | F86: 105900 | G86: 106809
A87: System Automation | B87: 0 | C87: 0 | D87: 3.637978807e-11 | E87: 0 | F87: 325000 | G87: 425000
A88: Subtotal System Service | B88: =SUM(B81:B87) -> 225031.78 | C88: =SUM(C81:C87) -> 293756.09 | D88: 1926741.258 | E88: 1082502.84 | F88: 940671.938 | G88: 1192478.885
A89: General Plant
A90: Building | B90: 153610 | C90: 1244853.13 | D90: 133413.79 | E90: 611104.87 | F90: 465000 | G90: 275000
A91: Computer | B91: 60791.84 | C91: 286066.54 | D91: 72819.37 | E91: 297523.52 | F91: 35000 | G91: 116000
A92: IFRS | B92: 0 | C92: 0 | D92: -1983.61 | E92: 0 | F92: 0 | G92: 0
A93: Land | B93: 332688.83 | C93: 35455.99 | D93: -37008.25 | E93: 0 | F93: 0 | G93: 0
A94: Office Furniture | B94: 29960.47 | C94: 52564.79 | D94: 14709.35 | E94: 159594.49 | F94: 20000 | G94: 20000
A95: Rolling Stock | B95: 214975.16 | C95: -404612.32 | D95: 958735.07 | E95: 203411.54 | F95: 635000 | G95: 600000
A96: Software | B96: 44189.08 | C96: 72008.98 | D96: -0.96 | E96: 1084949.78 | F96: 396000 | G96: 352000
A97: Tools | B97: 24558.23 | C97: 71699.83 | D97: 40989.46 | E97: 107254.16 | F97: 132000 | G97: 155500
A98: Subtotal General Plant | B98: =SUM(B90:B97) -> 860773.61 | C98: =SUM(C90:C97) -> 1358036.94 | D98: 1181674.22 | E98: 2463838.36 | F98: 1683000 | G98: 1518500
A99: Total | B99: =B27+B65+B88+B98 -> 4207313.95 | C99: =C27+C65+C88+C98 -> 9282018.8 | D99: 8641727.36 | E99: 8662654.87 | F99: 8226656.835 | G99: 7838688.701
A100: Less Renewable Generation Facility Assets and Other Non-Rate-Regulated Utility Assets (input as negative)
A101: Total | B101: =B99+B100 -> 4207313.95 | C101: 9282018.8 | D101: 8641727.36 | E101: 8662654.87 | F101: 8226656.835 | G101: 7838688.701
A103: Notes:
A105: 1 Please provide a breakdown of the major components of each capital project undertaken in each year. Please ensure that all projects below the materiality threshold are included in the miscellaneous line. Add more projects as required.
A106: 2 The applicant should group projects appropriately and avoid presentations that result in classification of significant components of the capital budget in the miscellaneous category.

Sheet App.2-AB_Capital Expenditures
S1: File Number: | U1: =EBNUMBER -> EB-2015-0061
S2: Exhibit: | U2: 2
S3: Attachment: | U3: 2-E
S4: Page: | U4: 1 of 1
S7: Date: | U7: 2015-08-28
A9: Appendix 2-AB
A10: Table 2 - Capital Expenditure Summary from Chapter 5 Consolidated Distribution System Plan Filing Requirements
A12: First year of Forecast Period: | B12: =TestYear -> 2016
A13: CATEGORY | B13: Historical Period (previous plan1 & actual) | Q13: Forecast Period (planned)
B14: =E14-1 -> 2011 | E14: =H14-1 -> 2012 | H14: =K14-1 -> 2013 | K14: =N14-1 -> 2014 | N14: =Q14-1 -> 2015 | Q14: =B12 -> 2016 | R14: =Q14+1 -> 2017 | S14: =R14+1 -> 2018 | T14: 2019 | U14: 2020
B15: Plan | C15: Actual | D15: Var | E15: Plan | F15: Actual | G15: Var | H15: Plan | I15: Actual | J15: Var | K15: Plan | L15: Actual | M15: Var | N15: Plan | O15: Actual2 | P15: Var
B16: $ '000 | D16: % | E16: $ '000 | G16: % | H16: $ '000 | J16: % | K16: $ '000 | M16: % | N16: $ '000 | P16: % | Q16: $ '000
A17: System Access | B17: (1) | C17: 936.31671 | D17: =IF(ISERROR((C17-B17)/B17),"--",(C17-B17)/B17) -> -937.31671 | E17: (1) | F17: 852.39819 | G17: =IF(ISERROR((F17-E17)/E17),"--",(F17-E17)/E17) -> -853.39819 | H17: (1) | I17: 869.2676827 | J17: =IF(ISERROR((I17-H17)/H17),"--",(I17-H17)/H17) -> -870.2676827 | K17: (1) | L17: 756.53512 | M17: =IF(ISERROR((L17-K17)/K17),"--",(L17-K17)/K17) -> -757.53512 | N17: (1) | O17: 852.839098 | P17: =IF(ISERROR((O17-N17)/N17),"--",(O17-N17)/N17) -> -853.839098 | Q17: 813.2455722 | R17: 774.3704431 | S17: 785.7997514 | T17: 797.1482322 | U17: 808.6101978
A18: System Renewal | B18: (1) | C18: 2185.19185 | D18: =IF(ISERROR((C18-B18)/B18),"--",(C18-B18)/B18) -> -2186.19185 | E18: (1) | F18: 6777.82758 | G18: =IF(ISERROR((F18-E18)/E18),"--",(F18-E18)/E18) -> -6778.82758 | H18: (1) | I18: 4664.044199 | J18: =IF(ISERROR((I18-H18)/H18),"--",(I18-H18)/H18) -> -4665.044199 | K18: (1) | L18: 4359.77855 | M18: =IF(ISERROR((L18-K18)/K18),"--",(L18-K18)/K18) -> -4360.77855 | N18: (1) | O18: 4750.145799 | P18: =IF(ISERROR((O18-N18)/N18),"--",(O18-N18)/N18) -> -4751.145799 | Q18: 4314.464243 | R18: 4460.766837 | S18: 4772.591736 | T18: 4759.34784 | U18: 4406.028768
A19: System Service | B19: (1) | C19: 225.03178 | D19: -226.03178 | E19: (1) | F19: 293.75609 | G19: -294.75609 | H19: (1) | I19: 1926.741258 | J19: -1927.741258 | K19: (1) | L19: 1082.50284 | M19: -1083.50284 | N19: (1) | O19: 940.671938 | P19: -941.671938 | Q19: 1192.478885 | R19: 1244.303004 | S19: 1076.144459 | T19: 1083.003413 | U19: 1140.949322
A20: General Plant | B20: (1) | C20: 860.77361 | D20: -861.77361 | E20: (1) | F20: 1358.03694 | G20: -1359.03694 | H20: (1) | I20: 1181.67422 | J20: -1182.67422 | K20: (1) | L20: 2463.83836 | M20: -2464.83836 | N20: (1) | O20: 1683 | P20: -1684 | Q20: 1518.5 | R20: 1233.5 | S20: 1022.5 | T20: 1035.5 | U20: 1105.5
A21: TOTAL EXPENDITURE | B21: =SUM(B17:B20) -> 0 | C21: =SUM(C17:C20) -> 4207.31395 | D21: -- | E21: 0 | F21: 9282.0188 | G21: -- | H21: 0 | I21: 8641.72736 | J21: -- | K21: 0 | L21: 8662.65487 | M21: -- | N21: 0 | O21: 8226.656835 | P21: -- | Q21: 7838.688701 | R21: 7712.940284 | S21: 7657.035946 | T21: 7674.999485 | U21: =SUM(U17:U20) -> 7461.088288
A22: System O&M | B22: (1) | C22: 7890.372069 | D22: -7891.372069 | E22: (1) | F22: 8081.382107 | G22: -8082.382107 | H22: (1) | I22: 8448.376975 | J22: -8449.376975 | K22: (1) | L22: 8959.36506 | M22: -8960.36506 | N22: (1) | O22: 9071.945274 | P22: -9072.945274 | Q22: 9495.81306 | R22: 9458.33286 | S22: 9620.762355 | T22: 9803.20064 | U22: 9970.712731
A24: Notes to the Table:
A25: 1. Historical “previous plan” data is not required unless a plan has previously been filed
A26: 2. Indicate the number of months of 'actual' data included in the last year of the Historical Period (normally a 'bridge' year): | N26: 0
A28: Explanatory Notes on Variances (complete only if applicable)
A29: Notes on shifts in forecast vs. historical budgets by category
A32: Notes on year over year Plan vs. Actual variances for Total Expenditures
A35: Notes on Plan vs. Actual variance trends for individual expenditure categories

Sheet App. 2-AC_Customer Engagement
B1: File Number: | C1: =EBNUMBER -> EB-2015-0061
B2: Exhibit: | C2: 1
B3: Attachment: | C3: 1-G
B4: Page: | C4: 1 of 1
B7: Date: | C7: 2015-08-28
A9: Appendix 2-AC
A10: Customer Engagement Activities Summary
A12: Provide a list of customer engagement activities | B12: Provide a list of customer needs and preferences identified through each engagement activity | C12: Actions taken to respond to identified needs and preferences. If no action was taken, explain why.
A13: Customer phone calls related to new accounts, bill inquiries, etc. (Ongoing) | B13: 1 Reminded of the need to focus on affordable rates 2 Identified need to assist customers with billing and energy literacy information 3 Identified need for e-billing and self-service options | C13: 1 Continued focus on monitoring of bill impacts and maintaining competitive distribution rates 2 Redesigned the EPI website in 2014 to provide additional customer information. Created explanatory customer videos to explain key concepts and assist with further engagement activities. Additional videos to launch in 2016. 3 Marketed e-billing service and launched "My Account" (self-service portal) in 2014
A14: Customer phone calls related to storms and outages, maintenance projects and vegetation management (Ongoing) | B14: 1 Identified need for social media information source on storm outages 2 Identified need to provide customers with more on-line information with regard to outages, including visual depiction | C14: 1 Launched social media channels (Twitter and Facebook) in 2014 2 Implementation of OMS with linkage to distribution system mapping in order to display the outage geographically on the EPI website for late 2015
A15: Bill inserts and semi-annual rate update brochures (Ongoing) | B15: 1 Identified need for enhancements to brochures to increase their effectiveness and better assist with energy literacy. | C15: 1 Added more explanatory content to rate brochures starting in 2013 and improved layout. 2 Added explanatory letters to complement the rate brochures for certain customers and rate classes.
A16: Commercial and industrial account meetings (Ongoing) | B16: 1 Identified need for additional focus on industrial power quality due to the susceptibility of modern machinery to minor fluctuations 2 Identified need for more immediate and additional access to consumption management information for the larger volume rate classes 3 Assistance with Global Adjustment Class A versus Class B considerations | C16: 1 Implementation of a power quality program in 2016, including monitoring devices and engineering resources, to assess and mitigate these impacts. 2 Enhancements to "My Account" on-line consumption management tool for late 2015 3 Provided background information and assessment considerations re Global Adjustment
A17: Commercial & Industrial Conservation Conferences (2013 & 2015) | B17: 1 Identified the need and opportunity for additional site visits and program assistance by the conservation team 2 Identified need for additional focus on industrial power quality due to the susceptibility of modern machinery to minor fluctuations | C17: 1 Additional site visits and program assistance provided by conservation team. 2 Implementation of a power quality program in 2016, including monitoring devices and engineering resources, to assess and mitigate these impacts.
A18: Community Conservation Events (Ongoing) | B18: 1 Identified need to assist customers with billing and energy literacy information 2. Identified need for additional information on save-on-energy programs | C18: 1 Redesigned the EPI website in 2014 to provide additional customer information. Created explanatory customer videos to explain key concepts and assist with further engagement activities. 2 Provide bill inserts regarding save-on-energy programs and include conservation content in rate brochures. Add additional website content on conservation.
A19: Children's Safety Village (Ongoing) | B19: 1 Identified that there is a high degree of appetite to educate on electrical safety at the grade school level | C19: 1 Continue with Safety Village and in school teaching opportunities to reinforce electrical safety at a young age
A20: Website & Social Media (Ongoing) | B20: 1 Identified need to assistance community with energy literacy 2. Identified need to provide more on-line information with regard to outages, including mapping enhancements to display the outage geographically | C20: 1 Created and launched website videos explaining vital energy literacy concepts 2 Implementation of OMS with linkage to distribution system mapping on website planned for launch in late 2015
A21: St. Clair College Powerline Maintainer Program (Ongoing) | B21: 1 Identified the need for the community to train and retain skilled people available to enter the workforce 2 This corresponds with EPI's need to have ready access to trained and locally-situated skilled labour | C21: 1 Support the program with senior management board and instructor participation 2 Support the program with scrap material and out-of-date tools for teaching purposes 3 Hire EPI's lines co-ops from the program
A22: Holiday Meal Preparation for Citizens in Need (Ongoing each Nov/Dec) | B22: 1 Reminded that some EPI customers are in challenging personal and financial circumstances | C22: 1 Continued employee empathy and sensitivity to community interaction and account collection activities 2 Continued focus on monitoring of bill impacts and maintaining competitive distribution rates
A23: Customer Surveys by Convergys - Customer Satisfaction & First Call Resolution (2014-2015) | B23: 1 Identified coaching opportunities for customer service reps 2 Identified need to continue to focus on power quality and reliability for industrial customers 3 Identified need to market and generate more awareness of existing self service options 4 Identified need to provide more billing and energy literacy information to customers | C23: 1 Work with a consultant to provide Customer Service Reps with access to an on-line portal that compares their ongoing individual survey results against aggregate departmental results 2 Implementation of a power quality program in 2016, including monitoring devices and engineering resources, to assess and mitigate these impacts. 3 Additional marketing in 2015 to drive awareness of customer opportunities to use existing on-line consumption management tools. 4 Redesigned the EPI website in 2014 to provide additional customer information. Created explanatory customer videos to explain key concepts and assist with further engagement activities. Additional videos to launch in 2016.
A24: Customer Surveys & Focus Groups by Innovative Research - Rates Application & Other Measures (2015) | B24: 1 Identified need to provide more billing and energy literacy information to customers 2 Identified need to provide customers with more on-line information with regard to outages, including visual depiction 3 Identified need to focus on affordable rates 4 Identified need to focus on improving reliability, including replacement aging assets, modernization of the distribution system and focus on power quality and reliability for industrial customers | C24: 1 Continued focus on monitoring of bill impacts and maintaining competitive distribution rates 2 Redesigned the EPI website in 2014 to provide additional customer information. Created explanatory customer videos in 2015 to explain key concepts and assist with further engagement activities. Additional videos to launch in 2016. 3 Continued focus on monitoring of bill impacts and maintaining competitive distribution rates. 4 The risk-based EPI DSP addresses reliability, replacement of aging assets, modernization of the distribution system and power quality. Specific to power quality, a program will be implemented in 2016, including monitoring devices and engineering resources, to assess and mitigate these impacts.
A28: Note: Use "ALT-ENTER" to go to the next line within a cell

Sheet App.2-B_Acct Instructions
A1: General Instructions to MIFRS Appendices
A2: Types of Schedules to File
A4: The purpose of this tab is to provide general instructions. The specific instructions to each appendix are listed in footnotes of each appendix.
A6: The typical applicant is expected to have made capitalization and depreciation policy changes under CGAAP as permitted by the Board on January 1, 2012 or mandated by the Board by January 1, 2013, and adopted IFRS for reporting purposes on January 1, 2015 (transition date January 1, 2014). In general, applicants under the two scenarios should provide the following information in the appendices:
E9: Accounting Policy Changes in 2012 and Adopted IFRS in 2015 | F9: Accounting Policy Changes in 2013 and Adopted IFRS in 2015
E10: (Date of Transition to IFRS 2014)
A11: Information to be filed in 2016 CoS Application | B11: 2016 | C11: Test | E11: MIFRS | F11: MIFRS
B12: 2015 | C12: Bridge | E12: MIFRS | F12: MIFRS
B13: 2014 | C13: Historical | E13: MIFRS and Revised CGAAP* | F13: MIFRS and Revised CGAAP*
B14: 2013 | C14: Historical | E14: Revised CGAAP | F14: CGAAP and Revised CGAAP
B15: 2012 | C15: Historical | E15: CGAAP and Revised CGAAP | F15: CGAAP
B16: 2011 and Prior | C16: Historical | E16: CGAAP | F16: CGAAP
A18: 1) For the year that the applicant implemented changes to its capitalization and depreciation policies (2012 or 2013), the applicant must file two appendices, one before and one after the policy changes.
A21: 2) For the transition year (2014), the applicant may file two appendices, one under Revised CGAAP and one under MIFRS, depending on the materiality of impacts. See the specific instructions under each appendix below for further details.
A26: Appendix 2-BA - Fixed Asset Schedule
A28: Applicants are to provide Appendix 2-BA in accordance with the years and corresponding accounting standards noted in the above table to provide a year over year continuity in fixed assets.
A29: *For the transition year (2014), the applicant should file two appendices, one under Revised CGAAP and one under MIFRS if the change between Revised CGAAP and MIFRS is material. If the change from the accounting standards is not material, the applicant may choose to only provide one appendix under MIFRS. However, the applicant must also indicate the fixed asset net book value balance under Revised CGAAP, the total dollar value of the change and explain why it is not material.
A33: Regulatory Gross Assets of Property, Plant and Equipment
A35: For an applicant that adopted IFRS on January 1, 2015 for financial reporting purposes, the applicant must establish the continuity of historic cost by using the December 31, 2013 regulatory gross assets of property, plant and equipment as the opening January 1, 2014 regulatory gross assets. The applicant must provide schedules (including Appendix 2-BA, Fixed Asset Continuity Schedule) which must identify the following details to substantiate the continuity of historic cost for regulatory purposes:
A38: · December 31, 2013 regulatory gross assets of property, plant and equipment, by asset class; and
A39: · January 1, 2014 regulatory gross assets of property, plant and equipment, by asset class.
A41: Accumulated Depreciation
A43: For an applicant that adopted IFRS on January 1, 2015 for financial reporting purposes, the applicant must establish the continuity of historic cost by using the December 31, 2013 regulatory accumulated depreciation as the opening January 1, 2014 regulatory accumulated depreciation. The applicant must provide schedules (including Appendix 2-BA, Fixed Asset Continuity Schedule) which must identify the following details to substantiate the continuity of historic cost for regulatory purposes:
A46: · December 31, 2013 regulatory accumulated depreciation, by asset class; and
A47: · January 1, 2014 regulatory accumulated depreciation, by asset class.
A49: Appendix 2-C - Depreciation and Amortization
A51: Applicants are to provide Appendix 2-C starting in the year capitalization and depreciation policy changes were implemented in accordance with the years and corresponding accounting standards listed in the above table.
A52: If an applicant changed capitalization and depreciation policies effective January 1, 2012 and adopted IFRS for reporting purposes effective January 1, 2015, the applicant must complete Appendix 2-CA to 2-CF (inclusive).
A53: If an applicant changed capitalization and depreciation policies effective January 1, 2013 and adopted IFRS for reporting purposes effective January 1, 2015, the applicant must complete Appendix 2-CG to 2-CK (inclusive).
A54: *Depreciation accounting policy changes were mandated by the Board by January 1, 2013. These accounting changes should be implemented consistent with the Board’s regulatory accounting policies as set out for MIFRS as contained in the Report of the Board, Transition to International Financial Reporting Standards (EB-2008-0408), the Depreciation Study for Use by Electricity Distributors (EB-2010-0178) and the Revised 2012 Accounting Procedures Handbook for Electricity Distributors. In general, no further changes to an applicant's depreciation policy (i.e. assets' service lives) are expected after the Board mandated changes by January 1, 2013. The set of Appendix CA to CK assumes this to be the case. If the applicant has made any changes to its depreciation policy subsequent to the Board mandated changes, applicants must identify the change, explain the nature of the change, the reason for the change, quantify the impact of the change, and quantify the depreciation expense before and after the change.
A57: Appendix 2-E - Account 1575, IFRS-CGAAP Transitional PP&E Amounts (2-EA), Account 1576, Accounting Changes Under CGAAP (2-EB, 2-EC)
A59: If an applicant changed capitalization and depreciation policies effective January 1, 2012 and adopted IFRS for reporting purposes effective January 1, 2015, the applicant must complete Appendix 2-EA and 2-EB. If the applicant did not make any further PP&E accounting policy changes beyond the capitalization and depreciation policy changes as permitted by the Board on January 1, 2012 (i.e. no further changes made on transition to IFRS), the applicant must indicate this and does not need to complete Appendix 2-EA.
A61: If an applicant changed capitalization and depreciation policies effective January 1, 2013 and adopted IFRS for reporting purposes effective January 1, 2015, the applicant must complete Appendix 2-EA and 2-EC. If the applicant did not make any further PP&E accounting policy changes beyond the capitalization and depreciation policy changes as mandated by the Board by January 1, 2013 (i.e. no further changes made on transition to IFRS), the applicant must indicate this and does not need to complete Appendix 2-EA.
A63: Please refer to section 2.12.4 and 2.12.5 of the Filing Requirements for further details.
A65: Appendix 2-YA - Summary of Impacts to Revenue Requirement from Transition to MIFRS
A67: For applicants adopting MIFRS, the applicants must provide a summary of the dollar impacts of MIFRS to each component of the revenue requirement (e.g. rate base, operating costs, etc), including the overall impact on the proposed revenue requirement. Accordingly, the applicants must identify financial differences and resulting revenue requirement impacts arising from the adoption of MIFRS as compared to CGAAP prior to capitalization and depreciation policy changes.

Sheet App.2-BA_Fixed Asset Cont
L1: File Number: | M1: =EBNUMBER -> EB-2015-0061
L2: Exhibit: | M2: 2
L3: Attachment: | M3: 2-A
L4: Page: | M4: 1 of 9
L7: Date: | M7: 2015-08-28
A9: Appendix 2-BA
A10: Fixed Asset Continuity Schedule 1
E12: Accounting Standard | F12: CGAAP
E13: Year | F13: 2010 | G13: BOARD APPROVED PROXY
D15: Cost | J15: Accumulated Depreciation
A16: CCA Class 2 | B16: OEB Account 3 | C16: Description 3 | D16: Opening Balance | E16: Additions 4 | F16: Disposals | G16: Closing Balance | I16: Opening Balance | J16: Additions | K16: Disposals | L16: Closing Balance | M16: Net Book Value
A17: 12 | B17: 1611 | C17: Computer Software (Formally known as Account 1925) | D17: 621693.04 | E17: 25.79 | F17: 0 | G17: =D17+E17+F17 -> 621718.83 | I17: -269602.97 | J17: -76712.76 | K17: 0 | L17: =I17+J17+K17 -> -346315.73 | M17: =G17+L17 -> 275403.1
A18: CEC | B18: 1612 | C18: Land Rights (Formally known as Account 1906) | D18: 0 | E18: 0 | F18: 0 | G18: =D18+E18+F18 -> 0 | I18: 0 | J18: 0 | K18: 0 | L18: =I18+J18+K18 -> 0 | M18: =G18+L18 -> 0
A19: N/A | B19: 1805 | C19: Land | D19: 130227.49 | E19: 37.14 | F19: 0 | G19: =D19+E19+F19 -> 130264.63 | I19: 0 | J19: 0 | K19: 0 | L19: =I19+J19+K19 -> 0 | M19: =G19+L19 -> 130264.63
A20: 47 | B20: 1808 | C20: Buildings | D20: 945005.98 | E20: 66815.1 | F20: 0 | G20: =D20+E20+F20 -> 1011821.08 | I20: -556583.25 | J20: -16152 | K20: 0 | L20: =I20+J20+K20 -> -572735.25 | M20: =G20+L20 -> 439085.83
A21: 13 | B21: 1810 | C21: Leasehold Improvements | D21: 0 | E21: 0 | F21: 0 | G21: 0 | I21: 0 | J21: 0 | K21: 0 | L21: 0 | M21: 0
A22: 47 | B22: 1815 | C22: Transformer Station Equipment >50 kV | D22: 0 | E22: 0 | F22: 0 | G22: 0 | I22: 0 | J22: 0 | K22: 0 | L22: 0 | M22: 0
A23: 47 | B23: 1820 | C23: Distribution Station Equipment <50 kV | D23: 1380833.04 | E23: 101757.22 | F23: 0 | G23: 1482590.26 | I23: -712630.76 | J23: -38194.44 | K23: 0 | L23: -750825.2 | M23: 731765.06
A24: 47 | B24: 1825 | C24: Storage Battery Equipment | D24: 0 | E24: 0 | F24: 0 | G24: 0 | I24: 0 | J24: 0 | K24: 0 | L24: 0 | M24: 0
A25: 47 | B25: 1830 | C25: Poles, Towers & Fixtures | D25: 7365036.57 | E25: 567298.72 | F25: 0 | G25: 7932335.29 | I25: -2957734.61 | J25: -207060.85 | K25: 0 | L25: -3164795.46 | M25: 4767539.83
A26: 47 | B26: 1835 | C26: Overhead Conductors & Devices | D26: 22552761.69 | E26: 662190.99 | F26: 0 | G26: 23214952.68 | I26: -7860305.34 | J26: -907600.98 | K26: 0 | L26: -8767906.32 | M26: 14447046.36
A27: 47 | B27: 1840 | C27: Underground Conduit | D27: 2574326.7 | E27: 245325.36 | F27: 0 | G27: 2819652.06 | I27: -1384946.37 | J27: -59229.67 | K27: 0 | L27: -1444176.04 | M27: 1375476.02
A28: 47 | B28: 1845 | C28: Underground Conductors & Devices | D28: 16883012.21 | E28: 818943.48 | F28: 0 | G28: 17701955.69 | I28: -7079009.01 | J28: -821428.96 | K28: 0 | L28: -7900437.97 | M28: 9801517.72
A29: 47 | B29: 1850 | C29: Line Transformers | D29: 18210274.01 | E29: 1043147.61 | F29: 0 | G29: 19253421.62 | I29: -7008927.16 | J29: -759483.2 | K29: 0 | L29: -7768410.36 | M29: 11485011.26
A30: 47 | B30: 1855 | C30: Services (Overhead & Underground) | D30: 3999890.29 | E30: 424469.84 | F30: 0 | G30: 4424360.13 | I30: -842318.12 | J30: -158785.06 | K30: 0 | L30: -1001103.18 | M30: 3423256.95
A31: 47 | B31: 1860 | C31: Meters | D31: 3958075.28 | E31: 32798.08 | F31: 0 | G31: 3990873.36 | I31: -1641165.64 | J31: -144890.61 | K31: 0 | L31: -1786056.25 | M31: 2204817.11
A32: 47 | B32: 1860 | C32: Meters (Smart Meters) | D32: 4210814.15 | E32: 0 | F32: 0 | G32: 4210814.15 | I32: -915499.33 | J32: -323909 | K32: 0 | L32: -1239408.33 | M32: 2971405.82
A33: N/A | B33: 1905 | C33: Land | D33: 822227.25 | E33: 25461.15 | F33: 0 | G33: 847688.4 | I33: 0 | J33: 0 | K33: 0 | L33: 0 | M33: 847688.4
A34: 47 | B34: 1908 | C34: Buildings & Fixtures | D34: 4317315.92 | E34: 305532.7 | F34: 0 | G34: 4622848.62 | I34: -1085006.32 | J34: -117828.71 | K34: 0 | L34: -1202835.03 | M34: 3420013.59
A35: 13 | B35: 1910 | C35: Leasehold Improvements | D35: 0 | E35: 0 | F35: 0 | G35: 0 | I35: 0 | J35: 0 | K35: 0 | L35: 0 | M35: 0
A36: 8 | B36: 1915 | C36: Office Furniture & Equipment (10 years) | D36: 212274.18 | E36: 12241.05 | F36: 0 | G36: 224515.23 | I36: -162923.31 | J36: -9421.81 | K36: 0 | L36: -172345.12 | M36: 52170.11
A37: 8 | B37: 1915 | C37: Office Furniture & Equipment (5 years) | D37: 0 | E37: 0 | F37: 0 | G37: 0 | I37: 0 | J37: 0 | K37: 0 | L37: 0 | M37: 0
A38: 10 | B38: 1920 | C38: Computer Equipment - Hardware | D38: 298066.64 | E38: 0 | F38: 0 | G38: 298066.64 | I38: -298066.64 | J38: 0 | K38: 0 | L38: -298066.64 | M38: 0
A39: 45 | B39: 1920 | C39: Computer Equip.-Hardware(Post Mar. 22/04) | D39: 55331 | E39: 0 | F39: 0 | G39: 55331 | I39: -45408.98 | J39: -6916 | K39: 0 | L39: -52324.98 | M39: 3006.02
A40: 45.1 | B40: 1920 | C40: Computer Equip.-Hardware(Post Mar. 19/07) | D40: 273177.53 | E40: 56121.08 | F40: 0 | G40: 329298.61 | I40: -74756.7 | J40: -23740.02 | K40: 0 | L40: -98496.72 | M40: 230801.89
A41: 10 | B41: 1930 | C41: Transportation Equipment | D41: 3615034.21 | E41: 782201.79 | F41: 0 | G41: 4397236 | I41: -2375620.89 | J41: -305625.04 | K41: 0 | L41: -2681245.93 | M41: 1715990.07
A42: 8 | B42: 1935 | C42: Stores Equipment | D42: 36643.46 | E42: 109.93 | F42: 0 | G42: 36753.39 | I42: -32623.68 | J42: -97.87 | K42: 0 | L42: -32721.55 | M42: 4031.84
A43: 8 | B43: 1940 | C43: Tools, Shop & Garage Equipment | D43: 1027032.4 | E43: 300024.26 | F43: 0 | G43: 1327056.66 | I43: -810706.33 | J43: -42609.27 | K43: 0 | L43: -853315.6 | M43: 473741.06
A44: 8 | B44: 1945 | C44: Measurement & Testing Equipment | D44: 9009.79 | E44: 27.03 | F44: 0 | G44: 9036.82 | I44: -3378.69 | J44: -10.14 | K44: 0 | L44: -3388.83 | M44: 5647.99
A45: 8 | B45: 1950 | C45: Power Operated Equipment | D45: 0 | E45: 0 | F45: 0 | G45: 0 | I45: 0 | J45: 0 | K45: 0 | L45: 0 | M45: 0
A46: 8 | B46: 1955 | C46: Communications Equipment | D46: 6843.49 | E46: 20.53 | F46: 0 | G46: 6864.02 | I46: -2879.36 | J46: -8.64 | K46: 0 | L46: -2888 | M46: 3976.02
A47: 8 | B47: 1955 | C47: Communication Equipment (Smart Meters) | D47: 0 | E47: 0 | F47: 0 | G47: 0 | I47: 0 | J47: 0 | K47: 0 | L47: 0 | M47: 0
A48: 8 | B48: 1960 | C48: Miscellaneous Equipment | D48: 0 | E48: 0 | F48: 0 | G48: 0 | I48: 0 | J48: 0 | K48: 0 | L48: 0 | M48: 0
A49: 47 | B49: 1970 | C49: Load Management Controls Customer Premises | D49: 25954.18 | E49: 77.86 | F49: 0 | G49: 26032.04 | I49: -17546.33 | J49: -52.64 | K49: 0 | L49: -17598.97 | M49: 8433.07
A50: 47 | B50: 1975 | C50: Load Management Controls Utility Premises | D50: 0 | E50: 0 | F50: 0 | G50: 0 | I50: 0 | J50: 0 | K50: 0 | L50: 0 | M50: 0
A51: 47 | B51: 1980 | C51: System Supervisor Equipment | D51: 956898.04 | E51: 40387.51 | F51: 0 | G51: 997285.55 | I51: -602429.11 | J51: -47096 | K51: 0 | L51: -649525.11 | M51: 347760.44
A52: 47 | B52: 1985 | C52: Miscellaneous Fixed Assets | D52: 0 | E52: 0 | F52: 0 | G52: 0 | I52: 0 | J52: 0 | K52: 0 | L52: 0 | M52: 0
A53: 47 | B53: 1990 | C53: Other Tangible Property | D53: 1904500.26 | E53: 81827.7 | F53: 0 | G53: 1986327.96 | I53: -1056867.01 | J53: -143677 | K53: 0 | L53: -1200544.01 | M53: 785783.95
A54: 47 | B54: 1995 | C54: Contributions & Grants | D54: -4789697.07 | E54: -276868.83 | F54: 0 | G54: -5066565.9 | I54: 1016762.28 | J54: 172170 | K54: 0 | L54: 1188932.28 | M54: -3877633.62
A55: 47 | B55: 2440 | C55: Deferred Revenue5 | D55: 0 | E55: 0 | F55: 0 | I55: 0 | J55: 0 | K55: 0
D56: 0 | E56: 0 | F56: 0 | G56: =D56+E56+F56 -> 0 | I56: 0 | J56: 0 | K56: 0 | L56: =I56+J56+K56 -> 0 | M56: =G56+L56 -> 0
C57: Sub-Total | D57: =SUM(D17:D56) -> 91602561.73 | E57: =SUM(E17:E56) -> 5289973.09 | F57: =SUM(F17:F56) -> 0 | G57: =SUM(G17:G56) -> 96892534.82 | I57: =SUM(I17:I56) -> -36780173.63 | J57: =SUM(J17:J56) -> -4038360.67 | K57: =SUM(K17:K56) -> 0 | L57: =SUM(L17:L56) -> -40818534.3 | M57: =SUM(M17:M56) -> 56074000.52
C58: Less Socialized Renewable Energy Generation Investments (input as negative) | G58: =D58+E58+F58 -> 0 | L58: =I58+J58+K58 -> 0 | M58: =G58+L58 -> 0
C59: Less Other Non Rate-Regulated Utility Assets (input as negative) | G59: 0 | L59: 0 | M59: 0
C60: Total PP&E | D60: =SUM(D57:D59) -> 91602561.73 | E60: =SUM(E57:E59) -> 5289973.09 | F60: 0 | G60: 96892534.82 | I60: =SUM(I57:I59) -> -36780173.63 | J60: -4038360.67 | K60: 0 | L60: -40818534.3 | M60: 56074000.52
C61: Depreciation Expense adj. from gain or loss on the retirement of assets (pool of like assets), if applicable6
C62: Total | J62: =J60+J61 -> -4038360.67
I64: Less: Fully Allocated Depreciation
A65: 10 | C65: Transportation | I65: Transportation
A66: 8 | C66: Stores Equipment | I66: Stores Equipment
I67: Net Depreciation | K67: =J62-K65-K66 -> -4038360.67
A69: Notes:
A71: 1 | B71: Tables in the format outlined above covering all fixed asset accounts should be submitted for the Test Year, Bridge Year and all relevant historical years. At a minimum , the applicant must provide data for the earlier of: 1) all historical years back to its last rebasing; or 2) at least three years of historical actuals, in addition to Bridge Year and Test Year forecasts.
A74: 2 | B74: The "CCA Class" for fixed assets should agree with the CCA Class used for tax purposes in Tax Returns. Fixed Assets sub-components may be used where the underlying asset components are classified under multiple CCA Classes for tax purposes. If an applicant uses any different classes from those shown in the table, an explanation should be provided. (also see note 3).
A77: 3 | B77: The table may need to be customized for a utility's asset categories or for any new asset accounts announced or authorized by the Board.
A79: 4 | B79: The additions in column (E) must not include construction work in progress (CWIP).
A81: 5 | B81: Effective on the date of IFRS adoption, customer contributions will no longer be recorded in Account 1995 Contributions & Grants, but will be recorded in Account 2440, Deferred Revenues.
A83: 6 | B83: Where a distributor for general financial reporting purposes under IFRS has accounted for the amount of gain or loss on the retirement of assets in a pool of like assets as a charge or credit to income, for reporting and rate application filings, the distributor shall reclassify such gains and losses as depreciation expense, and disclose the amount separately.
L86: File Number: | M86: =EBNUMBER -> EB-2015-0061
L87: Exhibit: | M87: 2
L88: Attachment: | M88: 2-A
L89: Page: | M89: 2 of 9
L92: Date: | M92: 2015-08-28
A94: Appendix 2-BA
A95: Fixed Asset Continuity Schedule 1
E97: Accounting Standard | F97: CGAAP
E98: Year | F98: 2010
D100: Cost | J100: Accumulated Depreciation
A101: CCA Class 2 | B101: OEB Account 3 | C101: Description 3 | D101: Opening Balance | E101: Additions 4 | F101: Disposals | G101: Closing Balance | I101: Opening Balance | J101: Additions | K101: Disposals | L101: Closing Balance | M101: Net Book Value
A102: 12 | B102: 1611 | C102: Computer Software (Formally known as Account 1925) | D102: 746562.49 | E102: 92414.12 | F102: 0 | G102: =D102+E102+F102 -> 838976.61 | I102: -420338.59 | J102: -125779.835 | K102: 0 | L102: =I102+J102+K102 -> -546118.425 | M102: =G102+L102 -> 292858.185
A103: CEC | B103: 1612 | C103: Land Rights (Formally known as Account 1906) | D103: 0 | E103: 0 | F103: 0 | G103: =D103+E103+F103 -> 0 | I103: 0 | J103: 0 | K103: 0 | L103: =I103+J103+K103 -> 0 | M103: =G103+L103 -> 0
A104: N/A | B104: 1805 | C104: Land | D104: 150827.48 | E104: 0 | F104: -2500 | G104: =D104+E104+F104 -> 148327.48 | I104: 0 | J104: 0 | K104: 0 | L104: =I104+J104+K104 -> 0 | M104: =G104+L104 -> 148327.48
A105: 47 | B105: 1808 | C105: Buildings | D105: 360570.54 | E105: -20599 | F105: -537.74 | G105: =D105+E105+F105 -> 339433.8 | I105: -138916 | J105: -18761.32847 | K105: 0 | L105: =I105+J105+K105 -> -157677.3285 | M105: =G105+L105 -> 181756.4715
A106: 13 | B106: 1810 | C106: Leasehold Improvements | D106: 0 | E106: 0 | F106: 0 | G106: 0 | I106: 0 | J106: 0 | K106: 0 | L106: 0 | M106: 0
A107: 47 | B107: 1815 | C107: Transformer Station Equipment >50 kV | D107: 0 | E107: 0 | F107: 0 | G107: 0 | I107: 0 | J107: 0 | K107: 0 | L107: 0 | M107: 0
A108: 47 | B108: 1820 | C108: Distribution Station Equipment <50 kV | D108: 1536897.08 | E108: 4975.4 | F108: -7649.53 | G108: 1534222.95 | I108: -748491.95 | J108: -38452.35 | K108: 3899.56 | L108: -783044.74 | M108: 751178.21
A109: 47 | B109: 1825 | C109: Storage Battery Equipment | D109: 0 | E109: 0 | F109: 0 | G109: 0 | I109: 0 | J109: 0 | K109: 0 | L109: 0 | M109: 0
A110: 47 | B110: 1830 | C110: Poles, Towers & Fixtures | D110: 7689489.69 | E110: 845201.49 | F110: 0 | G110: 8534691.18 | I110: -3231228.42 | J110: -257270.42 | K110: 0 | L110: -3488498.84 | M110: 5046192.34
A111: 47 | B111: 1835 | C111: Overhead Conductors & Devices | D111: 24298591.16 | E111: 1331368.31 | F111: 0 | G111: 25629959.47 | I111: -9365360.73 | J111: -1175977.27 | K111: 0 | L111: -10541338 | M111: 15088621.47
A112: 47 | B112: 1840 | C112: Underground Conduit | D112: 3218340.16 | E112: 587494.83 | F112: 0 | G112: 3805834.99 | I112: -917008.89 | J112: -168240.55 | K112: 0 | L112: -1085249.44 | M112: 2720585.55
A113: 47 | B113: 1845 | C113: Underground Conductors & Devices | D113: 16627030.91 | E113: 663097.58 | F113: 0 | G113: 17290128.49 | I113: -8084941.98 | J113: -853196.89 | K113: 0 | L113: -8938138.87 | M113: 8351989.62
A114: 47 | B114: 1850 | C114: Line Transformers | D114: 18481859.04 | E114: 1108808.38 | F114: 0 | G114: 19590667.42 | I114: -7605194.08 | J114: -849178.66 | K114: 0 | L114: -8454372.74 | M114: 11136294.68
A115: 47 | B115: 1855 | C115: Services (Overhead & Underground) | D115: 4238372.96 | E115: 493396.06 | F115: 0 | G115: 4731769.02 | I115: -920914.2 | J115: -179817.16 | K115: 0 | L115: -1100731.36 | M115: 3631037.66
A116: 47 | B116: 1860 | C116: Meters | D116: 4056903.71 | E116: 44614.69 | F116: 0 | G116: 4101518.4 | I116: -1908262.69 | J116: -177581.24 | K116: 0 | L116: -2085843.93 | M116: 2015674.47
A117: 47 | B117: 1860 | C117: Meters (Smart Meters) | D117: 5413464.51 | E117: 111839.13 | F117: 0 | G117: 5525303.64 | I117: -991741.63 | J117: -370629.64 | K117: 0 | L117: -1362371.27 | M117: 4162932.37
A118: N/A | B118: 1905 | C118: Land | D118: 603391 | E118: 306063.46 | F118: 0 | G118: 909454.46 | I118: 0 | J118: 0 | K118: 0 | L118: 0 | M118: 909454.46
A119: 47 | B119: 1908 | C119: Buildings & Fixtures | D119: 3542024.23 | E119: 304540.32 | F119: 0 | G119: 3846564.55 | I119: -806344.24 | J119: -107992.0315 | K119: 537.74 | L119: -913798.5315 | M119: 2932766.018
A120: 13 | B120: 1910 | C120: Leasehold Improvements | D120: 0 | E120: 0 | F120: 0 | G120: 0 | I120: 0 | J120: 0 | K120: 0 | L120: 0 | M120: 0
A121: 8 | B121: 1915 | C121: Office Furniture & Equipment (10 years) | D121: 233501.86 | E121: 9861.02 | F121: 0 | G121: 243362.88 | I121: -164905.76 | J121: -12299.11 | K121: 0 | L121: -177204.87 | M121: 66158.01
A122: 8 | B122: 1915 | C122: Office Furniture & Equipment (5 years) | D122: 0 | E122: 0 | F122: 0 | G122: 0 | I122: 0 | J122: 0 | K122: 0 | L122: 0 | M122: 0
A123: 10 | B123: 1920 | C123: Computer Equipment - Hardware | D123: 325659.3 | E123: 0 | F123: 0 | G123: 325659.3 | I123: -325659.3 | J123: 0 | K123: 0 | L123: -325659.3 | M123: 0
A124: 45 | B124: 1920 | C124: Computer Equip.-Hardware(Post Mar. 22/04) | D124: 75616.03 | E124: 0 | F124: 0 | G124: 75616.03 | I124: -92881.74 | J124: 0 | K124: 0 | L124: -92881.74 | M124: -17265.71
A125: 45.1 | B125: 1920 | C125: Computer Equip.-Hardware(Post Mar. 19/07) | D125: 255521.64 | E125: 105118.52 | F125: 0 | G125: 360640.16 | I125: -89252.77 | J125: -73447.96 | K125: 0 | L125: -162700.73 | M125: 197939.43
A126: 10 | B126: 1930 | C126: Transportation Equipment | D126: 3584371.6 | E126: 820567.38 | F126: -163370.18 | G126: 4241568.8 | I126: -2350295.38 | J126: -371019.41 | K126: 161624.17 | L126: -2559690.62 | M126: 1681878.18
A127: 8 | B127: 1935 | C127: Stores Equipment | D127: 35460.49 | E127: 0 | F127: 0 | G127: 35460.49 | I127: -35460.49 | J127: 0 | K127: 0 | L127: -35460.49 | M127: 0
A128: 8 | B128: 1940 | C128: Tools, Shop & Garage Equipment | D128: 1046822.27 | E128: 107524.37 | F128: -1168.84 | G128: 1153177.8 | I128: -857420.37 | J128: -42198.05 | K128: 1168.84 | L128: -898449.58 | M128: 254728.22
A129: 8 | B129: 1945 | C129: Measurement & Testing Equipment | D129: 8718.92 | E129: 0 | F129: 0 | G129: 8718.92 | I129: -8718.93 | J129: 0 | K129: 0 | L129: -8718.93 | M129: -0.01
A130: 8 | B130: 1950 | C130: Power Operated Equipment | D130: 0 | E130: 0 | F130: 0 | G130: 0 | I130: 0 | J130: 0 | K130: 0 | L130: 0 | M130: 0
A131: 8 | B131: 1955 | C131: Communications Equipment | D131: 5872.56 | E131: 0 | F131: 0 | G131: 5872.56 | I131: -5495 | J131: -377.56 | K131: 0 | L131: -5872.56 | M131: 0
A132: 8 | B132: 1955 | C132: Communication Equipment (Smart Meters) | D132: 0 | E132: 0 | F132: 0 | G132: 0 | I132: 0 | J132: 0 | K132: 0 | L132: 0 | M132: 0
A133: 8 | B133: 1960 | C133: Miscellaneous Equipment | D133: 0 | E133: 0 | F133: 0 | G133: 0 | I133: 0 | J133: 0 | K133: 0 | L133: 0 | M133: 0
A134: 47 | B134: 1970 | C134: Load Management Controls Customer Premises | D134: 0 | E134: 0 | F134: 0 | G134: 0 | I134: 0 | J134: 0 | K134: 0 | L134: 0 | M134: 0
A135: 47 | B135: 1975 | C135: Load Management Controls Utility Premises | D135: 0 | E135: 0 | F135: 0 | G135: 0 | I135: 0 | J135: 0 | K135: 0 | L135: 0 | M135: 0
A136: 47 | B136: 1980 | C136: System Supervisor Equipment | D136: 932269.42 | E136: 21066.2 | F136: 0 | G136: 953335.62 | I136: -617807.38 | J136: -52335.1 | K136: 0 | L136: -670142.48 | M136: 283193.14
A137: 47 | B137: 1985 | C137: Miscellaneous Fixed Assets | D137: 0 | E137: 0 | F137: 0 | G137: 0 | I137: 0 | J137: 0 | K137: 0 | L137: 0 | M137: 0
A138: 47 | B138: 1990 | C138: Other Tangible Property | D138: 1865012.42 | E138: 217497.39 | F138: 0 | G138: 2082509.81 | I138: -1059443.2 | J138: -150151.12 | K138: 0 | L138: -1209594.32 | M138: 872915.49
A139: 47 | B139: 1995 | C139: Contributions & Grants | D139: -5146838.98 | E139: -375528.6 | F139: 0 | G139: -5522367.58 | I139: 1257077.77 | J139: 212775.66 | K139: 0 | L139: 1469853.43 | M139: -4052514.15
A140: 47 | B140: 2440 | C140: Deferred Revenue5 | D140: 0 | E140: 0 | F140: 0 | I140: 0 | J140: 0 | K140: 0
G141: 0 | L141: 0 | M141: 0
C142: Sub-Total | D142: =SUM(D102:D141) -> 94186312.49 | E142: =SUM(E102:E141) -> 6779321.05 | F142: =SUM(F102:F141) -> -175226.29 | G142: =SUM(G102:G141) -> 100790407.2 | I142: =SUM(I102:I141) -> -39489005.95 | J142: =SUM(J102:J141) -> -4811930.025 | K142: =SUM(K102:K141) -> 167230.31 | L142: =SUM(L102:L141) -> -44133705.66 | M142: =SUM(M102:M141) -> 56656701.58
C143: Less Socialized Renewable Energy Generation Investments (input as negative) | G143: =D143+E143+F143 -> 0 | L143: =I143+J143+K143 -> 0 | M143: =G143+L143 -> 0
C144: Less Other Non Rate-Regulated Utility Assets (input as negative) | G144: 0 | L144: 0 | M144: 0
C145: Total PP&E | D145: =SUM(D142:D144) -> 94186312.49 | E145: =SUM(E142:E144) -> 6779321.05 | F145: -175226.29 | G145: 100790407.2 | I145: =SUM(I142:I144) -> -39489005.95 | J145: -4811930.025 | K145: 167230.31 | L145: -44133705.66 | M145: 56656701.58
C146: Depreciation Expense adj. from gain or loss on the retirement of assets (pool of like assets), if applicable6
C147: Total | J147: =J145+J146 -> -4811930.025
I149: Less: Fully Allocated Depreciation
A150: 10 | C150: Transportation | I150: Transportation | K150: -196640.2873
A151: 8 | C151: Stores Equipment | I151: Stores Equipment
I152: Net Depreciation | K152: -4615289.738
A154: Notes:
A156: 1 | B156: Tables in the format outlined above covering all fixed asset accounts should be submitted for the Test Year, Bridge Year and all relevant historical years. At a minimum , the applicant must provide data for the earlier of: 1) all historical years back to its last rebasing; or 2) at least three years of historical actuals, in addition to Bridge Year and Test Year forecasts.
A159: 2 | B159: The "CCA Class" for fixed assets should agree with the CCA Class used for tax purposes in Tax Returns. Fixed Assets sub-components may be used where the underlying asset components are classified under multiple CCA Classes for tax purposes. If an applicant uses any different classes from those shown in the table, an explanation should be provided. (also see note 3).
A162: 3 | B162: The table may need to be customized for a utility's asset categories or for any new asset accounts announced or authorized by the Board.
A164: 4 | B164: The additions in column (E) must not include construction work in progress (CWIP).
A166: 5 | B166: Effective on the date of IFRS adoption, customer contributions will no longer be recorded in Account 1995 Contributions & Grants, but will be recorded in Account 2440, Deferred Revenues.
A168: 6 | B168: Where a distributor for general financial reporting purposes under IFRS has accounted for the amount of gain or loss on the retirement of assets in a pool of like assets as a charge or credit to income, for reporting and rate application filings, the distributor shall reclassify such gains and losses as depreciation expense, and disclose the amount separately.
L171: File Number: | M171: =EBNUMBER -> EB-2015-0061
L172: Exhibit: | M172: 2
L173: Attachment: | M173: 2-A
L174: Page: | M174: 3 of 9
L177: Date: | M177: 2015-08-28
A179: Appendix 2-BA
A180: Fixed Asset Continuity Schedule 1
E182: Accounting Standard | F182: CGAAP
E183: Year | F183: 2011
D185: Cost | J185: Accumulated Depreciation
A186: CCA Class 2 | B186: OEB Account 3 | C186: Description 3 | D186: Opening Balance | E186: Additions 4 | F186: Disposals | G186: Closing Balance | I186: Opening Balance | J186: Additions | K186: Disposals | L186: Closing Balance | M186: Net Book Value
A187: 12 | B187: 1611 | C187: Computer Software (Formally known as Account 1925) | D187: =G102 -> 838976.61 | E187: 44189.08 | F187: 0 | G187: =D187+E187+F187 -> 883165.69 | I187: =L102 -> -546118.425 | J187: -106399.69 | K187: 0 | L187: =I187+J187+K187 -> -652518.115 | M187: =G187+L187 -> 230647.575
A188: CEC | B188: 1612 | C188: Land Rights (Formally known as Account 1906) | D188: =G103 -> 0 | E188: 0 | F188: 0 | G188: =D188+E188+F188 -> 0 | I188: =L103 -> 0 | J188: 0 | K188: 0 | L188: =I188+J188+K188 -> 0 | M188: =G188+L188 -> 0
A189: N/A | B189: 1805 | C189: Land | D189: 148327.48 | E189: 303934.65 | F189: 0 | G189: =D189+E189+F189 -> 452262.13 | I189: 0 | J189: 0 | K189: 0 | L189: =I189+J189+K189 -> 0 | M189: =G189+L189 -> 452262.13
A190: 47 | B190: 1808 | C190: Buildings | D190: 339433.8 | E190: 552621.05 | F190: 0 | G190: =D190+E190+F190 -> 892054.85 | I190: -157677.3285 | J190: -33576.37 | K190: 0 | L190: =I190+J190+K190 -> -191253.6985 | M190: =G190+L190 -> 700801.1515
A191: 13 | B191: 1810 | C191: Leasehold Improvements | D191: 0 | E191: 0 | F191: 0 | G191: 0 | I191: 0 | J191: 0 | K191: 0 | L191: 0 | M191: 0
A192: 47 | B192: 1815 | C192: Transformer Station Equipment >50 kV | D192: 0 | E192: 0 | F192: 0 | G192: 0 | I192: 0 | J192: 0 | K192: 0 | L192: 0 | M192: 0
A193: 47 | B193: 1820 | C193: Distribution Station Equipment <50 kV | D193: 1534222.95 | E193: 69722.62 | F193: 0 | G193: 1603945.57 | I193: -783044.74 | J193: -44511.56 | K193: 0 | L193: -827556.3 | M193: 776389.27
A194: 47 | B194: 1825 | C194: Storage Battery Equipment | D194: 0 | E194: 0 | F194: 0 | G194: 0 | I194: 0 | J194: 0 | K194: 0 | L194: 0 | M194: 0
A195: 47 | B195: 1830 | C195: Poles, Towers & Fixtures | D195: 8534691.18 | E195: 736579.75 | F195: 0 | G195: 9271270.93 | I195: -3488498.84 | J195: -285103.22 | K195: 0 | L195: -3773602.06 | M195: 5497668.87
A196: 47 | B196: 1835 | C196: Overhead Conductors & Devices | D196: 25629959.47 | E196: 1489991.36 | F196: 0 | G196: 27119950.83 | I196: -10541338 | J196: -1199667.95 | K196: 0 | L196: -11741005.95 | M196: 15378944.88
A197: 47 | B197: 1840 | C197: Underground Conduit | D197: 3805834.99 | E197: 248344.65 | F197: 0 | G197: 4054179.64 | I197: -1085249.44 | J197: -183115.99 | K197: 0 | L197: -1268365.43 | M197: 2785814.21
A198: 47 | B198: 1845 | C198: Underground Conductors & Devices | D198: 17290128.49 | E198: 1136752.47 | F198: 0 | G198: 18426880.96 | I198: -8938138.87 | J198: -859759.36 | K198: 0 | L198: -9797898.23 | M198: 8628982.73
A199: 47 | B199: 1850 | C199: Line Transformers | D199: 19590667.42 | E199: 852180.76 | F199: 0 | G199: 20442848.18 | I199: -8454372.74 | J199: -865620.86 | K199: 0 | L199: -9319993.6 | M199: 11122854.58
A200: 47 | B200: 1855 | C200: Services (Overhead & Underground) | D200: 4731769.02 | E200: 146573.16 | F200: 0 | G200: 4878342.18 | I200: -1100731.36 | J200: -192616.54 | K200: 0 | L200: -1293347.9 | M200: 3584994.28
A201: 47 | B201: 1860 | C201: Meters | D201: 4101518.4 | E201: 492272.41 | F201: -1409170.29 | G201: 3184620.52 | I201: -2085843.93 | J201: -149591.06 | K201: 876959.65 | L201: -1358475.34 | M201: 1826145.18
A202: 47 | B202: 1860 | C202: Meters (Smart Meters) | D202: 5525303.64 | E202: 0 | F202: 0 | G202: 5525303.64 | I202: -1362371.27 | J202: -368353.59 | K202: 0 | L202: -1730724.86 | M202: 3794578.78
A203: N/A | B203: 1905 | C203: Land | D203: 909454.46 | E203: 28754.18 | F203: 0 | G203: 938208.64 | I203: 0 | J203: 0 | K203: 0 | L203: 0 | M203: 938208.64
A204: 47 | B204: 1908 | C204: Buildings & Fixtures | D204: 3846564.55 | E204: -399011.05 | F204: 0 | G204: 3447553.5 | I204: -913798.5315 | J204: -85437.48 | K204: 0 | L204: -999236.0115 | M204: 2448317.488
A205: 13 | B205: 1910 | C205: Leasehold Improvements | D205: 0 | E205: 0 | F205: 0 | G205: 0 | I205: 0 | J205: 0 | K205: 0 | L205: 0 | M205: 0
A206: 8 | B206: 1915 | C206: Office Furniture & Equipment (10 years) | D206: 243362.88 | E206: 29960.47 | F206: 0 | G206: 273323.35 | I206: -177204.87 | J206: -13373 | K206: 0 | L206: -190577.87 | M206: 82745.48
A207: 8 | B207: 1915 | C207: Office Furniture & Equipment (5 years) | D207: 0 | E207: 0 | F207: 0 | G207: 0 | I207: 0 | J207: 0 | K207: 0 | L207: 0 | M207: 0
A208: 10 | B208: 1920 | C208: Computer Equipment - Hardware | D208: 325659.3 | E208: 0 | F208: 0 | G208: 325659.3 | I208: -325659.3 | J208: 0 | K208: 0 | L208: -325659.3 | M208: 0
A209: 45 | B209: 1920 | C209: Computer Equip.-Hardware(Post Mar. 22/04) | D209: 75616.03 | E209: 0 | F209: 0 | G209: 75616.03 | I209: -92881.74 | J209: 20695.61 | K209: 0 | L209: -72186.13 | M209: 3429.9
A210: 45.1 | B210: 1920 | C210: Computer Equip.-Hardware(Post Mar. 19/07) | D210: 360640.16 | E210: 60791.82 | F210: 0 | G210: 421431.98 | I210: -162700.73 | J210: -97615.94 | K210: 0 | L210: -260316.67 | M210: 161115.31
A211: 10 | B211: 1930 | C211: Transportation Equipment | D211: 4241568.8 | E211: 553599.9 | F211: -338624.74 | G211: 4456543.96 | I211: -2559690.62 | J211: -433062.27 | K211: 329127.29 | L211: -2663625.6 | M211: 1792918.36
A212: 8 | B212: 1935 | C212: Stores Equipment | D212: 35460.49 | E212: 0 | F212: 0 | G212: 35460.49 | I212: -35460.49 | J212: 0 | K212: 0 | L212: -35460.49 | M212: 0
A213: 8 | B213: 1940 | C213: Tools, Shop & Garage Equipment | D213: 1153177.8 | E213: 24558.23 | F213: 0 | G213: 1177736.03 | I213: -898449.58 | J213: -42656.65 | K213: 0 | L213: -941106.23 | M213: 236629.8
A214: 8 | B214: 1945 | C214: Measurement & Testing Equipment | D214: 8718.92 | E214: 0 | F214: 0 | G214: 8718.92 | I214: -8718.93 | J214: 0 | K214: 0 | L214: -8718.93 | M214: -0.01
A215: 8 | B215: 1950 | C215: Power Operated Equipment | D215: 0 | E215: 0 | F215: 0 | G215: 0 | I215: 0 | J215: 0 | K215: 0 | L215: 0 | M215: 0
A216: 8 | B216: 1955 | C216: Communications Equipment | D216: 5872.56 | E216: 0 | F216: 0 | G216: 5872.56 | I216: -5872.56 | J216: 0 | K216: 0 | L216: -5872.56 | M216: 0
A217: 8 | B217: 1955 | C217: Communication Equipment (Smart Meters) | D217: 0 | E217: 0 | F217: 0 | G217: 0 | I217: 0 | J217: 0 | K217: 0 | L217: 0 | M217: 0
A218: 8 | B218: 1960 | C218: Miscellaneous Equipment | D218: 0 | E218: 0 | F218: 0 | G218: 0 | I218: 0 | J218: 0 | K218: 0 | L218: 0 | M218: 0
A219: 47 | B219: 1970 | C219: Load Management Controls Customer Premises | D219: 0 | E219: 0 | F219: 0 | G219: 0 | I219: 0 | J219: 0 | K219: 0 | L219: 0 | M219: 0
A220: 47 | B220: 1975 | C220: Load Management Controls Utility Premises | D220: 0 | E220: 0 | F220: 0 | G220: 0 | I220: 0 | J220: 0 | K220: 0 | L220: 0 | M220: 0
A221: 47 | B221: 1980 | C221: System Supervisor Equipment | D221: 953335.62 | E221: 14853.08 | F221: -51796.8 | G221: 916391.9 | I221: -670142.48 | J221: -40370.25 | K221: 51796.8 | L221: -658715.93 | M221: 257675.97
A222: 47 | B222: 1985 | C222: Miscellaneous Fixed Assets | D222: 0 | E222: 0 | F222: 0 | G222: 0 | I222: 0 | J222: 0 | K222: 0 | L222: 0 | M222: 0
A223: 47 | B223: 1990 | C223: Other Tangible Property | D223: 2082509.81 | E223: 127661.3 | F223: 0 | G223: 2210171.11 | I223: -1209594.32 | J223: -135757.82 | K223: 0 | L223: -1345352.14 | M223: 864818.97
A224: 47 | B224: 1995 | C224: Contributions & Grants | D224: -5522367.58 | E224: -507424.13 | F224: 0 | G224: -6029791.71 | I224: 1469853.43 | J224: 230452.51 | K224: 0 | L224: 1700305.94 | M224: -4329485.77
A225: 47 | B225: 2440 | C225: Deferred Revenue5 | D225: 0 | E225: 0 | F225: 0 | I225: 0 | J225: 0 | K225: 0
D226: 0 | E226: 0 | F226: 0 | G226: =D226+E226+F226 -> 0 | I226: 0 | J226: 0 | K226: 0 | L226: =I226+J226+K226 -> 0 | M226: =G226+L226 -> 0
C227: Sub-Total | D227: =SUM(D187:D226) -> 100790407.2 | E227: =SUM(E187:E226) -> 6006905.76 | F227: =SUM(F187:F226) -> -1799591.83 | G227: =SUM(G187:G226) -> 104997721.2 | I227: =SUM(I187:I226) -> -44133705.66 | J227: =SUM(J187:J226) -> -4885441.48 | K227: =SUM(K187:K226) -> 1257883.74 | L227: =SUM(L187:L226) -> -47761263.41 | M227: =SUM(M187:M226) -> 57236457.77
C228: Less Socialized Renewable Energy Generation Investments (input as negative) | G228: =D228+E228+F228 -> 0 | L228: =I228+J228+K228 -> 0 | M228: =G228+L228 -> 0
C229: Less Other Non Rate-Regulated Utility Assets (input as negative) | G229: 0 | L229: 0 | M229: 0
C230: Total PP&E | D230: =SUM(D227:D229) -> 100790407.2 | E230: =SUM(E227:E229) -> 6006905.76 | F230: -1799591.83 | G230: 104997721.2 | I230: =SUM(I227:I229) -> -44133705.66 | J230: -4885441.48 | K230: 1257883.74 | L230: -47761263.41 | M230: 57236457.77
C231: Depreciation Expense adj. from gain or loss on the retirement of assets (pool of like assets), if applicable6
C232: Total | J232: =J230+J231 -> -4885441.48
I234: Less: Fully Allocated Depreciation
A235: 10 | C235: Transportation | I235: Transportation | K235: -229523.0031
A236: 8 | C236: Stores Equipment | I236: Stores Equipment
I237: Net Depreciation | K237: -4655918.477
A239: Notes:
A241: 1 | B241: Tables in the format outlined above covering all fixed asset accounts should be submitted for the Test Year, Bridge Year and all relevant historical years. At a minimum , the applicant must provide data for the earlier of: 1) all historical years back to its last rebasing; or 2) at least three years of historical actuals, in addition to Bridge Year and Test Year forecasts.
A244: 2 | B244: The "CCA Class" for fixed assets should agree with the CCA Class used for tax purposes in Tax Returns. Fixed Assets sub-components may be used where the underlying asset components are classified under multiple CCA Classes for tax purposes. If an applicant uses any different classes from those shown in the table, an explanation should be provided. (also see note 3).
... 412 more rows

Sheet Appendix 2-BB Service Life
M1: File Number: | O1: EB-2015-0061
M2: Exhibit: | O2: 4
M3: Attachment: | O3: 4-L
M4: Page: | O4: 1 of 1
M7: Date: | O7: 2015-08-28
A9: Appendix 2-BB
A10: Service Life Comparison
A11: Table F-1 from Kinetrics Report1
B13: Note: Useful lives changed from the generic Kinectrics Report have been highlighted in yellow
C15: Asset Details | F15: Useful Life | J15: USoA Account Number | K15: USoA Account Description | L15: Current | N15: Proposed | P15: Outside Range of Min, Max TUL?
A16: Parent* | B16: # | C16: Category| Component | Type | F16: MIN UL | G16: TUL | H16: MAX UL | L16: Years | M16: Rate | N16: Years | O16: Rate | P16: Below Min TUL | Q16: Above Max TUL
A17: OH | B17: 1 | C17: Fully Dressed Wood Poles | D17: Overall | F17: =IF('[12]Appendix 2-BB Service Life '!F17=0,"",'[12]Appendix 2-BB Service Life '!F17) -> 40 | G17: =IF('[12]Appendix 2-BB Service Life '!G17=0,"",'[12]Appendix 2-BB Service Life '!G17) -> 44 | H17: =IF('[12]Appendix 2-BB Service Life '!H17=0,"",'[12]Appendix 2-BB Service Life '!H17) -> 80 | J17: =IF('[12]Appendix 2-BB Service Life '!J17=0,"",'[12]Appendix 2-BB Service Life '!J17) -> 1830/1835 | K17: =IF('[12]Appendix 2-BB Service Life '!K17=0,"",'[12]Appendix 2-BB Service Life '!K17) -> Poles, Towers & Fixtures (wood poles) | L17: =IF('[12]Appendix 2-BB Service Life '!L17=0,"",'[12]Appendix 2-BB Service Life '!L17) -> 25 | M17: =IF(ISERROR(1/L17), "", 1/L17) -> 0.04 | N17: =IF('[12]Appendix 2-BB Service Life '!N17=0,"",'[12]Appendix 2-BB Service Life '!N17) -> 45 | O17: =IF(ISERROR(1/N17), "", 1/N17) -> 0.02222222222 | P17: =IF(ISBLANK(N17),"",IF(N17<F17,"Yes","No")) -> No | Q17: =IF(ISBLANK(N17),"",IF(N17>H17,"Yes","No")) -> No
D18: Cross Arm | E18: Wood | F18: =IF('[12]Appendix 2-BB Service Life '!F18=0,"",'[12]Appendix 2-BB Service Life '!F18) -> 20 | G18: =IF('[12]Appendix 2-BB Service Life '!G18=0,"",'[12]Appendix 2-BB Service Life '!G18) -> 40 | H18: =IF('[12]Appendix 2-BB Service Life '!H18=0,"",'[12]Appendix 2-BB Service Life '!H18) -> 50 | M18: =IF(ISERROR(1/L18), "", 1/L18) ->  | O18: =IF(ISERROR(1/N18), "", 1/N18) ->  | P18: =IF(ISBLANK(N18),"",IF(N18<F18,"Yes","No")) ->  | Q18: =IF(ISBLANK(N18),"",IF(N18>H18,"Yes","No")) -> 
E19: Steel | F19: =IF('[12]Appendix 2-BB Service Life '!F19=0,"",'[12]Appendix 2-BB Service Life '!F19) -> 20 | G19: =IF('[12]Appendix 2-BB Service Life '!G19=0,"",'[12]Appendix 2-BB Service Life '!G19) -> 70 | H19: =IF('[12]Appendix 2-BB Service Life '!H19=0,"",'[12]Appendix 2-BB Service Life '!H19) -> 100
B20: 2 | C20: Fully Dressed Concrete Poles | D20: Overall | F20: =IF('[12]Appendix 2-BB Service Life '!F20=0,"",'[12]Appendix 2-BB Service Life '!F20) -> 50 | G20: =IF('[12]Appendix 2-BB Service Life '!G20=0,"",'[12]Appendix 2-BB Service Life '!G20) -> 60 | H20: =IF('[12]Appendix 2-BB Service Life '!H20=0,"",'[12]Appendix 2-BB Service Life '!H20) -> 80 | J20: =IF('[12]Appendix 2-BB Service Life '!J20=0,"",'[12]Appendix 2-BB Service Life '!J20) -> 1830/1835 | K20: =IF('[12]Appendix 2-BB Service Life '!K20=0,"",'[12]Appendix 2-BB Service Life '!K20) -> Poles, Towers & Fixtures (concrete poles) | L20: =IF('[12]Appendix 2-BB Service Life '!L20=0,"",'[12]Appendix 2-BB Service Life '!L20) -> 25 | M20: 0.04 | N20: =IF('[12]Appendix 2-BB Service Life '!N20=0,"",'[12]Appendix 2-BB Service Life '!N20) -> 50 | O20: 0.02 | P20: No | Q20: No
D21: Cross Arm | E21: Wood | F21: =IF('[12]Appendix 2-BB Service Life '!F21=0,"",'[12]Appendix 2-BB Service Life '!F21) -> 20 | G21: =IF('[12]Appendix 2-BB Service Life '!G21=0,"",'[12]Appendix 2-BB Service Life '!G21) -> 40 | H21: =IF('[12]Appendix 2-BB Service Life '!H21=0,"",'[12]Appendix 2-BB Service Life '!H21) -> 50
E22: Steel | F22: =IF('[12]Appendix 2-BB Service Life '!F22=0,"",'[12]Appendix 2-BB Service Life '!F22) -> 20 | G22: =IF('[12]Appendix 2-BB Service Life '!G22=0,"",'[12]Appendix 2-BB Service Life '!G22) -> 70 | H22: =IF('[12]Appendix 2-BB Service Life '!H22=0,"",'[12]Appendix 2-BB Service Life '!H22) -> 100
B23: 3 | C23: Fully Dressed Steel Poles | D23: Overall | F23: =IF('[12]Appendix 2-BB Service Life '!F23=0,"",'[12]Appendix 2-BB Service Life '!F23) -> 60 | G23: =IF('[12]Appendix 2-BB Service Life '!G23=0,"",'[12]Appendix 2-BB Service Life '!G23) -> 60 | H23: =IF('[12]Appendix 2-BB Service Life '!H23=0,"",'[12]Appendix 2-BB Service Life '!H23) -> 80 | J23: =IF('[12]Appendix 2-BB Service Life '!J23=0,"",'[12]Appendix 2-BB Service Life '!J23) -> 1830/1835 | K23: =IF('[12]Appendix 2-BB Service Life '!K23=0,"",'[12]Appendix 2-BB Service Life '!K23) -> Poles, Towers & Fixtures (steel poles) | L23: =IF('[12]Appendix 2-BB Service Life '!L23=0,"",'[12]Appendix 2-BB Service Life '!L23) -> 25 | M23: 0.04 | N23: =IF('[12]Appendix 2-BB Service Life '!N23=0,"",'[12]Appendix 2-BB Service Life '!N23) -> 60 | O23: 0.01666666667 | P23: No | Q23: No
D24: Cross Arm | E24: Wood | F24: =IF('[12]Appendix 2-BB Service Life '!F24=0,"",'[12]Appendix 2-BB Service Life '!F24) -> 20 | G24: =IF('[12]Appendix 2-BB Service Life '!G24=0,"",'[12]Appendix 2-BB Service Life '!G24) -> 40 | H24: =IF('[12]Appendix 2-BB Service Life '!H24=0,"",'[12]Appendix 2-BB Service Life '!H24) -> 50 | J24: =IF('[12]Appendix 2-BB Service Life '!J24=0,"",'[12]Appendix 2-BB Service Life '!J24) ->  | K24: =IF('[12]Appendix 2-BB Service Life '!K24=0,"",'[12]Appendix 2-BB Service Life '!K24) ->  | L24: =IF('[12]Appendix 2-BB Service Life '!L24=0,"",'[12]Appendix 2-BB Service Life '!L24) -> 
E25: Steel | F25: =IF('[12]Appendix 2-BB Service Life '!F25=0,"",'[12]Appendix 2-BB Service Life '!F25) -> 20 | G25: =IF('[12]Appendix 2-BB Service Life '!G25=0,"",'[12]Appendix 2-BB Service Life '!G25) -> 70 | H25: =IF('[12]Appendix 2-BB Service Life '!H25=0,"",'[12]Appendix 2-BB Service Life '!H25) -> 100 | J25: =IF('[12]Appendix 2-BB Service Life '!J25=0,"",'[12]Appendix 2-BB Service Life '!J25) ->  | K25: =IF('[12]Appendix 2-BB Service Life '!K25=0,"",'[12]Appendix 2-BB Service Life '!K25) ->  | L25: =IF('[12]Appendix 2-BB Service Life '!L25=0,"",'[12]Appendix 2-BB Service Life '!L25) -> 
B26: 4 | C26: OH Line Switch | F26: =IF('[12]Appendix 2-BB Service Life '!F26=0,"",'[12]Appendix 2-BB Service Life '!F26) -> 30 | G26: =IF('[12]Appendix 2-BB Service Life '!G26=0,"",'[12]Appendix 2-BB Service Life '!G26) -> 50 | H26: =IF('[12]Appendix 2-BB Service Life '!H26=0,"",'[12]Appendix 2-BB Service Life '!H26) -> 60 | J26: =IF('[12]Appendix 2-BB Service Life '!J26=0,"",'[12]Appendix 2-BB Service Life '!J26) ->  | K26: =IF('[12]Appendix 2-BB Service Life '!K26=0,"",'[12]Appendix 2-BB Service Life '!K26) ->  | L26: =IF('[12]Appendix 2-BB Service Life '!L26=0,"",'[12]Appendix 2-BB Service Life '!L26) -> 
B27: 5 | C27: OH Line Switch Motor | F27: =IF('[12]Appendix 2-BB Service Life '!F27=0,"",'[12]Appendix 2-BB Service Life '!F27) -> 15 | G27: =IF('[12]Appendix 2-BB Service Life '!G27=0,"",'[12]Appendix 2-BB Service Life '!G27) -> 20 | H27: =IF('[12]Appendix 2-BB Service Life '!H27=0,"",'[12]Appendix 2-BB Service Life '!H27) -> 20 | J27: =IF('[12]Appendix 2-BB Service Life '!J27=0,"",'[12]Appendix 2-BB Service Life '!J27) ->  | K27: =IF('[12]Appendix 2-BB Service Life '!K27=0,"",'[12]Appendix 2-BB Service Life '!K27) ->  | L27: =IF('[12]Appendix 2-BB Service Life '!L27=0,"",'[12]Appendix 2-BB Service Life '!L27) -> 
B28: 6 | C28: OH Line Switch RTU | F28: =IF('[12]Appendix 2-BB Service Life '!F28=0,"",'[12]Appendix 2-BB Service Life '!F28) -> 15 | G28: =IF('[12]Appendix 2-BB Service Life '!G28=0,"",'[12]Appendix 2-BB Service Life '!G28) -> 20 | H28: =IF('[12]Appendix 2-BB Service Life '!H28=0,"",'[12]Appendix 2-BB Service Life '!H28) -> 30 | J28: =IF('[12]Appendix 2-BB Service Life '!J28=0,"",'[12]Appendix 2-BB Service Life '!J28) ->  | K28: =IF('[12]Appendix 2-BB Service Life '!K28=0,"",'[12]Appendix 2-BB Service Life '!K28) ->  | L28: =IF('[12]Appendix 2-BB Service Life '!L28=0,"",'[12]Appendix 2-BB Service Life '!L28) -> 
B29: 7 | C29: OH Integral Switches | F29: =IF('[12]Appendix 2-BB Service Life '!F29=0,"",'[12]Appendix 2-BB Service Life '!F29) -> 35 | G29: =IF('[12]Appendix 2-BB Service Life '!G29=0,"",'[12]Appendix 2-BB Service Life '!G29) -> 45 | H29: =IF('[12]Appendix 2-BB Service Life '!H29=0,"",'[12]Appendix 2-BB Service Life '!H29) -> 60 | J29: =IF('[12]Appendix 2-BB Service Life '!J29=0,"",'[12]Appendix 2-BB Service Life '!J29) ->  | K29: =IF('[12]Appendix 2-BB Service Life '!K29=0,"",'[12]Appendix 2-BB Service Life '!K29) ->  | L29: =IF('[12]Appendix 2-BB Service Life '!L29=0,"",'[12]Appendix 2-BB Service Life '!L29) -> 
B30: 8 | C30: OH Conductors | F30: =IF('[12]Appendix 2-BB Service Life '!F30=0,"",'[12]Appendix 2-BB Service Life '!F30) -> 50 | G30: =IF('[12]Appendix 2-BB Service Life '!G30=0,"",'[12]Appendix 2-BB Service Life '!G30) -> 60 | H30: =IF('[12]Appendix 2-BB Service Life '!H30=0,"",'[12]Appendix 2-BB Service Life '!H30) -> 77 | J30: =IF('[12]Appendix 2-BB Service Life '!J30=0,"",'[12]Appendix 2-BB Service Life '!J30) -> 1855 | K30: =IF('[12]Appendix 2-BB Service Life '!K30=0,"",'[12]Appendix 2-BB Service Life '!K30) -> Services (Overhead & Underground) (direct) | L30: =IF('[12]Appendix 2-BB Service Life '!L30=0,"",'[12]Appendix 2-BB Service Life '!L30) -> 25 | M30: 0.04 | N30: =IF('[12]Appendix 2-BB Service Life '!N30=0,"",'[12]Appendix 2-BB Service Life '!N30) -> 50 | O30: 0.02 | P30: No | Q30: No
B31: 9 | C31: OH Transformers & Voltage Regulators | F31: =IF('[12]Appendix 2-BB Service Life '!F31=0,"",'[12]Appendix 2-BB Service Life '!F31) -> 30 | G31: =IF('[12]Appendix 2-BB Service Life '!G31=0,"",'[12]Appendix 2-BB Service Life '!G31) -> 40 | H31: =IF('[12]Appendix 2-BB Service Life '!H31=0,"",'[12]Appendix 2-BB Service Life '!H31) -> 60
B32: 10 | C32: OH Shunt Capacitor Banks | F32: =IF('[12]Appendix 2-BB Service Life '!F32=0,"",'[12]Appendix 2-BB Service Life '!F32) -> 25 | G32: =IF('[12]Appendix 2-BB Service Life '!G32=0,"",'[12]Appendix 2-BB Service Life '!G32) -> 30 | H32: =IF('[12]Appendix 2-BB Service Life '!H32=0,"",'[12]Appendix 2-BB Service Life '!H32) -> 40
B33: 11 | C33: Reclosers | F33: =IF('[12]Appendix 2-BB Service Life '!F33=0,"",'[12]Appendix 2-BB Service Life '!F33) -> 30 | G33: =IF('[12]Appendix 2-BB Service Life '!G33=0,"",'[12]Appendix 2-BB Service Life '!G33) -> 40 | H33: =IF('[12]Appendix 2-BB Service Life '!H33=0,"",'[12]Appendix 2-BB Service Life '!H33) -> 60
A34: TS & MS | B34: 12 | C34: Power Transformers | D34: Overall | F34: =IF('[12]Appendix 2-BB Service Life '!F34=0,"",'[12]Appendix 2-BB Service Life '!F34) -> 32 | G34: =IF('[12]Appendix 2-BB Service Life '!G34=0,"",'[12]Appendix 2-BB Service Life '!G34) -> 45 | H34: =IF('[12]Appendix 2-BB Service Life '!H34=0,"",'[12]Appendix 2-BB Service Life '!H34) -> 55 | J34: =IF('[12]Appendix 2-BB Service Life '!J34=0,"",'[12]Appendix 2-BB Service Life '!J34) -> 1820 | K34: =IF('[12]Appendix 2-BB Service Life '!K34=0,"",'[12]Appendix 2-BB Service Life '!K34) -> Distribution Station Equipment (power transformer) | L34: =IF('[12]Appendix 2-BB Service Life '!L34=0,"",'[12]Appendix 2-BB Service Life '!L34) -> 30 | M34: 0.03333333333 | N34: =IF('[12]Appendix 2-BB Service Life '!N34=0,"",'[12]Appendix 2-BB Service Life '!N34) -> 45 | O34: 0.02222222222 | P34: No | Q34: No
D35: Bushing | F35: =IF('[12]Appendix 2-BB Service Life '!F35=0,"",'[12]Appendix 2-BB Service Life '!F35) -> 10 | G35: =IF('[12]Appendix 2-BB Service Life '!G35=0,"",'[12]Appendix 2-BB Service Life '!G35) -> 15 | H35: =IF('[12]Appendix 2-BB Service Life '!H35=0,"",'[12]Appendix 2-BB Service Life '!H35) -> 25
D36: Tap Changer | F36: =IF('[12]Appendix 2-BB Service Life '!F36=0,"",'[12]Appendix 2-BB Service Life '!F36) -> 20 | G36: =IF('[12]Appendix 2-BB Service Life '!G36=0,"",'[12]Appendix 2-BB Service Life '!G36) -> 30 | H36: =IF('[12]Appendix 2-BB Service Life '!H36=0,"",'[12]Appendix 2-BB Service Life '!H36) -> 60
B37: 13 | C37: Station Service Transformer | F37: =IF('[12]Appendix 2-BB Service Life '!F37=0,"",'[12]Appendix 2-BB Service Life '!F37) -> 30 | G37: =IF('[12]Appendix 2-BB Service Life '!G37=0,"",'[12]Appendix 2-BB Service Life '!G37) -> 45 | H37: =IF('[12]Appendix 2-BB Service Life '!H37=0,"",'[12]Appendix 2-BB Service Life '!H37) -> 55
B38: 14 | C38: Station Grounding Transformer | F38: =IF('[12]Appendix 2-BB Service Life '!F38=0,"",'[12]Appendix 2-BB Service Life '!F38) -> 30 | G38: =IF('[12]Appendix 2-BB Service Life '!G38=0,"",'[12]Appendix 2-BB Service Life '!G38) -> 40 | H38: =IF('[12]Appendix 2-BB Service Life '!H38=0,"",'[12]Appendix 2-BB Service Life '!H38) -> 40
B39: 15 | C39: Station DC System | D39: Overall | F39: =IF('[12]Appendix 2-BB Service Life '!F39=0,"",'[12]Appendix 2-BB Service Life '!F39) -> 10 | G39: =IF('[12]Appendix 2-BB Service Life '!G39=0,"",'[12]Appendix 2-BB Service Life '!G39) -> 20 | H39: =IF('[12]Appendix 2-BB Service Life '!H39=0,"",'[12]Appendix 2-BB Service Life '!H39) -> 30
D40: Battery Bank | F40: =IF('[12]Appendix 2-BB Service Life '!F40=0,"",'[12]Appendix 2-BB Service Life '!F40) -> 10 | G40: =IF('[12]Appendix 2-BB Service Life '!G40=0,"",'[12]Appendix 2-BB Service Life '!G40) -> 15 | H40: =IF('[12]Appendix 2-BB Service Life '!H40=0,"",'[12]Appendix 2-BB Service Life '!H40) -> 15
D41: Charger | F41: =IF('[12]Appendix 2-BB Service Life '!F41=0,"",'[12]Appendix 2-BB Service Life '!F41) -> 20 | G41: =IF('[12]Appendix 2-BB Service Life '!G41=0,"",'[12]Appendix 2-BB Service Life '!G41) -> 20 | H41: =IF('[12]Appendix 2-BB Service Life '!H41=0,"",'[12]Appendix 2-BB Service Life '!H41) -> 30
B42: 16 | C42: Station Metal Clad Switchgear | D42: Overall | F42: =IF('[12]Appendix 2-BB Service Life '!F42=0,"",'[12]Appendix 2-BB Service Life '!F42) -> 30 | G42: =IF('[12]Appendix 2-BB Service Life '!G42=0,"",'[12]Appendix 2-BB Service Life '!G42) -> 40 | H42: =IF('[12]Appendix 2-BB Service Life '!H42=0,"",'[12]Appendix 2-BB Service Life '!H42) -> 60
D43: Removable Breaker | F43: =IF('[12]Appendix 2-BB Service Life '!F43=0,"",'[12]Appendix 2-BB Service Life '!F43) -> 25 | G43: =IF('[12]Appendix 2-BB Service Life '!G43=0,"",'[12]Appendix 2-BB Service Life '!G43) -> 40 | H43: =IF('[12]Appendix 2-BB Service Life '!H43=0,"",'[12]Appendix 2-BB Service Life '!H43) -> 60
B44: 17 | C44: Station Independent Breakers | F44: =IF('[12]Appendix 2-BB Service Life '!F44=0,"",'[12]Appendix 2-BB Service Life '!F44) -> 35 | G44: =IF('[12]Appendix 2-BB Service Life '!G44=0,"",'[12]Appendix 2-BB Service Life '!G44) -> 45 | H44: =IF('[12]Appendix 2-BB Service Life '!H44=0,"",'[12]Appendix 2-BB Service Life '!H44) -> 65
B45: 18 | C45: Station Switch | F45: =IF('[12]Appendix 2-BB Service Life '!F45=0,"",'[12]Appendix 2-BB Service Life '!F45) -> 30 | G45: =IF('[12]Appendix 2-BB Service Life '!G45=0,"",'[12]Appendix 2-BB Service Life '!G45) -> 50 | H45: =IF('[12]Appendix 2-BB Service Life '!H45=0,"",'[12]Appendix 2-BB Service Life '!H45) -> 60
B46: 19 | C46: Electromechanical Relays | F46: =IF('[12]Appendix 2-BB Service Life '!F46=0,"",'[12]Appendix 2-BB Service Life '!F46) -> 20 | G46: =IF('[12]Appendix 2-BB Service Life '!G46=0,"",'[12]Appendix 2-BB Service Life '!G46) -> 30 | H46: =IF('[12]Appendix 2-BB Service Life '!H46=0,"",'[12]Appendix 2-BB Service Life '!H46) -> 50
B47: 20 | C47: Solid State Relays | F47: =IF('[12]Appendix 2-BB Service Life '!F47=0,"",'[12]Appendix 2-BB Service Life '!F47) -> 10 | G47: =IF('[12]Appendix 2-BB Service Life '!G47=0,"",'[12]Appendix 2-BB Service Life '!G47) -> 30 | H47: =IF('[12]Appendix 2-BB Service Life '!H47=0,"",'[12]Appendix 2-BB Service Life '!H47) -> 50
B48: 21 | C48: Digital & Numeric Relays | F48: =IF('[12]Appendix 2-BB Service Life '!F48=0,"",'[12]Appendix 2-BB Service Life '!F48) -> 10 | G48: =IF('[12]Appendix 2-BB Service Life '!G48=0,"",'[12]Appendix 2-BB Service Life '!G48) -> 15 | H48: =IF('[12]Appendix 2-BB Service Life '!H48=0,"",'[12]Appendix 2-BB Service Life '!H48) -> 20
B49: 22 | C49: Rigid Busbars | F49: =IF('[12]Appendix 2-BB Service Life '!F49=0,"",'[12]Appendix 2-BB Service Life '!F49) -> 30 | G49: =IF('[12]Appendix 2-BB Service Life '!G49=0,"",'[12]Appendix 2-BB Service Life '!G49) -> 60 | H49: =IF('[12]Appendix 2-BB Service Life '!H49=0,"",'[12]Appendix 2-BB Service Life '!H49) -> 60
B50: 23 | C50: Steel Structure | F50: =IF('[12]Appendix 2-BB Service Life '!F50=0,"",'[12]Appendix 2-BB Service Life '!F50) -> 35 | G50: =IF('[12]Appendix 2-BB Service Life '!G50=0,"",'[12]Appendix 2-BB Service Life '!G50) -> 50 | H50: =IF('[12]Appendix 2-BB Service Life '!H50=0,"",'[12]Appendix 2-BB Service Life '!H50) -> 100
A51: UG | B51: 24 | C51: Primary Paper Insulated Lead Covered (PILC) Cables | F51: =IF('[12]Appendix 2-BB Service Life '!F51=0,"",'[12]Appendix 2-BB Service Life '!F51) -> 70 | G51: =IF('[12]Appendix 2-BB Service Life '!G51=0,"",'[12]Appendix 2-BB Service Life '!G51) -> 75 | H51: =IF('[12]Appendix 2-BB Service Life '!H51=0,"",'[12]Appendix 2-BB Service Life '!H51) -> 80
B52: 25 | C52: Primary Ethylene-Propylene Rubber (EPR) Cables | F52: =IF('[12]Appendix 2-BB Service Life '!F52=0,"",'[12]Appendix 2-BB Service Life '!F52) -> 20 | G52: =IF('[12]Appendix 2-BB Service Life '!G52=0,"",'[12]Appendix 2-BB Service Life '!G52) -> 25 | H52: =IF('[12]Appendix 2-BB Service Life '!H52=0,"",'[12]Appendix 2-BB Service Life '!H52) -> 25
B53: 26 | C53: Primary Non-Tree Retardant (TR) Cross Linked Polyethylene (XLPE) Cables Direct Buried | F53: =IF('[12]Appendix 2-BB Service Life '!F53=0,"",'[12]Appendix 2-BB Service Life '!F53) -> 10 | G53: =IF('[12]Appendix 2-BB Service Life '!G53=0,"",'[12]Appendix 2-BB Service Life '!G53) -> 15 | H53: =IF('[12]Appendix 2-BB Service Life '!H53=0,"",'[12]Appendix 2-BB Service Life '!H53) -> 20 | J53: =IF('[12]Appendix 2-BB Service Life '!J53=0,"",'[12]Appendix 2-BB Service Life '!J53) -> 1845 | K53: =IF('[12]Appendix 2-BB Service Life '!K53=0,"",'[12]Appendix 2-BB Service Life '!K53) -> UG Conductors (primary direct) | L53: =IF('[12]Appendix 2-BB Service Life '!L53=0,"",'[12]Appendix 2-BB Service Life '!L53) -> 25 | M53: 0.04 | N53: =IF('[12]Appendix 2-BB Service Life '!N53=0,"",'[12]Appendix 2-BB Service Life '!N53) -> 20 | O53: 0.05 | P53: No | Q53: No
B54: 27 | C54: Primary Non-TR XLPE Cables in Duct | F54: =IF('[12]Appendix 2-BB Service Life '!F54=0,"",'[12]Appendix 2-BB Service Life '!F54) -> 20 | G54: =IF('[12]Appendix 2-BB Service Life '!G54=0,"",'[12]Appendix 2-BB Service Life '!G54) -> 20 | H54: =IF('[12]Appendix 2-BB Service Life '!H54=0,"",'[12]Appendix 2-BB Service Life '!H54) -> 25 | J54: =IF('[12]Appendix 2-BB Service Life '!J54=0,"",'[12]Appendix 2-BB Service Life '!J54) -> 1845 | K54: =IF('[12]Appendix 2-BB Service Life '!K54=0,"",'[12]Appendix 2-BB Service Life '!K54) -> UG Conductors (primary duct) | L54: =IF('[12]Appendix 2-BB Service Life '!L54=0,"",'[12]Appendix 2-BB Service Life '!L54) -> 25 | M54: 0.04 | N54: =IF('[12]Appendix 2-BB Service Life '!N54=0,"",'[12]Appendix 2-BB Service Life '!N54) -> 25 | O54: 0.04 | P54: No | Q54: No
B55: 30 | C55: Secondary PILC Cables | F55: =IF('[12]Appendix 2-BB Service Life '!F55=0,"",'[12]Appendix 2-BB Service Life '!F55) -> 70 | G55: =IF('[12]Appendix 2-BB Service Life '!G55=0,"",'[12]Appendix 2-BB Service Life '!G55) -> 75 | H55: =IF('[12]Appendix 2-BB Service Life '!H55=0,"",'[12]Appendix 2-BB Service Life '!H55) -> 80
B56: 31 | C56: Secondary Cables Direct Buried | F56: =IF('[12]Appendix 2-BB Service Life '!F56=0,"",'[12]Appendix 2-BB Service Life '!F56) -> 20 | G56: =IF('[12]Appendix 2-BB Service Life '!G56=0,"",'[12]Appendix 2-BB Service Life '!G56) -> 30 | H56: =IF('[12]Appendix 2-BB Service Life '!H56=0,"",'[12]Appendix 2-BB Service Life '!H56) -> 35 | J56: =IF('[12]Appendix 2-BB Service Life '!J56=0,"",'[12]Appendix 2-BB Service Life '!J56) -> 1845 | K56: =IF('[12]Appendix 2-BB Service Life '!K56=0,"",'[12]Appendix 2-BB Service Life '!K56) -> UG Conductors (secondary direct) | L56: =IF('[12]Appendix 2-BB Service Life '!L56=0,"",'[12]Appendix 2-BB Service Life '!L56) -> 25 | M56: 0.04 | N56: =IF('[12]Appendix 2-BB Service Life '!N56=0,"",'[12]Appendix 2-BB Service Life '!N56) -> 35 | O56: 0.02857142857 | P56: No | Q56: No
B57: 32 | C57: Secondary Cables in Duct | F57: =IF('[12]Appendix 2-BB Service Life '!F57=0,"",'[12]Appendix 2-BB Service Life '!F57) -> 40 | G57: =IF('[12]Appendix 2-BB Service Life '!G57=0,"",'[12]Appendix 2-BB Service Life '!G57) -> 40 | H57: =IF('[12]Appendix 2-BB Service Life '!H57=0,"",'[12]Appendix 2-BB Service Life '!H57) -> 60 | J57: =IF('[12]Appendix 2-BB Service Life '!J57=0,"",'[12]Appendix 2-BB Service Life '!J57) -> 1855 | K57: =IF('[12]Appendix 2-BB Service Life '!K57=0,"",'[12]Appendix 2-BB Service Life '!K57) -> Services (Overhead & Underground) (duct) | L57: =IF('[12]Appendix 2-BB Service Life '!L57=0,"",'[12]Appendix 2-BB Service Life '!L57) -> 25 | M57: 0.04 | N57: =IF('[12]Appendix 2-BB Service Life '!N57=0,"",'[12]Appendix 2-BB Service Life '!N57) -> 40 | O57: 0.025 | P57: No | Q57: No
B58: 33 | C58: Network Tranformers | D58: Overall | F58: =IF('[12]Appendix 2-BB Service Life '!F58=0,"",'[12]Appendix 2-BB Service Life '!F58) -> 20 | G58: =IF('[12]Appendix 2-BB Service Life '!G58=0,"",'[12]Appendix 2-BB Service Life '!G58) -> 35 | H58: =IF('[12]Appendix 2-BB Service Life '!H58=0,"",'[12]Appendix 2-BB Service Life '!H58) -> 50
D59: Protector | F59: =IF('[12]Appendix 2-BB Service Life '!F59=0,"",'[12]Appendix 2-BB Service Life '!F59) -> 20 | G59: =IF('[12]Appendix 2-BB Service Life '!G59=0,"",'[12]Appendix 2-BB Service Life '!G59) -> 35 | H59: =IF('[12]Appendix 2-BB Service Life '!H59=0,"",'[12]Appendix 2-BB Service Life '!H59) -> 40
B60: 34 | C60: Pad-Mounted Transformers | F60: =IF('[12]Appendix 2-BB Service Life '!F60=0,"",'[12]Appendix 2-BB Service Life '!F60) -> 25 | G60: =IF('[12]Appendix 2-BB Service Life '!G60=0,"",'[12]Appendix 2-BB Service Life '!G60) -> 40 | H60: =IF('[12]Appendix 2-BB Service Life '!H60=0,"",'[12]Appendix 2-BB Service Life '!H60) -> 45 | J60: =IF('[12]Appendix 2-BB Service Life '!J60=0,"",'[12]Appendix 2-BB Service Life '!J60) -> 1850 | K60: =IF('[12]Appendix 2-BB Service Life '!K60=0,"",'[12]Appendix 2-BB Service Life '!K60) -> Line Transformers (pad mount, pole mount) | L60: =IF('[12]Appendix 2-BB Service Life '!L60=0,"",'[12]Appendix 2-BB Service Life '!L60) -> 25 | M60: 0.04 | N60: =IF('[12]Appendix 2-BB Service Life '!N60=0,"",'[12]Appendix 2-BB Service Life '!N60) -> 40 | O60: 0.025 | P60: No | Q60: No
B61: 35 | C61: Submersible/Vault Transformers | F61: =IF('[12]Appendix 2-BB Service Life '!F61=0,"",'[12]Appendix 2-BB Service Life '!F61) -> 25 | G61: =IF('[12]Appendix 2-BB Service Life '!G61=0,"",'[12]Appendix 2-BB Service Life '!G61) -> 35 | H61: =IF('[12]Appendix 2-BB Service Life '!H61=0,"",'[12]Appendix 2-BB Service Life '!H61) -> 40 | J61: =IF('[12]Appendix 2-BB Service Life '!J61=0,"",'[12]Appendix 2-BB Service Life '!J61) -> 1850 | K61: =IF('[12]Appendix 2-BB Service Life '!K61=0,"",'[12]Appendix 2-BB Service Life '!K61) -> Line Transformers (submersible) | L61: =IF('[12]Appendix 2-BB Service Life '!L61=0,"",'[12]Appendix 2-BB Service Life '!L61) -> 25 | M61: 0.04 | N61: =IF('[12]Appendix 2-BB Service Life '!N61=0,"",'[12]Appendix 2-BB Service Life '!N61) -> 40 | O61: 0.025 | P61: No | Q61: No
B62: 35 | C62: Submersible/Vault Transformers | F62: =IF('[12]Appendix 2-BB Service Life '!F62=0,"",'[12]Appendix 2-BB Service Life '!F62) -> 25 | G62: =IF('[12]Appendix 2-BB Service Life '!G62=0,"",'[12]Appendix 2-BB Service Life '!G62) -> 35 | H62: =IF('[12]Appendix 2-BB Service Life '!H62=0,"",'[12]Appendix 2-BB Service Life '!H62) -> 40 | J62: =IF('[12]Appendix 2-BB Service Life '!J62=0,"",'[12]Appendix 2-BB Service Life '!J62) -> 1850 | K62: =IF('[12]Appendix 2-BB Service Life '!K62=0,"",'[12]Appendix 2-BB Service Life '!K62) -> Line Transformers (submersible vault) | L62: =IF('[12]Appendix 2-BB Service Life '!L62=0,"",'[12]Appendix 2-BB Service Life '!L62) -> 25 | M62: 0.04 | N62: =IF('[12]Appendix 2-BB Service Life '!N62=0,"",'[12]Appendix 2-BB Service Life '!N62) -> 35
B63: 36 | C63: UG Foundation | F63: =IF('[12]Appendix 2-BB Service Life '!F63=0,"",'[12]Appendix 2-BB Service Life '!F63) -> 35 | G63: =IF('[12]Appendix 2-BB Service Life '!G63=0,"",'[12]Appendix 2-BB Service Life '!G63) -> 55 | H63: =IF('[12]Appendix 2-BB Service Life '!H63=0,"",'[12]Appendix 2-BB Service Life '!H63) -> 70 | J63: =IF('[12]Appendix 2-BB Service Life '!J63=0,"",'[12]Appendix 2-BB Service Life '!J63) -> 1845 | K63: =IF('[12]Appendix 2-BB Service Life '!K63=0,"",'[12]Appendix 2-BB Service Life '!K63) -> UG Conductors (trans switch) | L63: =IF('[12]Appendix 2-BB Service Life '!L63=0,"",'[12]Appendix 2-BB Service Life '!L63) -> 25 | M63: 0.04 | N63: =IF('[12]Appendix 2-BB Service Life '!N63=0,"",'[12]Appendix 2-BB Service Life '!N63) -> 55 | O63: 0.01818181818 | P63: No | Q63: No
B64: 37 | C64: UG Vaults | D64: Overall | F64: =IF('[12]Appendix 2-BB Service Life '!F64=0,"",'[12]Appendix 2-BB Service Life '!F64) -> 40 | G64: =IF('[12]Appendix 2-BB Service Life '!G64=0,"",'[12]Appendix 2-BB Service Life '!G64) -> 60 | H64: =IF('[12]Appendix 2-BB Service Life '!H64=0,"",'[12]Appendix 2-BB Service Life '!H64) -> 80
D65: Roof | F65: =IF('[12]Appendix 2-BB Service Life '!F65=0,"",'[12]Appendix 2-BB Service Life '!F65) -> 20 | G65: =IF('[12]Appendix 2-BB Service Life '!G65=0,"",'[12]Appendix 2-BB Service Life '!G65) -> 30 | H65: =IF('[12]Appendix 2-BB Service Life '!H65=0,"",'[12]Appendix 2-BB Service Life '!H65) -> 45
B66: 38 | C66: UG Vault Switches | F66: =IF('[12]Appendix 2-BB Service Life '!F66=0,"",'[12]Appendix 2-BB Service Life '!F66) -> 20 | G66: =IF('[12]Appendix 2-BB Service Life '!G66=0,"",'[12]Appendix 2-BB Service Life '!G66) -> 35 | H66: =IF('[12]Appendix 2-BB Service Life '!H66=0,"",'[12]Appendix 2-BB Service Life '!H66) -> 50
B67: 39 | C67: Pad-Mounted Switchgear | F67: =IF('[12]Appendix 2-BB Service Life '!F67=0,"",'[12]Appendix 2-BB Service Life '!F67) -> 20 | G67: =IF('[12]Appendix 2-BB Service Life '!G67=0,"",'[12]Appendix 2-BB Service Life '!G67) -> 30 | H67: =IF('[12]Appendix 2-BB Service Life '!H67=0,"",'[12]Appendix 2-BB Service Life '!H67) -> 45
B68: 40 | C68: Ducts | F68: =IF('[12]Appendix 2-BB Service Life '!F68=0,"",'[12]Appendix 2-BB Service Life '!F68) -> 30 | G68: =IF('[12]Appendix 2-BB Service Life '!G68=0,"",'[12]Appendix 2-BB Service Life '!G68) -> 50 | H68: =IF('[12]Appendix 2-BB Service Life '!H68=0,"",'[12]Appendix 2-BB Service Life '!H68) -> 80 | J68: =IF('[12]Appendix 2-BB Service Life '!J68=0,"",'[12]Appendix 2-BB Service Life '!J68) -> 1845 | K68: =IF('[12]Appendix 2-BB Service Life '!K68=0,"",'[12]Appendix 2-BB Service Life '!K68) -> UG Conductors (duct bank) | L68: =IF('[12]Appendix 2-BB Service Life '!L68=0,"",'[12]Appendix 2-BB Service Life '!L68) -> 25 | M68: 0.04 | N68: =IF('[12]Appendix 2-BB Service Life '!N68=0,"",'[12]Appendix 2-BB Service Life '!N68) -> 50 | O68: 0.02 | P68: No | Q68: No
B69: 41 | C69: Concrete Encased Duct Banks | F69: =IF('[12]Appendix 2-BB Service Life '!F69=0,"",'[12]Appendix 2-BB Service Life '!F69) -> 35 | G69: =IF('[12]Appendix 2-BB Service Life '!G69=0,"",'[12]Appendix 2-BB Service Life '!G69) -> 55 | H69: =IF('[12]Appendix 2-BB Service Life '!H69=0,"",'[12]Appendix 2-BB Service Life '!H69) -> 80 | J69: =IF('[12]Appendix 2-BB Service Life '!J69=0,"",'[12]Appendix 2-BB Service Life '!J69) -> 1840 | K69: =IF('[12]Appendix 2-BB Service Life '!K69=0,"",'[12]Appendix 2-BB Service Life '!K69) -> UG Conduit | L69: =IF('[12]Appendix 2-BB Service Life '!L69=0,"",'[12]Appendix 2-BB Service Life '!L69) -> 25 | M69: 0.04 | N69: =IF('[12]Appendix 2-BB Service Life '!N69=0,"",'[12]Appendix 2-BB Service Life '!N69) -> 50 | O69: 0.02 | P69: No | Q69: No
B70: 42 | C70: Cable Chambers | F70: =IF('[12]Appendix 2-BB Service Life '!F70=0,"",'[12]Appendix 2-BB Service Life '!F70) -> 50 | G70: =IF('[12]Appendix 2-BB Service Life '!G70=0,"",'[12]Appendix 2-BB Service Life '!G70) -> 60 | H70: =IF('[12]Appendix 2-BB Service Life '!H70=0,"",'[12]Appendix 2-BB Service Life '!H70) -> 80
A71: S | B71: 43 | C71: Remote SCADA | F71: =IF('[12]Appendix 2-BB Service Life '!F71=0,"",'[12]Appendix 2-BB Service Life '!F71) -> 15 | G71: =IF('[12]Appendix 2-BB Service Life '!G71=0,"",'[12]Appendix 2-BB Service Life '!G71) -> 20 | H71: =IF('[12]Appendix 2-BB Service Life '!H71=0,"",'[12]Appendix 2-BB Service Life '!H71) -> 30 | J71: =IF('[12]Appendix 2-BB Service Life '!J71=0,"",'[12]Appendix 2-BB Service Life '!J71) -> 1980 | K71: =IF('[12]Appendix 2-BB Service Life '!K71=0,"",'[12]Appendix 2-BB Service Life '!K71) -> System Supervisory Equipment | L71: =IF('[12]Appendix 2-BB Service Life '!L71=0,"",'[12]Appendix 2-BB Service Life '!L71) -> 15 | M71: 0.06666666667 | N71: =IF('[12]Appendix 2-BB Service Life '!N71=0,"",'[12]Appendix 2-BB Service Life '!N71) -> 20 | O71: 0.05 | P71: No | Q71: No
B72: 43 | C72: Remote SCADA | F72: =IF('[12]Appendix 2-BB Service Life '!F72=0,"",'[12]Appendix 2-BB Service Life '!F72) -> 15 | G72: =IF('[12]Appendix 2-BB Service Life '!G72=0,"",'[12]Appendix 2-BB Service Life '!G72) -> 20 | H72: =IF('[12]Appendix 2-BB Service Life '!H72=0,"",'[12]Appendix 2-BB Service Life '!H72) -> 30 | J72: =IF('[12]Appendix 2-BB Service Life '!J72=0,"",'[12]Appendix 2-BB Service Life '!J72) -> 1908 | K72: =IF('[12]Appendix 2-BB Service Life '!K72=0,"",'[12]Appendix 2-BB Service Life '!K72) -> Buildings (SCADA Tower) | L72: =IF('[12]Appendix 2-BB Service Life '!L72=0,"",'[12]Appendix 2-BB Service Life '!L72) -> 25 | M72: 0.04 | N72: =IF('[12]Appendix 2-BB Service Life '!N72=0,"",'[12]Appendix 2-BB Service Life '!N72) -> 25 | O72: =IF(ISERROR(1/N72), "", 1/N72) -> 0.04 | P72: =IF(ISBLANK(N72),"",IF(N72<F72,"Yes","No")) -> No | Q72: =IF(ISBLANK(N72),"",IF(N72>H72,"Yes","No")) -> No
B73: 43 | C73: Remote SCADA | F73: =IF('[12]Appendix 2-BB Service Life '!F73=0,"",'[12]Appendix 2-BB Service Life '!F73) -> 15 | G73: =IF('[12]Appendix 2-BB Service Life '!G73=0,"",'[12]Appendix 2-BB Service Life '!G73) -> 20 | H73: =IF('[12]Appendix 2-BB Service Life '!H73=0,"",'[12]Appendix 2-BB Service Life '!H73) -> 30 | J73: =IF('[12]Appendix 2-BB Service Life '!J73=0,"",'[12]Appendix 2-BB Service Life '!J73) -> 1990 | K73: =IF('[12]Appendix 2-BB Service Life '!K73=0,"",'[12]Appendix 2-BB Service Life '!K73) -> Other Tangible Property (GIS) | L73: =IF('[12]Appendix 2-BB Service Life '!L73=0,"",'[12]Appendix 2-BB Service Life '!L73) -> 15 | M73: 0.06666666667 | N73: =IF('[12]Appendix 2-BB Service Life '!N73=0,"",'[12]Appendix 2-BB Service Life '!N73) -> 15 | O73: 0.06666666667 | P73: No | Q73: No
A75: Table F-2 from Kinetrics Report1
C77: Asset Details | F77: Useful Life Range | J77: USoA Account Number | K77: USoA Account Description | L77: Current | N77: Proposed | P77: Outside Range of Min, Max TUL?
B78: # | C78: Category| Component | Type | L78: Years | M78: Rate | N78: Years | O78: Rate | P78: Below Min Range | Q78: Above Max Range
B79: 1 | C79: Office Equipment | F79: =IF('[12]Appendix 2-BB Service Life '!F79=0,"",'[12]Appendix 2-BB Service Life '!F79) -> 5 | G79: =IF('[12]Appendix 2-BB Service Life '!G79=0,"",'[12]Appendix 2-BB Service Life '!G79) -> 15 | H79: =IF('[12]Appendix 2-BB Service Life '!H79=0,"",'[12]Appendix 2-BB Service Life '!H79) ->  | J79: =IF('[12]Appendix 2-BB Service Life '!J79=0,"",'[12]Appendix 2-BB Service Life '!J79) -> 1915 | K79: =IF('[12]Appendix 2-BB Service Life '!K79=0,"",'[12]Appendix 2-BB Service Life '!K79) -> Office Furniture & Equipment | L79: =IF('[12]Appendix 2-BB Service Life '!L79=0,"",'[12]Appendix 2-BB Service Life '!L79) -> 10 | M79: =IF(ISERROR(1/L79), "", 1/L79) -> 0.1 | N79: =IF('[12]Appendix 2-BB Service Life '!N79=0,"",'[12]Appendix 2-BB Service Life '!N79) -> 10 | O79: =IF(ISERROR(1/N79), "", 1/N79) -> 0.1 | P79: =IF(ISBLANK(N79),"",IF(N79<F79,"Yes","No")) -> No | Q79: =IF(ISBLANK(N79),"",IF(N79>G79,"Yes","No")) -> No
B80: 2 | C80: Vehicles | D80: Trucks & Buckets | F80: =IF('[12]Appendix 2-BB Service Life '!F80=0,"",'[12]Appendix 2-BB Service Life '!F80) -> 5 | G80: =IF('[12]Appendix 2-BB Service Life '!G80=0,"",'[12]Appendix 2-BB Service Life '!G80) -> 15 | H80: =IF('[12]Appendix 2-BB Service Life '!H80=0,"",'[12]Appendix 2-BB Service Life '!H80) ->  | J80: =IF('[12]Appendix 2-BB Service Life '!J80=0,"",'[12]Appendix 2-BB Service Life '!J80) -> 1930 | K80: =IF('[12]Appendix 2-BB Service Life '!K80=0,"",'[12]Appendix 2-BB Service Life '!K80) -> Transportation Equipment (trucks, trailers) | L80: =IF('[12]Appendix 2-BB Service Life '!L80=0,"",'[12]Appendix 2-BB Service Life '!L80) -> 8 | M80: =IF(ISERROR(1/L80), "", 1/L80) -> 0.125 | N80: =IF('[12]Appendix 2-BB Service Life '!N80=0,"",'[12]Appendix 2-BB Service Life '!N80) -> 10 | O80: =IF(ISERROR(1/N80), "", 1/N80) -> 0.1 | P80: =IF(ISBLANK(N80),"",IF(N80<F80,"Yes","No")) -> No | Q80: =IF(ISBLANK(N80),"",IF(N80>G80,"Yes","No")) -> No
D81: Trailers | F81: =IF('[12]Appendix 2-BB Service Life '!F81=0,"",'[12]Appendix 2-BB Service Life '!F81) -> 5 | G81: =IF('[12]Appendix 2-BB Service Life '!G81=0,"",'[12]Appendix 2-BB Service Life '!G81) -> 20 | H81: =IF('[12]Appendix 2-BB Service Life '!H81=0,"",'[12]Appendix 2-BB Service Life '!H81) -> 
D82: Vans | F82: =IF('[12]Appendix 2-BB Service Life '!F82=0,"",'[12]Appendix 2-BB Service Life '!F82) -> 5 | G82: =IF('[12]Appendix 2-BB Service Life '!G82=0,"",'[12]Appendix 2-BB Service Life '!G82) -> 10 | H82: =IF('[12]Appendix 2-BB Service Life '!H82=0,"",'[12]Appendix 2-BB Service Life '!H82) ->  | J82: =IF('[12]Appendix 2-BB Service Life '!J82=0,"",'[12]Appendix 2-BB Service Life '!J82) -> 1930 | K82: =IF('[12]Appendix 2-BB Service Life '!K82=0,"",'[12]Appendix 2-BB Service Life '!K82) -> Transportation Equipment (vans) | L82: =IF('[12]Appendix 2-BB Service Life '!L82=0,"",'[12]Appendix 2-BB Service Life '!L82) -> 8 | M82: 0.125 | N82: =IF('[12]Appendix 2-BB Service Life '!N82=0,"",'[12]Appendix 2-BB Service Life '!N82) -> 7 | O82: 0.1428571429 | P82: No | Q82: No
B83: 3 | C83: Administrative Buildings | D83: Building - Mechanical | F83: =IF('[12]Appendix 2-BB Service Life '!F83=0,"",'[12]Appendix 2-BB Service Life '!F83) -> 12 | G83: =IF('[12]Appendix 2-BB Service Life '!G83=0,"",'[12]Appendix 2-BB Service Life '!G83) -> 30 | H83: =IF('[12]Appendix 2-BB Service Life '!H83=0,"",'[12]Appendix 2-BB Service Life '!H83) ->  | J83: =IF('[12]Appendix 2-BB Service Life '!J83=0,"",'[12]Appendix 2-BB Service Life '!J83) -> 1908 | K83: =IF('[12]Appendix 2-BB Service Life '!K83=0,"",'[12]Appendix 2-BB Service Life '!K83) -> Buildings & Fixtures (mechanical) | L83: =IF('[12]Appendix 2-BB Service Life '!L83=0,"",'[12]Appendix 2-BB Service Life '!L83) -> 25 | M83: 0.04 | N83: =IF('[12]Appendix 2-BB Service Life '!N83=0,"",'[12]Appendix 2-BB Service Life '!N83) -> 20 | O83: 0.05 | P83: No | Q83: No
D84: Building - Civil | F84: =IF('[12]Appendix 2-BB Service Life '!F84=0,"",'[12]Appendix 2-BB Service Life '!F84) -> 30 | G84: =IF('[12]Appendix 2-BB Service Life '!G84=0,"",'[12]Appendix 2-BB Service Life '!G84) -> 100 | H84: =IF('[12]Appendix 2-BB Service Life '!H84=0,"",'[12]Appendix 2-BB Service Life '!H84) ->  | J84: =IF('[12]Appendix 2-BB Service Life '!J84=0,"",'[12]Appendix 2-BB Service Life '!J84) -> 1908 | K84: =IF('[12]Appendix 2-BB Service Life '!K84=0,"",'[12]Appendix 2-BB Service Life '!K84) -> Buildings & Fixtures | L84: =IF('[12]Appendix 2-BB Service Life '!L84=0,"",'[12]Appendix 2-BB Service Life '!L84) -> 25 | M84: 0.04 | N84: =IF('[12]Appendix 2-BB Service Life '!N84=0,"",'[12]Appendix 2-BB Service Life '!N84) -> 50 | O84: =IF(ISERROR(1/N84), "", 1/N84) -> 0.02 | P84: =IF(ISBLANK(N84),"",IF(N84<F84,"Yes","No")) -> No | Q84: =IF(ISBLANK(N84),"",IF(N84>G84,"Yes","No")) -> No
D85: Building - Electrical | F85: =IF('[12]Appendix 2-BB Service Life '!F85=0,"",'[12]Appendix 2-BB Service Life '!F85) -> 12 | G85: =IF('[12]Appendix 2-BB Service Life '!G85=0,"",'[12]Appendix 2-BB Service Life '!G85) -> 40 | H85: =IF('[12]Appendix 2-BB Service Life '!H85=0,"",'[12]Appendix 2-BB Service Life '!H85) -> 
D86: Parking | F86: =IF('[12]Appendix 2-BB Service Life '!F86=0,"",'[12]Appendix 2-BB Service Life '!F86) -> 15 | G86: =IF('[12]Appendix 2-BB Service Life '!G86=0,"",'[12]Appendix 2-BB Service Life '!G86) -> 30 | H86: =IF('[12]Appendix 2-BB Service Life '!H86=0,"",'[12]Appendix 2-BB Service Life '!H86) -> 
D87: Roof | F87: =IF('[12]Appendix 2-BB Service Life '!F87=0,"",'[12]Appendix 2-BB Service Life '!F87) -> 15 | G87: =IF('[12]Appendix 2-BB Service Life '!G87=0,"",'[12]Appendix 2-BB Service Life '!G87) -> 30 | H87: =IF('[12]Appendix 2-BB Service Life '!H87=0,"",'[12]Appendix 2-BB Service Life '!H87) ->  | J87: =IF('[12]Appendix 2-BB Service Life '!J87=0,"",'[12]Appendix 2-BB Service Life '!J87) -> 1908 | K87: =IF('[12]Appendix 2-BB Service Life '!K87=0,"",'[12]Appendix 2-BB Service Life '!K87) -> Buildings & Fixtures (roof) | L87: =IF('[12]Appendix 2-BB Service Life '!L87=0,"",'[12]Appendix 2-BB Service Life '!L87) -> 25 | M87: 0.04 | N87: =IF('[12]Appendix 2-BB Service Life '!N87=0,"",'[12]Appendix 2-BB Service Life '!N87) -> 20 | O87: 0.05 | P87: No | Q87: No
D88: Fence | F88: =IF('[12]Appendix 2-BB Service Life '!F88=0,"",'[12]Appendix 2-BB Service Life '!F88) -> 30 | G88: =IF('[12]Appendix 2-BB Service Life '!G88=0,"",'[12]Appendix 2-BB Service Life '!G88) -> 60 | H88: =IF('[12]Appendix 2-BB Service Life '!H88=0,"",'[12]Appendix 2-BB Service Life '!H88) -> 
B89: 4 | C89: Leasehold Improvements | F89: =IF('[12]Appendix 2-BB Service Life '!F89=0,"",'[12]Appendix 2-BB Service Life '!F89) -> Lease dependent | G89: =IF('[12]Appendix 2-BB Service Life '!G89=0,"",'[12]Appendix 2-BB Service Life '!G89) ->  | H89: =IF('[12]Appendix 2-BB Service Life '!H89=0,"",'[12]Appendix 2-BB Service Life '!H89) -> 
B90: 5 | C90: Station Buildings | D90: Station Buildings | F90: =IF('[12]Appendix 2-BB Service Life '!F90=0,"",'[12]Appendix 2-BB Service Life '!F90) -> 30 | G90: =IF('[12]Appendix 2-BB Service Life '!G90=0,"",'[12]Appendix 2-BB Service Life '!G90) -> 80 | H90: =IF('[12]Appendix 2-BB Service Life '!H90=0,"",'[12]Appendix 2-BB Service Life '!H90) ->  | J90: =IF('[12]Appendix 2-BB Service Life '!J90=0,"",'[12]Appendix 2-BB Service Life '!J90) -> 1808 | K90: =IF('[12]Appendix 2-BB Service Life '!K90=0,"",'[12]Appendix 2-BB Service Life '!K90) -> Buildings | L90: =IF('[12]Appendix 2-BB Service Life '!L90=0,"",'[12]Appendix 2-BB Service Life '!L90) -> 50 | M90: 0.02 | N90: =IF('[12]Appendix 2-BB Service Life '!N90=0,"",'[12]Appendix 2-BB Service Life '!N90) -> 40 | O90: 0.025 | P90: No | Q90: No
D91: Parking | F91: =IF('[12]Appendix 2-BB Service Life '!F91=0,"",'[12]Appendix 2-BB Service Life '!F91) -> 25 | G91: =IF('[12]Appendix 2-BB Service Life '!G91=0,"",'[12]Appendix 2-BB Service Life '!G91) -> 30 | H91: =IF('[12]Appendix 2-BB Service Life '!H91=0,"",'[12]Appendix 2-BB Service Life '!H91) ->  | J91: =IF('[12]Appendix 2-BB Service Life '!J91=0,"",'[12]Appendix 2-BB Service Life '!J91) ->  | K91: =IF('[12]Appendix 2-BB Service Life '!K91=0,"",'[12]Appendix 2-BB Service Life '!K91) ->  | L91: =IF('[12]Appendix 2-BB Service Life '!L91=0,"",'[12]Appendix 2-BB Service Life '!L91) -> 
D92: Fence | F92: =IF('[12]Appendix 2-BB Service Life '!F92=0,"",'[12]Appendix 2-BB Service Life '!F92) -> 30 | G92: =IF('[12]Appendix 2-BB Service Life '!G92=0,"",'[12]Appendix 2-BB Service Life '!G92) -> 60 | H92: =IF('[12]Appendix 2-BB Service Life '!H92=0,"",'[12]Appendix 2-BB Service Life '!H92) ->  | J92: =IF('[12]Appendix 2-BB Service Life '!J92=0,"",'[12]Appendix 2-BB Service Life '!J92) ->  | K92: =IF('[12]Appendix 2-BB Service Life '!K92=0,"",'[12]Appendix 2-BB Service Life '!K92) ->  | L92: =IF('[12]Appendix 2-BB Service Life '!L92=0,"",'[12]Appendix 2-BB Service Life '!L92) -> 
D93: Roof | F93: =IF('[12]Appendix 2-BB Service Life '!F93=0,"",'[12]Appendix 2-BB Service Life '!F93) -> 15 | G93: =IF('[12]Appendix 2-BB Service Life '!G93=0,"",'[12]Appendix 2-BB Service Life '!G93) -> 30 | H93: =IF('[12]Appendix 2-BB Service Life '!H93=0,"",'[12]Appendix 2-BB Service Life '!H93) ->  | J93: =IF('[12]Appendix 2-BB Service Life '!J93=0,"",'[12]Appendix 2-BB Service Life '!J93) -> 1808 | K93: =IF('[12]Appendix 2-BB Service Life '!K93=0,"",'[12]Appendix 2-BB Service Life '!K93) -> Buildings (mechanical, roof) | L93: =IF('[12]Appendix 2-BB Service Life '!L93=0,"",'[12]Appendix 2-BB Service Life '!L93) -> 50 | M93: 0.02 | N93: =IF('[12]Appendix 2-BB Service Life '!N93=0,"",'[12]Appendix 2-BB Service Life '!N93) -> 20 | O93: 0.05 | P93: No | Q93: No
B94: 6 | C94: Computer Equipment | D94: Hardware | F94: =IF('[12]Appendix 2-BB Service Life '!F94=0,"",'[12]Appendix 2-BB Service Life '!F94) -> 3 | G94: =IF('[12]Appendix 2-BB Service Life '!G94=0,"",'[12]Appendix 2-BB Service Life '!G94) -> 5 | H94: =IF('[12]Appendix 2-BB Service Life '!H94=0,"",'[12]Appendix 2-BB Service Life '!H94) ->  | J94: =IF('[12]Appendix 2-BB Service Life '!J94=0,"",'[12]Appendix 2-BB Service Life '!J94) -> 1920 | K94: =IF('[12]Appendix 2-BB Service Life '!K94=0,"",'[12]Appendix 2-BB Service Life '!K94) -> Computer Hardware | L94: =IF('[12]Appendix 2-BB Service Life '!L94=0,"",'[12]Appendix 2-BB Service Life '!L94) -> 5 | M94: 0.2 | N94: =IF('[12]Appendix 2-BB Service Life '!N94=0,"",'[12]Appendix 2-BB Service Life '!N94) -> 3 | O94: 0.3333333333 | P94: No | Q94: No
D95: Software | F95: =IF('[12]Appendix 2-BB Service Life '!F95=0,"",'[12]Appendix 2-BB Service Life '!F95) -> 2 | G95: =IF('[12]Appendix 2-BB Service Life '!G95=0,"",'[12]Appendix 2-BB Service Life '!G95) -> 5 | H95: =IF('[12]Appendix 2-BB Service Life '!H95=0,"",'[12]Appendix 2-BB Service Life '!H95) ->  | J95: =IF('[12]Appendix 2-BB Service Life '!J95=0,"",'[12]Appendix 2-BB Service Life '!J95) -> 1611 | K95: =IF('[12]Appendix 2-BB Service Life '!K95=0,"",'[12]Appendix 2-BB Service Life '!K95) -> Computer Software (application software) | L95: =IF('[12]Appendix 2-BB Service Life '!L95=0,"",'[12]Appendix 2-BB Service Life '!L95) -> 5 | M95: 0.2 | N95: =IF('[12]Appendix 2-BB Service Life '!N95=0,"",'[12]Appendix 2-BB Service Life '!N95) -> 3 | O95: 0.3333333333 | P95: No | Q95: No
D96: Software | F96: =IF('[12]Appendix 2-BB Service Life '!F96=0,"",'[12]Appendix 2-BB Service Life '!F96) -> 2 | G96: =IF('[12]Appendix 2-BB Service Life '!G96=0,"",'[12]Appendix 2-BB Service Life '!G96) -> 5 | H96: =IF('[12]Appendix 2-BB Service Life '!H96=0,"",'[12]Appendix 2-BB Service Life '!H96) ->  | J96: =IF('[12]Appendix 2-BB Service Life '!J96=0,"",'[12]Appendix 2-BB Service Life '!J96) -> 1611 | K96: =IF('[12]Appendix 2-BB Service Life '!K96=0,"",'[12]Appendix 2-BB Service Life '!K96) -> Computer Software (systems software) | L96: =IF('[12]Appendix 2-BB Service Life '!L96=0,"",'[12]Appendix 2-BB Service Life '!L96) -> 5 | M96: 0.2 | N96: =IF('[12]Appendix 2-BB Service Life '!N96=0,"",'[12]Appendix 2-BB Service Life '!N96) -> 5 | O96: 0.2 | P96: No | Q96: No
D97: Software | F97: =IF('[12]Appendix 2-BB Service Life '!F97=0,"",'[12]Appendix 2-BB Service Life '!F97) -> 2 | G97: =IF('[12]Appendix 2-BB Service Life '!G97=0,"",'[12]Appendix 2-BB Service Life '!G97) -> 5 | H97: =IF('[12]Appendix 2-BB Service Life '!H97=0,"",'[12]Appendix 2-BB Service Life '!H97) ->  | J97: =IF('[12]Appendix 2-BB Service Life '!J97=0,"",'[12]Appendix 2-BB Service Life '!J97) -> 1611 | K97: =IF('[12]Appendix 2-BB Service Life '!K97=0,"",'[12]Appendix 2-BB Service Life '!K97) -> Computer Software (foundational software) | L97: =IF('[12]Appendix 2-BB Service Life '!L97=0,"",'[12]Appendix 2-BB Service Life '!L97) -> 5 | M97: 0.2 | N97: =IF('[12]Appendix 2-BB Service Life '!N97=0,"",'[12]Appendix 2-BB Service Life '!N97) -> 10 | O97: 0.1 | P97: No | Q97: Yes
B98: 7 | C98: Equipment | D98: Power Operated | F98: =IF('[12]Appendix 2-BB Service Life '!F98=0,"",'[12]Appendix 2-BB Service Life '!F98) -> 5 | G98: =IF('[12]Appendix 2-BB Service Life '!G98=0,"",'[12]Appendix 2-BB Service Life '!G98) -> 10 | H98: =IF('[12]Appendix 2-BB Service Life '!H98=0,"",'[12]Appendix 2-BB Service Life '!H98) -> 
D99: Stores | F99: =IF('[12]Appendix 2-BB Service Life '!F99=0,"",'[12]Appendix 2-BB Service Life '!F99) -> 5 | G99: =IF('[12]Appendix 2-BB Service Life '!G99=0,"",'[12]Appendix 2-BB Service Life '!G99) -> 10 | H99: =IF('[12]Appendix 2-BB Service Life '!H99=0,"",'[12]Appendix 2-BB Service Life '!H99) -> 
D100: Tools, Shop, Garage Equipment | F100: =IF('[12]Appendix 2-BB Service Life '!F100=0,"",'[12]Appendix 2-BB Service Life '!F100) -> 5 | G100: =IF('[12]Appendix 2-BB Service Life '!G100=0,"",'[12]Appendix 2-BB Service Life '!G100) -> 10 | H100: =IF('[12]Appendix 2-BB Service Life '!H100=0,"",'[12]Appendix 2-BB Service Life '!H100) ->  | J100: =IF('[12]Appendix 2-BB Service Life '!J100=0,"",'[12]Appendix 2-BB Service Life '!J100) -> 1940 | K100: =IF('[12]Appendix 2-BB Service Life '!K100=0,"",'[12]Appendix 2-BB Service Life '!K100) -> Tools, Shop & Garage Equipment | L100: =IF('[12]Appendix 2-BB Service Life '!L100=0,"",'[12]Appendix 2-BB Service Life '!L100) -> 10 | M100: 0.1 | N100: =IF('[12]Appendix 2-BB Service Life '!N100=0,"",'[12]Appendix 2-BB Service Life '!N100) -> 5 | O100: 0.2 | P100: No | Q100: No
D101: Measurement & Testing Equipment | F101: =IF('[12]Appendix 2-BB Service Life '!F101=0,"",'[12]Appendix 2-BB Service Life '!F101) -> 5 | G101: =IF('[12]Appendix 2-BB Service Life '!G101=0,"",'[12]Appendix 2-BB Service Life '!G101) -> 10 | H101: =IF('[12]Appendix 2-BB Service Life '!H101=0,"",'[12]Appendix 2-BB Service Life '!H101) -> 
B102: 8 | C102: Communication | D102: Towers | F102: =IF('[12]Appendix 2-BB Service Life '!F102=0,"",'[12]Appendix 2-BB Service Life '!F102) -> 60 | G102: =IF('[12]Appendix 2-BB Service Life '!G102=0,"",'[12]Appendix 2-BB Service Life '!G102) -> 70 | H102: =IF('[12]Appendix 2-BB Service Life '!H102=0,"",'[12]Appendix 2-BB Service Life '!H102) -> 
D103: Wireless | F103: =IF('[12]Appendix 2-BB Service Life '!F103=0,"",'[12]Appendix 2-BB Service Life '!F103) -> 2 | G103: =IF('[12]Appendix 2-BB Service Life '!G103=0,"",'[12]Appendix 2-BB Service Life '!G103) -> 10 | H103: =IF('[12]Appendix 2-BB Service Life '!H103=0,"",'[12]Appendix 2-BB Service Life '!H103) -> 
B104: 9 | C104: Residential Energy Meters | F104: =IF('[12]Appendix 2-BB Service Life '!F104=0,"",'[12]Appendix 2-BB Service Life '!F104) -> 20 | G104: =IF('[12]Appendix 2-BB Service Life '!G104=0,"",'[12]Appendix 2-BB Service Life '!G104) -> 45 | H104: =IF('[12]Appendix 2-BB Service Life '!H104=0,"",'[12]Appendix 2-BB Service Life '!H104) ->  | J104: =IF('[12]Appendix 2-BB Service Life '!J104=0,"",'[12]Appendix 2-BB Service Life '!J104) -> 1860 | K104: =IF('[12]Appendix 2-BB Service Life '!K104=0,"",'[12]Appendix 2-BB Service Life '!K104) -> Meters | L104: =IF('[12]Appendix 2-BB Service Life '!L104=0,"",'[12]Appendix 2-BB Service Life '!L104) -> 25 | M104: 0.04 | N104: =IF('[12]Appendix 2-BB Service Life '!N104=0,"",'[12]Appendix 2-BB Service Life '!N104) -> 25 | O104: 0.04 | P104: No | Q104: No
B105: 10 | C105: Industrial/Commercial Energy Meters | F105: =IF('[12]Appendix 2-BB Service Life '!F105=0,"",'[12]Appendix 2-BB Service Life '!F105) -> 25 | G105: =IF('[12]Appendix 2-BB Service Life '!G105=0,"",'[12]Appendix 2-BB Service Life '!G105) -> 35 | H105: =IF('[12]Appendix 2-BB Service Life '!H105=0,"",'[12]Appendix 2-BB Service Life '!H105) -> 
B106: 11 | C106: Wholesale Energy Meters | F106: =IF('[12]Appendix 2-BB Service Life '!F106=0,"",'[12]Appendix 2-BB Service Life '!F106) -> 15 | G106: =IF('[12]Appendix 2-BB Service Life '!G106=0,"",'[12]Appendix 2-BB Service Life '!G106) -> 30 | H106: =IF('[12]Appendix 2-BB Service Life '!H106=0,"",'[12]Appendix 2-BB Service Life '!H106) ->  | J106: =IF('[12]Appendix 2-BB Service Life '!J106=0,"",'[12]Appendix 2-BB Service Life '!J106) -> 1820 | K106: =IF('[12]Appendix 2-BB Service Life '!K106=0,"",'[12]Appendix 2-BB Service Life '!K106) -> Distribution Station Equipment (wholesale meter) | L106: =IF('[12]Appendix 2-BB Service Life '!L106=0,"",'[12]Appendix 2-BB Service Life '!L106) -> 30 | M106: 0.03333333333 | N106: =IF('[12]Appendix 2-BB Service Life '!N106=0,"",'[12]Appendix 2-BB Service Life '!N106) -> 15 | O106: 0.06666666667 | P106: No | Q106: No
B107: 12 | C107: Current & Potential Transformer (CT & PT) | F107: =IF('[12]Appendix 2-BB Service Life '!F107=0,"",'[12]Appendix 2-BB Service Life '!F107) -> 30 | G107: =IF('[12]Appendix 2-BB Service Life '!G107=0,"",'[12]Appendix 2-BB Service Life '!G107) -> 50 | H107: =IF('[12]Appendix 2-BB Service Life '!H107=0,"",'[12]Appendix 2-BB Service Life '!H107) -> 
B108: 13 | C108: Smart Meters | F108: =IF('[12]Appendix 2-BB Service Life '!F108=0,"",'[12]Appendix 2-BB Service Life '!F108) -> 15 | G108: =IF('[12]Appendix 2-BB Service Life '!G108=0,"",'[12]Appendix 2-BB Service Life '!G108) -> 20 | H108: =IF('[12]Appendix 2-BB Service Life '!H108=0,"",'[12]Appendix 2-BB Service Life '!H108) ->  | J108: =IF('[12]Appendix 2-BB Service Life '!J108=0,"",'[12]Appendix 2-BB Service Life '!J108) -> 1860 | K108: =IF('[12]Appendix 2-BB Service Life '!K108=0,"",'[12]Appendix 2-BB Service Life '!K108) -> Meters (Smart Meters) | L108: =IF('[12]Appendix 2-BB Service Life '!L108=0,"",'[12]Appendix 2-BB Service Life '!L108) -> 15 | M108: 0.06666666667 | N108: =IF('[12]Appendix 2-BB Service Life '!N108=0,"",'[12]Appendix 2-BB Service Life '!N108) -> 15 | O108: 0.06666666667 | P108: No | Q108: No
B109: 14 | C109: Repeaters - Smart Metering | F109: =IF('[12]Appendix 2-BB Service Life '!F109=0,"",'[12]Appendix 2-BB Service Life '!F109) -> 5 | G109: =IF('[12]Appendix 2-BB Service Life '!G109=0,"",'[12]Appendix 2-BB Service Life '!G109) -> 15 | H109: =IF('[12]Appendix 2-BB Service Life '!H109=0,"",'[12]Appendix 2-BB Service Life '!H109) -> 
B110: 15 | C110: Data Collectors - Smart Metering | F110: =IF('[12]Appendix 2-BB Service Life '!F110=0,"",'[12]Appendix 2-BB Service Life '!F110) -> 15 | G110: =IF('[12]Appendix 2-BB Service Life '!G110=0,"",'[12]Appendix 2-BB Service Life '!G110) -> 20 | H110: =IF('[12]Appendix 2-BB Service Life '!H110=0,"",'[12]Appendix 2-BB Service Life '!H110) -> 
A113: * TS & MS = Transformer and Municipal Stations UG = Underground Systems S = Monitoring and Control Systems
A115: Note 1: | B115: Tables F-1 and F-2 above are to be used as a reference in order to complete columns J, K, L and N.
B116: See pages 17-19 of Kinetrics Report

Sheet App.2-CA_OldCGAAP_DepExp_2012
K1: File Number: | L1: =EBNUMBER -> EB-2015-0061
K2: Exhibit:
K3: Tab:
K4: Schedule:
K5: Page:
K7: Date:
A9: Appendix 2-CA
A10: Depreciation and Amortization Expense
B11: Assumes the applicant made capitalization and depreciation expense accounting policy changes under CGAAP effective January 1, 2012 and has adopted IFRS for financial reporting purposes effective January 1, 2015.
C13: Year | D13: 2012 | E13: Former CGAAP
A15: Account | B15: Description | C15: Opening Regulatory Gross PP&E as at Jan 1, 2012 | D15: Less Fully Depreciated | E15: Net for Depreciation | F15: Additions | G15: Total for Depreciation 1 | H15: Years | I15: Depreciation Rate | J15: Depreciation Expense | K15: 2012 Depreciation Expense per Appendix 2-BA Fixed Assets, Column J (l) | L15: Variance 2
C16: (a) | D16: (b) | E16: (c) | F16: (d) | G16: (e) = (c) + ½ x (d) | H16: (f) | I16: (g) = 1 / (f) | J16: (h) = (e) / (f) | L16: (m) = (h) - (l)
A17: 1611 | B17: Computer Software (Formally known as Account 1925) | E17: =C17-D17 -> 0 | G17: =E17+0.5*F17 -> 0 | I17: =IF(H17=0,0,1/H17) -> 0 | J17: =IF(H17=0,0,G17/H17) -> 0 | L17: =IF(ISERROR(+J17-K17), 0, +J17-K17) -> 0
A18: 1612 | B18: Land Rights (Formally known as Account 1906) | E18: =C18-D18 -> 0 | G18: =E18+0.5*F18 -> 0 | I18: 0 | J18: 0 | L18: 0
A19: 1805 | B19: Land | E19: 0 | G19: 0 | I19: 0 | J19: 0 | L19: 0
A20: 1808 | B20: Buildings | E20: 0 | G20: 0 | I20: 0 | J20: 0 | L20: 0
A21: 1810 | B21: Leasehold Improvements | E21: 0 | G21: 0 | I21: 0 | J21: 0 | L21: 0
A22: 1815 | B22: Transformer Station Equipment >50 kV | E22: 0 | G22: 0 | I22: 0 | J22: 0 | L22: 0
A23: 1820 | B23: Distribution Station Equipment <50 kV | E23: 0 | G23: 0 | I23: 0 | J23: 0 | L23: 0
A24: 1825 | B24: Storage Battery Equipment | E24: 0 | G24: 0 | I24: 0 | J24: 0 | L24: 0
A25: 1830 | B25: Poles, Towers & Fixtures | E25: 0 | G25: 0 | I25: 0 | J25: 0 | L25: 0
A26: 1835 | B26: Overhead Conductors & Devices | E26: 0 | G26: 0 | I26: 0 | J26: 0 | L26: 0
A27: 1840 | B27: Underground Conduit | E27: 0 | G27: 0 | I27: 0 | J27: 0 | L27: 0
A28: 1845 | B28: Underground Conductors & Devices | E28: 0 | G28: 0 | I28: 0 | J28: 0 | L28: 0
A29: 1850 | B29: Line Transformers | E29: 0 | G29: 0 | I29: 0 | J29: 0 | L29: 0
A30: 1855 | B30: Services (Overhead & Underground) | E30: 0 | G30: 0 | I30: 0 | J30: 0 | L30: 0
A31: 1860 | B31: Meters | E31: 0 | G31: 0 | I31: 0 | J31: 0 | L31: 0
A32: 1860 | B32: Meters (Smart Meters) | E32: 0 | G32: 0 | I32: 0 | J32: 0 | L32: 0
A33: 1905 | B33: Land | E33: 0 | G33: 0 | I33: 0 | J33: 0 | L33: 0
A34: 1908 | B34: Buildings & Fixtures | E34: 0 | G34: 0 | I34: 0 | J34: 0 | L34: 0
A35: 1910 | B35: Leasehold Improvements | E35: 0 | G35: 0 | I35: 0 | J35: 0 | L35: 0
A36: 1915 | B36: Office Furniture & Equipment (10 years) | E36: 0 | G36: 0 | I36: 0 | J36: 0 | L36: 0
A37: 1915 | B37: Office Furniture & Equipment (5 years) | E37: 0 | G37: 0 | I37: 0 | J37: 0 | L37: 0
A38: 1920 | B38: Computer Equipment - Hardware | E38: 0 | G38: 0 | I38: 0 | J38: 0 | L38: 0
A39: 1920 | B39: Computer Equip.-Hardware(Post Mar. 22/04) | E39: 0 | G39: 0 | I39: 0 | J39: 0 | L39: 0
A40: 1920 | B40: Computer Equip.-Hardware(Post Mar. 19/07) | E40: 0 | G40: 0 | I40: 0 | J40: 0 | L40: 0
A41: 1930 | B41: Transportation Equipment | E41: 0 | G41: 0 | I41: 0 | J41: 0 | L41: 0
A42: 1935 | B42: Stores Equipment | E42: 0 | G42: 0 | I42: 0 | J42: 0 | L42: 0
A43: 1940 | B43: Tools, Shop & Garage Equipment | E43: 0 | G43: 0 | I43: 0 | J43: 0 | L43: 0
A44: 1945 | B44: Measurement & Testing Equipment | E44: 0 | G44: 0 | I44: 0 | J44: 0 | L44: 0
A45: 1950 | B45: Power Operated Equipment | E45: 0 | G45: 0 | I45: 0 | J45: 0 | L45: 0
A46: 1955 | B46: Communications Equipment | E46: 0 | G46: 0 | I46: 0 | J46: 0 | L46: 0
A47: 1955 | B47: Communication Equipment (Smart Meters) | E47: 0 | G47: 0 | I47: 0 | J47: 0 | L47: 0
A48: 1960 | B48: Miscellaneous Equipment | E48: 0 | G48: 0 | I48: 0 | J48: 0 | L48: 0
A49: 1970 | B49: Load Management Controls Customer Premises | E49: 0 | G49: 0 | I49: 0 | J49: 0 | L49: 0
A50: 1975 | B50: Load Management Controls Utility Premises | E50: 0 | G50: 0 | I50: 0 | J50: 0 | L50: 0
A51: 1980 | B51: System Supervisor Equipment | E51: 0 | G51: 0 | I51: 0 | J51: 0 | L51: 0
A52: 1985 | B52: Miscellaneous Fixed Assets | E52: 0 | G52: 0 | I52: 0 | J52: 0 | L52: 0
A53: 1990 | B53: Other Tangible Property | E53: 0 | G53: 0 | I53: 0 | J53: 0 | L53: 0
A54: 1995 | B54: Contributions & Grants | E54: 0 | G54: 0 | I54: 0 | J54: 0 | L54: 0
B55: Total | C55: =SUM(C17:C54) -> 0 | D55: =SUM(D17:D54) -> 0 | E55: =SUM(E17:E54) -> 0 | F55: =SUM(F17:F54) -> 0 | G55: =SUM(G17:G54) -> 0 | J55: =SUM(J17:J54) -> 0 | K55: =SUM(K17:K54) -> 0 | L55: =SUM(L17:L54) -> 0
A57: Notes:
A59: 1 | B59: Board policy of the "half-year" rule - the applicant must ensure that additions in the year attract a half-year depreciation expense in the first year. Deviations from this standard practice must be supported in the application.
A60: 2 | B60: The applicant must provide an explanation of material variances in evidence.
A62: General | B62: Applicants must provide a breakdown of depreciation and amortization expense in the above format for all relevant accounts. Asset Retirement Obligations (AROs), depreciation and accretion expense should be disclosed separately consistent with the Notes of historical Audited Financial Statements.

Sheet App.2-CB_NewCGAAP_DepExp_2012
N1: File Number: | O1: =EBNUMBER -> EB-2015-0061
N2: Exhibit:
N3: Tab:
N4: Schedule:
N5: Page:
N7: Date:
A9: Appendix 2-CB
A10: Depreciation and Amortization Expense
A11: Assumes the applicant made capitalization and depreciation expense accounting policy changes under CGAAP effective January 1, 2012 and has adopted IFRS for financial reporting purposes effective January 1, 2015.
C13: Year | D13: 2012 | E13: Revised CGAAP
A15: Account | B15: Description | C15: Opening NBV as at Jan 1, 2012 5 | D15: Additions | E15: Average Remaining Life of Opening NBV 4 | F15: Years (new additions only) 3 | G15: Depreciation Rate on New Additions | H15: Depreciation Expense on Opening NBV | I15: Depreciation Expense on Additions 1 | J15: 2012 Depreciation Expense | K15: 2012 Depreciation Expense per Appendix 2-BA Fixed Assets, Column J (l) | L15: Variance 2 | M15: Depreciation Expense on 2012 Full Year Additions | N15: Less Depreciation Expense on Assets Fully Depreciated during the year (o) | O15: 2012 Full Year Depreciation 6
C16: (a) | D16: (d) | E16: (i) | F16: (f) | G16: (g) = 1 / (f) | H16: (j) = (a) / (i) | I16: (h)=((d)*0.5)/(f) | J16: (k) = (j) + (h) | L16: (m) = (k) - (l) | M16: (n) = (d)/(f) | O16: (p) = (j) + (n) - (o)
A17: 1611 | B17: Computer Software (Formally known as Account 1925) | G17: =IF(F17=0,0,1/F17) -> 0 | H17: =IF(E17=0,0,+C17/E17) -> 0 | I17: =IF(F17=0,0,+(D17*0.5)/F17) -> 0 | J17: =IF(ISERROR(+H17+I17), 0, +H17+I17) -> 0 | L17: =IF(ISERROR(+J17-K17), 0, +J17-K17) -> 0 | M17: =IF(F17=0,0,+(D17)/F17) -> 0 | O17: =IF(ISERROR(+M17+H17-N17), 0, +M17+H17-N17) -> 0
A18: 1612 | B18: Land Rights (Formally known as Account 1906) | G18: 0 | H18: 0 | I18: 0 | J18: 0 | L18: 0 | M18: 0 | O18: =IF(ISERROR(+M18+H18-N18), 0, +M18+H18-N18) -> 0
A19: 1805 | B19: Land | G19: 0 | H19: 0 | I19: 0 | J19: 0 | L19: 0 | M19: 0 | O19: 0
A20: 1808 | B20: Buildings | G20: 0 | H20: 0 | I20: 0 | J20: 0 | L20: 0 | M20: 0 | O20: 0
A21: 1810 | B21: Leasehold Improvements | G21: 0 | H21: 0 | I21: 0 | J21: 0 | L21: 0 | M21: 0 | O21: 0
A22: 1815 | B22: Transformer Station Equipment >50 kV | G22: 0 | H22: 0 | I22: 0 | J22: 0 | L22: 0 | M22: 0 | O22: 0
A23: 1820 | B23: Distribution Station Equipment <50 kV | G23: 0 | H23: 0 | I23: 0 | J23: 0 | L23: 0 | M23: 0 | O23: 0
A24: 1825 | B24: Storage Battery Equipment | G24: 0 | H24: 0 | I24: 0 | J24: 0 | L24: 0 | M24: 0 | O24: 0
A25: 1830 | B25: Poles, Towers & Fixtures | G25: 0 | H25: 0 | I25: 0 | J25: 0 | L25: 0 | M25: 0 | O25: 0
A26: 1835 | B26: Overhead Conductors & Devices | G26: 0 | H26: 0 | I26: 0 | J26: 0 | L26: 0 | M26: 0 | O26: 0
A27: 1840 | B27: Underground Conduit | G27: 0 | H27: 0 | I27: 0 | J27: 0 | L27: 0 | M27: 0 | O27: 0
A28: 1845 | B28: Underground Conductors & Devices | G28: 0 | H28: 0 | I28: 0 | J28: 0 | L28: 0 | M28: 0 | O28: 0
A29: 1850 | B29: Line Transformers | G29: 0 | H29: 0 | I29: 0 | J29: 0 | L29: 0 | M29: 0 | O29: 0
A30: 1855 | B30: Services (Overhead & Underground) | G30: 0 | H30: 0 | I30: 0 | J30: 0 | L30: 0 | M30: 0 | O30: 0
A31: 1860 | B31: Meters | G31: 0 | H31: 0 | I31: 0 | J31: 0 | L31: 0 | M31: 0 | O31: 0
A32: 1860 | B32: Meters (Smart Meters) | G32: 0 | H32: 0 | I32: 0 | J32: 0 | L32: 0 | M32: 0 | O32: 0
A33: 1905 | B33: Land | G33: 0 | H33: 0 | I33: 0 | J33: 0 | L33: 0 | M33: 0 | O33: 0
A34: 1908 | B34: Buildings & Fixtures | G34: 0 | H34: 0 | I34: 0 | J34: 0 | L34: 0 | M34: 0 | O34: 0
A35: 1910 | B35: Leasehold Improvements | G35: 0 | H35: 0 | I35: 0 | J35: 0 | L35: 0 | M35: 0 | O35: 0
A36: 1915 | B36: Office Furniture & Equipment (10 years) | G36: 0 | H36: 0 | I36: 0 | J36: 0 | L36: 0 | M36: 0 | O36: 0
A37: 1915 | B37: Office Furniture & Equipment (5 years) | G37: 0 | H37: 0 | I37: 0 | J37: 0 | L37: 0 | M37: 0 | O37: 0
A38: 1920 | B38: Computer Equipment - Hardware | G38: 0 | H38: 0 | I38: 0 | J38: 0 | L38: 0 | M38: 0 | O38: 0
A39: 1920 | B39: Computer Equip.-Hardware(Post Mar. 22/04) | G39: 0 | H39: 0 | I39: 0 | J39: 0 | L39: 0 | M39: 0 | O39: 0
A40: 1920 | B40: Computer Equip.-Hardware(Post Mar. 19/07) | G40: 0 | H40: 0 | I40: 0 | J40: 0 | L40: 0 | M40: 0 | O40: 0
A41: 1930 | B41: Transportation Equipment | G41: 0 | H41: 0 | I41: 0 | J41: 0 | L41: 0 | M41: 0 | O41: 0
A42: 1935 | B42: Stores Equipment | G42: 0 | H42: 0 | I42: 0 | J42: 0 | L42: 0 | M42: 0 | O42: 0
A43: 1940 | B43: Tools, Shop & Garage Equipment | G43: 0 | H43: 0 | I43: 0 | J43: 0 | L43: 0 | M43: 0 | O43: 0
A44: 1945 | B44: Measurement & Testing Equipment | G44: 0 | H44: 0 | I44: 0 | J44: 0 | L44: 0 | M44: 0 | O44: 0
A45: 1950 | B45: Power Operated Equipment | G45: 0 | H45: 0 | I45: 0 | J45: 0 | L45: 0 | M45: 0 | O45: 0
A46: 1955 | B46: Communications Equipment | G46: 0 | H46: 0 | I46: 0 | J46: 0 | L46: 0 | M46: 0 | O46: 0
A47: 1955 | B47: Communication Equipment (Smart Meters) | G47: 0 | H47: 0 | I47: 0 | J47: 0 | L47: 0 | M47: 0 | O47: 0
A48: 1960 | B48: Miscellaneous Equipment | G48: 0 | H48: 0 | I48: 0 | J48: 0 | L48: 0 | M48: 0 | O48: 0
A49: 1970 | B49: Load Management Controls Customer Premises | G49: 0 | H49: 0 | I49: 0 | J49: 0 | L49: 0 | M49: 0 | O49: 0
A50: 1975 | B50: Load Management Controls Utility Premises | G50: 0 | H50: 0 | I50: 0 | J50: 0 | L50: 0 | M50: 0 | O50: 0
A51: 1980 | B51: System Supervisor Equipment | G51: 0 | H51: 0 | I51: 0 | J51: 0 | L51: 0 | M51: 0 | O51: 0
A52: 1985 | B52: Miscellaneous Fixed Assets | G52: 0 | H52: 0 | I52: 0 | J52: 0 | L52: 0 | M52: 0 | O52: 0
A53: 1990 | B53: Other Tangible Property | G53: 0 | H53: 0 | I53: 0 | J53: 0 | L53: 0 | M53: 0 | O53: 0
A54: 1995 | B54: Contributions & Grants | G54: 0 | H54: 0 | I54: 0 | J54: 0 | L54: 0 | M54: 0 | O54: 0
B55: Total | C55: =SUM(C17:C54) -> 0 | D55: =SUM(D17:D54) -> 0 | H55: =SUM(H17:H54) -> 0 | I55: 0 | J55: 0 | K55: 0 | L55: 0 | M55: 0 | N55: 0 | O55: 0
A57: Notes:
A59: 1 | B59: Board policy of the "half-year" rule - the applicant must ensure that additions in the year attract a half-year depreciation expense in the first year. Deviations from this standard practice must be supported in the application.
A60: 2 | B60: The applicant must provide an explanation of material variances in evidence.
A61: 3 | B61: The applicant should ensure that the years for new additions of assets are the asset useful lives determined by management in accordance with the Board's regulatory accounting policies. The capitalization and depreciation expense accounting changes should be implemented consistent with the Board’s regulatory accounting policies as set out for modified IFRS as contained in the Report of the Board, Transition to International Financial Reporting Standards, EB-2008-0408, the Kinectrics Report, and the Revised 2012 Accounting Procedures Handbook for Electricity Distributors (“APH”).
A62: 4 | B62: A recalculation should be performed to determine the average remaining life of opening balance of assets (i.e. excluding 2012 additions) under the change in policies under CGAAP. For example, Asset A had a useful life of 20 years under CGAAP without the change in policies. On January 1, 2012, the effective date of the changes in policies, Asset A was 3 years depreciated. As a result, Asset A would have a remaining service life of 17 years (20 years less 3 years) as of January 1, 2012. Due to making the change in policies under CGAAP, management re-assessed the asset useful lives and concluded that the revised useful life of Asset A is now 30 years. Therefore, the average remaining useful life of the opening balance of Asset A is determined to be 27 years (30 years less 3 years) under the revised CGAAP as of January 1, 2012.
A63: 5 | B63: NBV must exclude assets still on the books but which have been fully amortized or depreciated.
A64: 6 | B64: This column refers to the calculated full year depreciation but excludes the depreciation expense on assets fully depreciated during the year. This column is used for the purpose of calculating depreciation expense in the following year on the next worksheet.
A66: General: | B66: Applicants must provide a breakdown of depreciation and amortization expense in the above format for all relevant accounts. Asset Retirement Obligations (AROs), depreciation and accretion expense should be disclosed separately consistent with the Notes of historical Audited Financial Statements.

Sheet App.2-CC_NewCGAAP_DepExp_2013
J1: File Number: | K1: =EBNUMBER -> EB-2015-0061
J2: Exhibit:
J3: Tab:
J4: Schedule:
J5: Page:
J7: Date:
A9: Appendix 2-CC
A10: Depreciation and Amortization Expense
A11: Assumes the applicant made capitalization and depreciation expense accounting policy changes under CGAAP effective January 1, 2012 and has adopted IFRS for financial reporting purposes effective January 1, 2015.
C13: 2013 | D13: Revised CGAAP
A15: Account | B15: Description | C15: Additions | D15: Years (new additions only) | E15: Depreciation Rate on New Additions | F15: 2013 Depreciation Expense 1 | G15: 2013 Depreciation Expense per Apppendix 2-BA Fixed Assets, Column J (l) | H15: Variance 2 | I15: Depreciation Expense on 2013 Full Year Additions | J15: Less Depreciation Expense on Assets Fully Depreciated during the year (o) | K15: 2013 Full Year Depreciation 3
C16: (d) | D16: (f) | E16: (g) = 1 / (f) | F16: (h)=2012 Full Year Deprecation + ((d)*0.5)/(f) | H16: (m) = (h) - (l) | I16: (n)=((d))/(f) | K16: (p) = 2012 Full Year Depreciation + (n) - (o)
A17: 1611 | B17: Computer Software (Formally known as Account 1925) | E17: =IF(D17=0,0,1/D17) -> 0 | F17: =IF(D17=0,+'App.2-CB_NewCGAAP_DepExp_2012'!O17,+'App.2-CB_NewCGAAP_DepExp_2012'!O17+((C17*0.5)/D17)) -> 0 | H17: =IF(ISERROR(+F17-G17), 0, +F17-G17) -> 0 | I17: =IF(D17=0,0,+(C17)/D17) -> 0 | K17: =IF(ISERROR(+I17+'App.2-CB_NewCGAAP_DepExp_2012'!O17-J17), 0, +I17+'App.2-CB_NewCGAAP_DepExp_2012'!O17-J17) -> 0
A18: 1612 | B18: Land Rights (Formally known as Account 1906) | E18: 0 | F18: =IF(D18=0,+'App.2-CB_NewCGAAP_DepExp_2012'!O18,+'App.2-CB_NewCGAAP_DepExp_2012'!O18+((C18*0.5)/D18)) -> 0 | H18: 0 | I18: 0 | K18: =IF(ISERROR(+I18+'App.2-CB_NewCGAAP_DepExp_2012'!O18-J18), 0, +I18+'App.2-CB_NewCGAAP_DepExp_2012'!O18-J18) -> 0
A19: 1805 | B19: Land | E19: 0 | F19: =IF(D19=0,+'App.2-CB_NewCGAAP_DepExp_2012'!O19,+'App.2-CB_NewCGAAP_DepExp_2012'!O19+((C19*0.5)/D19)) -> 0 | H19: 0 | I19: 0 | K19: =IF(ISERROR(+I19+'App.2-CB_NewCGAAP_DepExp_2012'!O19-J19), 0, +I19+'App.2-CB_NewCGAAP_DepExp_2012'!O19-J19) -> 0
A20: 1808 | B20: Buildings | E20: 0 | F20: =IF(D20=0,+'App.2-CB_NewCGAAP_DepExp_2012'!O20,+'App.2-CB_NewCGAAP_DepExp_2012'!O20+((C20*0.5)/D20)) -> 0 | H20: 0 | I20: 0 | K20: =IF(ISERROR(+I20+'App.2-CB_NewCGAAP_DepExp_2012'!O20-J20), 0, +I20+'App.2-CB_NewCGAAP_DepExp_2012'!O20-J20) -> 0
A21: 1810 | B21: Leasehold Improvements | E21: 0 | F21: =IF(D21=0,+'App.2-CB_NewCGAAP_DepExp_2012'!O21,+'App.2-CB_NewCGAAP_DepExp_2012'!O21+((C21*0.5)/D21)) -> 0 | H21: 0 | I21: 0 | K21: =IF(ISERROR(+I21+'App.2-CB_NewCGAAP_DepExp_2012'!O21-J21), 0, +I21+'App.2-CB_NewCGAAP_DepExp_2012'!O21-J21) -> 0
A22: 1815 | B22: Transformer Station Equipment >50 kV | E22: 0 | F22: =IF(D22=0,+'App.2-CB_NewCGAAP_DepExp_2012'!O22,+'App.2-CB_NewCGAAP_DepExp_2012'!O22+((C22*0.5)/D22)) -> 0 | H22: 0 | I22: 0 | K22: =IF(ISERROR(+I22+'App.2-CB_NewCGAAP_DepExp_2012'!O22-J22), 0, +I22+'App.2-CB_NewCGAAP_DepExp_2012'!O22-J22) -> 0
A23: 1820 | B23: Distribution Station Equipment <50 kV | E23: 0 | F23: =IF(D23=0,+'App.2-CB_NewCGAAP_DepExp_2012'!O23,+'App.2-CB_NewCGAAP_DepExp_2012'!O23+((C23*0.5)/D23)) -> 0 | H23: 0 | I23: 0 | K23: =IF(ISERROR(+I23+'App.2-CB_NewCGAAP_DepExp_2012'!O23-J23), 0, +I23+'App.2-CB_NewCGAAP_DepExp_2012'!O23-J23) -> 0
A24: 1825 | B24: Storage Battery Equipment | E24: 0 | F24: =IF(D24=0,+'App.2-CB_NewCGAAP_DepExp_2012'!O24,+'App.2-CB_NewCGAAP_DepExp_2012'!O24+((C24*0.5)/D24)) -> 0 | H24: 0 | I24: 0 | K24: =IF(ISERROR(+I24+'App.2-CB_NewCGAAP_DepExp_2012'!O24-J24), 0, +I24+'App.2-CB_NewCGAAP_DepExp_2012'!O24-J24) -> 0
A25: 1830 | B25: Poles, Towers & Fixtures | E25: 0 | F25: =IF(D25=0,+'App.2-CB_NewCGAAP_DepExp_2012'!O25,+'App.2-CB_NewCGAAP_DepExp_2012'!O25+((C25*0.5)/D25)) -> 0 | H25: 0 | I25: 0 | K25: =IF(ISERROR(+I25+'App.2-CB_NewCGAAP_DepExp_2012'!O25-J25), 0, +I25+'App.2-CB_NewCGAAP_DepExp_2012'!O25-J25) -> 0
A26: 1835 | B26: Overhead Conductors & Devices | E26: 0 | F26: =IF(D26=0,+'App.2-CB_NewCGAAP_DepExp_2012'!O26,+'App.2-CB_NewCGAAP_DepExp_2012'!O26+((C26*0.5)/D26)) -> 0 | H26: 0 | I26: 0 | K26: =IF(ISERROR(+I26+'App.2-CB_NewCGAAP_DepExp_2012'!O26-J26), 0, +I26+'App.2-CB_NewCGAAP_DepExp_2012'!O26-J26) -> 0
A27: 1840 | B27: Underground Conduit | E27: 0 | F27: =IF(D27=0,+'App.2-CB_NewCGAAP_DepExp_2012'!O27,+'App.2-CB_NewCGAAP_DepExp_2012'!O27+((C27*0.5)/D27)) -> 0 | H27: 0 | I27: 0 | K27: =IF(ISERROR(+I27+'App.2-CB_NewCGAAP_DepExp_2012'!O27-J27), 0, +I27+'App.2-CB_NewCGAAP_DepExp_2012'!O27-J27) -> 0
A28: 1845 | B28: Underground Conductors & Devices | E28: 0 | F28: =IF(D28=0,+'App.2-CB_NewCGAAP_DepExp_2012'!O28,+'App.2-CB_NewCGAAP_DepExp_2012'!O28+((C28*0.5)/D28)) -> 0 | H28: 0 | I28: 0 | K28: =IF(ISERROR(+I28+'App.2-CB_NewCGAAP_DepExp_2012'!O28-J28), 0, +I28+'App.2-CB_NewCGAAP_DepExp_2012'!O28-J28) -> 0
A29: 1850 | B29: Line Transformers | E29: 0 | F29: =IF(D29=0,+'App.2-CB_NewCGAAP_DepExp_2012'!O29,+'App.2-CB_NewCGAAP_DepExp_2012'!O29+((C29*0.5)/D29)) -> 0 | H29: 0 | I29: 0 | K29: =IF(ISERROR(+I29+'App.2-CB_NewCGAAP_DepExp_2012'!O29-J29), 0, +I29+'App.2-CB_NewCGAAP_DepExp_2012'!O29-J29) -> 0
A30: 1855 | B30: Services (Overhead & Underground) | E30: 0 | F30: =IF(D30=0,+'App.2-CB_NewCGAAP_DepExp_2012'!O30,+'App.2-CB_NewCGAAP_DepExp_2012'!O30+((C30*0.5)/D30)) -> 0 | H30: 0 | I30: 0 | K30: =IF(ISERROR(+I30+'App.2-CB_NewCGAAP_DepExp_2012'!O30-J30), 0, +I30+'App.2-CB_NewCGAAP_DepExp_2012'!O30-J30) -> 0
A31: 1860 | B31: Meters | E31: 0 | F31: =IF(D31=0,+'App.2-CB_NewCGAAP_DepExp_2012'!O31,+'App.2-CB_NewCGAAP_DepExp_2012'!O31+((C31*0.5)/D31)) -> 0 | H31: 0 | I31: 0 | K31: =IF(ISERROR(+I31+'App.2-CB_NewCGAAP_DepExp_2012'!O31-J31), 0, +I31+'App.2-CB_NewCGAAP_DepExp_2012'!O31-J31) -> 0
A32: 1860 | B32: Meters (Smart Meters) | E32: 0 | F32: =IF(D32=0,+'App.2-CB_NewCGAAP_DepExp_2012'!O32,+'App.2-CB_NewCGAAP_DepExp_2012'!O32+((C32*0.5)/D32)) -> 0 | H32: 0 | I32: 0 | K32: =IF(ISERROR(+I32+'App.2-CB_NewCGAAP_DepExp_2012'!O32-J32), 0, +I32+'App.2-CB_NewCGAAP_DepExp_2012'!O32-J32) -> 0
A33: 1905 | B33: Land | E33: 0 | F33: =IF(D33=0,+'App.2-CB_NewCGAAP_DepExp_2012'!O33,+'App.2-CB_NewCGAAP_DepExp_2012'!O33+((C33*0.5)/D33)) -> 0 | H33: 0 | I33: 0 | K33: =IF(ISERROR(+I33+'App.2-CB_NewCGAAP_DepExp_2012'!O33-J33), 0, +I33+'App.2-CB_NewCGAAP_DepExp_2012'!O33-J33) -> 0
A34: 1908 | B34: Buildings & Fixtures | E34: 0 | F34: =IF(D34=0,+'App.2-CB_NewCGAAP_DepExp_2012'!O34,+'App.2-CB_NewCGAAP_DepExp_2012'!O34+((C34*0.5)/D34)) -> 0 | H34: 0 | I34: 0 | K34: =IF(ISERROR(+I34+'App.2-CB_NewCGAAP_DepExp_2012'!O34-J34), 0, +I34+'App.2-CB_NewCGAAP_DepExp_2012'!O34-J34) -> 0
A35: 1910 | B35: Leasehold Improvements | E35: 0 | F35: =IF(D35=0,+'App.2-CB_NewCGAAP_DepExp_2012'!O35,+'App.2-CB_NewCGAAP_DepExp_2012'!O35+((C35*0.5)/D35)) -> 0 | H35: 0 | I35: 0 | K35: =IF(ISERROR(+I35+'App.2-CB_NewCGAAP_DepExp_2012'!O35-J35), 0, +I35+'App.2-CB_NewCGAAP_DepExp_2012'!O35-J35) -> 0
A36: 1915 | B36: Office Furniture & Equipment (10 years) | E36: 0 | F36: =IF(D36=0,+'App.2-CB_NewCGAAP_DepExp_2012'!O36,+'App.2-CB_NewCGAAP_DepExp_2012'!O36+((C36*0.5)/D36)) -> 0 | H36: 0 | I36: 0 | K36: =IF(ISERROR(+I36+'App.2-CB_NewCGAAP_DepExp_2012'!O36-J36), 0, +I36+'App.2-CB_NewCGAAP_DepExp_2012'!O36-J36) -> 0
A37: 1915 | B37: Office Furniture & Equipment (5 years) | E37: 0 | F37: =IF(D37=0,+'App.2-CB_NewCGAAP_DepExp_2012'!O37,+'App.2-CB_NewCGAAP_DepExp_2012'!O37+((C37*0.5)/D37)) -> 0 | H37: 0 | I37: 0 | K37: =IF(ISERROR(+I37+'App.2-CB_NewCGAAP_DepExp_2012'!O37-J37), 0, +I37+'App.2-CB_NewCGAAP_DepExp_2012'!O37-J37) -> 0
A38: 1920 | B38: Computer Equipment - Hardware | E38: 0 | F38: =IF(D38=0,+'App.2-CB_NewCGAAP_DepExp_2012'!O38,+'App.2-CB_NewCGAAP_DepExp_2012'!O38+((C38*0.5)/D38)) -> 0 | H38: 0 | I38: 0 | K38: =IF(ISERROR(+I38+'App.2-CB_NewCGAAP_DepExp_2012'!O38-J38), 0, +I38+'App.2-CB_NewCGAAP_DepExp_2012'!O38-J38) -> 0
A39: 1920 | B39: Computer Equip.-Hardware(Post Mar. 22/04) | E39: 0 | F39: =IF(D39=0,+'App.2-CB_NewCGAAP_DepExp_2012'!O39,+'App.2-CB_NewCGAAP_DepExp_2012'!O39+((C39*0.5)/D39)) -> 0 | H39: 0 | I39: 0 | K39: =IF(ISERROR(+I39+'App.2-CB_NewCGAAP_DepExp_2012'!O39-J39), 0, +I39+'App.2-CB_NewCGAAP_DepExp_2012'!O39-J39) -> 0
A40: 1920 | B40: Computer Equip.-Hardware(Post Mar. 19/07) | E40: 0 | F40: =IF(D40=0,+'App.2-CB_NewCGAAP_DepExp_2012'!O40,+'App.2-CB_NewCGAAP_DepExp_2012'!O40+((C40*0.5)/D40)) -> 0 | H40: 0 | I40: 0 | K40: =IF(ISERROR(+I40+'App.2-CB_NewCGAAP_DepExp_2012'!O40-J40), 0, +I40+'App.2-CB_NewCGAAP_DepExp_2012'!O40-J40) -> 0
A41: 1930 | B41: Transportation Equipment | E41: 0 | F41: =IF(D41=0,+'App.2-CB_NewCGAAP_DepExp_2012'!O41,+'App.2-CB_NewCGAAP_DepExp_2012'!O41+((C41*0.5)/D41)) -> 0 | H41: 0 | I41: 0 | K41: =IF(ISERROR(+I41+'App.2-CB_NewCGAAP_DepExp_2012'!O41-J41), 0, +I41+'App.2-CB_NewCGAAP_DepExp_2012'!O41-J41) -> 0
A42: 1935 | B42: Stores Equipment | E42: 0 | F42: =IF(D42=0,+'App.2-CB_NewCGAAP_DepExp_2012'!O42,+'App.2-CB_NewCGAAP_DepExp_2012'!O42+((C42*0.5)/D42)) -> 0 | H42: 0 | I42: 0 | K42: =IF(ISERROR(+I42+'App.2-CB_NewCGAAP_DepExp_2012'!O42-J42), 0, +I42+'App.2-CB_NewCGAAP_DepExp_2012'!O42-J42) -> 0
A43: 1940 | B43: Tools, Shop & Garage Equipment | E43: 0 | F43: =IF(D43=0,+'App.2-CB_NewCGAAP_DepExp_2012'!O43,+'App.2-CB_NewCGAAP_DepExp_2012'!O43+((C43*0.5)/D43)) -> 0 | H43: 0 | I43: 0 | K43: =IF(ISERROR(+I43+'App.2-CB_NewCGAAP_DepExp_2012'!O43-J43), 0, +I43+'App.2-CB_NewCGAAP_DepExp_2012'!O43-J43) -> 0
A44: 1945 | B44: Measurement & Testing Equipment | E44: 0 | F44: =IF(D44=0,+'App.2-CB_NewCGAAP_DepExp_2012'!O44,+'App.2-CB_NewCGAAP_DepExp_2012'!O44+((C44*0.5)/D44)) -> 0 | H44: 0 | I44: 0 | K44: =IF(ISERROR(+I44+'App.2-CB_NewCGAAP_DepExp_2012'!O44-J44), 0, +I44+'App.2-CB_NewCGAAP_DepExp_2012'!O44-J44) -> 0
A45: 1950 | B45: Power Operated Equipment | E45: 0 | F45: =IF(D45=0,+'App.2-CB_NewCGAAP_DepExp_2012'!O45,+'App.2-CB_NewCGAAP_DepExp_2012'!O45+((C45*0.5)/D45)) -> 0 | H45: 0 | I45: 0 | K45: =IF(ISERROR(+I45+'App.2-CB_NewCGAAP_DepExp_2012'!O45-J45), 0, +I45+'App.2-CB_NewCGAAP_DepExp_2012'!O45-J45) -> 0
A46: 1955 | B46: Communications Equipment | E46: 0 | F46: =IF(D46=0,+'App.2-CB_NewCGAAP_DepExp_2012'!O46,+'App.2-CB_NewCGAAP_DepExp_2012'!O46+((C46*0.5)/D46)) -> 0 | H46: 0 | I46: 0 | K46: =IF(ISERROR(+I46+'App.2-CB_NewCGAAP_DepExp_2012'!O46-J46), 0, +I46+'App.2-CB_NewCGAAP_DepExp_2012'!O46-J46) -> 0
A47: 1955 | B47: Communication Equipment (Smart Meters) | E47: 0 | F47: =IF(D47=0,+'App.2-CB_NewCGAAP_DepExp_2012'!O47,+'App.2-CB_NewCGAAP_DepExp_2012'!O47+((C47*0.5)/D47)) -> 0 | H47: 0 | I47: 0 | K47: =IF(ISERROR(+I47+'App.2-CB_NewCGAAP_DepExp_2012'!O47-J47), 0, +I47+'App.2-CB_NewCGAAP_DepExp_2012'!O47-J47) -> 0
A48: 1960 | B48: Miscellaneous Equipment | E48: 0 | F48: =IF(D48=0,+'App.2-CB_NewCGAAP_DepExp_2012'!O48,+'App.2-CB_NewCGAAP_DepExp_2012'!O48+((C48*0.5)/D48)) -> 0 | H48: 0 | I48: 0 | K48: =IF(ISERROR(+I48+'App.2-CB_NewCGAAP_DepExp_2012'!O48-J48), 0, +I48+'App.2-CB_NewCGAAP_DepExp_2012'!O48-J48) -> 0
A49: 1970 | B49: Load Management Controls Customer Premises | E49: 0 | F49: =IF(D49=0,+'App.2-CB_NewCGAAP_DepExp_2012'!O49,+'App.2-CB_NewCGAAP_DepExp_2012'!O49+((C49*0.5)/D49)) -> 0 | H49: 0 | I49: 0 | K49: =IF(ISERROR(+I49+'App.2-CB_NewCGAAP_DepExp_2012'!O49-J49), 0, +I49+'App.2-CB_NewCGAAP_DepExp_2012'!O49-J49) -> 0
A50: 1975 | B50: Load Management Controls Utility Premises | E50: 0 | F50: =IF(D50=0,+'App.2-CB_NewCGAAP_DepExp_2012'!O50,+'App.2-CB_NewCGAAP_DepExp_2012'!O50+((C50*0.5)/D50)) -> 0 | H50: 0 | I50: 0 | K50: =IF(ISERROR(+I50+'App.2-CB_NewCGAAP_DepExp_2012'!O50-J50), 0, +I50+'App.2-CB_NewCGAAP_DepExp_2012'!O50-J50) -> 0
A51: 1980 | B51: System Supervisor Equipment | E51: 0 | F51: =IF(D51=0,+'App.2-CB_NewCGAAP_DepExp_2012'!O51,+'App.2-CB_NewCGAAP_DepExp_2012'!O51+((C51*0.5)/D51)) -> 0 | H51: 0 | I51: 0 | K51: =IF(ISERROR(+I51+'App.2-CB_NewCGAAP_DepExp_2012'!O51-J51), 0, +I51+'App.2-CB_NewCGAAP_DepExp_2012'!O51-J51) -> 0
A52: 1985 | B52: Miscellaneous Fixed Assets | E52: 0 | F52: =IF(D52=0,+'App.2-CB_NewCGAAP_DepExp_2012'!O52,+'App.2-CB_NewCGAAP_DepExp_2012'!O52+((C52*0.5)/D52)) -> 0 | H52: 0 | I52: 0 | K52: =IF(ISERROR(+I52+'App.2-CB_NewCGAAP_DepExp_2012'!O52-J52), 0, +I52+'App.2-CB_NewCGAAP_DepExp_2012'!O52-J52) -> 0
A53: 1990 | B53: Other Tangible Property | E53: 0 | F53: =IF(D53=0,+'App.2-CB_NewCGAAP_DepExp_2012'!O53,+'App.2-CB_NewCGAAP_DepExp_2012'!O53+((C53*0.5)/D53)) -> 0 | H53: 0 | I53: 0 | K53: =IF(ISERROR(+I53+'App.2-CB_NewCGAAP_DepExp_2012'!O53-J53), 0, +I53+'App.2-CB_NewCGAAP_DepExp_2012'!O53-J53) -> 0
A54: 1995 | B54: Contributions & Grants | E54: 0 | F54: =IF(D54=0,+'App.2-CB_NewCGAAP_DepExp_2012'!O54,+'App.2-CB_NewCGAAP_DepExp_2012'!O54+((C54*0.5)/D54)) -> 0 | H54: 0 | I54: 0 | K54: =IF(ISERROR(+I54+'App.2-CB_NewCGAAP_DepExp_2012'!O54-J54), 0, +I54+'App.2-CB_NewCGAAP_DepExp_2012'!O54-J54) -> 0
B55: Total | C55: =SUM(C17:C54) -> 0 | F55: =SUM(F17:F54) -> 0 | G55: 0 | H55: 0 | I55: 0 | J55: 0 | K55: 0
A57: Notes:
A58: 1 | B58: Board policy of the "half-year" rule - the applicant must ensure that additions in the year attract a half-year depreciation expense in the first year. Deviations from this standard practice must be supported in the application.
A59: 2 | B59: The applicant must provide an explanation of material variances in evidence.
A60: 3 | B60: This column refers to the calculated full year depreciation but excludes the depreciation expense on assets fully depreciated during the year. This column is used for the purpose of calculating depreciation expense in the following year on the next worksheet.
A62: General: | B62: Applicants must provide a breakdown of depreciation and amortization expense in the above format for all relevant accounts. Asset Retirement Obligations (AROs), depreciation and accretion expense should be disclosed separately consistent with the Notes of historical Audited Financial Statements.

Sheet App.2-CD_MIFRS_DepExp_2014
J1: File Number: | K1: =EBNUMBER -> EB-2015-0061
J2: Exhibit:
J3: Tab:
J4: Schedule:
J5: Page:
J7: Date:
A9: Appendix 2-CD
A10: Depreciation and Amortization Expense
A11: Assumes the applicant made capitalization and depreciation expense accounting policy changes under CGAAP effective January 1, 2012 and has adopted IFRS for financial reporting purposes effective January 1, 2015.
E13: 2014 | F13: MIFRS
A15: Account | B15: Description | C15: Additions | D15: Years (new additions only) | E15: Depreciation Rate on New Additions | F15: 2014 Depreciation Expense 1 | G15: 2014 Depreciation Expense per Apppendix 2-BA Fixed Assets, Column J (l) | H15: Variance 2 | I15: Depreciation Expense on 2014 Full Year Additions | J15: Less Depreciation Expense on Assets Fully Depreciated during the year (o) | K15: 2014 Full Year Depreciation 3
C16: (d) | D16: (f) | E16: (g) = 1 / (f) | F16: (h)=2013 Full Year Deprecation + ((d)*0.5)/(f) | H16: (m) = (h) - (l) | I16: (n)=((d))/(f) | K16: (p) = 2013 Full Year Depreciation + (n) - (o)
A17: 1611 | B17: Computer Software (Formally known as Account 1925) | E17: =IF(D17=0,0,1/D17) -> 0 | F17: =IF(D17=0,+'App.2-CC_NewCGAAP_DepExp_2013'!K17,+'App.2-CC_NewCGAAP_DepExp_2013'!K17+((C17*0.5)/D17)) -> 0 | H17: =IF(ISERROR(+F17-G17), 0, +F17-G17) -> 0 | I17: =IF(D17=0,0,+(C17)/D17) -> 0 | K17: =IF(ISERROR(+I17+'App.2-CC_NewCGAAP_DepExp_2013'!K17-J17), 0, +I17+'App.2-CC_NewCGAAP_DepExp_2013'!K17-J17) -> 0
A18: 1612 | B18: Land Rights (Formally known as Account 1906) | E18: 0 | F18: =IF(D18=0,+'App.2-CC_NewCGAAP_DepExp_2013'!K18,+'App.2-CC_NewCGAAP_DepExp_2013'!K18+((C18*0.5)/D18)) -> 0 | H18: 0 | I18: =IF(D18=0,0,+(C18)/D18) -> 0 | K18: =IF(ISERROR(+I18+'App.2-CC_NewCGAAP_DepExp_2013'!K18-J18), 0, +I18+'App.2-CC_NewCGAAP_DepExp_2013'!K18-J18) -> 0
A19: 1805 | B19: Land | E19: 0 | F19: =IF(D19=0,+'App.2-CC_NewCGAAP_DepExp_2013'!K19,+'App.2-CC_NewCGAAP_DepExp_2013'!K19+((C19*0.5)/D19)) -> 0 | H19: 0 | I19: 0 | K19: =IF(ISERROR(+I19+'App.2-CC_NewCGAAP_DepExp_2013'!K19-J19), 0, +I19+'App.2-CC_NewCGAAP_DepExp_2013'!K19-J19) -> 0
A20: 1808 | B20: Buildings | E20: 0 | F20: =IF(D20=0,+'App.2-CC_NewCGAAP_DepExp_2013'!K20,+'App.2-CC_NewCGAAP_DepExp_2013'!K20+((C20*0.5)/D20)) -> 0 | H20: 0 | I20: 0 | K20: =IF(ISERROR(+I20+'App.2-CC_NewCGAAP_DepExp_2013'!K20-J20), 0, +I20+'App.2-CC_NewCGAAP_DepExp_2013'!K20-J20) -> 0
A21: 1810 | B21: Leasehold Improvements | E21: 0 | F21: =IF(D21=0,+'App.2-CC_NewCGAAP_DepExp_2013'!K21,+'App.2-CC_NewCGAAP_DepExp_2013'!K21+((C21*0.5)/D21)) -> 0 | H21: 0 | I21: 0 | K21: =IF(ISERROR(+I21+'App.2-CC_NewCGAAP_DepExp_2013'!K21-J21), 0, +I21+'App.2-CC_NewCGAAP_DepExp_2013'!K21-J21) -> 0
A22: 1815 | B22: Transformer Station Equipment >50 kV | E22: 0 | F22: =IF(D22=0,+'App.2-CC_NewCGAAP_DepExp_2013'!K22,+'App.2-CC_NewCGAAP_DepExp_2013'!K22+((C22*0.5)/D22)) -> 0 | H22: 0 | I22: 0 | K22: =IF(ISERROR(+I22+'App.2-CC_NewCGAAP_DepExp_2013'!K22-J22), 0, +I22+'App.2-CC_NewCGAAP_DepExp_2013'!K22-J22) -> 0
A23: 1820 | B23: Distribution Station Equipment <50 kV | E23: 0 | F23: =IF(D23=0,+'App.2-CC_NewCGAAP_DepExp_2013'!K23,+'App.2-CC_NewCGAAP_DepExp_2013'!K23+((C23*0.5)/D23)) -> 0 | H23: 0 | I23: 0 | K23: =IF(ISERROR(+I23+'App.2-CC_NewCGAAP_DepExp_2013'!K23-J23), 0, +I23+'App.2-CC_NewCGAAP_DepExp_2013'!K23-J23) -> 0
A24: 1825 | B24: Storage Battery Equipment | E24: 0 | F24: =IF(D24=0,+'App.2-CC_NewCGAAP_DepExp_2013'!K24,+'App.2-CC_NewCGAAP_DepExp_2013'!K24+((C24*0.5)/D24)) -> 0 | H24: 0 | I24: 0 | K24: =IF(ISERROR(+I24+'App.2-CC_NewCGAAP_DepExp_2013'!K24-J24), 0, +I24+'App.2-CC_NewCGAAP_DepExp_2013'!K24-J24) -> 0
A25: 1830 | B25: Poles, Towers & Fixtures | E25: 0 | F25: =IF(D25=0,+'App.2-CC_NewCGAAP_DepExp_2013'!K25,+'App.2-CC_NewCGAAP_DepExp_2013'!K25+((C25*0.5)/D25)) -> 0 | H25: 0 | I25: 0 | K25: =IF(ISERROR(+I25+'App.2-CC_NewCGAAP_DepExp_2013'!K25-J25), 0, +I25+'App.2-CC_NewCGAAP_DepExp_2013'!K25-J25) -> 0
A26: 1835 | B26: Overhead Conductors & Devices | E26: 0 | F26: =IF(D26=0,+'App.2-CC_NewCGAAP_DepExp_2013'!K26,+'App.2-CC_NewCGAAP_DepExp_2013'!K26+((C26*0.5)/D26)) -> 0 | H26: 0 | I26: 0 | K26: =IF(ISERROR(+I26+'App.2-CC_NewCGAAP_DepExp_2013'!K26-J26), 0, +I26+'App.2-CC_NewCGAAP_DepExp_2013'!K26-J26) -> 0
A27: 1840 | B27: Underground Conduit | E27: 0 | F27: =IF(D27=0,+'App.2-CC_NewCGAAP_DepExp_2013'!K27,+'App.2-CC_NewCGAAP_DepExp_2013'!K27+((C27*0.5)/D27)) -> 0 | H27: 0 | I27: 0 | K27: =IF(ISERROR(+I27+'App.2-CC_NewCGAAP_DepExp_2013'!K27-J27), 0, +I27+'App.2-CC_NewCGAAP_DepExp_2013'!K27-J27) -> 0
A28: 1845 | B28: Underground Conductors & Devices | E28: 0 | F28: =IF(D28=0,+'App.2-CC_NewCGAAP_DepExp_2013'!K28,+'App.2-CC_NewCGAAP_DepExp_2013'!K28+((C28*0.5)/D28)) -> 0 | H28: 0 | I28: 0 | K28: =IF(ISERROR(+I28+'App.2-CC_NewCGAAP_DepExp_2013'!K28-J28), 0, +I28+'App.2-CC_NewCGAAP_DepExp_2013'!K28-J28) -> 0
A29: 1850 | B29: Line Transformers | E29: 0 | F29: =IF(D29=0,+'App.2-CC_NewCGAAP_DepExp_2013'!K29,+'App.2-CC_NewCGAAP_DepExp_2013'!K29+((C29*0.5)/D29)) -> 0 | H29: 0 | I29: 0 | K29: =IF(ISERROR(+I29+'App.2-CC_NewCGAAP_DepExp_2013'!K29-J29), 0, +I29+'App.2-CC_NewCGAAP_DepExp_2013'!K29-J29) -> 0
A30: 1855 | B30: Services (Overhead & Underground) | E30: 0 | F30: =IF(D30=0,+'App.2-CC_NewCGAAP_DepExp_2013'!K30,+'App.2-CC_NewCGAAP_DepExp_2013'!K30+((C30*0.5)/D30)) -> 0 | H30: 0 | I30: 0 | K30: =IF(ISERROR(+I30+'App.2-CC_NewCGAAP_DepExp_2013'!K30-J30), 0, +I30+'App.2-CC_NewCGAAP_DepExp_2013'!K30-J30) -> 0
A31: 1860 | B31: Meters | E31: 0 | F31: =IF(D31=0,+'App.2-CC_NewCGAAP_DepExp_2013'!K31,+'App.2-CC_NewCGAAP_DepExp_2013'!K31+((C31*0.5)/D31)) -> 0 | H31: 0 | I31: 0 | K31: =IF(ISERROR(+I31+'App.2-CC_NewCGAAP_DepExp_2013'!K31-J31), 0, +I31+'App.2-CC_NewCGAAP_DepExp_2013'!K31-J31) -> 0
A32: 1860 | B32: Meters (Smart Meters) | E32: 0 | F32: =IF(D32=0,+'App.2-CC_NewCGAAP_DepExp_2013'!K32,+'App.2-CC_NewCGAAP_DepExp_2013'!K32+((C32*0.5)/D32)) -> 0 | H32: 0 | I32: 0 | K32: =IF(ISERROR(+I32+'App.2-CC_NewCGAAP_DepExp_2013'!K32-J32), 0, +I32+'App.2-CC_NewCGAAP_DepExp_2013'!K32-J32) -> 0
A33: 1905 | B33: Land | E33: 0 | F33: =IF(D33=0,+'App.2-CC_NewCGAAP_DepExp_2013'!K33,+'App.2-CC_NewCGAAP_DepExp_2013'!K33+((C33*0.5)/D33)) -> 0 | H33: 0 | I33: 0 | K33: =IF(ISERROR(+I33+'App.2-CC_NewCGAAP_DepExp_2013'!K33-J33), 0, +I33+'App.2-CC_NewCGAAP_DepExp_2013'!K33-J33) -> 0
A34: 1908 | B34: Buildings & Fixtures | E34: 0 | F34: =IF(D34=0,+'App.2-CC_NewCGAAP_DepExp_2013'!K34,+'App.2-CC_NewCGAAP_DepExp_2013'!K34+((C34*0.5)/D34)) -> 0 | H34: 0 | I34: 0 | K34: =IF(ISERROR(+I34+'App.2-CC_NewCGAAP_DepExp_2013'!K34-J34), 0, +I34+'App.2-CC_NewCGAAP_DepExp_2013'!K34-J34) -> 0
A35: 1910 | B35: Leasehold Improvements | E35: 0 | F35: =IF(D35=0,+'App.2-CC_NewCGAAP_DepExp_2013'!K35,+'App.2-CC_NewCGAAP_DepExp_2013'!K35+((C35*0.5)/D35)) -> 0 | H35: 0 | I35: 0 | K35: =IF(ISERROR(+I35+'App.2-CC_NewCGAAP_DepExp_2013'!K35-J35), 0, +I35+'App.2-CC_NewCGAAP_DepExp_2013'!K35-J35) -> 0
A36: 1915 | B36: Office Furniture & Equipment (10 years) | E36: 0 | F36: =IF(D36=0,+'App.2-CC_NewCGAAP_DepExp_2013'!K36,+'App.2-CC_NewCGAAP_DepExp_2013'!K36+((C36*0.5)/D36)) -> 0 | H36: 0 | I36: 0 | K36: =IF(ISERROR(+I36+'App.2-CC_NewCGAAP_DepExp_2013'!K36-J36), 0, +I36+'App.2-CC_NewCGAAP_DepExp_2013'!K36-J36) -> 0
A37: 1915 | B37: Office Furniture & Equipment (5 years) | E37: 0 | F37: =IF(D37=0,+'App.2-CC_NewCGAAP_DepExp_2013'!K37,+'App.2-CC_NewCGAAP_DepExp_2013'!K37+((C37*0.5)/D37)) -> 0 | H37: 0 | I37: 0 | K37: =IF(ISERROR(+I37+'App.2-CC_NewCGAAP_DepExp_2013'!K37-J37), 0, +I37+'App.2-CC_NewCGAAP_DepExp_2013'!K37-J37) -> 0
A38: 1920 | B38: Computer Equipment - Hardware | E38: 0 | F38: =IF(D38=0,+'App.2-CC_NewCGAAP_DepExp_2013'!K38,+'App.2-CC_NewCGAAP_DepExp_2013'!K38+((C38*0.5)/D38)) -> 0 | H38: 0 | I38: 0 | K38: =IF(ISERROR(+I38+'App.2-CC_NewCGAAP_DepExp_2013'!K38-J38), 0, +I38+'App.2-CC_NewCGAAP_DepExp_2013'!K38-J38) -> 0
A39: 1920 | B39: Computer Equip.-Hardware(Post Mar. 22/04) | E39: 0 | F39: =IF(D39=0,+'App.2-CC_NewCGAAP_DepExp_2013'!K39,+'App.2-CC_NewCGAAP_DepExp_2013'!K39+((C39*0.5)/D39)) -> 0 | H39: 0 | I39: 0 | K39: =IF(ISERROR(+I39+'App.2-CC_NewCGAAP_DepExp_2013'!K39-J39), 0, +I39+'App.2-CC_NewCGAAP_DepExp_2013'!K39-J39) -> 0
A40: 1920 | B40: Computer Equip.-Hardware(Post Mar. 19/07) | E40: 0 | F40: =IF(D40=0,+'App.2-CC_NewCGAAP_DepExp_2013'!K40,+'App.2-CC_NewCGAAP_DepExp_2013'!K40+((C40*0.5)/D40)) -> 0 | H40: 0 | I40: 0 | K40: =IF(ISERROR(+I40+'App.2-CC_NewCGAAP_DepExp_2013'!K40-J40), 0, +I40+'App.2-CC_NewCGAAP_DepExp_2013'!K40-J40) -> 0
A41: 1930 | B41: Transportation Equipment | E41: 0 | F41: =IF(D41=0,+'App.2-CC_NewCGAAP_DepExp_2013'!K41,+'App.2-CC_NewCGAAP_DepExp_2013'!K41+((C41*0.5)/D41)) -> 0 | H41: 0 | I41: 0 | K41: =IF(ISERROR(+I41+'App.2-CC_NewCGAAP_DepExp_2013'!K41-J41), 0, +I41+'App.2-CC_NewCGAAP_DepExp_2013'!K41-J41) -> 0
A42: 1935 | B42: Stores Equipment | E42: 0 | F42: =IF(D42=0,+'App.2-CC_NewCGAAP_DepExp_2013'!K42,+'App.2-CC_NewCGAAP_DepExp_2013'!K42+((C42*0.5)/D42)) -> 0 | H42: 0 | I42: 0 | K42: =IF(ISERROR(+I42+'App.2-CC_NewCGAAP_DepExp_2013'!K42-J42), 0, +I42+'App.2-CC_NewCGAAP_DepExp_2013'!K42-J42) -> 0
A43: 1940 | B43: Tools, Shop & Garage Equipment | E43: 0 | F43: =IF(D43=0,+'App.2-CC_NewCGAAP_DepExp_2013'!K43,+'App.2-CC_NewCGAAP_DepExp_2013'!K43+((C43*0.5)/D43)) -> 0 | H43: 0 | I43: 0 | K43: =IF(ISERROR(+I43+'App.2-CC_NewCGAAP_DepExp_2013'!K43-J43), 0, +I43+'App.2-CC_NewCGAAP_DepExp_2013'!K43-J43) -> 0
A44: 1945 | B44: Measurement & Testing Equipment | E44: 0 | F44: =IF(D44=0,+'App.2-CC_NewCGAAP_DepExp_2013'!K44,+'App.2-CC_NewCGAAP_DepExp_2013'!K44+((C44*0.5)/D44)) -> 0 | H44: 0 | I44: 0 | K44: =IF(ISERROR(+I44+'App.2-CC_NewCGAAP_DepExp_2013'!K44-J44), 0, +I44+'App.2-CC_NewCGAAP_DepExp_2013'!K44-J44) -> 0
A45: 1950 | B45: Power Operated Equipment | E45: 0 | F45: =IF(D45=0,+'App.2-CC_NewCGAAP_DepExp_2013'!K45,+'App.2-CC_NewCGAAP_DepExp_2013'!K45+((C45*0.5)/D45)) -> 0 | H45: 0 | I45: 0 | K45: =IF(ISERROR(+I45+'App.2-CC_NewCGAAP_DepExp_2013'!K45-J45), 0, +I45+'App.2-CC_NewCGAAP_DepExp_2013'!K45-J45) -> 0
A46: 1955 | B46: Communications Equipment | E46: 0 | F46: =IF(D46=0,+'App.2-CC_NewCGAAP_DepExp_2013'!K46,+'App.2-CC_NewCGAAP_DepExp_2013'!K46+((C46*0.5)/D46)) -> 0 | H46: 0 | I46: 0 | K46: =IF(ISERROR(+I46+'App.2-CC_NewCGAAP_DepExp_2013'!K46-J46), 0, +I46+'App.2-CC_NewCGAAP_DepExp_2013'!K46-J46) -> 0
A47: 1955 | B47: Communication Equipment (Smart Meters) | E47: 0 | F47: =IF(D47=0,+'App.2-CC_NewCGAAP_DepExp_2013'!K47,+'App.2-CC_NewCGAAP_DepExp_2013'!K47+((C47*0.5)/D47)) -> 0 | H47: 0 | I47: 0 | K47: =IF(ISERROR(+I47+'App.2-CC_NewCGAAP_DepExp_2013'!K47-J47), 0, +I47+'App.2-CC_NewCGAAP_DepExp_2013'!K47-J47) -> 0
A48: 1960 | B48: Miscellaneous Equipment | E48: 0 | F48: =IF(D48=0,+'App.2-CC_NewCGAAP_DepExp_2013'!K48,+'App.2-CC_NewCGAAP_DepExp_2013'!K48+((C48*0.5)/D48)) -> 0 | H48: 0 | I48: 0 | K48: =IF(ISERROR(+I48+'App.2-CC_NewCGAAP_DepExp_2013'!K48-J48), 0, +I48+'App.2-CC_NewCGAAP_DepExp_2013'!K48-J48) -> 0
A49: 1970 | B49: Load Management Controls Customer Premises | E49: 0 | F49: =IF(D49=0,+'App.2-CC_NewCGAAP_DepExp_2013'!K49,+'App.2-CC_NewCGAAP_DepExp_2013'!K49+((C49*0.5)/D49)) -> 0 | H49: 0 | I49: 0 | K49: =IF(ISERROR(+I49+'App.2-CC_NewCGAAP_DepExp_2013'!K49-J49), 0, +I49+'App.2-CC_NewCGAAP_DepExp_2013'!K49-J49) -> 0
A50: 1975 | B50: Load Management Controls Utility Premises | E50: 0 | F50: =IF(D50=0,+'App.2-CC_NewCGAAP_DepExp_2013'!K50,+'App.2-CC_NewCGAAP_DepExp_2013'!K50+((C50*0.5)/D50)) -> 0 | H50: 0 | I50: 0 | K50: =IF(ISERROR(+I50+'App.2-CC_NewCGAAP_DepExp_2013'!K50-J50), 0, +I50+'App.2-CC_NewCGAAP_DepExp_2013'!K50-J50) -> 0
A51: 1980 | B51: System Supervisor Equipment | E51: 0 | F51: =IF(D51=0,+'App.2-CC_NewCGAAP_DepExp_2013'!K51,+'App.2-CC_NewCGAAP_DepExp_2013'!K51+((C51*0.5)/D51)) -> 0 | H51: 0 | I51: 0 | K51: =IF(ISERROR(+I51+'App.2-CC_NewCGAAP_DepExp_2013'!K51-J51), 0, +I51+'App.2-CC_NewCGAAP_DepExp_2013'!K51-J51) -> 0
A52: 1985 | B52: Miscellaneous Fixed Assets | E52: 0 | F52: =IF(D52=0,+'App.2-CC_NewCGAAP_DepExp_2013'!K52,+'App.2-CC_NewCGAAP_DepExp_2013'!K52+((C52*0.5)/D52)) -> 0 | H52: 0 | I52: 0 | K52: =IF(ISERROR(+I52+'App.2-CC_NewCGAAP_DepExp_2013'!K52-J52), 0, +I52+'App.2-CC_NewCGAAP_DepExp_2013'!K52-J52) -> 0
A53: 1990 | B53: Other Tangible Property | E53: 0 | F53: =IF(D53=0,+'App.2-CC_NewCGAAP_DepExp_2013'!K53,+'App.2-CC_NewCGAAP_DepExp_2013'!K53+((C53*0.5)/D53)) -> 0 | H53: 0 | I53: 0 | K53: =IF(ISERROR(+I53+'App.2-CC_NewCGAAP_DepExp_2013'!K53-J53), 0, +I53+'App.2-CC_NewCGAAP_DepExp_2013'!K53-J53) -> 0
A54: 1995 | B54: Contributions & Grants | E54: =IF(D54=0,0,1/D54) -> 0 | F54: =IF(D54=0,+'App.2-CC_NewCGAAP_DepExp_2013'!K54,+'App.2-CC_NewCGAAP_DepExp_2013'!K54+((C54*0.5)/D54)) -> 0 | H54: 0 | I54: 0 | K54: =IF(ISERROR(+I54+'App.2-CC_NewCGAAP_DepExp_2013'!K54-J54), 0, +I54+'App.2-CC_NewCGAAP_DepExp_2013'!K54-J54) -> 0
B55: Total | C55: =SUM(C17:C54) -> 0 | F55: =SUM(F17:F54) -> 0 | G55: 0 | H55: 0 | I55: 0 | J55: 0 | K55: 0
B56: Depreciation exp. adj. from gain or loss on the retirement of assets (pool of like assets)
B57: Total Depreciation Expense | F57: =+F56+F55 -> 0
A59: Notes:
A60: 1 | B60: Board policy of the "half-year" rule - the applicant must ensure that additions in the year attract a half-year depreciation expense in the first year. Deviations from this standard practice must be supported in the application.
A61: 2 | B61: The applicant must provide an explanation of material variances in evidence.
A62: 3 | B62: This column refers to the calculated full year depreciation but excludes the depreciation expense on assets fully depreciated during the year. This column is used for the purpose of calculating depreciation expense in the following year on the next worksheet.
A64: General: | B64: Applicants must provide a breakdown of depreciation and amortization expense in the above format for all relevant accounts. Asset Retirement Obligations (AROs), depreciation and accretion expense should be disclosed separately consistent with the Notes of historical Audited Financial Statements.

Sheet App.2-CE_MIFRS_DepExp_2015
G1: File Number: | H1: =EBNUMBER -> EB-2015-0061
G2: Exhibit:
G3: Tab:
G4: Schedule:
G5: Page:
G7: Date:
A9: Appendix 2-CE
A10: Depreciation and Amortization Expense
A11: Assumes the applicant made capitalization and depreciation expense accounting policy changes under CGAAP effective January 1, 2012 and has adopted IFRS for financial reporting purposes effective January 1, 2015.
C13: 2015 | D13: MIFRS
A15: Account | B15: Description | C15: Additions | D15: Years (new additions only) | E15: Depreciation Rate on New Additions | F15: 2015 Depreciation Expense 1 | G15: 2015 Depreciation Expense per Appendix 2-BA Fixed Assets, Column J (l) | H15: Variance 2 | I15: Depreciation Expense on 2015 Full Year Additions | J15: Less Depreciation Expense on Assets Fully Depreciated during the year (o) | K15: 2015 Full Year Depreciation 3
C16: (d) | D16: (f) | E16: (g) = 1 / (f) | F16: (h)=2014 Full Year Depreciation + ((d)*0.5)/(f) | H16: (m) = (h) - (l) | I16: (n)=((d))/(f) | K16: (p) = 2014 Full Year Depreciation + (n) - (o)
A17: 1611 | B17: Computer Software (Formally known as Account 1925) | E17: =IF(D17=0,0,1/D17) -> 0 | F17: =IF(D17=0,'App.2-CD_MIFRS_DepExp_2014'!K17,+'App.2-CD_MIFRS_DepExp_2014'!K17+((C17*0.5)/D17)) -> 0 | H17: =IF(ISERROR(+F17-G17), 0, +F17-G17) -> 0 | I17: =IF(D17=0,0,+(C17)/D17) -> 0 | K17: =IF(ISERROR(+I17+'App.2-CD_MIFRS_DepExp_2014'!K17-J17), 0, +I17+'App.2-CD_MIFRS_DepExp_2014'!K17-J17) -> 0
A18: 1612 | B18: Land Rights (Formally known as Account 1906) | E18: 0 | F18: =IF(D18=0,'App.2-CD_MIFRS_DepExp_2014'!K18,+'App.2-CD_MIFRS_DepExp_2014'!K18+((C18*0.5)/D18)) -> 0 | H18: 0 | I18: =IF(D18=0,0,+(C18)/D18) -> 0 | K18: =IF(ISERROR(+I18+'App.2-CD_MIFRS_DepExp_2014'!K18-J18), 0, +I18+'App.2-CD_MIFRS_DepExp_2014'!K18-J18) -> 0
A19: 1805 | B19: Land | E19: 0 | F19: =IF(D19=0,'App.2-CD_MIFRS_DepExp_2014'!K19,+'App.2-CD_MIFRS_DepExp_2014'!K19+((C19*0.5)/D19)) -> 0 | H19: 0 | I19: 0 | K19: =IF(ISERROR(+I19+'App.2-CD_MIFRS_DepExp_2014'!K19-J19), 0, +I19+'App.2-CD_MIFRS_DepExp_2014'!K19-J19) -> 0
A20: 1808 | B20: Buildings | E20: 0 | F20: =IF(D20=0,'App.2-CD_MIFRS_DepExp_2014'!K20,+'App.2-CD_MIFRS_DepExp_2014'!K20+((C20*0.5)/D20)) -> 0 | H20: 0 | I20: 0 | K20: =IF(ISERROR(+I20+'App.2-CD_MIFRS_DepExp_2014'!K20-J20), 0, +I20+'App.2-CD_MIFRS_DepExp_2014'!K20-J20) -> 0
A21: 1810 | B21: Leasehold Improvements | E21: 0 | F21: =IF(D21=0,'App.2-CD_MIFRS_DepExp_2014'!K21,+'App.2-CD_MIFRS_DepExp_2014'!K21+((C21*0.5)/D21)) -> 0 | H21: 0 | I21: 0 | K21: =IF(ISERROR(+I21+'App.2-CD_MIFRS_DepExp_2014'!K21-J21), 0, +I21+'App.2-CD_MIFRS_DepExp_2014'!K21-J21) -> 0
A22: 1815 | B22: Transformer Station Equipment >50 kV | E22: 0 | F22: =IF(D22=0,'App.2-CD_MIFRS_DepExp_2014'!K22,+'App.2-CD_MIFRS_DepExp_2014'!K22+((C22*0.5)/D22)) -> 0 | H22: 0 | I22: 0 | K22: =IF(ISERROR(+I22+'App.2-CD_MIFRS_DepExp_2014'!K22-J22), 0, +I22+'App.2-CD_MIFRS_DepExp_2014'!K22-J22) -> 0
A23: 1820 | B23: Distribution Station Equipment <50 kV | E23: 0 | F23: =IF(D23=0,'App.2-CD_MIFRS_DepExp_2014'!K23,+'App.2-CD_MIFRS_DepExp_2014'!K23+((C23*0.5)/D23)) -> 0 | H23: 0 | I23: 0 | K23: =IF(ISERROR(+I23+'App.2-CD_MIFRS_DepExp_2014'!K23-J23), 0, +I23+'App.2-CD_MIFRS_DepExp_2014'!K23-J23) -> 0
A24: 1825 | B24: Storage Battery Equipment | E24: 0 | F24: =IF(D24=0,'App.2-CD_MIFRS_DepExp_2014'!K24,+'App.2-CD_MIFRS_DepExp_2014'!K24+((C24*0.5)/D24)) -> 0 | H24: 0 | I24: 0 | K24: =IF(ISERROR(+I24+'App.2-CD_MIFRS_DepExp_2014'!K24-J24), 0, +I24+'App.2-CD_MIFRS_DepExp_2014'!K24-J24) -> 0
A25: 1830 | B25: Poles, Towers & Fixtures | E25: 0 | F25: =IF(D25=0,'App.2-CD_MIFRS_DepExp_2014'!K25,+'App.2-CD_MIFRS_DepExp_2014'!K25+((C25*0.5)/D25)) -> 0 | H25: 0 | I25: 0 | K25: =IF(ISERROR(+I25+'App.2-CD_MIFRS_DepExp_2014'!K25-J25), 0, +I25+'App.2-CD_MIFRS_DepExp_2014'!K25-J25) -> 0
A26: 1835 | B26: Overhead Conductors & Devices | E26: 0 | F26: =IF(D26=0,'App.2-CD_MIFRS_DepExp_2014'!K26,+'App.2-CD_MIFRS_DepExp_2014'!K26+((C26*0.5)/D26)) -> 0 | H26: 0 | I26: 0 | K26: =IF(ISERROR(+I26+'App.2-CD_MIFRS_DepExp_2014'!K26-J26), 0, +I26+'App.2-CD_MIFRS_DepExp_2014'!K26-J26) -> 0
A27: 1840 | B27: Underground Conduit | E27: 0 | F27: =IF(D27=0,'App.2-CD_MIFRS_DepExp_2014'!K27,+'App.2-CD_MIFRS_DepExp_2014'!K27+((C27*0.5)/D27)) -> 0 | H27: 0 | I27: 0 | K27: =IF(ISERROR(+I27+'App.2-CD_MIFRS_DepExp_2014'!K27-J27), 0, +I27+'App.2-CD_MIFRS_DepExp_2014'!K27-J27) -> 0
A28: 1845 | B28: Underground Conductors & Devices | E28: 0 | F28: =IF(D28=0,'App.2-CD_MIFRS_DepExp_2014'!K28,+'App.2-CD_MIFRS_DepExp_2014'!K28+((C28*0.5)/D28)) -> 0 | H28: 0 | I28: 0 | K28: =IF(ISERROR(+I28+'App.2-CD_MIFRS_DepExp_2014'!K28-J28), 0, +I28+'App.2-CD_MIFRS_DepExp_2014'!K28-J28) -> 0
A29: 1850 | B29: Line Transformers | E29: 0 | F29: =IF(D29=0,'App.2-CD_MIFRS_DepExp_2014'!K29,+'App.2-CD_MIFRS_DepExp_2014'!K29+((C29*0.5)/D29)) -> 0 | H29: 0 | I29: 0 | K29: =IF(ISERROR(+I29+'App.2-CD_MIFRS_DepExp_2014'!K29-J29), 0, +I29+'App.2-CD_MIFRS_DepExp_2014'!K29-J29) -> 0
A30: 1855 | B30: Services (Overhead & Underground) | E30: 0 | F30: =IF(D30=0,'App.2-CD_MIFRS_DepExp_2014'!K30,+'App.2-CD_MIFRS_DepExp_2014'!K30+((C30*0.5)/D30)) -> 0 | H30: 0 | I30: 0 | K30: =IF(ISERROR(+I30+'App.2-CD_MIFRS_DepExp_2014'!K30-J30), 0, +I30+'App.2-CD_MIFRS_DepExp_2014'!K30-J30) -> 0
A31: 1860 | B31: Meters | E31: 0 | F31: =IF(D31=0,'App.2-CD_MIFRS_DepExp_2014'!K31,+'App.2-CD_MIFRS_DepExp_2014'!K31+((C31*0.5)/D31)) -> 0 | H31: 0 | I31: 0 | K31: =IF(ISERROR(+I31+'App.2-CD_MIFRS_DepExp_2014'!K31-J31), 0, +I31+'App.2-CD_MIFRS_DepExp_2014'!K31-J31) -> 0
A32: 1860 | B32: Meters (Smart Meters) | E32: 0 | F32: =IF(D32=0,'App.2-CD_MIFRS_DepExp_2014'!K32,+'App.2-CD_MIFRS_DepExp_2014'!K32+((C32*0.5)/D32)) -> 0 | H32: 0 | I32: 0 | K32: =IF(ISERROR(+I32+'App.2-CD_MIFRS_DepExp_2014'!K32-J32), 0, +I32+'App.2-CD_MIFRS_DepExp_2014'!K32-J32) -> 0
A33: 1905 | B33: Land | E33: 0 | F33: =IF(D33=0,'App.2-CD_MIFRS_DepExp_2014'!K33,+'App.2-CD_MIFRS_DepExp_2014'!K33+((C33*0.5)/D33)) -> 0 | H33: 0 | I33: 0 | K33: =IF(ISERROR(+I33+'App.2-CD_MIFRS_DepExp_2014'!K33-J33), 0, +I33+'App.2-CD_MIFRS_DepExp_2014'!K33-J33) -> 0
A34: 1908 | B34: Buildings & Fixtures | E34: 0 | F34: =IF(D34=0,'App.2-CD_MIFRS_DepExp_2014'!K34,+'App.2-CD_MIFRS_DepExp_2014'!K34+((C34*0.5)/D34)) -> 0 | H34: 0 | I34: 0 | K34: =IF(ISERROR(+I34+'App.2-CD_MIFRS_DepExp_2014'!K34-J34), 0, +I34+'App.2-CD_MIFRS_DepExp_2014'!K34-J34) -> 0
A35: 1910 | B35: Leasehold Improvements | E35: 0 | F35: =IF(D35=0,'App.2-CD_MIFRS_DepExp_2014'!K35,+'App.2-CD_MIFRS_DepExp_2014'!K35+((C35*0.5)/D35)) -> 0 | H35: 0 | I35: 0 | K35: =IF(ISERROR(+I35+'App.2-CD_MIFRS_DepExp_2014'!K35-J35), 0, +I35+'App.2-CD_MIFRS_DepExp_2014'!K35-J35) -> 0
A36: 1915 | B36: Office Furniture & Equipment (10 years) | E36: 0 | F36: =IF(D36=0,'App.2-CD_MIFRS_DepExp_2014'!K36,+'App.2-CD_MIFRS_DepExp_2014'!K36+((C36*0.5)/D36)) -> 0 | H36: 0 | I36: 0 | K36: =IF(ISERROR(+I36+'App.2-CD_MIFRS_DepExp_2014'!K36-J36), 0, +I36+'App.2-CD_MIFRS_DepExp_2014'!K36-J36) -> 0
A37: 1915 | B37: Office Furniture & Equipment (5 years) | E37: 0 | F37: =IF(D37=0,'App.2-CD_MIFRS_DepExp_2014'!K37,+'App.2-CD_MIFRS_DepExp_2014'!K37+((C37*0.5)/D37)) -> 0 | H37: 0 | I37: 0 | K37: =IF(ISERROR(+I37+'App.2-CD_MIFRS_DepExp_2014'!K37-J37), 0, +I37+'App.2-CD_MIFRS_DepExp_2014'!K37-J37) -> 0
A38: 1920 | B38: Computer Equipment - Hardware | E38: 0 | F38: =IF(D38=0,'App.2-CD_MIFRS_DepExp_2014'!K38,+'App.2-CD_MIFRS_DepExp_2014'!K38+((C38*0.5)/D38)) -> 0 | H38: 0 | I38: 0 | K38: =IF(ISERROR(+I38+'App.2-CD_MIFRS_DepExp_2014'!K38-J38), 0, +I38+'App.2-CD_MIFRS_DepExp_2014'!K38-J38) -> 0
A39: 1920 | B39: Computer Equip.-Hardware(Post Mar. 22/04) | E39: 0 | F39: =IF(D39=0,'App.2-CD_MIFRS_DepExp_2014'!K39,+'App.2-CD_MIFRS_DepExp_2014'!K39+((C39*0.5)/D39)) -> 0 | H39: 0 | I39: 0 | K39: =IF(ISERROR(+I39+'App.2-CD_MIFRS_DepExp_2014'!K39-J39), 0, +I39+'App.2-CD_MIFRS_DepExp_2014'!K39-J39) -> 0
A40: 1920 | B40: Computer Equip.-Hardware(Post Mar. 19/07) | E40: 0 | F40: =IF(D40=0,'App.2-CD_MIFRS_DepExp_2014'!K40,+'App.2-CD_MIFRS_DepExp_2014'!K40+((C40*0.5)/D40)) -> 0 | H40: 0 | I40: 0 | K40: =IF(ISERROR(+I40+'App.2-CD_MIFRS_DepExp_2014'!K40-J40), 0, +I40+'App.2-CD_MIFRS_DepExp_2014'!K40-J40) -> 0
A41: 1930 | B41: Transportation Equipment | E41: 0 | F41: =IF(D41=0,'App.2-CD_MIFRS_DepExp_2014'!K41,+'App.2-CD_MIFRS_DepExp_2014'!K41+((C41*0.5)/D41)) -> 0 | H41: 0 | I41: 0 | K41: =IF(ISERROR(+I41+'App.2-CD_MIFRS_DepExp_2014'!K41-J41), 0, +I41+'App.2-CD_MIFRS_DepExp_2014'!K41-J41) -> 0
A42: 1935 | B42: Stores Equipment | E42: 0 | F42: =IF(D42=0,'App.2-CD_MIFRS_DepExp_2014'!K42,+'App.2-CD_MIFRS_DepExp_2014'!K42+((C42*0.5)/D42)) -> 0 | H42: 0 | I42: 0 | K42: =IF(ISERROR(+I42+'App.2-CD_MIFRS_DepExp_2014'!K42-J42), 0, +I42+'App.2-CD_MIFRS_DepExp_2014'!K42-J42) -> 0
A43: 1940 | B43: Tools, Shop & Garage Equipment | E43: 0 | F43: =IF(D43=0,'App.2-CD_MIFRS_DepExp_2014'!K43,+'App.2-CD_MIFRS_DepExp_2014'!K43+((C43*0.5)/D43)) -> 0 | H43: 0 | I43: 0 | K43: =IF(ISERROR(+I43+'App.2-CD_MIFRS_DepExp_2014'!K43-J43), 0, +I43+'App.2-CD_MIFRS_DepExp_2014'!K43-J43) -> 0
A44: 1945 | B44: Measurement & Testing Equipment | E44: 0 | F44: =IF(D44=0,'App.2-CD_MIFRS_DepExp_2014'!K44,+'App.2-CD_MIFRS_DepExp_2014'!K44+((C44*0.5)/D44)) -> 0 | H44: 0 | I44: 0 | K44: =IF(ISERROR(+I44+'App.2-CD_MIFRS_DepExp_2014'!K44-J44), 0, +I44+'App.2-CD_MIFRS_DepExp_2014'!K44-J44) -> 0
A45: 1950 | B45: Power Operated Equipment | E45: 0 | F45: =IF(D45=0,'App.2-CD_MIFRS_DepExp_2014'!K45,+'App.2-CD_MIFRS_DepExp_2014'!K45+((C45*0.5)/D45)) -> 0 | H45: 0 | I45: 0 | K45: =IF(ISERROR(+I45+'App.2-CD_MIFRS_DepExp_2014'!K45-J45), 0, +I45+'App.2-CD_MIFRS_DepExp_2014'!K45-J45) -> 0
A46: 1955 | B46: Communications Equipment | E46: 0 | F46: =IF(D46=0,'App.2-CD_MIFRS_DepExp_2014'!K46,+'App.2-CD_MIFRS_DepExp_2014'!K46+((C46*0.5)/D46)) -> 0 | H46: 0 | I46: 0 | K46: =IF(ISERROR(+I46+'App.2-CD_MIFRS_DepExp_2014'!K46-J46), 0, +I46+'App.2-CD_MIFRS_DepExp_2014'!K46-J46) -> 0
A47: 1955 | B47: Communication Equipment (Smart Meters) | E47: 0 | F47: =IF(D47=0,'App.2-CD_MIFRS_DepExp_2014'!K47,+'App.2-CD_MIFRS_DepExp_2014'!K47+((C47*0.5)/D47)) -> 0 | H47: 0 | I47: 0 | K47: =IF(ISERROR(+I47+'App.2-CD_MIFRS_DepExp_2014'!K47-J47), 0, +I47+'App.2-CD_MIFRS_DepExp_2014'!K47-J47) -> 0
A48: 1960 | B48: Miscellaneous Equipment | E48: 0 | F48: =IF(D48=0,'App.2-CD_MIFRS_DepExp_2014'!K48,+'App.2-CD_MIFRS_DepExp_2014'!K48+((C48*0.5)/D48)) -> 0 | H48: 0 | I48: 0 | K48: =IF(ISERROR(+I48+'App.2-CD_MIFRS_DepExp_2014'!K48-J48), 0, +I48+'App.2-CD_MIFRS_DepExp_2014'!K48-J48) -> 0
A49: 1970 | B49: Load Management Controls Customer Premises | E49: 0 | F49: =IF(D49=0,'App.2-CD_MIFRS_DepExp_2014'!K49,+'App.2-CD_MIFRS_DepExp_2014'!K49+((C49*0.5)/D49)) -> 0 | H49: 0 | I49: 0 | K49: =IF(ISERROR(+I49+'App.2-CD_MIFRS_DepExp_2014'!K49-J49), 0, +I49+'App.2-CD_MIFRS_DepExp_2014'!K49-J49) -> 0
A50: 1975 | B50: Load Management Controls Utility Premises | E50: 0 | F50: =IF(D50=0,'App.2-CD_MIFRS_DepExp_2014'!K50,+'App.2-CD_MIFRS_DepExp_2014'!K50+((C50*0.5)/D50)) -> 0 | H50: 0 | I50: 0 | K50: =IF(ISERROR(+I50+'App.2-CD_MIFRS_DepExp_2014'!K50-J50), 0, +I50+'App.2-CD_MIFRS_DepExp_2014'!K50-J50) -> 0
A51: 1980 | B51: System Supervisor Equipment | E51: 0 | F51: =IF(D51=0,'App.2-CD_MIFRS_DepExp_2014'!K51,+'App.2-CD_MIFRS_DepExp_2014'!K51+((C51*0.5)/D51)) -> 0 | H51: 0 | I51: 0 | K51: =IF(ISERROR(+I51+'App.2-CD_MIFRS_DepExp_2014'!K51-J51), 0, +I51+'App.2-CD_MIFRS_DepExp_2014'!K51-J51) -> 0
A52: 1985 | B52: Miscellaneous Fixed Assets | E52: 0 | F52: =IF(D52=0,'App.2-CD_MIFRS_DepExp_2014'!K52,+'App.2-CD_MIFRS_DepExp_2014'!K52+((C52*0.5)/D52)) -> 0 | H52: 0 | I52: 0 | K52: =IF(ISERROR(+I52+'App.2-CD_MIFRS_DepExp_2014'!K52-J52), 0, +I52+'App.2-CD_MIFRS_DepExp_2014'!K52-J52) -> 0
A53: 1990 | B53: Other Tangible Property | E53: 0 | F53: =IF(D53=0,'App.2-CD_MIFRS_DepExp_2014'!K53,+'App.2-CD_MIFRS_DepExp_2014'!K53+((C53*0.5)/D53)) -> 0 | H53: 0 | I53: 0 | K53: =IF(ISERROR(+I53+'App.2-CD_MIFRS_DepExp_2014'!K53-J53), 0, +I53+'App.2-CD_MIFRS_DepExp_2014'!K53-J53) -> 0
A54: 1995 | B54: Contributions & Grants | E54: 0 | F54: =IF(D54=0,'App.2-CD_MIFRS_DepExp_2014'!K54,+'App.2-CD_MIFRS_DepExp_2014'!K54+((C54*0.5)/D54)) -> 0 | H54: 0 | I54: 0 | K54: =IF(ISERROR(+I54+'App.2-CD_MIFRS_DepExp_2014'!K54-J54), 0, +I54+'App.2-CD_MIFRS_DepExp_2014'!K54-J54) -> 0
B55: Total | C55: =SUM(C17:C54) -> 0 | F55: =SUM(F17:F54) -> 0 | G55: =SUM(G17:G54) -> 0 | H55: =SUM(H17:H54) -> 0 | I55: =SUM(I17:I54) -> 0 | J55: 0 | K55: =SUM(K17:K54) -> 0
B56: Depreciation exp. adj. from gain or loss on the retirement of assets (pool of like assets)
B57: Total Depreciation expense to be included in the test year revenue requirement | F57: =SUM(F55:F56) -> 0
A58: Notes:
A59: 1 | B59: Board policy of the "half-year" rule - the applicant must ensure that additions in the year attract a half-year depreciation expense in the first year. Deviations from this standard practice must be supported in the application.
A60: 2 | B60: The applicant must provide an explanation of material variances in evidence.
A61: 3 | B61: This column refers to the calculated full year depreciation but excludes the depreciation expense on assets fully depreciated during the year. This column is used for the purpose of calculating depreciation expense in the following year on the next worksheet.
A63: General: | B63: Applicants must provide a breakdown of depreciation and amortization expense in the above format for all relevant accounts. Asset Retirement Obligations (AROs), depreciation and accretion expense should be disclosed separately consistent with the Notes of historical Audited Financial Statements.

Sheet App.2-CF_MIFRS_DepExp_2016
G1: File Number: | H1: =EBNUMBER -> EB-2015-0061
G2: Exhibit:
G3: Tab:
G4: Schedule:
G5: Page:
G7: Date:
A9: Appendix 2-CF
A10: Depreciation and Amortization Expense
A11: Assumes the applicant made capitalization and depreciation expense accounting policy changes under CGAAP effective January 1, 2012 and has adopted IFRS for financial reporting purposes effective January 1, 2015.
C13: 2016 | D13: MIFRS
A15: Account | B15: Description | C15: Additions | D15: Years (new additions only) | E15: Depreciation Rate on New Additions | F15: 2016 Depreciation Expense 1 | G15: 2016 Depreciation Expense per Appendix 2-BA Fixed Assets, Column J (l) | H15: Variance 2
C16: (d) | D16: (f) | E16: (g) = 1 / (f) | F16: (h)=2015 Full Year Depreciation + ((d)*0.5)/(f) | H16: (m) = (h) - (l)
A17: 1611 | B17: Computer Software (Formally known as Account 1925) | E17: =IF(D17=0,0,1/D17) -> 0 | F17: =IF(D17=0,'App.2-CE_MIFRS_DepExp_2015'!K17,+'App.2-CE_MIFRS_DepExp_2015'!K17+((C17*0.5)/D17)) -> 0 | H17: =IF(ISERROR(+F17-G17), 0, +F17-G17) -> 0
A18: 1612 | B18: Land Rights (Formally known as Account 1906) | E18: 0 | F18: =IF(D18=0,'App.2-CE_MIFRS_DepExp_2015'!K18,+'App.2-CE_MIFRS_DepExp_2015'!K18+((C18*0.5)/D18)) -> 0 | H18: 0
A19: 1805 | B19: Land | E19: 0 | F19: =IF(D19=0,'App.2-CE_MIFRS_DepExp_2015'!K19,+'App.2-CE_MIFRS_DepExp_2015'!K19+((C19*0.5)/D19)) -> 0 | H19: 0
A20: 1808 | B20: Buildings | E20: 0 | F20: =IF(D20=0,'App.2-CE_MIFRS_DepExp_2015'!K20,+'App.2-CE_MIFRS_DepExp_2015'!K20+((C20*0.5)/D20)) -> 0 | H20: 0
A21: 1810 | B21: Leasehold Improvements | E21: 0 | F21: =IF(D21=0,'App.2-CE_MIFRS_DepExp_2015'!K21,+'App.2-CE_MIFRS_DepExp_2015'!K21+((C21*0.5)/D21)) -> 0 | H21: 0
A22: 1815 | B22: Transformer Station Equipment >50 kV | E22: 0 | F22: =IF(D22=0,'App.2-CE_MIFRS_DepExp_2015'!K22,+'App.2-CE_MIFRS_DepExp_2015'!K22+((C22*0.5)/D22)) -> 0 | H22: 0
A23: 1820 | B23: Distribution Station Equipment <50 kV | E23: 0 | F23: =IF(D23=0,'App.2-CE_MIFRS_DepExp_2015'!K23,+'App.2-CE_MIFRS_DepExp_2015'!K23+((C23*0.5)/D23)) -> 0 | H23: 0
A24: 1825 | B24: Storage Battery Equipment | E24: 0 | F24: =IF(D24=0,'App.2-CE_MIFRS_DepExp_2015'!K24,+'App.2-CE_MIFRS_DepExp_2015'!K24+((C24*0.5)/D24)) -> 0 | H24: 0
A25: 1830 | B25: Poles, Towers & Fixtures | E25: 0 | F25: =IF(D25=0,'App.2-CE_MIFRS_DepExp_2015'!K25,+'App.2-CE_MIFRS_DepExp_2015'!K25+((C25*0.5)/D25)) -> 0 | H25: 0
A26: 1835 | B26: Overhead Conductors & Devices | E26: 0 | F26: =IF(D26=0,'App.2-CE_MIFRS_DepExp_2015'!K26,+'App.2-CE_MIFRS_DepExp_2015'!K26+((C26*0.5)/D26)) -> 0 | H26: 0
A27: 1840 | B27: Underground Conduit | E27: 0 | F27: =IF(D27=0,'App.2-CE_MIFRS_DepExp_2015'!K27,+'App.2-CE_MIFRS_DepExp_2015'!K27+((C27*0.5)/D27)) -> 0 | H27: 0
A28: 1845 | B28: Underground Conductors & Devices | E28: 0 | F28: =IF(D28=0,'App.2-CE_MIFRS_DepExp_2015'!K28,+'App.2-CE_MIFRS_DepExp_2015'!K28+((C28*0.5)/D28)) -> 0 | H28: 0
A29: 1850 | B29: Line Transformers | E29: 0 | F29: =IF(D29=0,'App.2-CE_MIFRS_DepExp_2015'!K29,+'App.2-CE_MIFRS_DepExp_2015'!K29+((C29*0.5)/D29)) -> 0 | H29: 0
A30: 1855 | B30: Services (Overhead & Underground) | E30: 0 | F30: =IF(D30=0,'App.2-CE_MIFRS_DepExp_2015'!K30,+'App.2-CE_MIFRS_DepExp_2015'!K30+((C30*0.5)/D30)) -> 0 | H30: 0
A31: 1860 | B31: Meters | E31: 0 | F31: =IF(D31=0,'App.2-CE_MIFRS_DepExp_2015'!K31,+'App.2-CE_MIFRS_DepExp_2015'!K31+((C31*0.5)/D31)) -> 0 | H31: 0
A32: 1860 | B32: Meters (Smart Meters) | E32: 0 | F32: =IF(D32=0,'App.2-CE_MIFRS_DepExp_2015'!K32,+'App.2-CE_MIFRS_DepExp_2015'!K32+((C32*0.5)/D32)) -> 0 | H32: 0
A33: 1905 | B33: Land | E33: 0 | F33: =IF(D33=0,'App.2-CE_MIFRS_DepExp_2015'!K33,+'App.2-CE_MIFRS_DepExp_2015'!K33+((C33*0.5)/D33)) -> 0 | H33: 0
A34: 1908 | B34: Buildings & Fixtures | E34: 0 | F34: =IF(D34=0,'App.2-CE_MIFRS_DepExp_2015'!K34,+'App.2-CE_MIFRS_DepExp_2015'!K34+((C34*0.5)/D34)) -> 0 | H34: 0
A35: 1910 | B35: Leasehold Improvements | E35: 0 | F35: =IF(D35=0,'App.2-CE_MIFRS_DepExp_2015'!K35,+'App.2-CE_MIFRS_DepExp_2015'!K35+((C35*0.5)/D35)) -> 0 | H35: 0
A36: 1915 | B36: Office Furniture & Equipment (10 years) | E36: 0 | F36: =IF(D36=0,'App.2-CE_MIFRS_DepExp_2015'!K36,+'App.2-CE_MIFRS_DepExp_2015'!K36+((C36*0.5)/D36)) -> 0 | H36: 0
A37: 1915 | B37: Office Furniture & Equipment (5 years) | E37: 0 | F37: =IF(D37=0,'App.2-CE_MIFRS_DepExp_2015'!K37,+'App.2-CE_MIFRS_DepExp_2015'!K37+((C37*0.5)/D37)) -> 0 | H37: 0
A38: 1920 | B38: Computer Equipment - Hardware | E38: 0 | F38: =IF(D38=0,'App.2-CE_MIFRS_DepExp_2015'!K38,+'App.2-CE_MIFRS_DepExp_2015'!K38+((C38*0.5)/D38)) -> 0 | H38: 0
A39: 1920 | B39: Computer Equip.-Hardware(Post Mar. 22/04) | E39: 0 | F39: =IF(D39=0,'App.2-CE_MIFRS_DepExp_2015'!K39,+'App.2-CE_MIFRS_DepExp_2015'!K39+((C39*0.5)/D39)) -> 0 | H39: 0
A40: 1920 | B40: Computer Equip.-Hardware(Post Mar. 19/07) | E40: 0 | F40: =IF(D40=0,'App.2-CE_MIFRS_DepExp_2015'!K40,+'App.2-CE_MIFRS_DepExp_2015'!K40+((C40*0.5)/D40)) -> 0 | H40: 0
A41: 1930 | B41: Transportation Equipment | E41: 0 | F41: =IF(D41=0,'App.2-CE_MIFRS_DepExp_2015'!K41,+'App.2-CE_MIFRS_DepExp_2015'!K41+((C41*0.5)/D41)) -> 0 | H41: 0
A42: 1935 | B42: Stores Equipment | E42: 0 | F42: =IF(D42=0,'App.2-CE_MIFRS_DepExp_2015'!K42,+'App.2-CE_MIFRS_DepExp_2015'!K42+((C42*0.5)/D42)) -> 0 | H42: 0
A43: 1940 | B43: Tools, Shop & Garage Equipment | E43: 0 | F43: =IF(D43=0,'App.2-CE_MIFRS_DepExp_2015'!K43,+'App.2-CE_MIFRS_DepExp_2015'!K43+((C43*0.5)/D43)) -> 0 | H43: 0
A44: 1945 | B44: Measurement & Testing Equipment | E44: 0 | F44: =IF(D44=0,'App.2-CE_MIFRS_DepExp_2015'!K44,+'App.2-CE_MIFRS_DepExp_2015'!K44+((C44*0.5)/D44)) -> 0 | H44: 0
A45: 1950 | B45: Power Operated Equipment | E45: 0 | F45: =IF(D45=0,'App.2-CE_MIFRS_DepExp_2015'!K45,+'App.2-CE_MIFRS_DepExp_2015'!K45+((C45*0.5)/D45)) -> 0 | H45: 0
A46: 1955 | B46: Communications Equipment | E46: 0 | F46: =IF(D46=0,'App.2-CE_MIFRS_DepExp_2015'!K46,+'App.2-CE_MIFRS_DepExp_2015'!K46+((C46*0.5)/D46)) -> 0 | H46: 0
A47: 1955 | B47: Communication Equipment (Smart Meters) | E47: 0 | F47: =IF(D47=0,'App.2-CE_MIFRS_DepExp_2015'!K47,+'App.2-CE_MIFRS_DepExp_2015'!K47+((C47*0.5)/D47)) -> 0 | H47: 0
A48: 1960 | B48: Miscellaneous Equipment | E48: 0 | F48: =IF(D48=0,'App.2-CE_MIFRS_DepExp_2015'!K48,+'App.2-CE_MIFRS_DepExp_2015'!K48+((C48*0.5)/D48)) -> 0 | H48: 0
A49: 1970 | B49: Load Management Controls Customer Premises | E49: 0 | F49: =IF(D49=0,'App.2-CE_MIFRS_DepExp_2015'!K49,+'App.2-CE_MIFRS_DepExp_2015'!K49+((C49*0.5)/D49)) -> 0 | H49: 0
A50: 1975 | B50: Load Management Controls Utility Premises | E50: 0 | F50: =IF(D50=0,'App.2-CE_MIFRS_DepExp_2015'!K50,+'App.2-CE_MIFRS_DepExp_2015'!K50+((C50*0.5)/D50)) -> 0 | H50: 0
A51: 1980 | B51: System Supervisor Equipment | E51: 0 | F51: =IF(D51=0,'App.2-CE_MIFRS_DepExp_2015'!K51,+'App.2-CE_MIFRS_DepExp_2015'!K51+((C51*0.5)/D51)) -> 0 | H51: 0
A52: 1985 | B52: Miscellaneous Fixed Assets | E52: 0 | F52: =IF(D52=0,'App.2-CE_MIFRS_DepExp_2015'!K52,+'App.2-CE_MIFRS_DepExp_2015'!K52+((C52*0.5)/D52)) -> 0 | H52: 0
A53: 1990 | B53: Other Tangible Property | E53: 0 | F53: =IF(D53=0,'App.2-CE_MIFRS_DepExp_2015'!K53,+'App.2-CE_MIFRS_DepExp_2015'!K53+((C53*0.5)/D53)) -> 0 | H53: 0
A54: 1995 | B54: Contributions & Grants | E54: 0 | F54: =IF(D54=0,'App.2-CE_MIFRS_DepExp_2015'!K54,+'App.2-CE_MIFRS_DepExp_2015'!K54+((C54*0.5)/D54)) -> 0 | H54: 0
B55: Total | C55: =SUM(C17:C54) -> 0 | F55: =SUM(F17:F54) -> 0 | G55: =SUM(G17:G54) -> 0 | H55: =SUM(H17:H54) -> 0
B56: Depreciation exp. adj. from gain or loss on the retirement of assets (pool of like assets)
B57: Total Depreciation expense to be included in the test year revenue requirement | F57: =SUM(F55:F56) -> 0
A58: Notes:
A59: 1 | B59: Board policy of the "half-year" rule - the applicant must ensure that additions in the year attract a half-year depreciation expense in the first year. Deviations from this standard practice must be supported in the application.
A60: 2 | B60: The applicant must provide an explanation of material variances in evidence.
A63: General: | B63: Applicants must provide a breakdown of depreciation and amortization expense in the above format for all relevant accounts. Asset Retirement Obligations (AROs), depreciation and accretion expense should be disclosed separately consistent with the Notes of historical Audited Financial Statements.

Sheet App.2-CG_OldCGAAP_DepExp_2013
K1: File Number: | L1: =EBNUMBER -> EB-2015-0061
K2: Exhibit: | L2: 4
K3: Attachment: | L3: 4-M
K4: Page: | L4: 1 of 1
K7: Date: | L7: 2015-08-28
A9: Appendix 2-CG
A10: Depreciation and Amortization Expense
B11: Assumes the applicant made capitalization and depreciation expense accounting policy changes under CGAAP effective January 1, 2013 and has adopted IFRS for financial reporting purposes effective January 1, 2015.
C13: Year | D13: 2013 | E13: Former CGAAP
A15: Account | B15: Description | C15: Opening Regulatory Gross PP&E as at Jan 1, 2013 | D15: Less Fully Depreciated | E15: Net for Depreciation | F15: Additions | G15: Total for Depreciation 1 | H15: Years | I15: Depreciation Rate | J15: Depreciation Expense | K15: 2013 Depreciation Expense per Appendix 2-BA Fixed Assets, Column J (l) | L15: Variance 2
C16: (a) | D16: (b) | E16: (c) | F16: (d) | G16: (e) = (c) + ½ x (d) | H16: (f) | I16: (g) = 1 / (f) | J16: (h) = (e) / (f) | L16: (m) = (h) - (l)
A17: 1611 | B17: Computer Software (Formally known as Account 1925) | C17: ='[13]App.2-CG_OldCGAAP_DepExp_2013'!C17 -> 987435.58 | D17: ='[13]App.2-CG_OldCGAAP_DepExp_2013'!D17 -> 628718 | E17: =C17-D17 -> 358717.58 | F17: ='[13]App.2-CG_OldCGAAP_DepExp_2013'!F17 -> 988848.01 | G17: =E17+0.5*F17 -> 853141.585 | H17: ='[13]App.2-CG_OldCGAAP_DepExp_2013'!H17 -> 5 | I17: =IF(H17=0,0,1/H17) -> 0.2 | J17: =IF(H17=0,0,G17/H17) -> 170628.317 | K17: ='[13]App.2-CG_OldCGAAP_DepExp_2013'!K17 -> 181090.6 | L17: =IF(ISERROR(+J17-K17), 0, +J17-K17) -> -10462.283
A18: 1612 | B18: Land Rights (Formally known as Account 1906) | C18: ='[13]App.2-CG_OldCGAAP_DepExp_2013'!C18 -> 0 | D18: ='[13]App.2-CG_OldCGAAP_DepExp_2013'!D18 -> 0 | E18: =C18-D18 -> 0 | F18: ='[13]App.2-CG_OldCGAAP_DepExp_2013'!F18 -> 0 | G18: =E18+0.5*F18 -> 0 | H18: ='[13]App.2-CG_OldCGAAP_DepExp_2013'!H18 -> 0 | I18: 0 | J18: 0 | K18: ='[13]App.2-CG_OldCGAAP_DepExp_2013'!K18 -> 0 | L18: 0
A19: 1805 | B19: Land | C19: ='[13]App.2-CG_OldCGAAP_DepExp_2013'!C19 -> 452262.13 | D19: ='[13]App.2-CG_OldCGAAP_DepExp_2013'!D19 -> 0 | E19: 452262.13 | F19: ='[13]App.2-CG_OldCGAAP_DepExp_2013'!F19 -> 0 | G19: 452262.13 | H19: ='[13]App.2-CG_OldCGAAP_DepExp_2013'!H19 -> 0 | I19: 0 | J19: 0 | K19: ='[13]App.2-CG_OldCGAAP_DepExp_2013'!K19 -> 0 | L19: 0
A20: 1808 | B20: Buildings | C20: ='[13]App.2-CG_OldCGAAP_DepExp_2013'!C20 -> 904693.05 | D20: ='[13]App.2-CG_OldCGAAP_DepExp_2013'!D20 -> 12339 | E20: 892354.05 | F20: ='[13]App.2-CG_OldCGAAP_DepExp_2013'!F20 -> 4517.2 | G20: 894612.65 | H20: ='[13]App.2-CG_OldCGAAP_DepExp_2013'!H20 -> 50 | I20: 0.02 | J20: 17892.253 | K20: ='[13]App.2-CG_OldCGAAP_DepExp_2013'!K20 -> 14397.83 | L20: 3494.423
A21: 1810 | B21: Leasehold Improvements | C21: ='[13]App.2-CG_OldCGAAP_DepExp_2013'!C21 -> 0 | D21: ='[13]App.2-CG_OldCGAAP_DepExp_2013'!D21 -> 0 | E21: 0 | F21: ='[13]App.2-CG_OldCGAAP_DepExp_2013'!F21 -> 0 | G21: 0 | H21: ='[13]App.2-CG_OldCGAAP_DepExp_2013'!H21 -> 0 | I21: 0 | J21: 0 | K21: ='[13]App.2-CG_OldCGAAP_DepExp_2013'!K21 -> 0 | L21: 0
A22: 1815 | B22: Transformer Station Equipment >50 kV | C22: ='[13]App.2-CG_OldCGAAP_DepExp_2013'!C22 -> 0 | D22: ='[13]App.2-CG_OldCGAAP_DepExp_2013'!D22 -> 0 | E22: 0 | F22: ='[13]App.2-CG_OldCGAAP_DepExp_2013'!F22 -> 0 | G22: 0 | H22: ='[13]App.2-CG_OldCGAAP_DepExp_2013'!H22 -> 0 | I22: 0 | J22: 0 | K22: ='[13]App.2-CG_OldCGAAP_DepExp_2013'!K22 -> 0 | L22: 0
A23: 1820 | B23: Distribution Station Equipment <50 kV | C23: ='[13]App.2-CG_OldCGAAP_DepExp_2013'!C23 -> 1625438.87 | D23: ='[13]App.2-CG_OldCGAAP_DepExp_2013'!D23 -> 483592 | E23: 1141846.87 | F23: ='[13]App.2-CG_OldCGAAP_DepExp_2013'!F23 -> 305666.8 | G23: 1294680.27 | H23: ='[13]App.2-CG_OldCGAAP_DepExp_2013'!H23 -> 30 | I23: 0.03333333333 | J23: 43156.009 | K23: ='[13]App.2-CG_OldCGAAP_DepExp_2013'!K23 -> 45546.09 | L23: -2390.081
A24: 1825 | B24: Storage Battery Equipment | C24: ='[13]App.2-CG_OldCGAAP_DepExp_2013'!C24 -> 0 | D24: ='[13]App.2-CG_OldCGAAP_DepExp_2013'!D24 -> 0 | E24: 0 | F24: ='[13]App.2-CG_OldCGAAP_DepExp_2013'!F24 -> 0 | G24: 0 | H24: ='[13]App.2-CG_OldCGAAP_DepExp_2013'!H24 -> 0 | I24: 0 | J24: 0 | K24: ='[13]App.2-CG_OldCGAAP_DepExp_2013'!K24 -> 0 | L24: 0
A25: 1830 | B25: Poles, Towers & Fixtures | C25: ='[13]App.2-CG_OldCGAAP_DepExp_2013'!C25 -> 10183983.28 | D25: ='[13]App.2-CG_OldCGAAP_DepExp_2013'!D25 -> 2217171 | E25: 7966812.28 | F25: ='[13]App.2-CG_OldCGAAP_DepExp_2013'!F25 -> 1139723.69 | G25: 8536674.125 | H25: ='[13]App.2-CG_OldCGAAP_DepExp_2013'!H25 -> 25 | I25: 0.04 | J25: 341466.965 | K25: ='[13]App.2-CG_OldCGAAP_DepExp_2013'!K25 -> 346248.16 | L25: -4781.195
A26: 1835 | B26: Overhead Conductors & Devices | C26: ='[13]App.2-CG_OldCGAAP_DepExp_2013'!C26 -> 28652463.38 | D26: ='[13]App.2-CG_OldCGAAP_DepExp_2013'!D26 -> 1261613 | E26: 27390850.38 | F26: ='[13]App.2-CG_OldCGAAP_DepExp_2013'!F26 -> 1774159 | G26: 28277929.88 | H26: ='[13]App.2-CG_OldCGAAP_DepExp_2013'!H26 -> 25 | I26: 0.04 | J26: 1131117.195 | K26: ='[13]App.2-CG_OldCGAAP_DepExp_2013'!K26 -> 1267332.23 | L26: -136215.0348
A27: 1840 | B27: Underground Conduit | C27: ='[13]App.2-CG_OldCGAAP_DepExp_2013'!C27 -> 3815055.92 | D27: ='[13]App.2-CG_OldCGAAP_DepExp_2013'!D27 -> 991055 | E27: 2824000.92 | F27: ='[13]App.2-CG_OldCGAAP_DepExp_2013'!F27 -> 253768.37 | G27: 2950885.105 | H27: ='[13]App.2-CG_OldCGAAP_DepExp_2013'!H27 -> 25 | I27: 0.04 | J27: 118035.4042 | K27: ='[13]App.2-CG_OldCGAAP_DepExp_2013'!K27 -> 119434.36 | L27: -1398.9558
A28: 1845 | B28: Underground Conductors & Devices | C28: ='[13]App.2-CG_OldCGAAP_DepExp_2013'!C28 -> 19822500.06 | D28: ='[13]App.2-CG_OldCGAAP_DepExp_2013'!D28 -> 939536 | E28: 18882964.06 | F28: ='[13]App.2-CG_OldCGAAP_DepExp_2013'!F28 -> 780328.59 | G28: 19273128.36 | H28: ='[13]App.2-CG_OldCGAAP_DepExp_2013'!H28 -> 25 | I28: 0.04 | J28: 770925.1342 | K28: ='[13]App.2-CG_OldCGAAP_DepExp_2013'!K28 -> 924729.78 | L28: -153804.6458
A29: 1850 | B29: Line Transformers | C29: ='[13]App.2-CG_OldCGAAP_DepExp_2013'!C29 -> 21439194.16 | D29: ='[13]App.2-CG_OldCGAAP_DepExp_2013'!D29 -> 2042481 | E29: 19396713.16 | F29: ='[13]App.2-CG_OldCGAAP_DepExp_2013'!F29 -> 1383195.97 | G29: 20088311.14 | H29: ='[13]App.2-CG_OldCGAAP_DepExp_2013'!H29 -> 25 | I29: 0.04 | J29: 803532.4458 | K29: ='[13]App.2-CG_OldCGAAP_DepExp_2013'!K29 -> 903315.96 | L29: -99783.5142
A30: 1855 | B30: Services (Overhead & Underground) | C30: ='[13]App.2-CG_OldCGAAP_DepExp_2013'!C30 -> 5442112.29 | D30: ='[13]App.2-CG_OldCGAAP_DepExp_2013'!D30 -> 33405 | E30: 5408707.29 | F30: ='[13]App.2-CG_OldCGAAP_DepExp_2013'!F30 -> 664982.34 | G30: 5741198.46 | H30: ='[13]App.2-CG_OldCGAAP_DepExp_2013'!H30 -> 25 | I30: 0.04 | J30: 229647.9384 | K30: ='[13]App.2-CG_OldCGAAP_DepExp_2013'!K30 -> 231949.93 | L30: -2301.9916
A31: 1860 | B31: Meters | C31: ='[13]App.2-CG_OldCGAAP_DepExp_2013'!C31 -> 3940117.29 | D31: ='[13]App.2-CG_OldCGAAP_DepExp_2013'!D31 -> 866849 | E31: 3073268.29 | F31: ='[13]App.2-CG_OldCGAAP_DepExp_2013'!F31 -> 0 | G31: 3073268.29 | H31: ='[13]App.2-CG_OldCGAAP_DepExp_2013'!H31 -> 25 | I31: 0.04 | J31: 122930.7316 | K31: ='[13]App.2-CG_OldCGAAP_DepExp_2013'!K31 -> 162782.83 | L31: -39852.0984
A32: 1860 | B32: Meters (Smart Meters) | C32: ='[13]App.2-CG_OldCGAAP_DepExp_2013'!C32 -> 7874222.47 | D32: ='[13]App.2-CG_OldCGAAP_DepExp_2013'!D32 -> 0 | E32: 7874222.47 | F32: ='[13]App.2-CG_OldCGAAP_DepExp_2013'!F32 -> 731314.46 | G32: 8239879.7 | H32: ='[13]App.2-CG_OldCGAAP_DepExp_2013'!H32 -> 15 | I32: 0.06666666667 | J32: 549325.3133 | K32: ='[13]App.2-CG_OldCGAAP_DepExp_2013'!K32 -> 560729.06 | L32: -11403.74667
A33: 1905 | B33: Land | C33: ='[13]App.2-CG_OldCGAAP_DepExp_2013'!C33 -> 953908.64 | D33: ='[13]App.2-CG_OldCGAAP_DepExp_2013'!D33 -> 0 | E33: 953908.64 | F33: ='[13]App.2-CG_OldCGAAP_DepExp_2013'!F33 -> 0 | G33: 953908.64 | H33: ='[13]App.2-CG_OldCGAAP_DepExp_2013'!H33 -> 0 | I33: 0 | J33: 0 | K33: ='[13]App.2-CG_OldCGAAP_DepExp_2013'!K33 -> 0 | L33: 0
A34: 1908 | B34: Buildings & Fixtures | C34: ='[13]App.2-CG_OldCGAAP_DepExp_2013'!C34 -> 4699524.42 | D34: ='[13]App.2-CG_OldCGAAP_DepExp_2013'!D34 -> 0 | E34: 4699524.42 | F34: ='[13]App.2-CG_OldCGAAP_DepExp_2013'!F34 -> 282556.22 | G34: 4840802.53 | H34: ='[13]App.2-CG_OldCGAAP_DepExp_2013'!H34 -> 25 | I34: 0.04 | J34: 193632.1012 | K34: ='[13]App.2-CG_OldCGAAP_DepExp_2013'!K34 -> 162331.21 | L34: 31300.8912
A35: 1910 | B35: Leasehold Improvements | C35: ='[13]App.2-CG_OldCGAAP_DepExp_2013'!C35 -> 0 | D35: ='[13]App.2-CG_OldCGAAP_DepExp_2013'!D35 -> 0 | E35: 0 | F35: ='[13]App.2-CG_OldCGAAP_DepExp_2013'!F35 -> 0 | G35: 0 | H35: ='[13]App.2-CG_OldCGAAP_DepExp_2013'!H35 -> 0 | I35: 0 | J35: 0 | K35: ='[13]App.2-CG_OldCGAAP_DepExp_2013'!K35 -> 0 | L35: 0
A36: 1915 | B36: Office Furniture & Equipment (10 years) | C36: ='[13]App.2-CG_OldCGAAP_DepExp_2013'!C36 -> 325888.14 | D36: ='[13]App.2-CG_OldCGAAP_DepExp_2013'!D36 -> 132086.03 | E36: 193802.11 | F36: ='[13]App.2-CG_OldCGAAP_DepExp_2013'!F36 -> 14709.35 | G36: 201156.785 | H36: ='[13]App.2-CG_OldCGAAP_DepExp_2013'!H36 -> 10 | I36: 0.1 | J36: 20115.6785 | K36: ='[13]App.2-CG_OldCGAAP_DepExp_2013'!K36 -> 20053.1 | L36: 62.5785
A37: 1915 | B37: Office Furniture & Equipment (5 years) | C37: ='[13]App.2-CG_OldCGAAP_DepExp_2013'!C37 -> 0 | D37: ='[13]App.2-CG_OldCGAAP_DepExp_2013'!D37 -> 0 | E37: 0 | F37: ='[13]App.2-CG_OldCGAAP_DepExp_2013'!F37 -> 0 | G37: 0 | H37: ='[13]App.2-CG_OldCGAAP_DepExp_2013'!H37 -> 0 | I37: 0 | J37: 0 | K37: ='[13]App.2-CG_OldCGAAP_DepExp_2013'!K37 -> 0 | L37: 0
A38: 1920 | B38: Computer Equipment - Hardware | C38: ='[13]App.2-CG_OldCGAAP_DepExp_2013'!C38 -> 325659.3 | D38: ='[13]App.2-CG_OldCGAAP_DepExp_2013'!D38 -> 325659.3 | E38: 0 | F38: ='[13]App.2-CG_OldCGAAP_DepExp_2013'!F38 -> 0 | G38: 0 | H38: ='[13]App.2-CG_OldCGAAP_DepExp_2013'!H38 -> 0 | I38: 0 | J38: 0 | K38: ='[13]App.2-CG_OldCGAAP_DepExp_2013'!K38 -> 0 | L38: 0
A39: 1920 | B39: Computer Equip.-Hardware(Post Mar. 22/04) | C39: ='[13]App.2-CG_OldCGAAP_DepExp_2013'!C39 -> 75616.03 | D39: ='[13]App.2-CG_OldCGAAP_DepExp_2013'!D39 -> 75616.03 | E39: 0 | F39: ='[13]App.2-CG_OldCGAAP_DepExp_2013'!F39 -> 0 | G39: 0 | H39: ='[13]App.2-CG_OldCGAAP_DepExp_2013'!H39 -> 0 | I39: 0 | J39: 0 | K39: ='[13]App.2-CG_OldCGAAP_DepExp_2013'!K39 -> 0 | L39: 0
A40: 1920 | B40: Computer Equip.-Hardware(Post Mar. 19/07) | C40: ='[13]App.2-CG_OldCGAAP_DepExp_2013'!C40 -> 707498.52 | D40: ='[13]App.2-CG_OldCGAAP_DepExp_2013'!D40 -> 169857.67 | E40: 537640.85 | F40: ='[13]App.2-CG_OldCGAAP_DepExp_2013'!F40 -> 84281.37 | G40: 579781.535 | H40: ='[13]App.2-CG_OldCGAAP_DepExp_2013'!H40 -> 5 | I40: 0.2 | J40: 115956.307 | K40: ='[13]App.2-CG_OldCGAAP_DepExp_2013'!K40 -> 155361.25 | L40: -39404.943
A41: 1930 | B41: Transportation Equipment | C41: ='[13]App.2-CG_OldCGAAP_DepExp_2013'!C41 -> 4051931.64 | D41: ='[13]App.2-CG_OldCGAAP_DepExp_2013'!D41 -> 1813181 | E41: 2238750.64 | F41: ='[13]App.2-CG_OldCGAAP_DepExp_2013'!F41 -> 1001939.7 | G41: 2739720.49 | H41: ='[13]App.2-CG_OldCGAAP_DepExp_2013'!H41 -> 8 | I41: 0.125 | J41: 342465.0613 | K41: ='[13]App.2-CG_OldCGAAP_DepExp_2013'!K41 -> 413619.09 | L41: -71154.02875
A42: 1935 | B42: Stores Equipment | C42: ='[13]App.2-CG_OldCGAAP_DepExp_2013'!C42 -> 35460.49 | D42: ='[13]App.2-CG_OldCGAAP_DepExp_2013'!D42 -> 35460.49 | E42: 0 | F42: ='[13]App.2-CG_OldCGAAP_DepExp_2013'!F42 -> 0 | G42: 0 | H42: ='[13]App.2-CG_OldCGAAP_DepExp_2013'!H42 -> 0 | I42: 0 | J42: 0 | K42: ='[13]App.2-CG_OldCGAAP_DepExp_2013'!K42 -> 0 | L42: 0
A43: 1940 | B43: Tools, Shop & Garage Equipment | C43: ='[13]App.2-CG_OldCGAAP_DepExp_2013'!C43 -> 1249435.86 | D43: ='[13]App.2-CG_OldCGAAP_DepExp_2013'!D43 -> 782643 | E43: 466792.86 | F43: ='[13]App.2-CG_OldCGAAP_DepExp_2013'!F43 -> 45832.66 | G43: 489709.19 | H43: ='[13]App.2-CG_OldCGAAP_DepExp_2013'!H43 -> 10 | I43: 0.1 | J43: 48970.919 | K43: ='[13]App.2-CG_OldCGAAP_DepExp_2013'!K43 -> 46936.71 | L43: 2034.209
A44: 1945 | B44: Measurement & Testing Equipment | C44: ='[13]App.2-CG_OldCGAAP_DepExp_2013'!C44 -> 8718.92 | D44: ='[13]App.2-CG_OldCGAAP_DepExp_2013'!D44 -> 8718.92 | E44: 0 | F44: ='[13]App.2-CG_OldCGAAP_DepExp_2013'!F44 -> 0 | G44: 0 | H44: ='[13]App.2-CG_OldCGAAP_DepExp_2013'!H44 -> 0 | I44: 0 | J44: 0 | K44: ='[13]App.2-CG_OldCGAAP_DepExp_2013'!K44 -> 0 | L44: 0
A45: 1950 | B45: Power Operated Equipment | C45: ='[13]App.2-CG_OldCGAAP_DepExp_2013'!C45 -> 0 | D45: ='[13]App.2-CG_OldCGAAP_DepExp_2013'!D45 -> 0 | E45: 0 | F45: ='[13]App.2-CG_OldCGAAP_DepExp_2013'!F45 -> 0 | G45: 0 | H45: ='[13]App.2-CG_OldCGAAP_DepExp_2013'!H45 -> 0 | I45: 0 | J45: 0 | K45: ='[13]App.2-CG_OldCGAAP_DepExp_2013'!K45 -> 0 | L45: 0
A46: 1955 | B46: Communications Equipment | C46: ='[13]App.2-CG_OldCGAAP_DepExp_2013'!C46 -> 5872.56 | D46: ='[13]App.2-CG_OldCGAAP_DepExp_2013'!D46 -> 5872.56 | E46: 0 | F46: ='[13]App.2-CG_OldCGAAP_DepExp_2013'!F46 -> 0 | G46: 0 | H46: ='[13]App.2-CG_OldCGAAP_DepExp_2013'!H46 -> 0 | I46: 0 | J46: 0 | K46: ='[13]App.2-CG_OldCGAAP_DepExp_2013'!K46 -> 0 | L46: 0
A47: 1955 | B47: Communication Equipment (Smart Meters) | C47: ='[13]App.2-CG_OldCGAAP_DepExp_2013'!C47 -> 0 | D47: ='[13]App.2-CG_OldCGAAP_DepExp_2013'!D47 -> 0 | E47: 0 | F47: ='[13]App.2-CG_OldCGAAP_DepExp_2013'!F47 -> 0 | G47: 0 | H47: ='[13]App.2-CG_OldCGAAP_DepExp_2013'!H47 -> 0 | I47: 0 | J47: 0 | K47: ='[13]App.2-CG_OldCGAAP_DepExp_2013'!K47 -> 0 | L47: 0
A48: 1960 | B48: Miscellaneous Equipment | C48: ='[13]App.2-CG_OldCGAAP_DepExp_2013'!C48 -> 0 | D48: ='[13]App.2-CG_OldCGAAP_DepExp_2013'!D48 -> 0 | E48: 0 | F48: ='[13]App.2-CG_OldCGAAP_DepExp_2013'!F48 -> 0 | G48: 0 | H48: ='[13]App.2-CG_OldCGAAP_DepExp_2013'!H48 -> 0 | I48: 0 | J48: 0 | K48: ='[13]App.2-CG_OldCGAAP_DepExp_2013'!K48 -> 0 | L48: 0
A49: 1970 | B49: Load Management Controls - Customer Premises | C49: ='[13]App.2-CG_OldCGAAP_DepExp_2013'!C49 -> 0 | D49: ='[13]App.2-CG_OldCGAAP_DepExp_2013'!D49 -> 0 | E49: 0 | F49: ='[13]App.2-CG_OldCGAAP_DepExp_2013'!F49 -> 0 | G49: 0 | H49: ='[13]App.2-CG_OldCGAAP_DepExp_2013'!H49 -> 0 | I49: 0 | J49: 0 | K49: ='[13]App.2-CG_OldCGAAP_DepExp_2013'!K49 -> 0 | L49: 0
A50: 1975 | B50: Load Management Controls Utility Premises | C50: ='[13]App.2-CG_OldCGAAP_DepExp_2013'!C50 -> 0 | D50: ='[13]App.2-CG_OldCGAAP_DepExp_2013'!D50 -> 0 | E50: 0 | F50: ='[13]App.2-CG_OldCGAAP_DepExp_2013'!F50 -> 0 | G50: 0 | H50: ='[13]App.2-CG_OldCGAAP_DepExp_2013'!H50 -> 0 | I50: 0 | J50: 0 | K50: ='[13]App.2-CG_OldCGAAP_DepExp_2013'!K50 -> 0 | L50: 0
A51: 1980 | B51: System Supervisor Equipment | C51: ='[13]App.2-CG_OldCGAAP_DepExp_2013'!C51 -> 931094.12 | D51: ='[13]App.2-CG_OldCGAAP_DepExp_2013'!D51 -> 492909 | E51: 438185.12 | F51: ='[13]App.2-CG_OldCGAAP_DepExp_2013'!F51 -> 210725.65 | G51: 543547.945 | H51: ='[13]App.2-CG_OldCGAAP_DepExp_2013'!H51 -> 15 | I51: 0.06666666667 | J51: 36236.52967 | K51: ='[13]App.2-CG_OldCGAAP_DepExp_2013'!K51 -> 35781.02 | L51: 455.5096667
A52: 1985 | B52: Miscellaneous Fixed Assets | C52: ='[13]App.2-CG_OldCGAAP_DepExp_2013'!C52 -> 0 | D52: ='[13]App.2-CG_OldCGAAP_DepExp_2013'!D52 -> 0 | E52: 0 | F52: ='[13]App.2-CG_OldCGAAP_DepExp_2013'!F52 -> 0 | G52: 0 | H52: ='[13]App.2-CG_OldCGAAP_DepExp_2013'!H52 -> 0 | I52: 0 | J52: 0 | K52: ='[13]App.2-CG_OldCGAAP_DepExp_2013'!K52 -> 0 | L52: 0
A53: 1990 | B53: Other Tangible Property | C53: ='[13]App.2-CG_OldCGAAP_DepExp_2013'!C53 -> 2364406.77 | D53: ='[13]App.2-CG_OldCGAAP_DepExp_2013'!D53 -> 184232 | E53: 2180174.77 | F53: ='[13]App.2-CG_OldCGAAP_DepExp_2013'!F53 -> 502152.81 | G53: 2431251.175 | H53: ='[13]App.2-CG_OldCGAAP_DepExp_2013'!H53 -> 15 | I53: 0.06666666667 | J53: 162083.4117 | K53: ='[13]App.2-CG_OldCGAAP_DepExp_2013'!K53 -> 183935.89 | L53: -21852.47833
A54: 1995 | B54: Contributions & Grants | C54: ='[13]App.2-CG_OldCGAAP_DepExp_2013'!C54 -> -6594753.11 | D54: ='[13]App.2-CG_OldCGAAP_DepExp_2013'!D54 -> 0 | E54: -6594753.11 | F54: ='[13]App.2-CG_OldCGAAP_DepExp_2013'!F54 -> -777718.12 | G54: -6983612.17 | H54: ='[13]App.2-CG_OldCGAAP_DepExp_2013'!H54 -> 25 | I54: 0.04 | J54: -279344.4868 | K54: ='[13]App.2-CG_OldCGAAP_DepExp_2013'!K54 -> -277238.34 | L54: -2106.1468
B55: Total | C55: =SUM(C17:C54) -> 114279740.8 | D55: =SUM(D17:D54) -> 13502995 | E55: =SUM(E17:E54) -> 100776745.8 | F55: =SUM(F17:F54) -> 9390984.07 | G55: =SUM(G17:G54) -> 105472237.8 | J55: =SUM(J17:J54) -> 4938773.228 | K55: =SUM(K17:K54) -> 5498336.76 | L55: =SUM(L17:L54) -> -559563.5318
A57: Notes:
A59: 1 | B59: Board policy of the "half-year" rule - the applicant must ensure that additions in the year attract a half-year depreciation expense in the first year. Deviations from this standard practice must be supported in the application.
A60: 2 | B60: The applicant must provide an explanation of material variances in evidence.
A62: General | B62: Applicants must provide a breakdown of depreciation and amortization expense in the above format for all relevant accounts. Asset Retirement Obligations (AROs), depreciation and accretion expense should be disclosed separately consistent with the Notes of historical Audited Financial Statements.

Sheet App.2-CH_NewCGAAP_DepExp_2013
N1: File Number: | O1: =EBNUMBER -> EB-2015-0061
N2: Exhibit: | O2: 4
N3: Attachment: | O3: 4-N
N4: Page: | O4: 1 of 1
N7: Date: | O7: 2015-08-28
A9: Appendix 2-CH
A10: Depreciation and Amortization Expense
A11: Assumes the applicant made capitalization and depreciation expense accounting policy changes under CGAAP effective January 1, 2013 and has adopted IFRS for financial reporting purposes effective January 1, 2015.
C13: Year | D13: 2013 | E13: Revised CGAAP
A15: Account | B15: Description | C15: Opening NBV as at Jan 1, 2013 5 | D15: Additions | E15: Average Remaining Life of Opening NBV 4 | F15: Years (new additions only) 3 | G15: Depreciation Rate on New Additions | H15: Depreciation Expense on Opening NBV | I15: Depreciation Expense on Additions 1 | J15: 2013 Depreciation Expense | K15: 2013 Depreciation Expense per Appendix 2-BA Fixed Assets, Column J (l) | L15: Variance 2 | M15: Depreciation Expense on 2013 Full Year Additions | N15: Less Depreciation Expense on Assets Fully Depreciated during the year (o) | O15: 2013 Full Year Depreciation 6
C16: (a) | D16: (d) | E16: (i) | F16: (f) | G16: (g) = 1 / (f) | H16: (j) = (a) / (i) | I16: (h)=((d)*0.5)/(f) | J16: (k) = (j) + (h) | L16: (m) = (k) - (l) | M16: (n) = (d)/(f) | O16: (p) = (j) + (n) - (o)
A17: 1611 | B17: Computer Software (Formally known as Account 1925) (application software) | C17: ='[13]App.2-CH_NewCGAAP_DepExp_2013'!C17 -> 173289.155 | D17: ='[13]App.2-CH_NewCGAAP_DepExp_2013'!D17 -> 988848 | E17: ='[13]App.2-CH_NewCGAAP_DepExp_2013'!E17 -> 1.124 | F17: ='[13]App.2-CH_NewCGAAP_DepExp_2013'!F17 -> 3 | G17: =IF(F17=0,0,1/F17) -> 0.3333333333 | H17: =IF(E17=0,0,+C17/E17) -> 154171.8461 | I17: =IF(F17=0,0,+(D17*0.5)/F17) -> 164808 | J17: =IF(ISERROR(+H17+I17), 0, +H17+I17) -> 318979.8461 | K17: ='[13]App.2-CH_NewCGAAP_DepExp_2013'!K17 -> 484588.67 | L17: =IF(ISERROR(+J17-K17), 0, +J17-K17) -> -165608.8239 | M17: =IF(F17=0,0,+(D17)/F17) -> 329616 | N17: ='[13]App.2-CH_NewCGAAP_DepExp_2013'!N17 -> 133123 | O17: =IF(ISERROR(+M17+H17-N17), 0, +M17+H17-N17) -> 350664.8461
A18: 1611 | B18: Computer Software (Formally known as Account 1925) (systems software) | C18: ='[13]App.2-CH_NewCGAAP_DepExp_2013'!C18 -> 0 | D18: ='[13]App.2-CH_NewCGAAP_DepExp_2013'!D18 -> 0 | E18: ='[13]App.2-CH_NewCGAAP_DepExp_2013'!E18 -> 0 | F18: ='[13]App.2-CH_NewCGAAP_DepExp_2013'!F18 -> 5 | G18: =IF(F18=0,0,1/F18) -> 0.2 | H18: =IF(E18=0,0,+C18/E18) -> 0 | I18: =IF(F18=0,0,+(D18*0.5)/F18) -> 0 | J18: =IF(ISERROR(+H18+I18), 0, +H18+I18) -> 0 | K18: ='[13]App.2-CH_NewCGAAP_DepExp_2013'!K18 -> 0 | L18: =IF(ISERROR(+J18-K18), 0, +J18-K18) -> 0 | M18: =IF(F18=0,0,+(D18)/F18) -> 0 | N18: ='[13]App.2-CH_NewCGAAP_DepExp_2013'!N18 -> 0 | O18: =IF(ISERROR(+M18+H18-N18), 0, +M18+H18-N18) -> 0
A19: 1611 | B19: Computer Software (Formally known as Account 1925) (foundational software) | C19: ='[13]App.2-CH_NewCGAAP_DepExp_2013'!C19 -> 0 | D19: ='[13]App.2-CH_NewCGAAP_DepExp_2013'!D19 -> 0 | E19: ='[13]App.2-CH_NewCGAAP_DepExp_2013'!E19 -> 0 | F19: ='[13]App.2-CH_NewCGAAP_DepExp_2013'!F19 -> 10 | G19: 0.1 | H19: 0 | I19: 0 | J19: 0 | K19: ='[13]App.2-CH_NewCGAAP_DepExp_2013'!K19 -> 0 | L19: 0 | M19: 0 | N19: ='[13]App.2-CH_NewCGAAP_DepExp_2013'!N19 -> 0 | O19: 0
A21: 1612 | B21: Land Rights (Formally known as Account 1906) | C21: ='[13]App.2-CH_NewCGAAP_DepExp_2013'!C20 -> 0 | D21: ='[13]App.2-CH_NewCGAAP_DepExp_2013'!D20 -> 0 | E21: ='[13]App.2-CH_NewCGAAP_DepExp_2013'!E20 -> 0 | F21: ='[13]App.2-CH_NewCGAAP_DepExp_2013'!F20 -> 0 | G21: 0 | H21: 0 | I21: 0 | J21: 0 | K21: ='[13]App.2-CH_NewCGAAP_DepExp_2013'!K20 -> 0 | L21: 0 | M21: 0 | N21: ='[13]App.2-CH_NewCGAAP_DepExp_2013'!N20 -> 0 | O21: 0
A22: 1805 | B22: Land | C22: ='[13]App.2-CH_NewCGAAP_DepExp_2013'!C21 -> 452262.13 | D22: ='[13]App.2-CH_NewCGAAP_DepExp_2013'!D21 -> 0 | E22: ='[13]App.2-CH_NewCGAAP_DepExp_2013'!E21 -> 0 | F22: ='[13]App.2-CH_NewCGAAP_DepExp_2013'!F21 -> 0 | G22: 0 | H22: 0 | I22: 0 | J22: 0 | K22: ='[13]App.2-CH_NewCGAAP_DepExp_2013'!K21 -> 0 | L22: 0 | M22: 0 | N22: ='[13]App.2-CH_NewCGAAP_DepExp_2013'!N21 -> 0 | O22: 0
A23: 1808 | B23: Buildings | C23: ='[13]App.2-CH_NewCGAAP_DepExp_2013'!C22 -> 638864.0815 | D23: ='[13]App.2-CH_NewCGAAP_DepExp_2013'!D22 -> 2749.75 | E23: ='[13]App.2-CH_NewCGAAP_DepExp_2013'!E22 -> 33.13 | F23: ='[13]App.2-CH_NewCGAAP_DepExp_2013'!F22 -> 40 | G23: 0.025 | H23: 19283.55211 | I23: 34.371875 | J23: 19317.92399 | K23: ='[13]App.2-CH_NewCGAAP_DepExp_2013'!K22 -> 9044.84 | L23: 10273.08399 | M23: 68.74375 | N23: ='[13]App.2-CH_NewCGAAP_DepExp_2013'!N22 -> 0 | O23: 19352.29586
A24: 1808 | B24: Buildings (mechanical, roof) | C24: ='[13]App.2-CH_NewCGAAP_DepExp_2013'!C23 -> 51617 | D24: ='[13]App.2-CH_NewCGAAP_DepExp_2013'!D23 -> 0 | E24: ='[13]App.2-CH_NewCGAAP_DepExp_2013'!E23 -> 12.17 | F24: ='[13]App.2-CH_NewCGAAP_DepExp_2013'!F23 -> 20 | G24: 0.05 | H24: 4241.331142 | I24: 0 | J24: 4241.331142 | K24: ='[13]App.2-CH_NewCGAAP_DepExp_2013'!K23 -> 4240 | L24: 1.331142153 | M24: 0 | N24: ='[13]App.2-CH_NewCGAAP_DepExp_2013'!N23 -> 0 | O24: 4241.331142
A25: 1810 | B25: Leasehold Improvements | C25: ='[13]App.2-CH_NewCGAAP_DepExp_2013'!C24 -> 0 | D25: ='[13]App.2-CH_NewCGAAP_DepExp_2013'!D24 -> 0 | E25: ='[13]App.2-CH_NewCGAAP_DepExp_2013'!E24 -> 0 | F25: ='[13]App.2-CH_NewCGAAP_DepExp_2013'!F24 -> 0 | G25: 0 | H25: 0 | I25: 0 | J25: 0 | K25: ='[13]App.2-CH_NewCGAAP_DepExp_2013'!K24 -> 0 | L25: 0 | M25: 0 | N25: ='[13]App.2-CH_NewCGAAP_DepExp_2013'!N24 -> 0 | O25: 0
A26: 1815 | B26: Transformer Station Equipment >50 kV | C26: ='[13]App.2-CH_NewCGAAP_DepExp_2013'!C25 -> 0 | D26: ='[13]App.2-CH_NewCGAAP_DepExp_2013'!D25 -> 0 | E26: ='[13]App.2-CH_NewCGAAP_DepExp_2013'!E25 -> 0 | F26: ='[13]App.2-CH_NewCGAAP_DepExp_2013'!F25 -> 0 | G26: 0 | H26: 0 | I26: 0 | J26: 0 | K26: ='[13]App.2-CH_NewCGAAP_DepExp_2013'!K25 -> 0 | L26: 0 | M26: 0 | N26: ='[13]App.2-CH_NewCGAAP_DepExp_2013'!N25 -> 0 | O26: 0
A27: 1820 | B27: Distribution Station Equipment <50 kV (power transformer, switch gear) | C27: ='[13]App.2-CH_NewCGAAP_DepExp_2013'!C26 -> 182263.62 | D27: ='[13]App.2-CH_NewCGAAP_DepExp_2013'!D26 -> 305666.8 | E27: ='[13]App.2-CH_NewCGAAP_DepExp_2013'!E26 -> 36.02 | F27: ='[13]App.2-CH_NewCGAAP_DepExp_2013'!F26 -> 45 | G27: 0.02222222222 | H27: 5060.067185 | I27: 3396.297778 | J27: 8456.364963 | K27: ='[13]App.2-CH_NewCGAAP_DepExp_2013'!K26 -> 8022.12 | L27: 434.2449627 | M27: 6792.595556 | N27: ='[13]App.2-CH_NewCGAAP_DepExp_2013'!N26 -> 0 | O27: 11852.66274
A28: 1820 | B28: Distribution Station Equipment <50 kV (wholesale meter) | C28: ='[13]App.2-CH_NewCGAAP_DepExp_2013'!C27 -> 574259 | D28: ='[13]App.2-CH_NewCGAAP_DepExp_2013'!D27 -> 0 | E28: ='[13]App.2-CH_NewCGAAP_DepExp_2013'!E27 -> 10.91 | F28: ='[13]App.2-CH_NewCGAAP_DepExp_2013'!F27 -> 15 | G28: 0.06666666667 | H28: 52636.022 | I28: 0 | J28: 52636.022 | K28: ='[13]App.2-CH_NewCGAAP_DepExp_2013'!K27 -> 52653 | L28: -16.97800183 | M28: 0 | N28: ='[13]App.2-CH_NewCGAAP_DepExp_2013'!N27 -> 0 | O28: 52636.022
A29: 1825 | B29: Storage Battery Equipment | C29: ='[13]App.2-CH_NewCGAAP_DepExp_2013'!C28 -> 0 | D29: ='[13]App.2-CH_NewCGAAP_DepExp_2013'!D28 -> 0 | E29: ='[13]App.2-CH_NewCGAAP_DepExp_2013'!E28 -> 0 | F29: ='[13]App.2-CH_NewCGAAP_DepExp_2013'!F28 -> 0 | G29: 0 | H29: 0 | I29: 0 | J29: 0 | K29: ='[13]App.2-CH_NewCGAAP_DepExp_2013'!K28 -> 0 | L29: 0 | M29: 0 | N29: ='[13]App.2-CH_NewCGAAP_DepExp_2013'!N28 -> 0 | O29: 0
A30: 1830 | B30: Poles, Towers & Fixtures (composite poles, concrete poles) | C30: ='[13]App.2-CH_NewCGAAP_DepExp_2013'!C29 -> 451148.62 | D30: ='[13]App.2-CH_NewCGAAP_DepExp_2013'!D29 -> 70312.62 | E30: ='[13]App.2-CH_NewCGAAP_DepExp_2013'!E29 -> 43.96 | F30: ='[13]App.2-CH_NewCGAAP_DepExp_2013'!F29 -> 50 | G30: 0.02 | H30: 10262.70746 | I30: 703.1262 | J30: 10965.83366 | K30: ='[13]App.2-CH_NewCGAAP_DepExp_2013'!K29 -> 10964.09 | L30: 1.743661328 | M30: 1406.2524 | N30: ='[13]App.2-CH_NewCGAAP_DepExp_2013'!N29 -> 0 | O30: 11668.95986
A31: 1830 | B31: Poles, Towers & Fixtures (steel poles) | C31: ='[13]App.2-CH_NewCGAAP_DepExp_2013'!C30 -> 956375 | D31: ='[13]App.2-CH_NewCGAAP_DepExp_2013'!D30 -> 149056 | E31: ='[13]App.2-CH_NewCGAAP_DepExp_2013'!E30 -> 54.02 | F31: ='[13]App.2-CH_NewCGAAP_DepExp_2013'!F30 -> 60 | G31: 0.01666666667 | H31: 17704.09108 | I31: 1242.133333 | J31: 18946.22441 | K31: ='[13]App.2-CH_NewCGAAP_DepExp_2013'!K30 -> 18947 | L31: -0.7755892879 | M31: 2484.266667 | N31: ='[13]App.2-CH_NewCGAAP_DepExp_2013'!N30 -> 0 | O31: 20188.35774
A32: 1830 | B32: Poles, Towers & Fixtures (wood poles) | C32: ='[13]App.2-CH_NewCGAAP_DepExp_2013'!C31 -> 4689221 | D32: ='[13]App.2-CH_NewCGAAP_DepExp_2013'!D31 -> 895687 | E32: ='[13]App.2-CH_NewCGAAP_DepExp_2013'!E31 -> 39.02515865 | F32: ='[13]App.2-CH_NewCGAAP_DepExp_2013'!F31 -> 45 | G32: 0.02222222222 | H32: 120158.9222 | I32: 9952.077778 | J32: 130110.9999 | K32: ='[13]App.2-CH_NewCGAAP_DepExp_2013'!K31 -> 130111 | L32: -6.669553113e-05 | M32: 19904.15556 | N32: ='[13]App.2-CH_NewCGAAP_DepExp_2013'!N31 -> 0 | O32: 140063.0777
A33: 1835 | B33: Overhead Conductors & Devices (composite poles, concrete poles) | C33: ='[13]App.2-CH_NewCGAAP_DepExp_2013'!C32 -> 7030006.6 | D33: ='[13]App.2-CH_NewCGAAP_DepExp_2013'!D32 -> 636009.43 | E33: ='[13]App.2-CH_NewCGAAP_DepExp_2013'!E32 -> 40.22359936 | F33: ='[13]App.2-CH_NewCGAAP_DepExp_2013'!F32 -> 50 | G33: 0.02 | H33: 174773.1857 | I33: 6360.0943 | J33: 181133.28 | K33: ='[13]App.2-CH_NewCGAAP_DepExp_2013'!K32 -> 181133.28 | L33: 3.759778338e-06 | M33: 12720.1886 | N33: ='[13]App.2-CH_NewCGAAP_DepExp_2013'!N32 -> 0 | O33: 187493.3743
A34: 1835 | B34: Overhead Conductors & Devices (steel poles) | C34: ='[13]App.2-CH_NewCGAAP_DepExp_2013'!C33 -> 1334381 | D34: ='[13]App.2-CH_NewCGAAP_DepExp_2013'!D33 -> 112514 | E34: ='[13]App.2-CH_NewCGAAP_DepExp_2013'!E33 -> 50.43 | F34: ='[13]App.2-CH_NewCGAAP_DepExp_2013'!F33 -> 60 | G34: 0.01666666667 | H34: 26460.06345 | I34: 937.6166667 | J34: 27397.68012 | K34: ='[13]App.2-CH_NewCGAAP_DepExp_2013'!K33 -> 27398 | L34: -0.3198790403 | M34: 1875.233333 | N34: ='[13]App.2-CH_NewCGAAP_DepExp_2013'!N33 -> 0 | O34: 28335.29679
A35: 1835 | B35: Overhead Conductors & Devices (wood poles) | C35: ='[13]App.2-CH_NewCGAAP_DepExp_2013'!C34 -> 7313636 | D35: ='[13]App.2-CH_NewCGAAP_DepExp_2013'!D34 -> 764563 | E35: ='[13]App.2-CH_NewCGAAP_DepExp_2013'!E34 -> 35.08852235 | F35: ='[13]App.2-CH_NewCGAAP_DepExp_2013'!F34 -> 45 | G35: 0.02222222222 | H35: 208433.8556 | I35: 8495.144444 | J35: 216929 | K35: ='[13]App.2-CH_NewCGAAP_DepExp_2013'!K34 -> 216929 | L35: 2.705492079e-06 | M35: 16990.28889 | N35: ='[13]App.2-CH_NewCGAAP_DepExp_2013'!N34 -> 0 | O35: 225424.1444
A36: 1840 | B36: Underground Conduit | C36: ='[13]App.2-CH_NewCGAAP_DepExp_2013'!C35 -> 2184458 | D36: ='[13]App.2-CH_NewCGAAP_DepExp_2013'!D35 -> 252738.41 | E36: ='[13]App.2-CH_NewCGAAP_DepExp_2013'!E35 -> 44.67 | F36: ='[13]App.2-CH_NewCGAAP_DepExp_2013'!F35 -> 50 | G36: 0.02 | H36: 48902.12671 | I36: 2527.3841 | J36: 51429.51081 | K36: ='[13]App.2-CH_NewCGAAP_DepExp_2013'!K35 -> 51426.83 | L36: 2.680806962 | M36: 5054.7682 | N36: ='[13]App.2-CH_NewCGAAP_DepExp_2013'!N35 -> 0 | O36: 53956.89491
A37: 1845 | B37: Underground Conductors & Devices | C37: ='[13]App.2-CH_NewCGAAP_DepExp_2013'!C36 -> 3420688 | D37: ='[13]App.2-CH_NewCGAAP_DepExp_2013'!D36 -> 240447.16 | E37: ='[13]App.2-CH_NewCGAAP_DepExp_2013'!E36 -> 4.52 | F37: ='[13]App.2-CH_NewCGAAP_DepExp_2013'!F36 -> 20 | G37: 0.05 | H37: 756789.3805 | I37: 6011.179 | J37: 762800.5595 | K37: ='[13]App.2-CH_NewCGAAP_DepExp_2013'!K36 -> 827071.52 | L37: -64270.96047 | M37: 12022.358 | N37: ='[13]App.2-CH_NewCGAAP_DepExp_2013'!N36 -> 382045 | O37: 386766.7385
A38: 1845 | B38: Underground Conductors & Devices (primary PILC, primary duct) | C38: ='[13]App.2-CH_NewCGAAP_DepExp_2013'!C37 -> 4283315 | D38: ='[13]App.2-CH_NewCGAAP_DepExp_2013'!D37 -> 301995 | E38: ='[13]App.2-CH_NewCGAAP_DepExp_2013'!E37 -> 17.98721377 | F38: ='[13]App.2-CH_NewCGAAP_DepExp_2013'!F37 -> 25 | G38: 0.04 | H38: 238131.1 | I38: 6039.9 | J38: 244171 | K38: ='[13]App.2-CH_NewCGAAP_DepExp_2013'!K37 -> 244171 | L38: -6.514601409e-07 | M38: 12079.8 | N38: ='[13]App.2-CH_NewCGAAP_DepExp_2013'!N37 -> 0 | O38: 250210.9
A39: 1845 | B39: Underground Conductors & Devices (secondary direct) | C39: ='[13]App.2-CH_NewCGAAP_DepExp_2013'!C38 -> 687199 | D39: ='[13]App.2-CH_NewCGAAP_DepExp_2013'!D38 -> 50259 | E39: ='[13]App.2-CH_NewCGAAP_DepExp_2013'!E38 -> 29.08777077 | F39: ='[13]App.2-CH_NewCGAAP_DepExp_2013'!F38 -> 35 | G39: 0.02857142857 | H39: 23625.01429 | I39: 717.9857143 | J39: 24343 | K39: ='[13]App.2-CH_NewCGAAP_DepExp_2013'!K38 -> 24343 | L39: -7.947528502e-08 | M39: 1435.971429 | N39: ='[13]App.2-CH_NewCGAAP_DepExp_2013'!N38 -> 0 | O39: 25060.98571
A40: 1845 | B40: Underground Conductors & Devices (duct bank) | C40: ='[13]App.2-CH_NewCGAAP_DepExp_2013'!C39 -> 799678 | D40: ='[13]App.2-CH_NewCGAAP_DepExp_2013'!D39 -> 52373 | E40: ='[13]App.2-CH_NewCGAAP_DepExp_2013'!E39 -> 39.51 | F40: ='[13]App.2-CH_NewCGAAP_DepExp_2013'!F39 -> 50 | G40: 0.02 | H40: 20239.88864 | I40: 523.73 | J40: 20763.61864 | K40: ='[13]App.2-CH_NewCGAAP_DepExp_2013'!K39 -> 20767 | L40: -3.381364212 | M40: 1047.46 | N40: ='[13]App.2-CH_NewCGAAP_DepExp_2013'!N39 -> 0 | O40: 21287.34864
A41: 1845 | B41: Underground Conductors & Devices (trans switch) | C41: ='[13]App.2-CH_NewCGAAP_DepExp_2013'!C40 -> 144472 | D41: ='[13]App.2-CH_NewCGAAP_DepExp_2013'!D40 -> 10076 | E41: ='[13]App.2-CH_NewCGAAP_DepExp_2013'!E40 -> 44.6 | F41: ='[13]App.2-CH_NewCGAAP_DepExp_2013'!F40 -> 55 | G41: 0.01818181818 | H41: 3239.282511 | I41: 91.6 | J41: 3330.882511 | K41: ='[13]App.2-CH_NewCGAAP_DepExp_2013'!K40 -> 3331 | L41: -0.1174887892 | M41: 183.2 | N41: ='[13]App.2-CH_NewCGAAP_DepExp_2013'!N40 -> 0 | O41: 3422.482511
A42: 1850 | B42: Line Transformers (pad mount, pole mount) | C42: ='[13]App.2-CH_NewCGAAP_DepExp_2013'!C41 -> 9128539.14 | D42: ='[13]App.2-CH_NewCGAAP_DepExp_2013'!D41 -> 1126439.42 | E42: ='[13]App.2-CH_NewCGAAP_DepExp_2013'!E41 -> 29.99119742 | F42: ='[13]App.2-CH_NewCGAAP_DepExp_2013'!F41 -> 40 | G42: 0.025 | H42: 304373.9473 | I42: 14080.49275 | J42: 318454.44 | K42: ='[13]App.2-CH_NewCGAAP_DepExp_2013'!K41 -> 318454.44 | L42: 3.47092282e-07 | M42: 28160.9855 | N42: ='[13]App.2-CH_NewCGAAP_DepExp_2013'!N41 -> 0 | O42: 332534.9328
A43: 1850 | B43: Line Transformers (submersible) | C43: ='[13]App.2-CH_NewCGAAP_DepExp_2013'!C42 -> 1018746 | D43: ='[13]App.2-CH_NewCGAAP_DepExp_2013'!D42 -> 105759 | E43: ='[13]App.2-CH_NewCGAAP_DepExp_2013'!E42 -> 35.24339443 | F43: ='[13]App.2-CH_NewCGAAP_DepExp_2013'!F42 -> 40 | G43: 0.025 | H43: 28906.0125 | I43: 1321.9875 | J43: 30228 | K43: ='[13]App.2-CH_NewCGAAP_DepExp_2013'!K42 -> 30228 | L43: -8.908682503e-08 | M43: 2643.975 | N43: ='[13]App.2-CH_NewCGAAP_DepExp_2013'!N42 -> 0 | O43: 31549.9875
A44: 1850 | B44: Line Transformers (submersible vault) | C44: ='[13]App.2-CH_NewCGAAP_DepExp_2013'!C43 -> 1091044 | D44: ='[13]App.2-CH_NewCGAAP_DepExp_2013'!D43 -> 113264 | E44: ='[13]App.2-CH_NewCGAAP_DepExp_2013'!E43 -> 24.55 | F44: ='[13]App.2-CH_NewCGAAP_DepExp_2013'!F43 -> 35 | G44: 0.02857142857 | H44: 44441.71079 | I44: 1618.057143 | J44: 46059.76794 | K44: ='[13]App.2-CH_NewCGAAP_DepExp_2013'!K43 -> 46060 | L44: -0.2320628455 | M44: 3236.114286 | N44: ='[13]App.2-CH_NewCGAAP_DepExp_2013'!N43 -> 0 | O44: 47677.82508
A45: 1855 | B45: Services (Overhead & Underground) (direct) | C45: ='[13]App.2-CH_NewCGAAP_DepExp_2013'!C44 -> 2375571.98 | D45: ='[13]App.2-CH_NewCGAAP_DepExp_2013'!D44 -> 373271.41 | E45: ='[13]App.2-CH_NewCGAAP_DepExp_2013'!E44 -> 33.18 | F45: ='[13]App.2-CH_NewCGAAP_DepExp_2013'!F44 -> 40 | G45: 0.025 | H45: 71596.50332 | I45: 4665.892625 | J45: 76262.39594 | K45: ='[13]App.2-CH_NewCGAAP_DepExp_2013'!K44 -> 12402.07 | L45: 63860.32594 | M45: 9331.78525 | N45: ='[13]App.2-CH_NewCGAAP_DepExp_2013'!N44 -> 0 | O45: 80928.28857
A46: 1855 | B46: Services (Overhead & Underground) (duct) | C46: ='[13]App.2-CH_NewCGAAP_DepExp_2013'!C45 -> 1566369 | D46: ='[13]App.2-CH_NewCGAAP_DepExp_2013'!D45 -> 270031 | E46: ='[13]App.2-CH_NewCGAAP_DepExp_2013'!E45 -> 43.38 | F46: ='[13]App.2-CH_NewCGAAP_DepExp_2013'!F45 -> 50 | G46: 0.02 | H46: 36108.09129 | I46: 2700.31 | J46: 38808.40129 | K46: ='[13]App.2-CH_NewCGAAP_DepExp_2013'!K45 -> 39017 | L46: -208.5987137 | M46: 5400.62 | N46: ='[13]App.2-CH_NewCGAAP_DepExp_2013'!N45 -> 0 | O46: 41508.71129
A47: 1860 | B47: Meters | C47: ='[13]App.2-CH_NewCGAAP_DepExp_2013'!C46 -> 2429302.89 | D47: ='[13]App.2-CH_NewCGAAP_DepExp_2013'!D46 -> 0 | E47: ='[13]App.2-CH_NewCGAAP_DepExp_2013'!E46 -> 13.95 | F47: ='[13]App.2-CH_NewCGAAP_DepExp_2013'!F46 -> 25 | G47: 0.04 | H47: 174143.5763 | I47: 0 | J47: 174143.5763 | K47: ='[13]App.2-CH_NewCGAAP_DepExp_2013'!K46 -> 174270.45 | L47: -126.8736559 | M47: 0 | N47: ='[13]App.2-CH_NewCGAAP_DepExp_2013'!N46 -> 7420 | O47: 166723.5763
A48: 1860 | B48: Meters (Smart Meters) | C48: ='[13]App.2-CH_NewCGAAP_DepExp_2013'!C47 -> 5317433.89 | D48: ='[13]App.2-CH_NewCGAAP_DepExp_2013'!D47 -> 695392.13 | E48: ='[13]App.2-CH_NewCGAAP_DepExp_2013'!E47 -> 10.77 | F48: ='[13]App.2-CH_NewCGAAP_DepExp_2013'!F47 -> 15 | G48: 0.06666666667 | H48: 493726.4522 | I48: 23179.73767 | J48: 516906.1898 | K48: ='[13]App.2-CH_NewCGAAP_DepExp_2013'!K47 -> 516893.03 | L48: 13.15984865 | M48: 46359.47533 | N48: ='[13]App.2-CH_NewCGAAP_DepExp_2013'!N47 -> 0 | O48: 540085.9275
A49: 1905 | B49: Land | C49: ='[13]App.2-CH_NewCGAAP_DepExp_2013'!C48 -> 953908.64 | D49: ='[13]App.2-CH_NewCGAAP_DepExp_2013'!D48 -> 0 | E49: ='[13]App.2-CH_NewCGAAP_DepExp_2013'!E48 -> 0 | F49: ='[13]App.2-CH_NewCGAAP_DepExp_2013'!F48 -> 0 | G49: 0 | H49: 0 | I49: 0 | J49: 0 | K49: ='[13]App.2-CH_NewCGAAP_DepExp_2013'!K48 -> 0 | L49: 0 | M49: 0 | N49: ='[13]App.2-CH_NewCGAAP_DepExp_2013'!N48 -> 0 | O49: 0
A50: 1908 | B50: Buildings & Fixtures | C50: ='[13]App.2-CH_NewCGAAP_DepExp_2013'!C49 -> 2323237.858 | D50: ='[13]App.2-CH_NewCGAAP_DepExp_2013'!D49 -> 220490.22 | E50: ='[13]App.2-CH_NewCGAAP_DepExp_2013'!E49 -> 42 | F50: ='[13]App.2-CH_NewCGAAP_DepExp_2013'!F49 -> 50 | G50: 0.02 | H50: 55315.18711 | I50: 2204.9022 | J50: 57520.08931 | K50: ='[13]App.2-CH_NewCGAAP_DepExp_2013'!K49 -> 63185.28 | L50: -5665.190693 | M50: 4409.8044 | N50: ='[13]App.2-CH_NewCGAAP_DepExp_2013'!N49 -> 0 | O50: 59724.99151
A51: 1908 | B51: Buildings & Fixtures (mechanical, roof) | C51: ='[13]App.2-CH_NewCGAAP_DepExp_2013'!C50 -> 1217835 | D51: ='[13]App.2-CH_NewCGAAP_DepExp_2013'!D50 -> 62066 | E51: ='[13]App.2-CH_NewCGAAP_DepExp_2013'!E50 -> 12.97247981 | F51: ='[13]App.2-CH_NewCGAAP_DepExp_2013'!F50 -> 20 | G51: 0.05 | H51: 93878.35 | I51: 1551.65 | J51: 95430 | K51: ='[13]App.2-CH_NewCGAAP_DepExp_2013'!K50 -> 95430 | L51: 3.94124072e-07 | M51: 3103.3 | N51: ='[13]App.2-CH_NewCGAAP_DepExp_2013'!N50 -> 0 | O51: 96981.65
A52: 1908 | B52: Buildings & Fixtures (SCADA tower) | C52: ='[13]App.2-CH_NewCGAAP_DepExp_2013'!C51 -> 29530 | D52: ='[13]App.2-CH_NewCGAAP_DepExp_2013'!D51 -> 0 | E52: ='[13]App.2-CH_NewCGAAP_DepExp_2013'!E51 -> 12 | F52: ='[13]App.2-CH_NewCGAAP_DepExp_2013'!F51 -> 25 | G52: 0.04 | H52: 2460.833333 | I52: 0 | J52: 2460.833333 | K52: ='[13]App.2-CH_NewCGAAP_DepExp_2013'!K51 -> 2461 | L52: -0.1666666667 | M52: 0 | N52: ='[13]App.2-CH_NewCGAAP_DepExp_2013'!N51 -> 0 | O52: 2460.833333
A53: 1910 | B53: Leasehold Improvements | C53: ='[13]App.2-CH_NewCGAAP_DepExp_2013'!C52 -> 0 | D53: ='[13]App.2-CH_NewCGAAP_DepExp_2013'!D52 -> 0 | E53: ='[13]App.2-CH_NewCGAAP_DepExp_2013'!E52 -> 0 | F53: ='[13]App.2-CH_NewCGAAP_DepExp_2013'!F52 -> 0 | G53: 0 | H53: 0 | I53: 0 | J53: 0 | K53: ='[13]App.2-CH_NewCGAAP_DepExp_2013'!K52 -> 0 | L53: 0 | M53: 0 | N53: ='[13]App.2-CH_NewCGAAP_DepExp_2013'!N52 -> 0 | O53: 0
A54: 1915 | B54: Office Furniture & Equipment (10 years) | C54: ='[13]App.2-CH_NewCGAAP_DepExp_2013'!C53 -> 123990.88 | D54: ='[13]App.2-CH_NewCGAAP_DepExp_2013'!D53 -> 14709.35 | E54: ='[13]App.2-CH_NewCGAAP_DepExp_2013'!E53 -> 5.96 | F54: ='[13]App.2-CH_NewCGAAP_DepExp_2013'!F53 -> 10 | G54: 0.1 | H54: 20803.83893 | I54: 735.4675 | J54: 21539.30643 | K54: ='[13]App.2-CH_NewCGAAP_DepExp_2013'!K53 -> 21465.33 | L54: 73.97642617 | M54: 1470.935 | N54: ='[13]App.2-CH_NewCGAAP_DepExp_2013'!N53 -> 3757 | O54: 18517.77393
A55: 1915 | B55: Office Furniture & Equipment (5 years) | C55: ='[13]App.2-CH_NewCGAAP_DepExp_2013'!C54 -> 0 | D55: ='[13]App.2-CH_NewCGAAP_DepExp_2013'!D54 -> 0 | E55: ='[13]App.2-CH_NewCGAAP_DepExp_2013'!E54 -> 0 | F55: ='[13]App.2-CH_NewCGAAP_DepExp_2013'!F54 -> 0 | G55: 0 | H55: 0 | I55: 0 | J55: 0 | K55: ='[13]App.2-CH_NewCGAAP_DepExp_2013'!K54 -> 0 | L55: 0 | M55: 0 | N55: ='[13]App.2-CH_NewCGAAP_DepExp_2013'!N54 -> 0 | O55: 0
A56: 1920 | B56: Computer Equipment - Hardware | C56: ='[13]App.2-CH_NewCGAAP_DepExp_2013'!C55 -> 0 | D56: ='[13]App.2-CH_NewCGAAP_DepExp_2013'!D55 -> 0 | E56: ='[13]App.2-CH_NewCGAAP_DepExp_2013'!E55 -> 0 | F56: ='[13]App.2-CH_NewCGAAP_DepExp_2013'!F55 -> 0 | G56: 0 | H56: 0 | I56: 0 | J56: 0 | K56: ='[13]App.2-CH_NewCGAAP_DepExp_2013'!K55 -> 0 | L56: 0 | M56: 0 | N56: ='[13]App.2-CH_NewCGAAP_DepExp_2013'!N55 -> 0 | O56: 0
A57: 1920 | B57: Computer Equip.-Hardware(Post Mar. 22/04) | C57: ='[13]App.2-CH_NewCGAAP_DepExp_2013'!C56 -> 3429.9 | D57: ='[13]App.2-CH_NewCGAAP_DepExp_2013'!D56 -> 0 | E57: ='[13]App.2-CH_NewCGAAP_DepExp_2013'!E56 -> 1 | F57: ='[13]App.2-CH_NewCGAAP_DepExp_2013'!F56 -> 0 | G57: 0 | H57: 3429.9 | I57: 0 | J57: 3429.9 | K57: ='[13]App.2-CH_NewCGAAP_DepExp_2013'!K56 -> 3429.9 | L57: 8.640199667e-12 | M57: 0 | N57: ='[13]App.2-CH_NewCGAAP_DepExp_2013'!N56 -> 3429.9 | O57: 0
A58: 1920 | B58: Computer Equip.-Hardware(Post Mar. 19/07) | C58: ='[13]App.2-CH_NewCGAAP_DepExp_2013'!C57 -> 319476.66 | D58: ='[13]App.2-CH_NewCGAAP_DepExp_2013'!D57 -> 201324.21 | E58: ='[13]App.2-CH_NewCGAAP_DepExp_2013'!E57 -> 1.036007154 | F58: ='[13]App.2-CH_NewCGAAP_DepExp_2013'!F57 -> 3 | G58: 0.3333333333 | H58: 308373.025 | I58: 33554.035 | J58: 341927.06 | K58: ='[13]App.2-CH_NewCGAAP_DepExp_2013'!K57 -> 341927.06 | L58: -2.15577893e-06 | M58: 67108.07 | N58: ='[13]App.2-CH_NewCGAAP_DepExp_2013'!N57 -> 219097.1 | O58: 156383.995
A59: 1930 | B59: Transportation Equipment (van) | C59: ='[13]App.2-CH_NewCGAAP_DepExp_2013'!C58 -> 324226.43 | D59: ='[13]App.2-CH_NewCGAAP_DepExp_2013'!D58 -> 937975.7 | E59: ='[13]App.2-CH_NewCGAAP_DepExp_2013'!E58 -> 4.35 | F59: ='[13]App.2-CH_NewCGAAP_DepExp_2013'!F58 -> 7 | G59: 0.1428571429 | H59: 74534.81149 | I59: 66998.26429 | J59: 141533.0758 | K59: ='[13]App.2-CH_NewCGAAP_DepExp_2013'!K58 -> 140770.94 | L59: 762.13578 | M59: 133996.5286 | N59: ='[13]App.2-CH_NewCGAAP_DepExp_2013'!N58 -> 0 | O59: 208531.3401
A60: 1930 | B60: Transportation Equipment (trucks, trailers) | C60: ='[13]App.2-CH_NewCGAAP_DepExp_2013'!C59 -> 904346 | D60: ='[13]App.2-CH_NewCGAAP_DepExp_2013'!D59 -> 63964 | E60: ='[13]App.2-CH_NewCGAAP_DepExp_2013'!E59 -> 5.41 | F60: ='[13]App.2-CH_NewCGAAP_DepExp_2013'!F59 -> 10 | G60: 0.1 | H60: 167161.9224 | I60: 3198.2 | J60: 170360.1224 | K60: ='[13]App.2-CH_NewCGAAP_DepExp_2013'!K59 -> 169400 | L60: 960.122366 | M60: 6396.4 | N60: ='[13]App.2-CH_NewCGAAP_DepExp_2013'!N59 -> 0 | O60: 173558.3224
A61: 1935 | B61: Stores Equipment | C61: ='[13]App.2-CH_NewCGAAP_DepExp_2013'!C60 -> 0 | D61: ='[13]App.2-CH_NewCGAAP_DepExp_2013'!D60 -> 0 | E61: ='[13]App.2-CH_NewCGAAP_DepExp_2013'!E60 -> 0 | F61: ='[13]App.2-CH_NewCGAAP_DepExp_2013'!F60 -> 0 | G61: 0 | H61: 0 | I61: 0 | J61: 0 | K61: ='[13]App.2-CH_NewCGAAP_DepExp_2013'!K60 -> 0 | L61: 0 | M61: 0 | N61: ='[13]App.2-CH_NewCGAAP_DepExp_2013'!N60 -> 0 | O61: 0
A62: 1940 | B62: Tools, Shop & Garage Equipment | C62: ='[13]App.2-CH_NewCGAAP_DepExp_2013'!C61 -> 262488.25 | D62: ='[13]App.2-CH_NewCGAAP_DepExp_2013'!D61 -> 45832.66 | E62: ='[13]App.2-CH_NewCGAAP_DepExp_2013'!E61 -> 1.66 | F62: ='[13]App.2-CH_NewCGAAP_DepExp_2013'!F61 -> 5 | G62: 0.2 | H62: 158125.4518 | I62: 4583.266 | J62: 162708.7178 | K62: ='[13]App.2-CH_NewCGAAP_DepExp_2013'!K61 -> 160047.16 | L62: 2661.557807 | M62: 9166.532 | N62: ='[13]App.2-CH_NewCGAAP_DepExp_2013'!N61 -> 92389 | O62: 74902.98381
A63: 1945 | B63: Measurement & Testing Equipment | C63: ='[13]App.2-CH_NewCGAAP_DepExp_2013'!C62 -> -0.01 | D63: ='[13]App.2-CH_NewCGAAP_DepExp_2013'!D62 -> 0 | E63: ='[13]App.2-CH_NewCGAAP_DepExp_2013'!E62 -> 0 | F63: ='[13]App.2-CH_NewCGAAP_DepExp_2013'!F62 -> 0 | G63: 0 | H63: 0 | I63: 0 | J63: 0 | K63: ='[13]App.2-CH_NewCGAAP_DepExp_2013'!K62 -> 0 | L63: 0 | M63: 0 | N63: ='[13]App.2-CH_NewCGAAP_DepExp_2013'!N62 -> 0 | O63: 0
A64: 1950 | B64: Power Operated Equipment | C64: ='[13]App.2-CH_NewCGAAP_DepExp_2013'!C63 -> 0 | D64: ='[13]App.2-CH_NewCGAAP_DepExp_2013'!D63 -> 0 | E64: ='[13]App.2-CH_NewCGAAP_DepExp_2013'!E63 -> 0 | F64: ='[13]App.2-CH_NewCGAAP_DepExp_2013'!F63 -> 0 | G64: 0 | H64: 0 | I64: 0 | J64: 0 | K64: ='[13]App.2-CH_NewCGAAP_DepExp_2013'!K63 -> 0 | L64: 0 | M64: 0 | N64: ='[13]App.2-CH_NewCGAAP_DepExp_2013'!N63 -> 0 | O64: 0
A65: 1955 | B65: Communications Equipment | C65: ='[13]App.2-CH_NewCGAAP_DepExp_2013'!C64 -> 0 | D65: ='[13]App.2-CH_NewCGAAP_DepExp_2013'!D64 -> 0 | E65: ='[13]App.2-CH_NewCGAAP_DepExp_2013'!E64 -> 0 | F65: ='[13]App.2-CH_NewCGAAP_DepExp_2013'!F64 -> 0 | G65: 0 | H65: 0 | I65: 0 | J65: 0 | K65: ='[13]App.2-CH_NewCGAAP_DepExp_2013'!K64 -> 0 | L65: 0 | M65: 0 | N65: ='[13]App.2-CH_NewCGAAP_DepExp_2013'!N64 -> 0 | O65: 0
A66: 1955 | B66: Communication Equipment (Smart Meters) | C66: ='[13]App.2-CH_NewCGAAP_DepExp_2013'!C65 -> 0 | D66: ='[13]App.2-CH_NewCGAAP_DepExp_2013'!D65 -> 0 | E66: ='[13]App.2-CH_NewCGAAP_DepExp_2013'!E65 -> 0 | F66: ='[13]App.2-CH_NewCGAAP_DepExp_2013'!F65 -> 0 | G66: 0 | H66: 0 | I66: 0 | J66: 0 | K66: ='[13]App.2-CH_NewCGAAP_DepExp_2013'!K65 -> 0 | L66: 0 | M66: 0 | N66: ='[13]App.2-CH_NewCGAAP_DepExp_2013'!N65 -> 0 | O66: 0
A67: 1960 | B67: Miscellaneous Equipment | C67: ='[13]App.2-CH_NewCGAAP_DepExp_2013'!C66 -> 0 | D67: ='[13]App.2-CH_NewCGAAP_DepExp_2013'!D66 -> 0 | E67: ='[13]App.2-CH_NewCGAAP_DepExp_2013'!E66 -> 0 | F67: ='[13]App.2-CH_NewCGAAP_DepExp_2013'!F66 -> 0 | G67: 0 | H67: 0 | I67: 0 | J67: 0 | K67: ='[13]App.2-CH_NewCGAAP_DepExp_2013'!K66 -> 0 | L67: 0 | M67: 0 | N67: ='[13]App.2-CH_NewCGAAP_DepExp_2013'!N66 -> 0 | O67: 0
A68: 1970 | B68: Load Management Controls - Customer Premises | C68: ='[13]App.2-CH_NewCGAAP_DepExp_2013'!C67 -> 0 | D68: ='[13]App.2-CH_NewCGAAP_DepExp_2013'!D67 -> 0 | E68: ='[13]App.2-CH_NewCGAAP_DepExp_2013'!E67 -> 0 | F68: ='[13]App.2-CH_NewCGAAP_DepExp_2013'!F67 -> 0 | G68: 0 | H68: 0 | I68: 0 | J68: 0 | K68: ='[13]App.2-CH_NewCGAAP_DepExp_2013'!K67 -> 0 | L68: 0 | M68: 0 | N68: ='[13]App.2-CH_NewCGAAP_DepExp_2013'!N67 -> 0 | O68: 0
A69: 1975 | B69: Load Management Controls Utility Premises | C69: ='[13]App.2-CH_NewCGAAP_DepExp_2013'!C68 -> 0 | D69: ='[13]App.2-CH_NewCGAAP_DepExp_2013'!D68 -> 0 | E69: ='[13]App.2-CH_NewCGAAP_DepExp_2013'!E68 -> 0 | F69: ='[13]App.2-CH_NewCGAAP_DepExp_2013'!F68 -> 0 | G69: 0 | H69: 0 | I69: 0 | J69: 0 | K69: ='[13]App.2-CH_NewCGAAP_DepExp_2013'!K68 -> 0 | L69: 0 | M69: 0 | N69: ='[13]App.2-CH_NewCGAAP_DepExp_2013'!N68 -> 0 | O69: 0
A70: 1980 | B70: System Supervisor Equipment | C70: ='[13]App.2-CH_NewCGAAP_DepExp_2013'!C69 -> 240202.81 | D70: ='[13]App.2-CH_NewCGAAP_DepExp_2013'!D69 -> 92195.1 | E70: ='[13]App.2-CH_NewCGAAP_DepExp_2013'!E69 -> 13.08 | F70: ='[13]App.2-CH_NewCGAAP_DepExp_2013'!F69 -> 20 | G70: 0.05 | H70: 18364.1292 | I70: 2304.8775 | J70: 20669.0067 | K70: ='[13]App.2-CH_NewCGAAP_DepExp_2013'!K69 -> 20672.79 | L70: -3.783295107 | M70: 4609.755 | N70: ='[13]App.2-CH_NewCGAAP_DepExp_2013'!N69 -> 0 | O70: 22973.8842
A71: 1985 | B71: Miscellaneous Fixed Assets | C71: ='[13]App.2-CH_NewCGAAP_DepExp_2013'!C70 -> 0 | D71: ='[13]App.2-CH_NewCGAAP_DepExp_2013'!D70 -> 0 | E71: ='[13]App.2-CH_NewCGAAP_DepExp_2013'!E70 -> 0 | F71: ='[13]App.2-CH_NewCGAAP_DepExp_2013'!F70 -> 0 | G71: 0 | H71: 0 | I71: 0 | J71: 0 | K71: ='[13]App.2-CH_NewCGAAP_DepExp_2013'!K70 -> 0 | L71: 0 | M71: 0 | N71: ='[13]App.2-CH_NewCGAAP_DepExp_2013'!N70 -> 0 | O71: 0
A72: 1990 | B72: Other Tangible Property | C72: ='[13]App.2-CH_NewCGAAP_DepExp_2013'!C71 -> 874848.39 | D72: ='[13]App.2-CH_NewCGAAP_DepExp_2013'!D71 -> 502152.81 | E72: ='[13]App.2-CH_NewCGAAP_DepExp_2013'!E71 -> 5.007759795 | F72: ='[13]App.2-CH_NewCGAAP_DepExp_2013'!F71 -> 15 | G72: 0.06666666667 | H72: 174698.553 | I72: 16738.427 | J72: 191436.98 | K72: ='[13]App.2-CH_NewCGAAP_DepExp_2013'!K71 -> 191436.98 | L72: -7.537892088e-09 | M72: 33476.854 | N72: ='[13]App.2-CH_NewCGAAP_DepExp_2013'!N71 -> 17974 | O72: 190201.407
A73: 1995 | B73: Contributions & Grants | C73: ='[13]App.2-CH_NewCGAAP_DepExp_2013'!C72 -> -4644062.44 | D73: ='[13]App.2-CH_NewCGAAP_DepExp_2013'!D72 -> -777719.12 | E73: ='[13]App.2-CH_NewCGAAP_DepExp_2013'!E72 -> 17.75 | F73: ='[13]App.2-CH_NewCGAAP_DepExp_2013'!F72 -> 25 | G73: 0.04 | H73: -261637.3206 | I73: -15554.3824 | J73: -277191.703 | K73: ='[13]App.2-CH_NewCGAAP_DepExp_2013'!K72 -> -277238.34 | L73: 46.63703662 | M73: -31108.7648 | N73: ='[13]App.2-CH_NewCGAAP_DepExp_2013'!N72 -> 0 | O73: -292746.0854
B74: Total | C74: =SUM(C17:C73) -> 61227598.48 | D74: =SUM(D17:D73) -> 8880443.06 | H74: =SUM(H17:H73) -> 3852917.412 | I74: 375721.826 | J74: 4228639.238 | K74: 4385454.44 | L74: -156815.2021 | M74: 751443.6519 | N74: 859235 | O74: 3745126.064
A76: Notes:
A78: 1 | B78: Board policy of the "half-year" rule - the applicant must ensure that additions in the year attract a half-year depreciation expense in the first year. Deviations from this standard practice must be supported in the application.
A79: 2 | B79: The applicant must provide an explanation of material variances in evidence.
A80: 3 | B80: The applicant should ensure that the years for new additions of assets are the asset useful lives determined by management in accordance with the Board's regulatory accounting policies. The capitalization and depreciation expense accounting changes should be implemented consistent with the Board’s regulatory accounting policies as set out for MIFRS as contained in the Report of the Board, Transition to International Financial Reporting Standards, EB-2008-0408, the Kinectrics Report, and the Revised 2012 Accounting Procedures Handbook for Electricity Distributors.
A81: 4 | B81: A recalculation should be performed to determine the average remaining life of opening balance of assets (i.e. excluding 2013 additions) under the change in policies under CGAAP. For example, Asset A had a useful life of 20 years under CGAAP without the change in policies. On January 1, 2013, the effective date of the changes in policies, Asset A was 3 years depreciated. As a result, Asset A would have a remaining service life of 17 years (20 years less 3 years) as of January 1, 2013. Due to making the change in policies under CGAAP, management re-assessed the asset useful lives and concluded that the revised useful life of Asset A is now 30 years. Therefore, the average remaining useful life of the opening balance of Asset A is determined to be 27 years (30 years less 3 years) under the revised CGAAP as of January 1, 2013.
A82: 5 | B82: NBV must exclude assets still on the books but which have been fully amortized or depreciated.
A83: 6 | B83: This column refers to the calculated full year depreciation but excludes the depreciation expense on assets fully depreciated during the year. This column is used for the purpose of calculating depreciation expense in the following year on the next worksheet.
A85: General: | B85: Applicants must provide a breakdown of depreciation and amortization expense in the above format for all relevant accounts. Asset Retirement Obligations (AROs), depreciation and accretion expense should be disclosed separately consistent with the Notes of historical Audited Financial Statements.

Sheet App.2-CI_MIFRS_DepExp_2014
J1: File Number: | K1: =EBNUMBER -> EB-2015-0061
J2: Exhibit: | K2: 4
J3: Attachment: | K3: 4-O
J4: Page: | K4: 1 of 1
J7: Date: | K7: 2015-08-28
A9: Appendix 2-CI
A10: Depreciation and Amortization Expense
A11: Assumes the applicant made capitalization and depreciation expense accounting policy changes under CGAAP effective January 1, 2013 and has adopted IFRS for financial reporting purposes effective January 1, 2015.
E13: 2014 | F13: MIFRS
A15: Account | B15: Description | C15: Additions | D15: Years (new additions only) | E15: Depreciation Rate on New Additions | F15: 2014 Depreciation Expense 1 | G15: 2014 Depreciation Expense per Apppendix 2-BA Fixed Assets, Column J (l) | H15: Variance 2 | I15: Depreciation Expense on 2014 Full Year Additions | J15: Less Depreciation Expense on Assets Fully Depreciated during the year (o) | K15: 2014 Full Year Depreciation 3
C16: (d) | D16: (f) | E16: (g) = 1 / (f) | F16: (h)=2013 Full Year Deprecation + ((d)*0.5)/(f) | H16: (m) = (h) - (l) | I16: (n)=((d))/(f) | K16: (p) = 2013 Full Year Depreciation + (n) - (o)
A17: 1611 | B17: Computer Software (Formally known as Account 1925) (application software) | C17: ='[13]App.2-CI_MIFRS_DepExp_2014'!C17 -> -988847.68 | D17: ='[13]App.2-CI_MIFRS_DepExp_2014'!D17 -> 3 | E17: =IF(D17=0,0,1/D17) -> 0.3333333333 | F17: =IF(D17=0,'App.2-CH_NewCGAAP_DepExp_2013'!O17,'App.2-CH_NewCGAAP_DepExp_2013'!O17+(C17/D17)) -> 21048.95275 | G17: ='[13]App.2-CI_MIFRS_DepExp_2014'!G17 -> -141211.15 | H17: =IF(ISERROR(+F17-G17), 0, +F17-G17) -> 162260.1028 | I17: 0 | J17: ='[13]App.2-CI_MIFRS_DepExp_2014'!J17 -> 21849 | K17: =IF(F17-J17<0,0,F17-J17) -> 0
A18: 1611 | B18: Computer Software (Formally known as Account 1925) (systems software) - no half-year (assets were transferred from ESI) | C18: ='[13]App.2-CI_MIFRS_DepExp_2014'!C18 -> 1084949 | D18: ='[13]App.2-CI_MIFRS_DepExp_2014'!D18 -> 5 | E18: =IF(D18=0,0,1/D18) -> 0.2 | F18: =IF(D18=0,'App.2-CH_NewCGAAP_DepExp_2013'!O18,'App.2-CH_NewCGAAP_DepExp_2013'!O18+(C18/D18)) -> 216989.8 | G18: ='[13]App.2-CI_MIFRS_DepExp_2014'!G18 -> 216990 | H18: =IF(ISERROR(+F18-G18), 0, +F18-G18) -> -0.2 | I18: =IF(D18=0,0,+(C18)/D18) -> 216989.8 | J18: ='[13]App.2-CI_MIFRS_DepExp_2014'!J18 -> 0 | K18: =IF(ISERROR(+I18+'App.2-CH_NewCGAAP_DepExp_2013'!O18-J18), 0, +I18+'App.2-CH_NewCGAAP_DepExp_2013'!O18-J18) -> 216989.8
A19: 1611 | B19: Computer Software (Formally known as Account 1925) (foundational software) | C19: ='[13]App.2-CI_MIFRS_DepExp_2014'!C19 -> 480087 | D19: ='[13]App.2-CI_MIFRS_DepExp_2014'!D19 -> 10 | E19: 0.1 | F19: =IF(D19=0,'App.2-CH_NewCGAAP_DepExp_2013'!O19,'App.2-CH_NewCGAAP_DepExp_2013'!O19+(C19*0.5/D19)) -> 24004.35 | G19: ='[13]App.2-CI_MIFRS_DepExp_2014'!G19 -> 24004 | H19: 0.35 | I19: 48008.7 | J19: ='[13]App.2-CI_MIFRS_DepExp_2014'!J19 -> 0 | K19: =IF(ISERROR(+I19+'App.2-CH_NewCGAAP_DepExp_2013'!O19-J19), 0, +I19+'App.2-CH_NewCGAAP_DepExp_2013'!O19-J19) -> 48008.7
A20: 1611 | B20: Computer Software (Formally known as Account 1925) (foundational software) - no half-year (correction of PY error) | C20: ='[13]App.2-CI_MIFRS_DepExp_2014'!C20 -> 988848 | D20: ='[13]App.2-CI_MIFRS_DepExp_2014'!D20 -> 10 | E20: 0.1 | F20: =IF(D20=0,'App.2-CH_NewCGAAP_DepExp_2013'!O20,'App.2-CH_NewCGAAP_DepExp_2013'!O20+(C20/D20)) -> 98884.8 | G20: ='[13]App.2-CI_MIFRS_DepExp_2014'!G20 -> 98885 | H20: -0.2 | I20: 98884.8 | J20: ='[13]App.2-CI_MIFRS_DepExp_2014'!J20 -> 0 | K20: =IF(ISERROR(+I20+'App.2-CH_NewCGAAP_DepExp_2013'!O20-J20), 0, +I20+'App.2-CH_NewCGAAP_DepExp_2013'!O20-J20) -> 98884.8
A21: 1612 | B21: Land Rights (Formally known as Account 1906) | C21: ='[13]App.2-CI_MIFRS_DepExp_2014'!C21 -> 0 | D21: ='[13]App.2-CI_MIFRS_DepExp_2014'!D21 -> 0 | E21: 0 | F21: =IF(D21=0,+'App.2-CH_NewCGAAP_DepExp_2013'!O21,+'App.2-CH_NewCGAAP_DepExp_2013'!O21+((C21*0.5)/D21)) -> 0 | G21: ='[13]App.2-CI_MIFRS_DepExp_2014'!G21 -> 0 | H21: 0 | I21: 0 | J21: ='[13]App.2-CI_MIFRS_DepExp_2014'!J21 -> 0 | K21: =IF(ISERROR(+I21+'App.2-CH_NewCGAAP_DepExp_2013'!O21-J21), 0, +I21+'App.2-CH_NewCGAAP_DepExp_2013'!O21-J21) -> 0
A22: 1805 | B22: Land | C22: ='[13]App.2-CI_MIFRS_DepExp_2014'!C22 -> 0 | D22: ='[13]App.2-CI_MIFRS_DepExp_2014'!D22 -> 0 | E22: 0 | F22: =IF(D22=0,+'App.2-CH_NewCGAAP_DepExp_2013'!O22,+'App.2-CH_NewCGAAP_DepExp_2013'!O22+((C22*0.5)/D22)) -> 0 | G22: ='[13]App.2-CI_MIFRS_DepExp_2014'!G22 -> 0 | H22: 0 | I22: 0 | J22: ='[13]App.2-CI_MIFRS_DepExp_2014'!J22 -> 0 | K22: =IF(ISERROR(+I22+'App.2-CH_NewCGAAP_DepExp_2013'!O22-J22), 0, +I22+'App.2-CH_NewCGAAP_DepExp_2013'!O22-J22) -> 0
A23: 1808 | B23: Buildings | C23: ='[13]App.2-CI_MIFRS_DepExp_2014'!C23 -> 11676 | D23: ='[13]App.2-CI_MIFRS_DepExp_2014'!D23 -> 40 | E23: 0.025 | F23: =IF(D23=0,+'App.2-CH_NewCGAAP_DepExp_2013'!O23,+'App.2-CH_NewCGAAP_DepExp_2013'!O23+((C23*0.5)/D23)) -> 19498.24586 | G23: ='[13]App.2-CI_MIFRS_DepExp_2014'!G23 -> 6242.51 | H23: 13255.73586 | I23: 291.9 | J23: ='[13]App.2-CI_MIFRS_DepExp_2014'!J23 -> 0 | K23: =IF(ISERROR(+I23+'App.2-CH_NewCGAAP_DepExp_2013'!O23-J23), 0, +I23+'App.2-CH_NewCGAAP_DepExp_2013'!O23-J23) -> 19644.19586
A24: 1808 | B24: Buildings (mechanical, roof) | C24: ='[13]App.2-CI_MIFRS_DepExp_2014'!C24 -> 5004 | D24: ='[13]App.2-CI_MIFRS_DepExp_2014'!D24 -> 20 | E24: 0.05 | F24: =IF(D24=0,+'App.2-CH_NewCGAAP_DepExp_2013'!O24,+'App.2-CH_NewCGAAP_DepExp_2013'!O24+((C24*0.5)/D24)) -> 4366.431142 | G24: ='[13]App.2-CI_MIFRS_DepExp_2014'!G24 -> 4365 | H24: 1.431142153 | I24: 250.2 | J24: ='[13]App.2-CI_MIFRS_DepExp_2014'!J24 -> 0 | K24: =IF(ISERROR(+I24+'App.2-CH_NewCGAAP_DepExp_2013'!O24-J24), 0, +I24+'App.2-CH_NewCGAAP_DepExp_2013'!O24-J24) -> 4491.531142
A25: 1810 | B25: Leasehold Improvements | C25: ='[13]App.2-CI_MIFRS_DepExp_2014'!C25 -> 0 | D25: ='[13]App.2-CI_MIFRS_DepExp_2014'!D25 -> 0 | E25: 0 | F25: =IF(D25=0,+'App.2-CH_NewCGAAP_DepExp_2013'!O25,+'App.2-CH_NewCGAAP_DepExp_2013'!O25+((C25*0.5)/D25)) -> 0 | G25: ='[13]App.2-CI_MIFRS_DepExp_2014'!G25 -> 0 | H25: 0 | I25: 0 | J25: ='[13]App.2-CI_MIFRS_DepExp_2014'!J25 -> 0 | K25: =IF(ISERROR(+I25+'App.2-CH_NewCGAAP_DepExp_2013'!O25-J25), 0, +I25+'App.2-CH_NewCGAAP_DepExp_2013'!O25-J25) -> 0
A26: 1815 | B26: Transformer Station Equipment >50 kV | C26: ='[13]App.2-CI_MIFRS_DepExp_2014'!C26 -> 0 | D26: ='[13]App.2-CI_MIFRS_DepExp_2014'!D26 -> 0 | E26: 0 | F26: =IF(D26=0,+'App.2-CH_NewCGAAP_DepExp_2013'!O26,+'App.2-CH_NewCGAAP_DepExp_2013'!O26+((C26*0.5)/D26)) -> 0 | G26: ='[13]App.2-CI_MIFRS_DepExp_2014'!G26 -> 0 | H26: 0 | I26: 0 | J26: ='[13]App.2-CI_MIFRS_DepExp_2014'!J26 -> 0 | K26: =IF(ISERROR(+I26+'App.2-CH_NewCGAAP_DepExp_2013'!O26-J26), 0, +I26+'App.2-CH_NewCGAAP_DepExp_2013'!O26-J26) -> 0
A27: 1820 | B27: Distribution Station Equipment <50 kV (power transformer, switch gear) | C27: ='[13]App.2-CI_MIFRS_DepExp_2014'!C27 -> 0.46 | D27: ='[13]App.2-CI_MIFRS_DepExp_2014'!D27 -> 45 | E27: 0.02222222222 | F27: =IF(D27=0,+'App.2-CH_NewCGAAP_DepExp_2013'!O27,+'App.2-CH_NewCGAAP_DepExp_2013'!O27+((C27*0.5)/D27)) -> 11852.66785 | G27: ='[13]App.2-CI_MIFRS_DepExp_2014'!G27 -> 11418.47 | H27: 434.1978516 | I27: 0.01022222222 | J27: ='[13]App.2-CI_MIFRS_DepExp_2014'!J27 -> 0 | K27: =IF(ISERROR(+I27+'App.2-CH_NewCGAAP_DepExp_2013'!O27-J27), 0, +I27+'App.2-CH_NewCGAAP_DepExp_2013'!O27-J27) -> 11852.67296
A28: 1820 | B28: Distribution Station Equipment <50 kV (wholesale meter) | C28: ='[13]App.2-CI_MIFRS_DepExp_2014'!C28 -> 76681 | D28: ='[13]App.2-CI_MIFRS_DepExp_2014'!D28 -> 15 | E28: 0.06666666667 | F28: =IF(D28=0,+'App.2-CH_NewCGAAP_DepExp_2013'!O28,+'App.2-CH_NewCGAAP_DepExp_2013'!O28+((C28*0.5)/D28)) -> 55192.05533 | G28: ='[13]App.2-CI_MIFRS_DepExp_2014'!G28 -> 55209 | H28: -16.9446685 | I28: 5112.066667 | J28: ='[13]App.2-CI_MIFRS_DepExp_2014'!J28 -> 0 | K28: =IF(ISERROR(+I28+'App.2-CH_NewCGAAP_DepExp_2013'!O28-J28), 0, +I28+'App.2-CH_NewCGAAP_DepExp_2013'!O28-J28) -> 57748.08866
A29: 1825 | B29: Storage Battery Equipment | C29: ='[13]App.2-CI_MIFRS_DepExp_2014'!C29 -> 0 | D29: ='[13]App.2-CI_MIFRS_DepExp_2014'!D29 -> 0 | E29: 0 | F29: =IF(D29=0,+'App.2-CH_NewCGAAP_DepExp_2013'!O29,+'App.2-CH_NewCGAAP_DepExp_2013'!O29+((C29*0.5)/D29)) -> 0 | G29: ='[13]App.2-CI_MIFRS_DepExp_2014'!G29 -> 0 | H29: 0 | I29: 0 | J29: ='[13]App.2-CI_MIFRS_DepExp_2014'!J29 -> 0 | K29: =IF(ISERROR(+I29+'App.2-CH_NewCGAAP_DepExp_2013'!O29-J29), 0, +I29+'App.2-CH_NewCGAAP_DepExp_2013'!O29-J29) -> 0
A30: 1830 | B30: Poles, Towers & Fixtures (composite poles, concrete poles) | C30: ='[13]App.2-CI_MIFRS_DepExp_2014'!C30 -> 77085.37 | D30: ='[13]App.2-CI_MIFRS_DepExp_2014'!D30 -> 50 | E30: 0.02 | F30: =IF(D30=0,+'App.2-CH_NewCGAAP_DepExp_2013'!O30,+'App.2-CH_NewCGAAP_DepExp_2013'!O30+((C30*0.5)/D30)) -> 12439.81356 | G30: ='[13]App.2-CI_MIFRS_DepExp_2014'!G30 -> 12438.84 | H30: 0.9735613285 | I30: 1541.7074 | J30: ='[13]App.2-CI_MIFRS_DepExp_2014'!J30 -> 0 | K30: =IF(ISERROR(+I30+'App.2-CH_NewCGAAP_DepExp_2013'!O30-J30), 0, +I30+'App.2-CH_NewCGAAP_DepExp_2013'!O30-J30) -> 13210.66726
A31: 1830 | B31: Poles, Towers & Fixtures (steel poles) | C31: ='[13]App.2-CI_MIFRS_DepExp_2014'!C31 -> 163410 | D31: ='[13]App.2-CI_MIFRS_DepExp_2014'!D31 -> 60 | E31: 0.01666666667 | F31: =IF(D31=0,+'App.2-CH_NewCGAAP_DepExp_2013'!O31,+'App.2-CH_NewCGAAP_DepExp_2013'!O31+((C31*0.5)/D31)) -> 21550.10774 | G31: ='[13]App.2-CI_MIFRS_DepExp_2014'!G31 -> 21551 | H31: -0.8922559546 | I31: 2723.5 | J31: ='[13]App.2-CI_MIFRS_DepExp_2014'!J31 -> 0 | K31: =IF(ISERROR(+I31+'App.2-CH_NewCGAAP_DepExp_2013'!O31-J31), 0, +I31+'App.2-CH_NewCGAAP_DepExp_2013'!O31-J31) -> 22911.85774
A32: 1830 | B32: Poles, Towers & Fixtures (wood poles) | C32: ='[13]App.2-CI_MIFRS_DepExp_2014'!C32 -> 789898 | D32: ='[13]App.2-CI_MIFRS_DepExp_2014'!D32 -> 45 | E32: 0.02222222222 | F32: =IF(D32=0,+'App.2-CH_NewCGAAP_DepExp_2013'!O32,+'App.2-CH_NewCGAAP_DepExp_2013'!O32+((C32*0.5)/D32)) -> 148839.7222 | G32: ='[13]App.2-CI_MIFRS_DepExp_2014'!G32 -> 147833 | H32: 1006.722156 | I32: 17553.28889 | J32: ='[13]App.2-CI_MIFRS_DepExp_2014'!J32 -> 0 | K32: =IF(ISERROR(+I32+'App.2-CH_NewCGAAP_DepExp_2013'!O32-J32), 0, +I32+'App.2-CH_NewCGAAP_DepExp_2013'!O32-J32) -> 157616.3666
A33: 1835 | B33: Overhead Conductors & Devices (composite poles, concrete poles) | C33: ='[13]App.2-CI_MIFRS_DepExp_2014'!C33 -> 688247.9 | D33: ='[13]App.2-CI_MIFRS_DepExp_2014'!D33 -> 50 | E33: 0.02 | F33: =IF(D33=0,+'App.2-CH_NewCGAAP_DepExp_2013'!O33,+'App.2-CH_NewCGAAP_DepExp_2013'!O33+((C33*0.5)/D33)) -> 194375.8533 | G33: ='[13]App.2-CI_MIFRS_DepExp_2014'!G33 -> 194144.87 | H33: 230.9833038 | I33: 13764.958 | J33: ='[13]App.2-CI_MIFRS_DepExp_2014'!J33 -> 0 | K33: =IF(ISERROR(+I33+'App.2-CH_NewCGAAP_DepExp_2013'!O33-J33), 0, +I33+'App.2-CH_NewCGAAP_DepExp_2013'!O33-J33) -> 201258.3323
A34: 1835 | B34: Overhead Conductors & Devices (steel poles) | C34: ='[13]App.2-CI_MIFRS_DepExp_2014'!C34 -> 130404 | D34: ='[13]App.2-CI_MIFRS_DepExp_2014'!D34 -> 60 | E34: 0.01666666667 | F34: =IF(D34=0,+'App.2-CH_NewCGAAP_DepExp_2013'!O34,+'App.2-CH_NewCGAAP_DepExp_2013'!O34+((C34*0.5)/D34)) -> 29421.99679 | G34: ='[13]App.2-CI_MIFRS_DepExp_2014'!G34 -> 29422 | H34: -0.003212373587 | I34: 2173.4 | J34: ='[13]App.2-CI_MIFRS_DepExp_2014'!J34 -> 0 | K34: =IF(ISERROR(+I34+'App.2-CH_NewCGAAP_DepExp_2013'!O34-J34), 0, +I34+'App.2-CH_NewCGAAP_DepExp_2013'!O34-J34) -> 30508.69679
A35: 1835 | B35: Overhead Conductors & Devices (wood poles) | C35: ='[13]App.2-CI_MIFRS_DepExp_2014'!C35 -> 718871 | D35: ='[13]App.2-CI_MIFRS_DepExp_2014'!D35 -> 45 | E35: 0.02222222222 | F35: =IF(D35=0,+'App.2-CH_NewCGAAP_DepExp_2013'!O35,+'App.2-CH_NewCGAAP_DepExp_2013'!O35+((C35*0.5)/D35)) -> 233411.6 | G35: ='[13]App.2-CI_MIFRS_DepExp_2014'!G35 -> 232519 | H35: 892.6000027 | I35: 15974.91111 | J35: ='[13]App.2-CI_MIFRS_DepExp_2014'!J35 -> 0 | K35: =IF(ISERROR(+I35+'App.2-CH_NewCGAAP_DepExp_2013'!O35-J35), 0, +I35+'App.2-CH_NewCGAAP_DepExp_2013'!O35-J35) -> 241399.0556
A36: 1840 | B36: Underground Conduit | C36: ='[13]App.2-CI_MIFRS_DepExp_2014'!C36 -> 413519.39 | D36: ='[13]App.2-CI_MIFRS_DepExp_2014'!D36 -> 50 | E36: 0.02 | F36: =IF(D36=0,+'App.2-CH_NewCGAAP_DepExp_2013'!O36,+'App.2-CH_NewCGAAP_DepExp_2013'!O36+((C36*0.5)/D36)) -> 58092.08881 | G36: ='[13]App.2-CI_MIFRS_DepExp_2014'!G36 -> 58086.76 | H36: 5.328806962 | I36: 8270.3878 | J36: ='[13]App.2-CI_MIFRS_DepExp_2014'!J36 -> 0 | K36: =IF(ISERROR(+I36+'App.2-CH_NewCGAAP_DepExp_2013'!O36-J36), 0, +I36+'App.2-CH_NewCGAAP_DepExp_2013'!O36-J36) -> 62227.28271
A37: 1845 | B37: Underground Conductors & Devices | C37: ='[13]App.2-CI_MIFRS_DepExp_2014'!C37 -> 292544.4 | D37: ='[13]App.2-CI_MIFRS_DepExp_2014'!D37 -> 20 | E37: 0.05 | F37: =IF(D37=0,+'App.2-CH_NewCGAAP_DepExp_2013'!O37,+'App.2-CH_NewCGAAP_DepExp_2013'!O37+((C37*0.5)/D37)) -> 394080.3485 | G37: ='[13]App.2-CI_MIFRS_DepExp_2014'!G37 -> 392000.71 | H37: 2079.638531 | I37: 14627.22 | J37: ='[13]App.2-CI_MIFRS_DepExp_2014'!J37 -> 63732 | K37: =IF(ISERROR(+I37+'App.2-CH_NewCGAAP_DepExp_2013'!O37-J37), 0, +I37+'App.2-CH_NewCGAAP_DepExp_2013'!O37-J37) -> 337661.9585
A38: 1845 | B38: Underground Conductors & Devices (primary PILC, primary duct) | C38: ='[13]App.2-CI_MIFRS_DepExp_2014'!C38 -> 369489 | D38: ='[13]App.2-CI_MIFRS_DepExp_2014'!D38 -> 25 | E38: 0.04 | F38: =IF(D38=0,+'App.2-CH_NewCGAAP_DepExp_2013'!O38,+'App.2-CH_NewCGAAP_DepExp_2013'!O38+((C38*0.5)/D38)) -> 257600.68 | G38: ='[13]App.2-CI_MIFRS_DepExp_2014'!G38 -> 257601 | H38: -0.3200006515 | I38: 14779.56 | J38: ='[13]App.2-CI_MIFRS_DepExp_2014'!J38 -> 0 | K38: =IF(ISERROR(+I38+'App.2-CH_NewCGAAP_DepExp_2013'!O38-J38), 0, +I38+'App.2-CH_NewCGAAP_DepExp_2013'!O38-J38) -> 264990.46
A39: 1845 | B39: Underground Conductors & Devices (secondary direct) | C39: ='[13]App.2-CI_MIFRS_DepExp_2014'!C39 -> 62557 | D39: ='[13]App.2-CI_MIFRS_DepExp_2014'!D39 -> 35 | E39: 0.02857142857 | F39: =IF(D39=0,+'App.2-CH_NewCGAAP_DepExp_2013'!O39,+'App.2-CH_NewCGAAP_DepExp_2013'!O39+((C39*0.5)/D39)) -> 25954.65714 | G39: ='[13]App.2-CI_MIFRS_DepExp_2014'!G39 -> 25955 | H39: -0.3428572223 | I39: 1787.342857 | J39: ='[13]App.2-CI_MIFRS_DepExp_2014'!J39 -> 0 | K39: =IF(ISERROR(+I39+'App.2-CH_NewCGAAP_DepExp_2013'!O39-J39), 0, +I39+'App.2-CH_NewCGAAP_DepExp_2013'!O39-J39) -> 26848.32857
A40: 1845 | B40: Underground Conductors & Devices (duct bank) | C40: ='[13]App.2-CI_MIFRS_DepExp_2014'!C40 -> 61719 | D40: ='[13]App.2-CI_MIFRS_DepExp_2014'!D40 -> 50 | E40: 0.02 | F40: =IF(D40=0,+'App.2-CH_NewCGAAP_DepExp_2013'!O40,+'App.2-CH_NewCGAAP_DepExp_2013'!O40+((C40*0.5)/D40)) -> 21904.53864 | G40: ='[13]App.2-CI_MIFRS_DepExp_2014'!G40 -> 21908 | H40: -3.461364212 | I40: 1234.38 | J40: ='[13]App.2-CI_MIFRS_DepExp_2014'!J40 -> 0 | K40: =IF(ISERROR(+I40+'App.2-CH_NewCGAAP_DepExp_2013'!O40-J40), 0, +I40+'App.2-CH_NewCGAAP_DepExp_2013'!O40-J40) -> 22521.72864
A41: 1845 | B41: Underground Conductors & Devices (trans switch) | C41: ='[13]App.2-CI_MIFRS_DepExp_2014'!C41 -> 12264 | D41: ='[13]App.2-CI_MIFRS_DepExp_2014'!D41 -> 55 | E41: 0.01818181818 | F41: =IF(D41=0,+'App.2-CH_NewCGAAP_DepExp_2013'!O41,+'App.2-CH_NewCGAAP_DepExp_2013'!O41+((C41*0.5)/D41)) -> 3533.97342 | G41: ='[13]App.2-CI_MIFRS_DepExp_2014'!G41 -> 3534 | H41: -0.02657969833 | I41: 222.9818182 | J41: ='[13]App.2-CI_MIFRS_DepExp_2014'!J41 -> 0 | K41: =IF(ISERROR(+I41+'App.2-CH_NewCGAAP_DepExp_2013'!O41-J41), 0, +I41+'App.2-CH_NewCGAAP_DepExp_2013'!O41-J41) -> 3645.464329
A42: 1850 | B42: Line Transformers (pad mount, pole mount) | C42: ='[13]App.2-CI_MIFRS_DepExp_2014'!C42 -> 924963.05 | D42: ='[13]App.2-CI_MIFRS_DepExp_2014'!D42 -> 40 | E42: 0.025 | F42: =IF(D42=0,+'App.2-CH_NewCGAAP_DepExp_2013'!O42,+'App.2-CH_NewCGAAP_DepExp_2013'!O42+((C42*0.5)/D42)) -> 344096.9709 | G42: ='[13]App.2-CI_MIFRS_DepExp_2014'!G42 -> 342482.12 | H42: 1614.850875 | I42: 23124.07625 | J42: ='[13]App.2-CI_MIFRS_DepExp_2014'!J42 -> 0 | K42: =IF(ISERROR(+I42+'App.2-CH_NewCGAAP_DepExp_2013'!O42-J42), 0, +I42+'App.2-CH_NewCGAAP_DepExp_2013'!O42-J42) -> 355659.009
A43: 1850 | B43: Line Transformers (submersible) | C43: ='[13]App.2-CI_MIFRS_DepExp_2014'!C43 -> 90520 | D43: ='[13]App.2-CI_MIFRS_DepExp_2014'!D43 -> 40 | E43: 0.025 | F43: =IF(D43=0,+'App.2-CH_NewCGAAP_DepExp_2013'!O43,+'App.2-CH_NewCGAAP_DepExp_2013'!O43+((C43*0.5)/D43)) -> 32681.4875 | G43: ='[13]App.2-CI_MIFRS_DepExp_2014'!G43 -> 32680 | H43: 1.487499911 | I43: 2263 | J43: ='[13]App.2-CI_MIFRS_DepExp_2014'!J43 -> 0 | K43: =IF(ISERROR(+I43+'App.2-CH_NewCGAAP_DepExp_2013'!O43-J43), 0, +I43+'App.2-CH_NewCGAAP_DepExp_2013'!O43-J43) -> 33812.9875
A44: 1850 | B44: Line Transformers (submersible vault) | C44: ='[13]App.2-CI_MIFRS_DepExp_2014'!C44 -> 96944 | D44: ='[13]App.2-CI_MIFRS_DepExp_2014'!D44 -> 35 | E44: 0.02857142857 | F44: =IF(D44=0,+'App.2-CH_NewCGAAP_DepExp_2013'!O44,+'App.2-CH_NewCGAAP_DepExp_2013'!O44+((C44*0.5)/D44)) -> 49062.73937 | G44: ='[13]App.2-CI_MIFRS_DepExp_2014'!G44 -> 49063 | H44: -0.2606342741 | I44: 2769.828571 | J44: ='[13]App.2-CI_MIFRS_DepExp_2014'!J44 -> 0 | K44: =IF(ISERROR(+I44+'App.2-CH_NewCGAAP_DepExp_2013'!O44-J44), 0, +I44+'App.2-CH_NewCGAAP_DepExp_2013'!O44-J44) -> 50447.65365
A45: 1855 | B45: Services (Overhead & Underground) (direct) | C45: ='[13]App.2-CI_MIFRS_DepExp_2014'!C45 -> 348310.11 | D45: ='[13]App.2-CI_MIFRS_DepExp_2014'!D45 -> 40 | E45: 0.025 | F45: =IF(D45=0,+'App.2-CH_NewCGAAP_DepExp_2013'!O45,+'App.2-CH_NewCGAAP_DepExp_2013'!O45+((C45*0.5)/D45)) -> 85282.16494 | G45: ='[13]App.2-CI_MIFRS_DepExp_2014'!G45 -> 85284.57 | H45: -2.40505975 | I45: 8707.75275 | J45: ='[13]App.2-CI_MIFRS_DepExp_2014'!J45 -> 0 | K45: =IF(ISERROR(+I45+'App.2-CH_NewCGAAP_DepExp_2013'!O45-J45), 0, +I45+'App.2-CH_NewCGAAP_DepExp_2013'!O45-J45) -> 89636.04132
A46: 1855 | B46: Services (Overhead & Underground) (duct) | C46: ='[13]App.2-CI_MIFRS_DepExp_2014'!C46 -> 251462 | D46: ='[13]App.2-CI_MIFRS_DepExp_2014'!D46 -> 50 | E46: 0.02 | F46: =IF(D46=0,+'App.2-CH_NewCGAAP_DepExp_2013'!O46,+'App.2-CH_NewCGAAP_DepExp_2013'!O46+((C46*0.5)/D46)) -> 44023.33129 | G46: ='[13]App.2-CI_MIFRS_DepExp_2014'!G46 -> 44054 | H46: -30.66871369 | I46: 5029.24 | J46: ='[13]App.2-CI_MIFRS_DepExp_2014'!J46 -> 0 | K46: =IF(ISERROR(+I46+'App.2-CH_NewCGAAP_DepExp_2013'!O46-J46), 0, +I46+'App.2-CH_NewCGAAP_DepExp_2013'!O46-J46) -> 46537.95129
A47: 1860 | B47: Meters | C47: ='[13]App.2-CI_MIFRS_DepExp_2014'!C47 -> 0 | D47: ='[13]App.2-CI_MIFRS_DepExp_2014'!D47 -> 25 | E47: 0.04 | F47: =IF(D47=0,+'App.2-CH_NewCGAAP_DepExp_2013'!O47,+'App.2-CH_NewCGAAP_DepExp_2013'!O47+((C47*0.5)/D47)) -> 166723.5763 | G47: ='[13]App.2-CI_MIFRS_DepExp_2014'!G47 -> 159989.25 | H47: 6734.326344 | I47: 0 | J47: ='[13]App.2-CI_MIFRS_DepExp_2014'!J47 -> 7492 | K47: =IF(ISERROR(+I47+'App.2-CH_NewCGAAP_DepExp_2013'!O47-J47), 0, +I47+'App.2-CH_NewCGAAP_DepExp_2013'!O47-J47) -> 159231.5763
A48: 1860 | B48: Meters (Smart Meters) | C48: ='[13]App.2-CI_MIFRS_DepExp_2014'!C48 -> 403511.3 | D48: ='[13]App.2-CI_MIFRS_DepExp_2014'!D48 -> 15 | E48: 0.06666666667 | F48: =IF(D48=0,+'App.2-CH_NewCGAAP_DepExp_2013'!O48,+'App.2-CH_NewCGAAP_DepExp_2013'!O48+((C48*0.5)/D48)) -> 553536.3042 | G48: ='[13]App.2-CI_MIFRS_DepExp_2014'!G48 -> 561966.56 | H48: -8430.255818 | I48: 26900.75333 | J48: ='[13]App.2-CI_MIFRS_DepExp_2014'!J48 -> 0 | K48: =IF(ISERROR(+I48+'App.2-CH_NewCGAAP_DepExp_2013'!O48-J48), 0, +I48+'App.2-CH_NewCGAAP_DepExp_2013'!O48-J48) -> 566986.6808
A49: 1905 | B49: Land | C49: ='[13]App.2-CI_MIFRS_DepExp_2014'!C49 -> 0 | D49: ='[13]App.2-CI_MIFRS_DepExp_2014'!D49 -> 0 | E49: 0 | F49: =IF(D49=0,+'App.2-CH_NewCGAAP_DepExp_2013'!O49,+'App.2-CH_NewCGAAP_DepExp_2013'!O49+((C49*0.5)/D49)) -> 0 | G49: ='[13]App.2-CI_MIFRS_DepExp_2014'!G49 -> 0 | H49: 0 | I49: 0 | J49: ='[13]App.2-CI_MIFRS_DepExp_2014'!J49 -> 0 | K49: =IF(ISERROR(+I49+'App.2-CH_NewCGAAP_DepExp_2013'!O49-J49), 0, +I49+'App.2-CH_NewCGAAP_DepExp_2013'!O49-J49) -> 0
A50: 1908 | B50: Buildings & Fixtures | C50: ='[13]App.2-CI_MIFRS_DepExp_2014'!C50 -> 122038.92 | D50: ='[13]App.2-CI_MIFRS_DepExp_2014'!D50 -> 50 | E50: 0.02 | F50: =IF(D50=0,+'App.2-CH_NewCGAAP_DepExp_2013'!O50,+'App.2-CH_NewCGAAP_DepExp_2013'!O50+((C50*0.5)/D50)) -> 60945.38071 | G50: ='[13]App.2-CI_MIFRS_DepExp_2014'!G50 -> 68295.62 | H50: -7350.239293 | I50: 2440.7784 | J50: ='[13]App.2-CI_MIFRS_DepExp_2014'!J50 -> 0 | K50: =IF(ISERROR(+I50+'App.2-CH_NewCGAAP_DepExp_2013'!O50-J50), 0, +I50+'App.2-CH_NewCGAAP_DepExp_2013'!O50-J50) -> 62165.76991
A51: 1908 | B51: Buildings & Fixtures (mechanical, roof) | C51: ='[13]App.2-CI_MIFRS_DepExp_2014'!C51 -> 318122 | D51: ='[13]App.2-CI_MIFRS_DepExp_2014'!D51 -> 20 | E51: 0.05 | F51: =IF(D51=0,+'App.2-CH_NewCGAAP_DepExp_2013'!O51,+'App.2-CH_NewCGAAP_DepExp_2013'!O51+((C51*0.5)/D51)) -> 104934.7 | G51: ='[13]App.2-CI_MIFRS_DepExp_2014'!G51 -> 129048 | H51: -24113.3 | I51: 15906.1 | J51: ='[13]App.2-CI_MIFRS_DepExp_2014'!J51 -> 0 | K51: =IF(ISERROR(+I51+'App.2-CH_NewCGAAP_DepExp_2013'!O51-J51), 0, +I51+'App.2-CH_NewCGAAP_DepExp_2013'!O51-J51) -> 112887.75
A52: 1908 | B52: Buildings & Fixtures (SCADA tower) | C52: ='[13]App.2-CI_MIFRS_DepExp_2014'!C52 -> 0 | D52: ='[13]App.2-CI_MIFRS_DepExp_2014'!D52 -> 25 | E52: 0.04 | F52: =IF(D52=0,+'App.2-CH_NewCGAAP_DepExp_2013'!O52,+'App.2-CH_NewCGAAP_DepExp_2013'!O52+((C52*0.5)/D52)) -> 2460.833333 | G52: ='[13]App.2-CI_MIFRS_DepExp_2014'!G52 -> 2461 | H52: -0.1666666667 | I52: 0 | J52: ='[13]App.2-CI_MIFRS_DepExp_2014'!J52 -> 0 | K52: =IF(ISERROR(+I52+'App.2-CH_NewCGAAP_DepExp_2013'!O52-J52), 0, +I52+'App.2-CH_NewCGAAP_DepExp_2013'!O52-J52) -> 2460.833333
A53: 1910 | B53: Leasehold Improvements | C53: ='[13]App.2-CI_MIFRS_DepExp_2014'!C53 -> 0 | D53: ='[13]App.2-CI_MIFRS_DepExp_2014'!D53 -> 0 | E53: 0 | F53: =IF(D53=0,+'App.2-CH_NewCGAAP_DepExp_2013'!O53,+'App.2-CH_NewCGAAP_DepExp_2013'!O53+((C53*0.5)/D53)) -> 0 | G53: ='[13]App.2-CI_MIFRS_DepExp_2014'!G53 -> 0 | H53: 0 | I53: 0 | J53: ='[13]App.2-CI_MIFRS_DepExp_2014'!J53 -> 0 | K53: =IF(ISERROR(+I53+'App.2-CH_NewCGAAP_DepExp_2013'!O53-J53), 0, +I53+'App.2-CH_NewCGAAP_DepExp_2013'!O53-J53) -> 0
A54: 1915 | B54: Office Furniture & Equipment (10 years) | C54: ='[13]App.2-CI_MIFRS_DepExp_2014'!C54 -> 178788.18 | D54: ='[13]App.2-CI_MIFRS_DepExp_2014'!D54 -> 10 | E54: 0.1 | F54: =IF(D54=0,+'App.2-CH_NewCGAAP_DepExp_2013'!O54,+'App.2-CH_NewCGAAP_DepExp_2013'!O54+((C54*0.5)/D54)) -> 27457.18293 | G54: ='[13]App.2-CI_MIFRS_DepExp_2014'!G54 -> 45983.65 | H54: -18526.46707 | I54: 17878.818 | J54: ='[13]App.2-CI_MIFRS_DepExp_2014'!J54 -> 1224 | K54: =IF(ISERROR(+I54+'App.2-CH_NewCGAAP_DepExp_2013'!O54-J54), 0, +I54+'App.2-CH_NewCGAAP_DepExp_2013'!O54-J54) -> 35172.59193
A55: 1915 | B55: Office Furniture & Equipment (5 years) | C55: ='[13]App.2-CI_MIFRS_DepExp_2014'!C55 -> 0 | D55: ='[13]App.2-CI_MIFRS_DepExp_2014'!D55 -> 0 | E55: 0 | F55: =IF(D55=0,+'App.2-CH_NewCGAAP_DepExp_2013'!O55,+'App.2-CH_NewCGAAP_DepExp_2013'!O55+((C55*0.5)/D55)) -> 0 | G55: ='[13]App.2-CI_MIFRS_DepExp_2014'!G55 -> 0 | H55: 0 | I55: 0 | J55: ='[13]App.2-CI_MIFRS_DepExp_2014'!J55 -> 0 | K55: =IF(ISERROR(+I55+'App.2-CH_NewCGAAP_DepExp_2013'!O55-J55), 0, +I55+'App.2-CH_NewCGAAP_DepExp_2013'!O55-J55) -> 0
A56: 1920 | B56: Computer Equipment - Hardware | C56: ='[13]App.2-CI_MIFRS_DepExp_2014'!C56 -> 0 | D56: ='[13]App.2-CI_MIFRS_DepExp_2014'!D56 -> 0 | E56: 0 | F56: =IF(D56=0,+'App.2-CH_NewCGAAP_DepExp_2013'!O56,+'App.2-CH_NewCGAAP_DepExp_2013'!O56+((C56*0.5)/D56)) -> 0 | G56: ='[13]App.2-CI_MIFRS_DepExp_2014'!G56 -> 0 | H56: 0 | I56: 0 | J56: ='[13]App.2-CI_MIFRS_DepExp_2014'!J56 -> 0 | K56: =IF(ISERROR(+I56+'App.2-CH_NewCGAAP_DepExp_2013'!O56-J56), 0, +I56+'App.2-CH_NewCGAAP_DepExp_2013'!O56-J56) -> 0
A57: 1920 | B57: Computer Equip.-Hardware(Post Mar. 22/04) | C57: ='[13]App.2-CI_MIFRS_DepExp_2014'!C57 -> 0 | D57: ='[13]App.2-CI_MIFRS_DepExp_2014'!D57 -> 0 | E57: 0 | F57: =IF(D57=0,+'App.2-CH_NewCGAAP_DepExp_2013'!O57,+'App.2-CH_NewCGAAP_DepExp_2013'!O57+((C57*0.5)/D57)) -> 0 | G57: ='[13]App.2-CI_MIFRS_DepExp_2014'!G57 -> 0 | H57: 0 | I57: 0 | J57: ='[13]App.2-CI_MIFRS_DepExp_2014'!J57 -> 0 | K57: =IF(ISERROR(+I57+'App.2-CH_NewCGAAP_DepExp_2013'!O57-J57), 0, +I57+'App.2-CH_NewCGAAP_DepExp_2013'!O57-J57) -> 0
A58: 1920 | B58: Computer Equip.-Hardware(Post Mar. 19/07) | C58: ='[13]App.2-CI_MIFRS_DepExp_2014'!C58 -> 443973.27 | D58: ='[13]App.2-CI_MIFRS_DepExp_2014'!D58 -> 3 | E58: 0.3333333333 | F58: =IF(D58=0,+'App.2-CH_NewCGAAP_DepExp_2013'!O58,+'App.2-CH_NewCGAAP_DepExp_2013'!O58+((C58*0.5)/D58)) -> 230379.54 | G58: ='[13]App.2-CI_MIFRS_DepExp_2014'!G58 -> 220639.74 | H58: 9739.799998 | I58: 147991.09 | J58: ='[13]App.2-CI_MIFRS_DepExp_2014'!J58 -> 108819 | K58: =IF(ISERROR(+I58+'App.2-CH_NewCGAAP_DepExp_2013'!O58-J58), 0, +I58+'App.2-CH_NewCGAAP_DepExp_2013'!O58-J58) -> 195556.085
A59: 1930 | B59: Transportation Equipment (van) | C59: ='[13]App.2-CI_MIFRS_DepExp_2014'!C59 -> 144295.7 | D59: ='[13]App.2-CI_MIFRS_DepExp_2014'!D59 -> 7 | E59: 0.1428571429 | F59: =IF(D59=0,+'App.2-CH_NewCGAAP_DepExp_2013'!O59,+'App.2-CH_NewCGAAP_DepExp_2013'!O59+((C59*0.5)/D59)) -> 218838.1758 | G59: ='[13]App.2-CI_MIFRS_DepExp_2014'!G59 -> 220257.87 | H59: -1419.69422 | I59: 20613.67143 | J59: ='[13]App.2-CI_MIFRS_DepExp_2014'!J59 -> 4054 | K59: =IF(ISERROR(+I59+'App.2-CH_NewCGAAP_DepExp_2013'!O59-J59), 0, +I59+'App.2-CH_NewCGAAP_DepExp_2013'!O59-J59) -> 225091.0115
A60: 1930 | B60: Transportation Equipment (trucks, trailers) | C60: ='[13]App.2-CI_MIFRS_DepExp_2014'!C60 -> 405441 | D60: ='[13]App.2-CI_MIFRS_DepExp_2014'!D60 -> 10 | E60: 0.1 | F60: =IF(D60=0,+'App.2-CH_NewCGAAP_DepExp_2013'!O60,+'App.2-CH_NewCGAAP_DepExp_2013'!O60+((C60*0.5)/D60)) -> 193830.3724 | G60: ='[13]App.2-CI_MIFRS_DepExp_2014'!G60 -> 195017 | H60: -1186.627634 | I60: 40544.1 | J60: ='[13]App.2-CI_MIFRS_DepExp_2014'!J60 -> 4489 | K60: =IF(ISERROR(+I60+'App.2-CH_NewCGAAP_DepExp_2013'!O60-J60), 0, +I60+'App.2-CH_NewCGAAP_DepExp_2013'!O60-J60) -> 209613.4224
A61: 1935 | B61: Stores Equipment | C61: ='[13]App.2-CI_MIFRS_DepExp_2014'!C61 -> 0 | D61: ='[13]App.2-CI_MIFRS_DepExp_2014'!D61 -> 0 | E61: 0 | F61: =IF(D61=0,+'App.2-CH_NewCGAAP_DepExp_2013'!O61,+'App.2-CH_NewCGAAP_DepExp_2013'!O61+((C61*0.5)/D61)) -> 0 | G61: ='[13]App.2-CI_MIFRS_DepExp_2014'!G61 -> 0 | H61: 0 | I61: 0 | J61: ='[13]App.2-CI_MIFRS_DepExp_2014'!J61 -> 0 | K61: =IF(ISERROR(+I61+'App.2-CH_NewCGAAP_DepExp_2013'!O61-J61), 0, +I61+'App.2-CH_NewCGAAP_DepExp_2013'!O61-J61) -> 0
A62: 1940 | B62: Tools, Shop & Garage Equipment | C62: ='[13]App.2-CI_MIFRS_DepExp_2014'!C62 -> 154240.27 | D62: ='[13]App.2-CI_MIFRS_DepExp_2014'!D62 -> 5 | E62: 0.2 | F62: =IF(D62=0,+'App.2-CH_NewCGAAP_DepExp_2013'!O62,+'App.2-CH_NewCGAAP_DepExp_2013'!O62+((C62*0.5)/D62)) -> 90327.01081 | G62: ='[13]App.2-CI_MIFRS_DepExp_2014'!G62 -> 90266.47 | H62: 60.54080723 | I62: 30848.054 | J62: ='[13]App.2-CI_MIFRS_DepExp_2014'!J62 -> 38546 | K62: =IF(ISERROR(+I62+'App.2-CH_NewCGAAP_DepExp_2013'!O62-J62), 0, +I62+'App.2-CH_NewCGAAP_DepExp_2013'!O62-J62) -> 67205.03781
A63: 1945 | B63: Measurement & Testing Equipment | C63: ='[13]App.2-CI_MIFRS_DepExp_2014'!C63 -> 0 | D63: ='[13]App.2-CI_MIFRS_DepExp_2014'!D63 -> 0 | E63: 0 | F63: =IF(D63=0,+'App.2-CH_NewCGAAP_DepExp_2013'!O63,+'App.2-CH_NewCGAAP_DepExp_2013'!O63+((C63*0.5)/D63)) -> 0 | G63: ='[13]App.2-CI_MIFRS_DepExp_2014'!G63 -> 0 | H63: 0 | I63: 0 | J63: ='[13]App.2-CI_MIFRS_DepExp_2014'!J63 -> 0 | K63: =IF(ISERROR(+I63+'App.2-CH_NewCGAAP_DepExp_2013'!O63-J63), 0, +I63+'App.2-CH_NewCGAAP_DepExp_2013'!O63-J63) -> 0
A64: 1950 | B64: Power Operated Equipment | C64: ='[13]App.2-CI_MIFRS_DepExp_2014'!C64 -> 0 | D64: ='[13]App.2-CI_MIFRS_DepExp_2014'!D64 -> 0 | E64: 0 | F64: =IF(D64=0,+'App.2-CH_NewCGAAP_DepExp_2013'!O64,+'App.2-CH_NewCGAAP_DepExp_2013'!O64+((C64*0.5)/D64)) -> 0 | G64: ='[13]App.2-CI_MIFRS_DepExp_2014'!G64 -> 0 | H64: 0 | I64: 0 | J64: ='[13]App.2-CI_MIFRS_DepExp_2014'!J64 -> 0 | K64: =IF(ISERROR(+I64+'App.2-CH_NewCGAAP_DepExp_2013'!O64-J64), 0, +I64+'App.2-CH_NewCGAAP_DepExp_2013'!O64-J64) -> 0
A65: 1955 | B65: Communications Equipment | C65: ='[13]App.2-CI_MIFRS_DepExp_2014'!C65 -> 0 | D65: ='[13]App.2-CI_MIFRS_DepExp_2014'!D65 -> 0 | E65: 0 | F65: =IF(D65=0,+'App.2-CH_NewCGAAP_DepExp_2013'!O65,+'App.2-CH_NewCGAAP_DepExp_2013'!O65+((C65*0.5)/D65)) -> 0 | G65: ='[13]App.2-CI_MIFRS_DepExp_2014'!G65 -> 0 | H65: 0 | I65: 0 | J65: ='[13]App.2-CI_MIFRS_DepExp_2014'!J65 -> 0 | K65: =IF(ISERROR(+I65+'App.2-CH_NewCGAAP_DepExp_2013'!O65-J65), 0, +I65+'App.2-CH_NewCGAAP_DepExp_2013'!O65-J65) -> 0
A66: 1955 | B66: Communication Equipment (Smart Meters) | C66: ='[13]App.2-CI_MIFRS_DepExp_2014'!C66 -> 0 | D66: ='[13]App.2-CI_MIFRS_DepExp_2014'!D66 -> 0 | E66: 0 | F66: =IF(D66=0,+'App.2-CH_NewCGAAP_DepExp_2013'!O66,+'App.2-CH_NewCGAAP_DepExp_2013'!O66+((C66*0.5)/D66)) -> 0 | G66: ='[13]App.2-CI_MIFRS_DepExp_2014'!G66 -> 0 | H66: 0 | I66: 0 | J66: ='[13]App.2-CI_MIFRS_DepExp_2014'!J66 -> 0 | K66: =IF(ISERROR(+I66+'App.2-CH_NewCGAAP_DepExp_2013'!O66-J66), 0, +I66+'App.2-CH_NewCGAAP_DepExp_2013'!O66-J66) -> 0
A67: 1960 | B67: Miscellaneous Equipment | C67: ='[13]App.2-CI_MIFRS_DepExp_2014'!C67 -> 0 | D67: ='[13]App.2-CI_MIFRS_DepExp_2014'!D67 -> 0 | E67: 0 | F67: =IF(D67=0,+'App.2-CH_NewCGAAP_DepExp_2013'!O67,+'App.2-CH_NewCGAAP_DepExp_2013'!O67+((C67*0.5)/D67)) -> 0 | G67: ='[13]App.2-CI_MIFRS_DepExp_2014'!G67 -> 0 | H67: 0 | I67: 0 | J67: ='[13]App.2-CI_MIFRS_DepExp_2014'!J67 -> 0 | K67: =IF(ISERROR(+I67+'App.2-CH_NewCGAAP_DepExp_2013'!O67-J67), 0, +I67+'App.2-CH_NewCGAAP_DepExp_2013'!O67-J67) -> 0
A68: 1970 | B68: Load Management Controls - Customer Premises | C68: ='[13]App.2-CI_MIFRS_DepExp_2014'!C68 -> 0 | D68: ='[13]App.2-CI_MIFRS_DepExp_2014'!D68 -> 0 | E68: 0 | F68: =IF(D68=0,+'App.2-CH_NewCGAAP_DepExp_2013'!O68,+'App.2-CH_NewCGAAP_DepExp_2013'!O68+((C68*0.5)/D68)) -> 0 | G68: ='[13]App.2-CI_MIFRS_DepExp_2014'!G68 -> 0 | H68: 0 | I68: 0 | J68: ='[13]App.2-CI_MIFRS_DepExp_2014'!J68 -> 0 | K68: =IF(ISERROR(+I68+'App.2-CH_NewCGAAP_DepExp_2013'!O68-J68), 0, +I68+'App.2-CH_NewCGAAP_DepExp_2013'!O68-J68) -> 0
A69: 1975 | B69: Load Management Controls Utility Premises | C69: ='[13]App.2-CI_MIFRS_DepExp_2014'!C69 -> 0 | D69: ='[13]App.2-CI_MIFRS_DepExp_2014'!D69 -> 0 | E69: 0 | F69: =IF(D69=0,+'App.2-CH_NewCGAAP_DepExp_2013'!O69,+'App.2-CH_NewCGAAP_DepExp_2013'!O69+((C69*0.5)/D69)) -> 0 | G69: ='[13]App.2-CI_MIFRS_DepExp_2014'!G69 -> 0 | H69: 0 | I69: 0 | J69: ='[13]App.2-CI_MIFRS_DepExp_2014'!J69 -> 0 | K69: =IF(ISERROR(+I69+'App.2-CH_NewCGAAP_DepExp_2013'!O69-J69), 0, +I69+'App.2-CH_NewCGAAP_DepExp_2013'!O69-J69) -> 0
A70: 1980 | B70: System Supervisor Equipment | C70: ='[13]App.2-CI_MIFRS_DepExp_2014'!C70 -> -41198.3 | D70: ='[13]App.2-CI_MIFRS_DepExp_2014'!D70 -> 20 | E70: 0.05 | F70: =IF(D70=0,+'App.2-CH_NewCGAAP_DepExp_2013'!O70,+'App.2-CH_NewCGAAP_DepExp_2013'!O70+((C70*0.5)/D70)) -> 21943.9267 | G70: ='[13]App.2-CI_MIFRS_DepExp_2014'!G70 -> 24879.18 | H70: -2935.253295 | I70: -2059.915 | J70: ='[13]App.2-CI_MIFRS_DepExp_2014'!J70 -> 0 | K70: =IF(ISERROR(+I70+'App.2-CH_NewCGAAP_DepExp_2013'!O70-J70), 0, +I70+'App.2-CH_NewCGAAP_DepExp_2013'!O70-J70) -> 20913.9692
A71: 1985 | B71: Miscellaneous Fixed Assets | C71: ='[13]App.2-CI_MIFRS_DepExp_2014'!C71 -> 0 | D71: ='[13]App.2-CI_MIFRS_DepExp_2014'!D71 -> 0 | E71: 0 | F71: =IF(D71=0,+'App.2-CH_NewCGAAP_DepExp_2013'!O71,+'App.2-CH_NewCGAAP_DepExp_2013'!O71+((C71*0.5)/D71)) -> 0 | G71: ='[13]App.2-CI_MIFRS_DepExp_2014'!G71 -> 0 | H71: 0 | I71: =IF(D71=0,0,+(C71)/D71) -> 0 | J71: ='[13]App.2-CI_MIFRS_DepExp_2014'!J71 -> 0 | K71: =IF(ISERROR(+I71+'App.2-CH_NewCGAAP_DepExp_2013'!O71-J71), 0, +I71+'App.2-CH_NewCGAAP_DepExp_2013'!O71-J71) -> 0
A72: 1990 | B72: Other Tangible Property | C72: ='[13]App.2-CI_MIFRS_DepExp_2014'!C72 -> 197157.35 | D72: ='[13]App.2-CI_MIFRS_DepExp_2014'!D72 -> 15 | E72: 0.06666666667 | F72: =IF(D72=0,+'App.2-CH_NewCGAAP_DepExp_2013'!O72,+'App.2-CH_NewCGAAP_DepExp_2013'!O72+((C72*0.5)/D72)) -> 196773.3187 | G72: ='[13]App.2-CI_MIFRS_DepExp_2014'!G72 -> 186437.17 | H72: 10336.14867 | I72: 13143.82333 | J72: ='[13]App.2-CI_MIFRS_DepExp_2014'!J72 -> 60508 | K72: =IF(ISERROR(+I72+'App.2-CH_NewCGAAP_DepExp_2013'!O72-J72), 0, +I72+'App.2-CH_NewCGAAP_DepExp_2013'!O72-J72) -> 142837.2303
A73: 1995 | B73: Contributions & Grants | C73: ='[13]App.2-CI_MIFRS_DepExp_2014'!C73 -> -462144.55 | D73: ='[13]App.2-CI_MIFRS_DepExp_2014'!D73 -> 25 | E73: =IF(D73=0,0,1/D73) -> 0.04 | F73: =IF(D73=0,+'App.2-CH_NewCGAAP_DepExp_2013'!O73,+'App.2-CH_NewCGAAP_DepExp_2013'!O73+((C73*0.5)/D73)) -> -301988.9764 | G73: ='[13]App.2-CI_MIFRS_DepExp_2014'!G73 -> -302035.62 | H73: 46.64363662 | I73: -18485.782 | J73: ='[13]App.2-CI_MIFRS_DepExp_2014'!J73 -> 0 | K73: =IF(ISERROR(+I73+'App.2-CH_NewCGAAP_DepExp_2013'!O73-J73), 0, +I73+'App.2-CH_NewCGAAP_DepExp_2013'!O73-J73) -> -311231.8674
B74: Total | C74: =SUM(C17:C73) -> 9014831.14 | F74: =SUM(F17:F73) -> 3974350.722 | G74: 3829666.59 | H74: 144684.1325 | I74: 801806.5038 | J74: 310713 | K74: 3907403.722
B75: Depreciation exp. adj. from gain or loss on the retirement of assets (pool of like assets)
B76: Total Depreciation Expense | F76: =SUM(F74:F75) -> 3974350.722
A78: Notes:
A79: 1 | B79: Board policy of the "half-year" rule - the applicant must ensure that additions in the year attract a half-year depreciation expense in the first year. Deviations from this standard practice must be supported in the application.
A80: 2 | B80: The applicant must provide an explanation of material variances in evidence.
A81: 3 | B81: This column refers to the calculated full year depreciation but excludes the depreciation expense on assets fully depreciated during the year. This column is used for the purpose of calculating depreciation expense in the following year on the next worksheet.
A83: General: | B83: Applicants must provide a breakdown of depreciation and amortization expense in the above format for all relevant accounts. Asset Retirement Obligations (AROs), depreciation and accretion expense should be disclosed separately consistent with the Notes of historical Audited Financial Statements.

Sheet App.2-CJ MIFRS_DepExp_2015
J1: File Number: | K1: =EBNUMBER -> EB-2015-0061
J2: Exhibit: | K2: 4
J3: Attachment: | K3: 4-P
J4: Page: | K4: 1 of 1
J7: Date: | K7: 2015-08-28
A9: Appendix 2-CJ
A10: Depreciation and Amortization Expense
A11: Assumes the applicant made capitalization and depreciation expense accounting policy changes under CGAAP effective January 1, 2013 and has adopted IFRS for financial reporting purposes effective January 1, 2015.
D13: 2015 | E13: MIFRS
A15: Account | B15: Description | C15: Additions | D15: Years (new additions only) | E15: Depreciation Rate on New Additions | F15: 2015 Depreciation Expense 1 | G15: 2015 Depreciation Expense per Appendix 2-BA Fixed Assets, Column J (l) | H15: Variance 2 | I15: Depreciation Expense on 2015 Full Year Additions | J15: Less Depreciation Expense on Assets Fully Depreciated during the year (o) | K15: 2015 Full Year Depreciation 3
C16: (d) | D16: (f) | E16: (g) = 1 / (f) | F16: (h)=2014 Full Year Depreciation + ((d)*0.5)/(f) | H16: (m) = (h) - (l) | I16: (n)=((d))/(f) | K16: (p) = 2014 Full Year Depreciation + (n) - (o)
A17: 1611 | B17: Computer Software (Formally known as Account 1925) (application software) | C17: ='[13]App.2-CJ_MIFRS_DepExp_2015'!C17 -> 346000 | D17: ='[13]App.2-CJ_MIFRS_DepExp_2015'!D17 -> 3 | E17: =IF(D17=0,0,1/D17) -> 0.3333333333 | F17: =IF(D17=0,'App.2-CI_MIFRS_DepExp_2014'!K17,+'App.2-CI_MIFRS_DepExp_2014'!K17+((C17*0.5)/D17)) -> 57666.66667 | G17: ='[13]App.2-CJ_MIFRS_DepExp_2015'!G17 -> 107738.0373 | H17: =IF(ISERROR(+F17-G17), 0, +F17-G17) -> -50071.37067 | I17: =IF(D17=0,0,+(C17)/D17) -> 115333.3333 | J17: ='[13]App.2-CJ_MIFRS_DepExp_2015'!J17 -> 0 | K17: =IF(ISERROR(+I17+'App.2-CI_MIFRS_DepExp_2014'!K17-J17), 0, +I17+'App.2-CI_MIFRS_DepExp_2014'!K17-J17) -> 115333.3333
A18: 1611 | B18: Computer Software (Formally known as Account 1925) (systems software) | C18: ='[13]App.2-CJ_MIFRS_DepExp_2015'!C18 -> 150000 | D18: ='[13]App.2-CJ_MIFRS_DepExp_2015'!D18 -> 5 | E18: =IF(D18=0,0,1/D18) -> 0.2 | F18: =IF(D18=0,'App.2-CI_MIFRS_DepExp_2014'!K18,+'App.2-CI_MIFRS_DepExp_2014'!K18+((C18*0.5)/D18)) -> 231989.8 | G18: ='[13]App.2-CJ_MIFRS_DepExp_2015'!G18 -> 216990 | H18: =IF(ISERROR(+F18-G18), 0, +F18-G18) -> 14999.8 | I18: =IF(D18=0,0,+(C18)/D18) -> 30000 | J18: ='[13]App.2-CJ_MIFRS_DepExp_2015'!J18 -> 0 | K18: =IF(ISERROR(+I18+'App.2-CI_MIFRS_DepExp_2014'!K18-J18), 0, +I18+'App.2-CI_MIFRS_DepExp_2014'!K18-J18) -> 246989.8
A19: 1611 | B19: Computer Software (Formally known as Account 1925) (foundational software) | C19: ='[13]App.2-CJ_MIFRS_DepExp_2015'!C19 -> 0 | D19: ='[13]App.2-CJ_MIFRS_DepExp_2015'!D19 -> 10 | E19: 0.1 | F19: =IF(D19=0,'App.2-CI_MIFRS_DepExp_2014'!K19+'App.2-CI_MIFRS_DepExp_2014'!K20,+'App.2-CI_MIFRS_DepExp_2014'!K19+'App.2-CI_MIFRS_DepExp_2014'!K20+((C19*0.5)/D19)) -> 146893.5 | G19: ='[13]App.2-CJ_MIFRS_DepExp_2015'!G19 -> 141949 | H19: 4944.5 | I19: 0 | J19: ='[13]App.2-CJ_MIFRS_DepExp_2015'!J19 -> 0 | K19: =IF(ISERROR(+I19+'App.2-CI_MIFRS_DepExp_2014'!K19+'App.2-CI_MIFRS_DepExp_2014'!K20-J19), 0, +I19+'App.2-CI_MIFRS_DepExp_2014'!K19+'App.2-CI_MIFRS_DepExp_2014'!K20-J19) -> 146893.5
C20: ='[13]App.2-CJ_MIFRS_DepExp_2015'!C20 -> 0 | D20: ='[13]App.2-CJ_MIFRS_DepExp_2015'!D20 -> 0 | E20: 0 | G20: ='[13]App.2-CJ_MIFRS_DepExp_2015'!G20 -> 0 | H20: 0 | I20: 0 | J20: ='[13]App.2-CJ_MIFRS_DepExp_2015'!J20 -> 0
A21: 1612 | B21: Land Rights (Formally known as Account 1906) | C21: ='[13]App.2-CJ_MIFRS_DepExp_2015'!C21 -> 0 | D21: ='[13]App.2-CJ_MIFRS_DepExp_2015'!D21 -> 0 | E21: 0 | F21: =IF(D21=0,'App.2-CI_MIFRS_DepExp_2014'!K21,+'App.2-CI_MIFRS_DepExp_2014'!K21+((C21*0.5)/D21)) -> 0 | G21: ='[13]App.2-CJ_MIFRS_DepExp_2015'!G21 -> 0 | H21: 0 | I21: 0 | J21: ='[13]App.2-CJ_MIFRS_DepExp_2015'!J21 -> 0 | K21: =IF(ISERROR(+I21+'App.2-CI_MIFRS_DepExp_2014'!K21-J21), 0, +I21+'App.2-CI_MIFRS_DepExp_2014'!K21-J21) -> 0
A22: 1805 | B22: Land | C22: ='[13]App.2-CJ_MIFRS_DepExp_2015'!C22 -> 0 | D22: ='[13]App.2-CJ_MIFRS_DepExp_2015'!D22 -> 0 | E22: 0 | F22: =IF(D22=0,'App.2-CI_MIFRS_DepExp_2014'!K22,+'App.2-CI_MIFRS_DepExp_2014'!K22+((C22*0.5)/D22)) -> 0 | G22: ='[13]App.2-CJ_MIFRS_DepExp_2015'!G22 -> 0 | H22: 0 | I22: 0 | J22: ='[13]App.2-CJ_MIFRS_DepExp_2015'!J22 -> 0 | K22: =IF(ISERROR(+I22+'App.2-CI_MIFRS_DepExp_2014'!K22-J22), 0, +I22+'App.2-CI_MIFRS_DepExp_2014'!K22-J22) -> 0
A23: 1808 | B23: Buildings | C23: ='[13]App.2-CJ_MIFRS_DepExp_2015'!C23 -> 0 | D23: ='[13]App.2-CJ_MIFRS_DepExp_2015'!D23 -> 40 | E23: 0.025 | F23: =IF(D23=0,'App.2-CI_MIFRS_DepExp_2014'!K23,+'App.2-CI_MIFRS_DepExp_2014'!K23+((C23*0.5)/D23)) -> 19644.19586 | G23: ='[13]App.2-CJ_MIFRS_DepExp_2015'!G23 -> 19017.06807 | H23: 627.1277929 | I23: 0 | J23: ='[13]App.2-CJ_MIFRS_DepExp_2015'!J23 -> 0 | K23: =IF(ISERROR(+I23+'App.2-CI_MIFRS_DepExp_2014'!K23-J23), 0, +I23+'App.2-CI_MIFRS_DepExp_2014'!K23-J23) -> 19644.19586
A24: 1808 | B24: Buildings (mechanical, roof) | C24: ='[13]App.2-CJ_MIFRS_DepExp_2015'!C24 -> 0 | D24: ='[13]App.2-CJ_MIFRS_DepExp_2015'!D24 -> 20 | E24: 0.05 | F24: =IF(D24=0,'App.2-CI_MIFRS_DepExp_2014'!K24,+'App.2-CI_MIFRS_DepExp_2014'!K24+((C24*0.5)/D24)) -> 4491.531142 | G24: ='[13]App.2-CJ_MIFRS_DepExp_2015'!G24 -> 8203 | H24: -3711.468858 | I24: 0 | J24: ='[13]App.2-CJ_MIFRS_DepExp_2015'!J24 -> 0 | K24: =IF(ISERROR(+I24+'App.2-CI_MIFRS_DepExp_2014'!K24-J24), 0, +I24+'App.2-CI_MIFRS_DepExp_2014'!K24-J24) -> 4491.531142
A25: 1810 | B25: Leasehold Improvements | C25: ='[13]App.2-CJ_MIFRS_DepExp_2015'!C25 -> 0 | D25: ='[13]App.2-CJ_MIFRS_DepExp_2015'!D25 -> 0 | E25: 0 | F25: =IF(D25=0,'App.2-CI_MIFRS_DepExp_2014'!K25,+'App.2-CI_MIFRS_DepExp_2014'!K25+((C25*0.5)/D25)) -> 0 | G25: ='[13]App.2-CJ_MIFRS_DepExp_2015'!G25 -> 0 | H25: 0 | I25: 0 | J25: ='[13]App.2-CJ_MIFRS_DepExp_2015'!J25 -> 0 | K25: =IF(ISERROR(+I25+'App.2-CI_MIFRS_DepExp_2014'!K25-J25), 0, +I25+'App.2-CI_MIFRS_DepExp_2014'!K25-J25) -> 0
A26: 1815 | B26: Transformer Station Equipment >50 kV | C26: ='[13]App.2-CJ_MIFRS_DepExp_2015'!C26 -> 0 | D26: ='[13]App.2-CJ_MIFRS_DepExp_2015'!D26 -> 0 | E26: 0 | F26: =IF(D26=0,'App.2-CI_MIFRS_DepExp_2014'!K26,+'App.2-CI_MIFRS_DepExp_2014'!K26+((C26*0.5)/D26)) -> 0 | G26: ='[13]App.2-CJ_MIFRS_DepExp_2015'!G26 -> 0 | H26: 0 | I26: 0 | J26: ='[13]App.2-CJ_MIFRS_DepExp_2015'!J26 -> 0 | K26: =IF(ISERROR(+I26+'App.2-CI_MIFRS_DepExp_2014'!K26-J26), 0, +I26+'App.2-CI_MIFRS_DepExp_2014'!K26-J26) -> 0
A27: 1820 | B27: Distribution Station Equipment <50 kV (power transformer, switch gear) | C27: ='[13]App.2-CJ_MIFRS_DepExp_2015'!C27 -> 0 | D27: ='[13]App.2-CJ_MIFRS_DepExp_2015'!D27 -> 45 | E27: 0.02222222222 | F27: =IF(D27=0,'App.2-CI_MIFRS_DepExp_2014'!K27,+'App.2-CI_MIFRS_DepExp_2014'!K27+((C27*0.5)/D27)) -> 11852.67296 | G27: ='[13]App.2-CJ_MIFRS_DepExp_2015'!G27 -> 9715.49065 | H27: 2137.182313 | I27: 0 | J27: ='[13]App.2-CJ_MIFRS_DepExp_2015'!J27 -> 0 | K27: =IF(ISERROR(+I27+'App.2-CI_MIFRS_DepExp_2014'!K27-J27), 0, +I27+'App.2-CI_MIFRS_DepExp_2014'!K27-J27) -> 11852.67296
A28: 1820 | B28: Distribution Station Equipment <50 kV (wholesale meter) | C28: ='[13]App.2-CJ_MIFRS_DepExp_2015'!C28 -> 0 | D28: ='[13]App.2-CJ_MIFRS_DepExp_2015'!D28 -> 15 | E28: 0.06666666667 | F28: =IF(D28=0,'App.2-CI_MIFRS_DepExp_2014'!K28,+'App.2-CI_MIFRS_DepExp_2014'!K28+((C28*0.5)/D28)) -> 57748.08866 | G28: ='[13]App.2-CJ_MIFRS_DepExp_2015'!G28 -> 57765 | H28: -16.91133517 | I28: 0 | J28: ='[13]App.2-CJ_MIFRS_DepExp_2015'!J28 -> 0 | K28: =IF(ISERROR(+I28+'App.2-CI_MIFRS_DepExp_2014'!K28-J28), 0, +I28+'App.2-CI_MIFRS_DepExp_2014'!K28-J28) -> 57748.08866
A29: 1825 | B29: Storage Battery Equipment | C29: ='[13]App.2-CJ_MIFRS_DepExp_2015'!C29 -> 0 | D29: ='[13]App.2-CJ_MIFRS_DepExp_2015'!D29 -> 0 | E29: 0 | F29: =IF(D29=0,'App.2-CI_MIFRS_DepExp_2014'!K29,+'App.2-CI_MIFRS_DepExp_2014'!K29+((C29*0.5)/D29)) -> 0 | G29: ='[13]App.2-CJ_MIFRS_DepExp_2015'!G29 -> 0 | H29: 0 | I29: 0 | J29: ='[13]App.2-CJ_MIFRS_DepExp_2015'!J29 -> 0 | K29: =IF(ISERROR(+I29+'App.2-CI_MIFRS_DepExp_2014'!K29-J29), 0, +I29+'App.2-CI_MIFRS_DepExp_2014'!K29-J29) -> 0
A30: 1830 | B30: Poles, Towers & Fixtures (composite poles, concrete poles) | C30: ='[13]App.2-CJ_MIFRS_DepExp_2015'!C30 -> 91808.15196 | D30: ='[13]App.2-CJ_MIFRS_DepExp_2015'!D30 -> 50 | E30: 0.02 | F30: =IF(D30=0,'App.2-CI_MIFRS_DepExp_2014'!K30,+'App.2-CI_MIFRS_DepExp_2014'!K30+((C30*0.5)/D30)) -> 14128.74878 | G30: ='[13]App.2-CJ_MIFRS_DepExp_2015'!G30 -> 5351.48629 | H30: 8777.262491 | I30: 1836.163039 | J30: ='[13]App.2-CJ_MIFRS_DepExp_2015'!J30 -> 0 | K30: =IF(ISERROR(+I30+'App.2-CI_MIFRS_DepExp_2014'!K30-J30), 0, +I30+'App.2-CI_MIFRS_DepExp_2014'!K30-J30) -> 15046.8303
A31: 1830 | B31: Poles, Towers & Fixtures (steel poles) | C31: ='[13]App.2-CJ_MIFRS_DepExp_2015'!C31 -> 153281 | D31: ='[13]App.2-CJ_MIFRS_DepExp_2015'!D31 -> 60 | E31: 0.01666666667 | F31: =IF(D31=0,'App.2-CI_MIFRS_DepExp_2014'!K31,+'App.2-CI_MIFRS_DepExp_2014'!K31+((C31*0.5)/D31)) -> 24189.19941 | G31: ='[13]App.2-CJ_MIFRS_DepExp_2015'!G31 -> 24190 | H31: -0.8005892879 | I31: 2554.683333 | J31: ='[13]App.2-CJ_MIFRS_DepExp_2015'!J31 -> 0 | K31: =IF(ISERROR(+I31+'App.2-CI_MIFRS_DepExp_2014'!K31-J31), 0, +I31+'App.2-CI_MIFRS_DepExp_2014'!K31-J31) -> 25466.54108
A32: 1830 | B32: Poles, Towers & Fixtures (wood poles) | C32: ='[13]App.2-CJ_MIFRS_DepExp_2015'!C32 -> 845542 | D32: ='[13]App.2-CJ_MIFRS_DepExp_2015'!D32 -> 45 | E32: 0.02222222222 | F32: =IF(D32=0,'App.2-CI_MIFRS_DepExp_2014'!K32,+'App.2-CI_MIFRS_DepExp_2014'!K32+((C32*0.5)/D32)) -> 167011.2777 | G32: ='[13]App.2-CJ_MIFRS_DepExp_2015'!G32 -> 166005 | H32: 1006.277711 | I32: 18789.82222 | J32: ='[13]App.2-CJ_MIFRS_DepExp_2015'!J32 -> 0 | K32: =IF(ISERROR(+I32+'App.2-CI_MIFRS_DepExp_2014'!K32-J32), 0, +I32+'App.2-CI_MIFRS_DepExp_2014'!K32-J32) -> 176406.1888
A33: 1835 | B33: Overhead Conductors & Devices (composite poles, concrete poles) | C33: ='[13]App.2-CJ_MIFRS_DepExp_2015'!C33 -> 700299.5169 | D33: ='[13]App.2-CJ_MIFRS_DepExp_2015'!D33 -> 50 | E33: 0.02 | F33: =IF(D33=0,'App.2-CI_MIFRS_DepExp_2014'!K33,+'App.2-CI_MIFRS_DepExp_2014'!K33+((C33*0.5)/D33)) -> 208261.3275 | G33: ='[13]App.2-CJ_MIFRS_DepExp_2015'!G33 -> 201385.6869 | H33: 6875.640598 | I33: 14005.99034 | J33: ='[13]App.2-CJ_MIFRS_DepExp_2015'!J33 -> 0 | K33: =IF(ISERROR(+I33+'App.2-CI_MIFRS_DepExp_2014'!K33-J33), 0, +I33+'App.2-CI_MIFRS_DepExp_2014'!K33-J33) -> 215264.3226
A34: 1835 | B34: Overhead Conductors & Devices (steel poles) | C34: ='[13]App.2-CJ_MIFRS_DepExp_2015'!C34 -> 601691 | D34: ='[13]App.2-CJ_MIFRS_DepExp_2015'!D34 -> 60 | E34: 0.01666666667 | F34: =IF(D34=0,'App.2-CI_MIFRS_DepExp_2014'!K34,+'App.2-CI_MIFRS_DepExp_2014'!K34+((C34*0.5)/D34)) -> 35522.78845 | G34: ='[13]App.2-CJ_MIFRS_DepExp_2015'!G34 -> 35523 | H34: -0.2115457069 | I34: 10028.18333 | J34: ='[13]App.2-CJ_MIFRS_DepExp_2015'!J34 -> 0 | K34: =IF(ISERROR(+I34+'App.2-CI_MIFRS_DepExp_2014'!K34-J34), 0, +I34+'App.2-CI_MIFRS_DepExp_2014'!K34-J34) -> 40536.88012
A35: 1835 | B35: Overhead Conductors & Devices (wood poles) | C35: ='[13]App.2-CJ_MIFRS_DepExp_2015'!C35 -> 566990 | D35: ='[13]App.2-CJ_MIFRS_DepExp_2015'!D35 -> 45 | E35: 0.02222222222 | F35: =IF(D35=0,'App.2-CI_MIFRS_DepExp_2014'!K35,+'App.2-CI_MIFRS_DepExp_2014'!K35+((C35*0.5)/D35)) -> 247698.9444 | G35: ='[13]App.2-CJ_MIFRS_DepExp_2015'!G35 -> 246807 | H35: 891.9444471 | I35: 12599.77778 | J35: ='[13]App.2-CJ_MIFRS_DepExp_2015'!J35 -> 0 | K35: =IF(ISERROR(+I35+'App.2-CI_MIFRS_DepExp_2014'!K35-J35), 0, +I35+'App.2-CI_MIFRS_DepExp_2014'!K35-J35) -> 253998.8333
A36: 1840 | B36: Underground Conduit | C36: ='[13]App.2-CJ_MIFRS_DepExp_2015'!C36 -> 354459.4488 | D36: ='[13]App.2-CJ_MIFRS_DepExp_2015'!D36 -> 50 | E36: 0.02 | F36: =IF(D36=0,'App.2-CI_MIFRS_DepExp_2014'!K36,+'App.2-CI_MIFRS_DepExp_2014'!K36+((C36*0.5)/D36)) -> 65771.8772 | G36: ='[13]App.2-CJ_MIFRS_DepExp_2015'!G36 -> 64101.77682 | H36: 1670.10038 | I36: 7089.188977 | J36: ='[13]App.2-CJ_MIFRS_DepExp_2015'!J36 -> 0 | K36: =IF(ISERROR(+I36+'App.2-CI_MIFRS_DepExp_2014'!K36-J36), 0, +I36+'App.2-CI_MIFRS_DepExp_2014'!K36-J36) -> 69316.47168
A37: 1845 | B37: Underground Conductors & Devices | C37: ='[13]App.2-CJ_MIFRS_DepExp_2015'!C37 -> 264251.2565 | D37: ='[13]App.2-CJ_MIFRS_DepExp_2015'!D37 -> 20 | E37: 0.05 | F37: =IF(D37=0,'App.2-CI_MIFRS_DepExp_2014'!K37,+'App.2-CI_MIFRS_DepExp_2014'!K37+((C37*0.5)/D37)) -> 344268.2399 | G37: ='[13]App.2-CJ_MIFRS_DepExp_2015'!G37 -> 290815.3752 | H37: 53452.86477 | I37: 13212.56283 | J37: ='[13]App.2-CJ_MIFRS_DepExp_2015'!J37 -> 46424 | K37: =IF(ISERROR(+I37+'App.2-CI_MIFRS_DepExp_2014'!K37-J37), 0, +I37+'App.2-CI_MIFRS_DepExp_2014'!K37-J37) -> 304450.5214
A38: 1845 | B38: Underground Conductors & Devices (primary PILC, primary duct) | C38: ='[13]App.2-CJ_MIFRS_DepExp_2015'!C38 -> 472255 | D38: ='[13]App.2-CJ_MIFRS_DepExp_2015'!D38 -> 25 | E38: 0.04 | F38: =IF(D38=0,'App.2-CI_MIFRS_DepExp_2014'!K38,+'App.2-CI_MIFRS_DepExp_2014'!K38+((C38*0.5)/D38)) -> 274435.56 | G38: ='[13]App.2-CJ_MIFRS_DepExp_2015'!G38 -> 274436 | H38: -0.4400006515 | I38: 18890.2 | J38: ='[13]App.2-CJ_MIFRS_DepExp_2015'!J38 -> 0 | K38: =IF(ISERROR(+I38+'App.2-CI_MIFRS_DepExp_2014'!K38-J38), 0, +I38+'App.2-CI_MIFRS_DepExp_2014'!K38-J38) -> 283880.66
A39: 1845 | B39: Underground Conductors & Devices (secondary direct) | C39: ='[13]App.2-CJ_MIFRS_DepExp_2015'!C39 -> 76469 | D39: ='[13]App.2-CJ_MIFRS_DepExp_2015'!D39 -> 35 | E39: 0.02857142857 | F39: =IF(D39=0,'App.2-CI_MIFRS_DepExp_2014'!K39,+'App.2-CI_MIFRS_DepExp_2014'!K39+((C39*0.5)/D39)) -> 27940.74286 | G39: ='[13]App.2-CJ_MIFRS_DepExp_2015'!G39 -> 27941 | H39: -0.2571429366 | I39: 2184.828571 | J39: ='[13]App.2-CJ_MIFRS_DepExp_2015'!J39 -> 0 | K39: =IF(ISERROR(+I39+'App.2-CI_MIFRS_DepExp_2014'!K39-J39), 0, +I39+'App.2-CI_MIFRS_DepExp_2014'!K39-J39) -> 29033.15714
A40: 1845 | B40: Underground Conductors & Devices (duct bank) | C40: ='[13]App.2-CJ_MIFRS_DepExp_2015'!C40 -> 86612 | D40: ='[13]App.2-CJ_MIFRS_DepExp_2015'!D40 -> 50 | E40: 0.02 | F40: =IF(D40=0,'App.2-CI_MIFRS_DepExp_2014'!K40,+'App.2-CI_MIFRS_DepExp_2014'!K40+((C40*0.5)/D40)) -> 23387.84864 | G40: ='[13]App.2-CJ_MIFRS_DepExp_2015'!G40 -> 23392 | H40: -4.151364212 | I40: 1732.24 | J40: ='[13]App.2-CJ_MIFRS_DepExp_2015'!J40 -> 0 | K40: =IF(ISERROR(+I40+'App.2-CI_MIFRS_DepExp_2014'!K40-J40), 0, +I40+'App.2-CI_MIFRS_DepExp_2014'!K40-J40) -> 24253.96864
A41: 1845 | B41: Underground Conductors & Devices (trans switch) | C41: ='[13]App.2-CJ_MIFRS_DepExp_2015'!C41 -> 15886 | D41: ='[13]App.2-CJ_MIFRS_DepExp_2015'!D41 -> 55 | E41: 0.01818181818 | F41: =IF(D41=0,'App.2-CI_MIFRS_DepExp_2014'!K41,+'App.2-CI_MIFRS_DepExp_2014'!K41+((C41*0.5)/D41)) -> 3789.882511 | G41: ='[13]App.2-CJ_MIFRS_DepExp_2015'!G41 -> 3790 | H41: -0.1174887892 | I41: 288.8363636 | J41: ='[13]App.2-CJ_MIFRS_DepExp_2015'!J41 -> 0 | K41: =IF(ISERROR(+I41+'App.2-CI_MIFRS_DepExp_2014'!K41-J41), 0, +I41+'App.2-CI_MIFRS_DepExp_2014'!K41-J41) -> 3934.300693
A42: 1850 | B42: Line Transformers (pad mount, pole mount) | C42: ='[13]App.2-CJ_MIFRS_DepExp_2015'!C42 -> 965869.9747 | D42: ='[13]App.2-CJ_MIFRS_DepExp_2015'!D42 -> 40 | E42: 0.025 | F42: =IF(D42=0,'App.2-CI_MIFRS_DepExp_2014'!K42,+'App.2-CI_MIFRS_DepExp_2014'!K42+((C42*0.5)/D42)) -> 367732.3837 | G42: ='[13]App.2-CJ_MIFRS_DepExp_2015'!G42 -> 354705.5064 | H42: 13026.87732 | I42: 24146.74937 | J42: ='[13]App.2-CJ_MIFRS_DepExp_2015'!J42 -> 0 | K42: =IF(ISERROR(+I42+'App.2-CI_MIFRS_DepExp_2014'!K42-J42), 0, +I42+'App.2-CI_MIFRS_DepExp_2014'!K42-J42) -> 379805.7584
A43: 1850 | B43: Line Transformers (submersible) | C43: ='[13]App.2-CJ_MIFRS_DepExp_2015'!C43 -> 101764 | D43: ='[13]App.2-CJ_MIFRS_DepExp_2015'!D43 -> 40 | E43: 0.025 | F43: =IF(D43=0,'App.2-CI_MIFRS_DepExp_2014'!K43,+'App.2-CI_MIFRS_DepExp_2014'!K43+((C43*0.5)/D43)) -> 35085.0375 | G43: ='[13]App.2-CJ_MIFRS_DepExp_2015'!G43 -> 35085 | H43: 0.03749991092 | I43: 2544.1 | J43: ='[13]App.2-CJ_MIFRS_DepExp_2015'!J43 -> 0 | K43: =IF(ISERROR(+I43+'App.2-CI_MIFRS_DepExp_2014'!K43-J43), 0, +I43+'App.2-CI_MIFRS_DepExp_2014'!K43-J43) -> 36357.0875
A44: 1850 | B44: Line Transformers (submersible vault) | C44: ='[13]App.2-CJ_MIFRS_DepExp_2015'!C44 -> 108986 | D44: ='[13]App.2-CJ_MIFRS_DepExp_2015'!D44 -> 35 | E44: 0.02857142857 | F44: =IF(D44=0,'App.2-CI_MIFRS_DepExp_2014'!K44,+'App.2-CI_MIFRS_DepExp_2014'!K44+((C44*0.5)/D44)) -> 52004.59651 | G44: ='[13]App.2-CJ_MIFRS_DepExp_2015'!G44 -> 52005 | H44: -0.4034914169 | I44: 3113.885714 | J44: ='[13]App.2-CJ_MIFRS_DepExp_2015'!J44 -> 0 | K44: =IF(ISERROR(+I44+'App.2-CI_MIFRS_DepExp_2014'!K44-J44), 0, +I44+'App.2-CI_MIFRS_DepExp_2014'!K44-J44) -> 53561.53937
A45: 1855 | B45: Services (Overhead & Underground) (direct) | C45: ='[13]App.2-CJ_MIFRS_DepExp_2015'!C45 -> 372723.0892 | D45: ='[13]App.2-CJ_MIFRS_DepExp_2015'!D45 -> 40 | E45: 0.025 | F45: =IF(D45=0,'App.2-CI_MIFRS_DepExp_2014'!K45,+'App.2-CI_MIFRS_DepExp_2014'!K45+((C45*0.5)/D45)) -> 94295.07993 | G45: ='[13]App.2-CJ_MIFRS_DepExp_2015'!G45 -> 125385.8886 | H45: -31090.80871 | I45: 9318.07723 | J45: ='[13]App.2-CJ_MIFRS_DepExp_2015'!J45 -> 0 | K45: =IF(ISERROR(+I45+'App.2-CI_MIFRS_DepExp_2014'!K45-J45), 0, +I45+'App.2-CI_MIFRS_DepExp_2014'!K45-J45) -> 98954.11855
A46: 1855 | B46: Services (Overhead & Underground) (duct) | C46: ='[13]App.2-CJ_MIFRS_DepExp_2015'!C46 -> 275636 | D46: ='[13]App.2-CJ_MIFRS_DepExp_2015'!D46 -> 50 | E46: 0.02 | F46: =IF(D46=0,'App.2-CI_MIFRS_DepExp_2014'!K46,+'App.2-CI_MIFRS_DepExp_2014'!K46+((C46*0.5)/D46)) -> 49294.31129 | G46: ='[13]App.2-CJ_MIFRS_DepExp_2015'!G46 -> 49325 | H46: -30.68871369 | I46: 5512.72 | J46: ='[13]App.2-CJ_MIFRS_DepExp_2015'!J46 -> 0 | K46: =IF(ISERROR(+I46+'App.2-CI_MIFRS_DepExp_2014'!K46-J46), 0, +I46+'App.2-CI_MIFRS_DepExp_2014'!K46-J46) -> 52050.67129
A47: 1860 | B47: Meters | C47: ='[13]App.2-CJ_MIFRS_DepExp_2015'!C47 -> 0 | D47: ='[13]App.2-CJ_MIFRS_DepExp_2015'!D47 -> 25 | E47: 0.04 | F47: =IF(D47=0,'App.2-CI_MIFRS_DepExp_2014'!K47,+'App.2-CI_MIFRS_DepExp_2014'!K47+((C47*0.5)/D47)) -> 159231.5763 | G47: ='[13]App.2-CJ_MIFRS_DepExp_2015'!G47 -> 211474.4795 | H47: -52242.90312 | I47: 0 | J47: ='[13]App.2-CJ_MIFRS_DepExp_2015'!J47 -> 7457 | K47: =IF(ISERROR(+I47+'App.2-CI_MIFRS_DepExp_2014'!K47-J47), 0, +I47+'App.2-CI_MIFRS_DepExp_2014'!K47-J47) -> 151774.5763
A48: 1860 | B48: Meters (Smart Meters) | C48: ='[13]App.2-CJ_MIFRS_DepExp_2015'!C48 -> 458233.3965 | D48: ='[13]App.2-CJ_MIFRS_DepExp_2015'!D48 -> 15 | E48: 0.06666666667 | F48: =IF(D48=0,'App.2-CI_MIFRS_DepExp_2014'!K48,+'App.2-CI_MIFRS_DepExp_2014'!K48+((C48*0.5)/D48)) -> 582261.1274 | G48: ='[13]App.2-CJ_MIFRS_DepExp_2015'!G48 -> 568478.4534 | H48: 13782.67403 | I48: 30548.8931 | J48: ='[13]App.2-CJ_MIFRS_DepExp_2015'!J48 -> 0 | K48: =IF(ISERROR(+I48+'App.2-CI_MIFRS_DepExp_2014'!K48-J48), 0, +I48+'App.2-CI_MIFRS_DepExp_2014'!K48-J48) -> 597535.5739
A49: 1905 | B49: Land | C49: ='[13]App.2-CJ_MIFRS_DepExp_2015'!C49 -> 0 | D49: ='[13]App.2-CJ_MIFRS_DepExp_2015'!D49 -> 0 | E49: 0 | F49: =IF(D49=0,'App.2-CI_MIFRS_DepExp_2014'!K49,+'App.2-CI_MIFRS_DepExp_2014'!K49+((C49*0.5)/D49)) -> 0 | G49: ='[13]App.2-CJ_MIFRS_DepExp_2015'!G49 -> 0 | H49: 0 | I49: 0 | J49: ='[13]App.2-CJ_MIFRS_DepExp_2015'!J49 -> 0 | K49: =IF(ISERROR(+I49+'App.2-CI_MIFRS_DepExp_2014'!K49-J49), 0, +I49+'App.2-CI_MIFRS_DepExp_2014'!K49-J49) -> 0
A50: 1908 | B50: Buildings & Fixtures | C50: ='[13]App.2-CJ_MIFRS_DepExp_2015'!C50 -> 400500 | D50: ='[13]App.2-CJ_MIFRS_DepExp_2015'!D50 -> 50 | E50: 0.02 | F50: =IF(D50=0,'App.2-CI_MIFRS_DepExp_2014'!K50,+'App.2-CI_MIFRS_DepExp_2014'!K50+((C50*0.5)/D50)) -> 66170.76991 | G50: ='[13]App.2-CJ_MIFRS_DepExp_2015'!G50 -> 62713.78033 | H50: 3456.989574 | I50: 8010 | J50: ='[13]App.2-CJ_MIFRS_DepExp_2015'!J50 -> 0 | K50: =IF(ISERROR(+I50+'App.2-CI_MIFRS_DepExp_2014'!K50-J50), 0, +I50+'App.2-CI_MIFRS_DepExp_2014'!K50-J50) -> 70175.76991
A51: 1908 | B51: Buildings & Fixtures (mechanical, roof) | C51: ='[13]App.2-CJ_MIFRS_DepExp_2015'!C51 -> 64500 | D51: ='[13]App.2-CJ_MIFRS_DepExp_2015'!D51 -> 20 | E51: 0.05 | F51: =IF(D51=0,'App.2-CI_MIFRS_DepExp_2014'!K51,+'App.2-CI_MIFRS_DepExp_2014'!K51+((C51*0.5)/D51)) -> 114500.25 | G51: ='[13]App.2-CJ_MIFRS_DepExp_2015'!G51 -> 128736 | H51: -14235.75 | I51: 3225 | J51: ='[13]App.2-CJ_MIFRS_DepExp_2015'!J51 -> 0 | K51: =IF(ISERROR(+I51+'App.2-CI_MIFRS_DepExp_2014'!K51-J51), 0, +I51+'App.2-CI_MIFRS_DepExp_2014'!K51-J51) -> 116112.75
A52: 1908 | B52: Buildings & Fixtures (SCADA tower) | C52: ='[13]App.2-CJ_MIFRS_DepExp_2015'!C52 -> 0 | D52: ='[13]App.2-CJ_MIFRS_DepExp_2015'!D52 -> 25 | E52: 0.04 | F52: =IF(D52=0,'App.2-CI_MIFRS_DepExp_2014'!K52,+'App.2-CI_MIFRS_DepExp_2014'!K52+((C52*0.5)/D52)) -> 2460.833333 | G52: ='[13]App.2-CJ_MIFRS_DepExp_2015'!G52 -> 2461 | H52: -0.1666666667 | I52: 0 | J52: ='[13]App.2-CJ_MIFRS_DepExp_2015'!J52 -> 0 | K52: =IF(ISERROR(+I52+'App.2-CI_MIFRS_DepExp_2014'!K52-J52), 0, +I52+'App.2-CI_MIFRS_DepExp_2014'!K52-J52) -> 2460.833333
A53: 1910 | B53: Leasehold Improvements | C53: ='[13]App.2-CJ_MIFRS_DepExp_2015'!C53 -> 0 | D53: ='[13]App.2-CJ_MIFRS_DepExp_2015'!D53 -> 0 | E53: 0 | F53: =IF(D53=0,'App.2-CI_MIFRS_DepExp_2014'!K53,+'App.2-CI_MIFRS_DepExp_2014'!K53+((C53*0.5)/D53)) -> 0 | G53: ='[13]App.2-CJ_MIFRS_DepExp_2015'!G53 -> 0 | H53: 0 | I53: 0 | J53: ='[13]App.2-CJ_MIFRS_DepExp_2015'!J53 -> 0 | K53: =IF(ISERROR(+I53+'App.2-CI_MIFRS_DepExp_2014'!K53-J53), 0, +I53+'App.2-CI_MIFRS_DepExp_2014'!K53-J53) -> 0
A54: 1915 | B54: Office Furniture & Equipment (10 years) | C54: ='[13]App.2-CJ_MIFRS_DepExp_2015'!C54 -> 20000 | D54: ='[13]App.2-CJ_MIFRS_DepExp_2015'!D54 -> 10 | E54: 0.1 | F54: =IF(D54=0,'App.2-CI_MIFRS_DepExp_2014'!K54,+'App.2-CI_MIFRS_DepExp_2014'!K54+((C54*0.5)/D54)) -> 36172.59193 | G54: ='[13]App.2-CJ_MIFRS_DepExp_2015'!G54 -> 46790.63972 | H54: -10618.0478 | I54: 2000 | J54: ='[13]App.2-CJ_MIFRS_DepExp_2015'!J54 -> 128 | K54: =IF(ISERROR(+I54+'App.2-CI_MIFRS_DepExp_2014'!K54-J54), 0, +I54+'App.2-CI_MIFRS_DepExp_2014'!K54-J54) -> 37044.59193
A55: 1915 | B55: Office Furniture & Equipment (5 years) | C55: ='[13]App.2-CJ_MIFRS_DepExp_2015'!C55 -> 0 | D55: ='[13]App.2-CJ_MIFRS_DepExp_2015'!D55 -> 0 | E55: 0 | F55: =IF(D55=0,'App.2-CI_MIFRS_DepExp_2014'!K55,+'App.2-CI_MIFRS_DepExp_2014'!K55+((C55*0.5)/D55)) -> 0 | G55: ='[13]App.2-CJ_MIFRS_DepExp_2015'!G55 -> 0 | H55: 0 | I55: 0 | J55: ='[13]App.2-CJ_MIFRS_DepExp_2015'!J55 -> 0 | K55: =IF(ISERROR(+I55+'App.2-CI_MIFRS_DepExp_2014'!K55-J55), 0, +I55+'App.2-CI_MIFRS_DepExp_2014'!K55-J55) -> 0
A56: 1920 | B56: Computer Equipment - Hardware | C56: ='[13]App.2-CJ_MIFRS_DepExp_2015'!C56 -> 0 | D56: ='[13]App.2-CJ_MIFRS_DepExp_2015'!D56 -> 0 | E56: 0 | F56: =IF(D56=0,'App.2-CI_MIFRS_DepExp_2014'!K56,+'App.2-CI_MIFRS_DepExp_2014'!K56+((C56*0.5)/D56)) -> 0 | G56: ='[13]App.2-CJ_MIFRS_DepExp_2015'!G56 -> 0 | H56: 0 | I56: 0 | J56: ='[13]App.2-CJ_MIFRS_DepExp_2015'!J56 -> 0 | K56: =IF(ISERROR(+I56+'App.2-CI_MIFRS_DepExp_2014'!K56-J56), 0, +I56+'App.2-CI_MIFRS_DepExp_2014'!K56-J56) -> 0
A57: 1920 | B57: Computer Equip.-Hardware(Post Mar. 22/04) | C57: ='[13]App.2-CJ_MIFRS_DepExp_2015'!C57 -> 0 | D57: ='[13]App.2-CJ_MIFRS_DepExp_2015'!D57 -> 0 | E57: 0 | F57: =IF(D57=0,'App.2-CI_MIFRS_DepExp_2014'!K57,+'App.2-CI_MIFRS_DepExp_2014'!K57+((C57*0.5)/D57)) -> 0 | G57: ='[13]App.2-CJ_MIFRS_DepExp_2015'!G57 -> 0 | H57: 0 | I57: 0 | J57: ='[13]App.2-CJ_MIFRS_DepExp_2015'!J57 -> 0 | K57: =IF(ISERROR(+I57+'App.2-CI_MIFRS_DepExp_2014'!K57-J57), 0, +I57+'App.2-CI_MIFRS_DepExp_2014'!K57-J57) -> 0
A58: 1920 | B58: Computer Equip.-Hardware(Post Mar. 19/07) | C58: ='[13]App.2-CJ_MIFRS_DepExp_2015'!C58 -> 35000 | D58: ='[13]App.2-CJ_MIFRS_DepExp_2015'!D58 -> 3 | E58: 0.3333333333 | F58: =IF(D58=0,'App.2-CI_MIFRS_DepExp_2014'!K58,+'App.2-CI_MIFRS_DepExp_2014'!K58+((C58*0.5)/D58)) -> 201389.4183 | G58: ='[13]App.2-CJ_MIFRS_DepExp_2015'!G58 -> 136438.9211 | H58: 64950.49724 | I58: 11666.66667 | J58: ='[13]App.2-CJ_MIFRS_DepExp_2015'!J58 -> 0 | K58: =IF(ISERROR(+I58+'App.2-CI_MIFRS_DepExp_2014'!K58-J58), 0, +I58+'App.2-CI_MIFRS_DepExp_2014'!K58-J58) -> 207222.7517
A59: 1930 | B59: Transportation Equipment (van) | C59: ='[13]App.2-CJ_MIFRS_DepExp_2015'!C59 -> 495000 | D59: ='[13]App.2-CJ_MIFRS_DepExp_2015'!D59 -> 7 | E59: 0.1428571429 | F59: =IF(D59=0,'App.2-CI_MIFRS_DepExp_2014'!K59,+'App.2-CI_MIFRS_DepExp_2014'!K59+((C59*0.5)/D59)) -> 260448.1544 | G59: ='[13]App.2-CJ_MIFRS_DepExp_2015'!G59 -> 223675.0232 | H59: 36773.13118 | I59: 70714.28571 | J59: ='[13]App.2-CJ_MIFRS_DepExp_2015'!J59 -> 16976 | K59: =IF(ISERROR(+I59+'App.2-CI_MIFRS_DepExp_2014'!K59-J59), 0, +I59+'App.2-CI_MIFRS_DepExp_2014'!K59-J59) -> 278829.2972
A60: 1930 | B60: Transportation Equipment (trucks, trailers) | C60: ='[13]App.2-CJ_MIFRS_DepExp_2015'!C60 -> 140000 | D60: ='[13]App.2-CJ_MIFRS_DepExp_2015'!D60 -> 10 | E60: 0.1 | F60: =IF(D60=0,'App.2-CI_MIFRS_DepExp_2014'!K60,+'App.2-CI_MIFRS_DepExp_2014'!K60+((C60*0.5)/D60)) -> 216613.4224 | G60: ='[13]App.2-CJ_MIFRS_DepExp_2015'!G60 -> 233527 | H60: -16913.57763 | I60: 14000 | J60: ='[13]App.2-CJ_MIFRS_DepExp_2015'!J60 -> 30715 | K60: =IF(ISERROR(+I60+'App.2-CI_MIFRS_DepExp_2014'!K60-J60), 0, +I60+'App.2-CI_MIFRS_DepExp_2014'!K60-J60) -> 192898.4224
A61: 1935 | B61: Stores Equipment | C61: ='[13]App.2-CJ_MIFRS_DepExp_2015'!C61 -> 0 | D61: ='[13]App.2-CJ_MIFRS_DepExp_2015'!D61 -> 0 | E61: 0 | F61: =IF(D61=0,'App.2-CI_MIFRS_DepExp_2014'!K61,+'App.2-CI_MIFRS_DepExp_2014'!K61+((C61*0.5)/D61)) -> 0 | G61: ='[13]App.2-CJ_MIFRS_DepExp_2015'!G61 -> 0 | H61: 0 | I61: 0 | J61: ='[13]App.2-CJ_MIFRS_DepExp_2015'!J61 -> 0 | K61: =IF(ISERROR(+I61+'App.2-CI_MIFRS_DepExp_2014'!K61-J61), 0, +I61+'App.2-CI_MIFRS_DepExp_2014'!K61-J61) -> 0
A62: 1940 | B62: Tools, Shop & Garage Equipment | C62: ='[13]App.2-CJ_MIFRS_DepExp_2015'!C62 -> 132000 | D62: ='[13]App.2-CJ_MIFRS_DepExp_2015'!D62 -> 5 | E62: 0.2 | F62: =IF(D62=0,'App.2-CI_MIFRS_DepExp_2014'!K62,+'App.2-CI_MIFRS_DepExp_2014'!K62+((C62*0.5)/D62)) -> 80405.03781 | G62: ='[13]App.2-CJ_MIFRS_DepExp_2015'!G62 -> 73853.85372 | H62: 6551.184087 | I62: 26400 | J62: ='[13]App.2-CJ_MIFRS_DepExp_2015'!J62 -> 6958 | K62: =IF(ISERROR(+I62+'App.2-CI_MIFRS_DepExp_2014'!K62-J62), 0, +I62+'App.2-CI_MIFRS_DepExp_2014'!K62-J62) -> 86647.03781
A63: 1945 | B63: Measurement & Testing Equipment | C63: ='[13]App.2-CJ_MIFRS_DepExp_2015'!C63 -> 0 | D63: ='[13]App.2-CJ_MIFRS_DepExp_2015'!D63 -> 0 | E63: 0 | F63: =IF(D63=0,'App.2-CI_MIFRS_DepExp_2014'!K63,+'App.2-CI_MIFRS_DepExp_2014'!K63+((C63*0.5)/D63)) -> 0 | G63: ='[13]App.2-CJ_MIFRS_DepExp_2015'!G63 -> 0 | H63: 0 | I63: 0 | J63: ='[13]App.2-CJ_MIFRS_DepExp_2015'!J63 -> 0 | K63: =IF(ISERROR(+I63+'App.2-CI_MIFRS_DepExp_2014'!K63-J63), 0, +I63+'App.2-CI_MIFRS_DepExp_2014'!K63-J63) -> 0
A64: 1950 | B64: Power Operated Equipment | C64: ='[13]App.2-CJ_MIFRS_DepExp_2015'!C64 -> 0 | D64: ='[13]App.2-CJ_MIFRS_DepExp_2015'!D64 -> 0 | E64: 0 | F64: =IF(D64=0,'App.2-CI_MIFRS_DepExp_2014'!K64,+'App.2-CI_MIFRS_DepExp_2014'!K64+((C64*0.5)/D64)) -> 0 | G64: ='[13]App.2-CJ_MIFRS_DepExp_2015'!G64 -> 0 | H64: 0 | I64: 0 | J64: ='[13]App.2-CJ_MIFRS_DepExp_2015'!J64 -> 0 | K64: =IF(ISERROR(+I64+'App.2-CI_MIFRS_DepExp_2014'!K64-J64), 0, +I64+'App.2-CI_MIFRS_DepExp_2014'!K64-J64) -> 0
A65: 1955 | B65: Communications Equipment | C65: ='[13]App.2-CJ_MIFRS_DepExp_2015'!C65 -> 0 | D65: ='[13]App.2-CJ_MIFRS_DepExp_2015'!D65 -> 0 | E65: 0 | F65: =IF(D65=0,'App.2-CI_MIFRS_DepExp_2014'!K65,+'App.2-CI_MIFRS_DepExp_2014'!K65+((C65*0.5)/D65)) -> 0 | G65: ='[13]App.2-CJ_MIFRS_DepExp_2015'!G65 -> 0 | H65: 0 | I65: 0 | J65: ='[13]App.2-CJ_MIFRS_DepExp_2015'!J65 -> 0 | K65: =IF(ISERROR(+I65+'App.2-CI_MIFRS_DepExp_2014'!K65-J65), 0, +I65+'App.2-CI_MIFRS_DepExp_2014'!K65-J65) -> 0
A66: 1955 | B66: Communication Equipment (Smart Meters) | C66: ='[13]App.2-CJ_MIFRS_DepExp_2015'!C66 -> 0 | D66: ='[13]App.2-CJ_MIFRS_DepExp_2015'!D66 -> 0 | E66: 0 | F66: =IF(D66=0,'App.2-CI_MIFRS_DepExp_2014'!K66,+'App.2-CI_MIFRS_DepExp_2014'!K66+((C66*0.5)/D66)) -> 0 | G66: ='[13]App.2-CJ_MIFRS_DepExp_2015'!G66 -> 0 | H66: 0 | I66: 0 | J66: ='[13]App.2-CJ_MIFRS_DepExp_2015'!J66 -> 0 | K66: =IF(ISERROR(+I66+'App.2-CI_MIFRS_DepExp_2014'!K66-J66), 0, +I66+'App.2-CI_MIFRS_DepExp_2014'!K66-J66) -> 0
A67: 1960 | B67: Miscellaneous Equipment | C67: ='[13]App.2-CJ_MIFRS_DepExp_2015'!C67 -> 0 | D67: ='[13]App.2-CJ_MIFRS_DepExp_2015'!D67 -> 0 | E67: 0 | F67: =IF(D67=0,'App.2-CI_MIFRS_DepExp_2014'!K67,+'App.2-CI_MIFRS_DepExp_2014'!K67+((C67*0.5)/D67)) -> 0 | G67: ='[13]App.2-CJ_MIFRS_DepExp_2015'!G67 -> 0 | H67: 0 | I67: 0 | J67: ='[13]App.2-CJ_MIFRS_DepExp_2015'!J67 -> 0 | K67: =IF(ISERROR(+I67+'App.2-CI_MIFRS_DepExp_2014'!K67-J67), 0, +I67+'App.2-CI_MIFRS_DepExp_2014'!K67-J67) -> 0
A68: 1970 | B68: Load Management Controls | C68: ='[13]App.2-CJ_MIFRS_DepExp_2015'!C68 -> 0 | D68: ='[13]App.2-CJ_MIFRS_DepExp_2015'!D68 -> 0 | E68: 0 | F68: =IF(D68=0,'App.2-CI_MIFRS_DepExp_2014'!K68,+'App.2-CI_MIFRS_DepExp_2014'!K68+((C68*0.5)/D68)) -> 0 | G68: ='[13]App.2-CJ_MIFRS_DepExp_2015'!G68 -> 0 | H68: 0 | I68: 0 | J68: ='[13]App.2-CJ_MIFRS_DepExp_2015'!J68 -> 0 | K68: =IF(ISERROR(+I68+'App.2-CI_MIFRS_DepExp_2014'!K68-J68), 0, +I68+'App.2-CI_MIFRS_DepExp_2014'!K68-J68) -> 0
A69: 1975 | B69: Load Management Controls Utility Premises | C69: ='[13]App.2-CJ_MIFRS_DepExp_2015'!C69 -> 0 | D69: ='[13]App.2-CJ_MIFRS_DepExp_2015'!D69 -> 0 | E69: 0 | F69: =IF(D69=0,'App.2-CI_MIFRS_DepExp_2014'!K69,+'App.2-CI_MIFRS_DepExp_2014'!K69+((C69*0.5)/D69)) -> 0 | G69: ='[13]App.2-CJ_MIFRS_DepExp_2015'!G69 -> 0 | H69: 0 | I69: 0 | J69: ='[13]App.2-CJ_MIFRS_DepExp_2015'!J69 -> 0 | K69: =IF(ISERROR(+I69+'App.2-CI_MIFRS_DepExp_2014'!K69-J69), 0, +I69+'App.2-CI_MIFRS_DepExp_2014'!K69-J69) -> 0
A70: 1980 | B70: System Supervisor Equipment | C70: ='[13]App.2-CJ_MIFRS_DepExp_2015'!C70 -> 105900 | D70: ='[13]App.2-CJ_MIFRS_DepExp_2015'!D70 -> 20 | E70: 0.05 | F70: =IF(D70=0,'App.2-CI_MIFRS_DepExp_2014'!K70,+'App.2-CI_MIFRS_DepExp_2014'!K70+((C70*0.5)/D70)) -> 23561.4692 | G70: ='[13]App.2-CJ_MIFRS_DepExp_2015'!G70 -> 28739.03796 | H70: -5177.568757 | I70: 5295 | J70: ='[13]App.2-CJ_MIFRS_DepExp_2015'!J70 -> 0 | K70: =IF(ISERROR(+I70+'App.2-CI_MIFRS_DepExp_2014'!K70-J70), 0, +I70+'App.2-CI_MIFRS_DepExp_2014'!K70-J70) -> 26208.9692
A71: 1985 | B71: Miscellaneous Fixed Assets | C71: ='[13]App.2-CJ_MIFRS_DepExp_2015'!C71 -> 0 | D71: ='[13]App.2-CJ_MIFRS_DepExp_2015'!D71 -> 0 | E71: 0 | F71: =IF(D71=0,'App.2-CI_MIFRS_DepExp_2014'!K71,+'App.2-CI_MIFRS_DepExp_2014'!K71+((C71*0.5)/D71)) -> 0 | G71: ='[13]App.2-CJ_MIFRS_DepExp_2015'!G71 -> 0 | H71: 0 | I71: 0 | J71: ='[13]App.2-CJ_MIFRS_DepExp_2015'!J71 -> 0 | K71: =IF(ISERROR(+I71+'App.2-CI_MIFRS_DepExp_2014'!K71-J71), 0, +I71+'App.2-CI_MIFRS_DepExp_2014'!K71-J71) -> 0
A72: 1990 | B72: Other Tangible Property | C72: ='[13]App.2-CJ_MIFRS_DepExp_2015'!C72 -> 200000 | D72: ='[13]App.2-CJ_MIFRS_DepExp_2015'!D72 -> 15 | E72: 0.06666666667 | F72: =IF(D72=0,'App.2-CI_MIFRS_DepExp_2014'!K72,+'App.2-CI_MIFRS_DepExp_2014'!K72+((C72*0.5)/D72)) -> 149503.897 | G72: ='[13]App.2-CJ_MIFRS_DepExp_2015'!G72 -> 135742.3108 | H72: 13761.58615 | I72: 13333.33333 | J72: ='[13]App.2-CJ_MIFRS_DepExp_2015'!J72 -> 16390 | K72: =IF(ISERROR(+I72+'App.2-CI_MIFRS_DepExp_2014'!K72-J72), 0, +I72+'App.2-CI_MIFRS_DepExp_2014'!K72-J72) -> 139780.5637
A73: 1995 | B73: Contributions & Grants | C73: ='[13]App.2-CJ_MIFRS_DepExp_2015'!C73 -> -375000 | D73: ='[13]App.2-CJ_MIFRS_DepExp_2015'!D73 -> 25 | E73: 0.04 | F73: =IF(D73=0,'App.2-CI_MIFRS_DepExp_2014'!K73,+'App.2-CI_MIFRS_DepExp_2014'!K73+((C73*0.5)/D73)) -> -318731.8674 | G73: ='[13]App.2-CJ_MIFRS_DepExp_2015'!G73 -> -313753.15 | H73: -4978.717363 | I73: =IF(D73=0,0,+(C73)/D73) -> -15000 | J73: ='[13]App.2-CJ_MIFRS_DepExp_2015'!J73 -> 0 | K73: =IF(ISERROR(+I73+'App.2-CI_MIFRS_DepExp_2014'!K73-J73), 0, +I73+'App.2-CI_MIFRS_DepExp_2014'!K73-J73) -> -326231.8674
B74: Total | C74: =SUM(C17:C73) -> 8226656.835 | F74: =SUM(F17:F73) -> 4139090.982 | G74: =SUM(G17:G73) -> 4080499.666 | H74: =SUM(H17:H73) -> 58591.31635 | I74: =SUM(I17:I73) -> 463374.5212 | J74: 125048 | K74: =SUM(K17:K73) -> 4245730.243
B75: Depreciation exp. adj. from gain or loss on the retirement of assets (pool of like assets)
B76: Total Depreciation expense to be included in the test year revenue requirement | F76: =SUM(F74:F75) -> 4139090.982
A77: Notes:
A78: 1 | B78: Board policy of the "half-year" rule - the applicant must ensure that additions in the year attract a half-year depreciation expense in the first year. Deviations from this standard practice must be supported in the application.
A79: 2 | B79: The applicant must provide an explanation of material variances in evidence.
A80: 3 | B80: This column refers to the calculated full year depreciation but excludes the depreciation expense on assets fully depreciated during the year. This column is used for the purpose of calculating depreciation expense in the following year on the next worksheet.
A83: General: | B83: Applicants must provide a breakdown of depreciation and amortization expense in the above format for all relevant accounts. Asset Retirement Obligations (AROs), depreciation and accretion expense should be disclosed separately consistent with the Notes of historical Audited Financial Statements.

Sheet App.2-CK MIFRS_DepExp_2016
G1: File Number: | H1: =EBNUMBER -> EB-2015-0061
G2: Exhibit: | H2: 4
G3: Attachment: | H3: 4-Q
G4: Page: | H4: 1 of 1
G7: Date: | H7: 2015-08-28
A9: Appendix 2-CK
A10: Depreciation and Amortization Expense
A11: Assumes the applicant made capitalization and depreciation expense accounting policy changes under CGAAP effective January 1, 2013 and has adopted IFRS for financial reporting purposes effective January 1, 2015.
D13: 2016 | E13: MIFRS
A15: Account | B15: Description | C15: Additions | D15: Years (new additions only) | E15: Depreciation Rate on New Additions | F15: 2016 Depreciation Expense 1 | G15: 2016 Depreciation Expense per Appendix 2-BA Fixed Assets, Column J (l) | H15: Variance 2
C16: (d) | D16: (f) | E16: (g) = 1 / (f) | F16: (h)=2015 Full Year Depreciation + ((d)*0.5)/(f) | H16: (m) = (h) - (l)
